Workbook

Sheet Profile
B1: District Profiles
B2: This profile intends to give the most up to date social and economic information available for each of the districts within the Kent area.
B3: Information relating to the population, employment, deprivation, health, crime and housing development are included.
B4: To use these profiles:
B5: Select the topic area you are interested in from the selection below.
B6: From each topic page you can select the district that you are interested in.
B7: The profile will update with a summary of the data for the selected area.
B8: To print a copy of the topic click the print button on each page.
B9: You can select a different topic from each page.
B10: A glossary of terms can be found at the bottom of each topic page.
B11: To see a summary of the figures from all topic areas select Figures at a Glance from the options below
C14: Select topic: | E14: Version date: 4 February 2025
C16: Figures at a Glance | D16: Provides a summary of the figures from all topic areas
C17: Population | D17: Includes information about the age and gender of the population and a Mosaic profile of the selected area.
C18: Diversity | D18: Includes information about the age of the population, ethnicity, religion and country of birth.
C19: Health | D19: Includes information about the numbers of births & deaths, life expectancy, people with limiting long term illness, health related benefits claimants and people providing unpaid care.
C20: Deprivation | D20: Includes information from the 2019 Index of Multiple Deprivation, benefits claimants, worklessness, unemployment, tax credit recipients, children in poverty and recorded crime. (Next IoD is due for release 2025)
C21: Housing & Households | D21: Includes information about housing types, amenities, tenure, household composition, car ownership, housing stock, housing completions and council tax bands.
C22: Young People, Education & Skills | D22: Includes information about the population aged under 24, key age groups, child benefit, tax credit recipient families, children in poverty, children providing unpaid care, youth unemployment, young claimants of disability benefits.
C23: Older People | D23: Includes information about the age of the population aged 60+, age groups, State Pension claimants, Pension Credit claimants, Disability Benefits claimants, Limiting long term illness and provision of unpaid care.
C24: Economy | D24: Includes information about the working age population, employees, economic activity, People in employment, employment by industry and occupation, method of travel to work and distance travelled, unemployment and worklessness and qualifications.

Sheet Figures at a glance
B8: =Index!C1&" figures at a glance" -> Ashford figures at a glance | I8: =Profile!E14 -> Version date: 4 February 2025
B10: Population
C11: ="Population by gender, "&Data!E7 -> Population by gender, Mid 2023 | G11: ="Population by age group, "&Data!E7 -> Population by age group, Mid 2023 | K11: ="Population forecasts, "&Data!C214&" - "&Data!C218 -> Population forecasts, 2022 - 2042
D12: Males | E12: =Population!D11 -> 67300 | H12: 0-15 | I12: =Population!B38 -> 27200 | L12: 2022 | M12: =Population!B74 -> 136300
D13: Females | E13: =Population!F11 -> 71000 | H13: 16-64 | I13: =Population!B39 -> 83900 | L13: 2027 | M13: =Population!B75 -> 146200
D14: Total | E14: =Population!B11 -> 138300 | H14: 65+ | I14: =Population!B40 -> 27100 | L14: 2032 | M14: =Population!B76 -> 157000
D15: ONS | H15: ONS | L15: 2037 | M15: =Population!B77 -> 164400
L16: 2042 | M16: =Population!B78 -> 172200
L17: KCC Housing Led Forecasts (2021)
C18: ="Average age, "&Data!E7 -> Average age, Mid 2023 | G18: ="Population density, "&Data!E7 -> Population density, Mid 2023 | L18: Kent Analytics
D19: All People | E19: =Population!B57 -> 41.26220143 | H19: Area (hectares) | I19: =Population!B48 -> 58062
D20: Males | E20: =Population!B58 -> 40.42382551 | H20: Density (persons per hectare) | I20: =Population!B49 -> 2.38164376
D21: Females | E21: =Population!B59 -> 42.05721572 | H21: ONS
D22: ONS
B25: Diversity
C26: Population by ethnicity, 2021 Census | G26: Population by religion, 2021 Census | K26: World area of birth, 2021 Census
D27: All people | E27: =Diversity!B37 -> 132756 | H27: ALL People | I27: =Diversity!B184 -> 131781 | L27: Europe | M27: =Diversity!B135 -> 121312
D28: White | E28: =Diversity!B38 -> 109677 | H28: Christian | I28: =Diversity!B185 -> 62762 | L28: Africa | M28: =Diversity!B136 -> 2917
D29: Ethnic minorities | E29: =Diversity!B39 -> 23079 | H29: Buddhist | I29: =Diversity!B186 -> 1336 | L29: Middle East and Asia | M29: =Diversity!B137 -> 7168
D30: ONS | H30: Hindu | I30: =Diversity!B187 -> 2717 | L30: The Americas and the Caribbean | M30: =Diversity!B138 -> 972
H31: Jewish | I31: =Diversity!B188 -> 142 | L31: Antarctica and Oceania | M31: =Diversity!B139 -> 380
H32: Muslim | I32: =Diversity!B189 -> 2083 | L32: ONS
H33: Sikh | I33: =Diversity!B190 -> 145
H34: All other religions | I34: =Diversity!B191 -> 1531
H35: No religion | I35: =Diversity!B192 -> 53717
H36: Religion not stated | I36: =Diversity!B193 -> 7348
H37: ONS
C40: Length of residence in the UK, 2021 Census | G40: Marital & Civil Partnership Status, 2021 Census
D41: Born in the UK | E41: =Diversity!B165 -> 114942 | H41: All people aged 16 and over | I41: =Diversity!B247 -> 106772
D42: Born outside the UK | E42: =Diversity!B166 -> 17805 | H42: Single (never married or never registered civil partnership) | I42: =Diversity!B248 -> 35293
D43: Resident in UK: Less than 2 years | E43: =Diversity!B167 -> 1651 | H43: Married or in a registered civil partnership | I43: =Diversity!B249 -> 52688
D44: Resident in UK: 2 years or more but less than 5 years | E44: =Diversity!B168 -> 2269 | H44: Separated (but still legally married or still legally in a civil partnership) | I44: =Diversity!B256 -> 2292
D45: Resident in UK: 5 years or more but less than 10 years | E45: =Diversity!B169 -> 3101 | H45: Divorced or formerly in a civil partnership which is now legally dissolved | I45: =Diversity!B259 -> 10033
D46: Resident in UK: 10 years or more | E46: =Diversity!B170 -> 10784 | H46: Widowed or surviving partner from a civil partnership | I46: =Diversity!B262 -> 6466
D47: ONS | H47: ONS
B50: Health
C51: ="Life expectancy at birth (years), "&Data!E322 -> Life expectancy at birth (years), 2021-23 | G51: ="Life expectancy at age 65 (years), "&Data!E322 -> Life expectancy at age 65 (years), 2021-23 | K51: ="Births & deaths, "&Health!A11 -> Births & deaths, 2023
D52: Males | E52: =Health!B111 -> 80.12 | H52: Males | I52: =Health!B133 -> 19.01 | L52: Total live births | M52: =Health!B12 -> 1364
D53: Females | E53: =Health!B112 -> 83.55 | H53: Females | I53: =Health!B134 -> 21.53 | L53: Total deaths | M53: =Health!B13 -> 1285
D54: ONS | H54: ONS | L54: Natural change | M54: =Health!B14 -> 79
L55: ONS
C56: Health, 2021 Census | G56: ="Disability benefit claimants (DLA/PIP or AA), "&Data!E327 -> Disability benefit claimants (DLA/PIP or AA), Nov 2023 | K56: ="Disability benefits claimants by health condition, "&Data!E327 -> Disability benefits claimants by health condition, Nov 2023
D57: Very good and good health | E57: =SUM(Health!B157+Health!B158) -> 110113 | H57: Total | I57: =Health!B204 -> 12055 | L57: Mental Health | M57: =Health!B226 -> 2081
D58: Fair Health | E58: =Health!B159 -> 16551 | H58: 0-15 | I58: =Health!B205 -> 2016 | L58: Learning Difficulty | M58: =Health!B227 -> 2763
D59: Bad and very bad health | E59: =SUM(Health!B160+Health!B161) -> 6083 | H59: 16-64 | I59: =Health!B206 -> 5817 | L59: Physical Disablity | M59: =Health!B228 -> 7537
D60: ONS | H60: 65+ | I60: =Health!B207 -> 886 | L60: DWP
H61: DWP
C63: Long term health problem or disability, 2021 | G63: People providing unpaid care, 2021 Census | K63: ="People claiming Carers Allowance, "&Data!E349 -> People claiming Carers Allowance, Nov 2023
D64: All people | E64: =Health!B181 -> 132747 | H64: Total | I64: =Health!B270 -> 11153 | L64: Aged 16-24 | M64: =Health!B288 -> 105
D65: Day-to-day activities limited | E65: =Health!B182 -> 22655 | H65: 0-15 | I65: =Health!B271 -> 350 | L65: 25-64 | M65: =Health!B289 -> 2026
D66: Day-to-day activities not limited | E66: =Health!B185 -> 110092 | H66: 16-64 | I66: =Health!B272 -> 8174 | L66: 65 and over | M66: =Health!B290 -> 623
D67: 2021 Census, ONS | H67: 65+ | I67: =Health!B273 -> 2629 | L67: Total Claimants | M67: =Health!B291 -> 2768
H68: ONS | L68: DWP
B70: Deprivation | E70: Provisional release date for an update to the 2019 IoD is 2025
C71: ="Benefit Claimants, "&Data!E375 -> Benefit Claimants, Nov 2023 | G71: ="Universal Credit Claimants, "&Data!E375 -> Universal Credit Claimants, Nov 2023 | K71: ="Index of Multiple Deprivation ("&Data!E369&" IMD)" -> Index of Multiple Deprivation (2019 IMD)
D72: Income Support | E72: =Deprivation!B38 -> 286 | H72: Total Universal Credit Claimants | I72: =Deprivation!B55 -> 11405 | L72: Kent rank* | M72: =Deprivation!B11 -> 7
D73: Jobseekers Allowance | E73: =Deprivation!B39 -> 123 | H73: Claimants who are in employment | I73: =Deprivation!B59 -> 4650 | L73: National rank** | M73: =Deprivation!B12 -> 152
D74: Incapacity benefits | E74: =Deprivation!B40 -> 52 | H74: Claimants who are not in employment | I74: =Deprivation!B60 -> 6755 | L74: Average Score | M74: =Deprivation!B13 -> 18.546
D75: Employment Support Allowance | E75: =Deprivation!B41 -> 2380 | H75: DWP | L75: IMD 2019, MHCLG
D76: Pension Credits | E76: =Deprivation!B42 -> 2595
D77: State Pension | E77: =Deprivation!B43 -> 0
D78: DWP
C79: ="Children in low income families, "&Data!E416 -> Children in low income families, 2022-23 | G79: ="Looked after children (LAC) per 1,000 aged 0-17, "&Data!E737 -> Looked after children (LAC) per 1,000 aged 0-17, March 2021 | K79: ="Children subject to a Child Protection Plan, "&Data!E740 -> Children subject to a Child Protection Plan, March 2021
D80: Children under 16 in relative low income families | E80: =Deprivation!B99 -> 4183 | H80: Children In Care (excluding Unaccompanied Asylum Seeking Children) | I80: ='Young people ed & skills'!B133 -> 29.00966989 | L80: Total per 10,000 aged 0-17 | M80: ='Young people ed & skills'!B134 -> 39.34644882
D81: % of Children under 16 in relative low income families | E81: =Deprivation!B100 -> 0.1566842716 | H81: Children In Care (including Unaccompanied Asylum Seeking Children) | I81: ='Young people ed & skills'!B134 -> 39.34644882
D82: DWP | L82: KCC
H83: KCC
C85: ="Recorded crimes per 1,000 population, "&Data!E453 -> Recorded crimes per 1,000 population, 2023
D86: Criminal damage and arson | E86: =Deprivation!B149 -> 9.977140329
D87: Drug offences | E87: =Deprivation!B150 -> 1.850895952
D88: Miscellaneous crimes | E88: =Deprivation!B151 -> 2.418700686
D89: Possession of weapons offences | E89: =Deprivation!B152 -> 0.759531008
D90: Public order offences | E90: =Deprivation!B153 -> 4.763660497
D91: Robbery | E91: =Deprivation!B154 -> 0.420322985
D92: Sexual offences | E92: =Deprivation!B155 -> 2.780030971
D93: Theft offences | E93: =Deprivation!B156 -> 23.50859081
D94: Violence against the person | E94: =Deprivation!B157 -> 32.7483224
D95: Total recorded crime | E95: =Deprivation!B158 -> 79.22719563
D96: KCC
B99: Housing & Households
C100: ="Average House Prices, "&Data!E482 -> Average House Prices, 2023 | G100: Household size, 2021 Census | K100: ="Council tax bands, "&Data!E493 -> Council tax bands, 2024
D101: Detached | E101: ='Housing & households'!B140 -> 594933 | H101: Average Household Size | I101: ='Housing & households'!B45 -> 2.459380774 | L101: Band A <£40k | M101: ='Housing & households'!B122 -> 4350
D102: Semi | E102: ='Housing & households'!B141 -> 358369 | H102: 1 person | I102: ='Housing & households'!B27 -> 13861 | L102: Band B £40-52k | M102: ='Housing & households'!B123 -> 13870
D103: Terrace | E103: ='Housing & households'!B142 -> 293989 | H103: 2 people | I103: ='Housing & households'!B28 -> 18895 | L103: Band C £52-68k | M103: ='Housing & households'!B124 -> 13600
D104: Flat/ Maisonette | E104: ='Housing & households'!B143 -> 181645 | H104: 3 people | I104: ='Housing & households'!B29 -> 9068 | L104: Band D £68-88k | M104: ='Housing & households'!B125 -> 10170
D105: All | E105: ='Housing & households'!B144 -> 400312 | H105: 4 people | I105: ='Housing & households'!B30 -> 7794 | L105: Band E £88-120k | M105: ='Housing & households'!B126 -> 7090
D106: The Land Registry | H106: 5 people | I106: ='Housing & households'!B31 -> 2670 | L106: Band F £120-160k | M106: ='Housing & households'!B127 -> 6140
H107: 6 people | I107: ='Housing & households'!B32 -> 886 | L107: Band G £160-320k | M107: ='Housing & households'!B128 -> 3540
H108: 7 people | I108: ='Housing & households'!B33 -> 275 | L108: Band H >£320k | M108: ='Housing & households'!B129 -> 210
H109: 8 people or more | I109: ='Housing & households'!B34 -> 133 | L109: Total Dwellings | M109: ='Housing & households'!B130 -> 58970
H110: ONS | L110: ONS
C112: Households & Housing Tenure, 2021 Census | G112: Household Type, 2021 Census | K112: Household Amenities, 2021 Census
D113: Total Households | E113: ='Housing & households'!B11 -> 53583 | H113: Total Households | I113: ='Housing & households'!B92 -> 53586 | L113: Does not have central heating | M113: ='Housing & households'!B73 -> 624
D114: Owned: Owned outright | E114: ='Housing & households'!B12 -> 18032 | H114: One person Households | I114: ='Housing & households'!B93 -> 13862 | L114: Does have central heating | M114: ='Housing & households'!B74 -> 52959
D115: Owned: Owned with a mortgage or loan | E115: ='Housing & households'!B13 -> 17565 | H115: One Family Only | I115: ='Housing & households'!B96 -> 36313 | L115: No cars or vans in household | M115: ='Housing & households'!B75 -> 7706
D116: Shared ownership (part owned and part rented) | E116: ='Housing & households'!B14 -> 917 | H116: Other Household Types | I116: ='Housing & households'!B110 -> 3411 | L116: ONS
D117: Social rented: Rented from council (Local Authority) | E117: ='Housing & households'!B15 -> 4750 | H117: ONS
D118: Social rented: Other | E118: ='Housing & households'!B16 -> 2751
D119: Private rented: Private landlord or letting agency | E119: ='Housing & households'!B17 -> 8236
D120: Private rented: Other | E120: ='Housing & households'!B18 -> 1263
D121: Living rent free | E121: ='Housing & households'!B19 -> 69
D122: ONS
B124: Young People, Education & skills
C125: ="Children and young people, "&Data!E578 -> Children and young people, Mid 2023 | G125: ="GCSE results, "&Data!E669&" (percentage of pupils)" -> GCSE results, 2022/23 (percentage of pupils) | K125: ="School population, "&'Young people ed & skills'!A60 -> School population, January 2024
D126: 0-3 - Early Years children | E126: ='Young people ed & skills'!B13 -> 6100 | H126: % Achieving Strong Pass (Grades 9-5) in English & Maths | I126: ='Young people ed & skills'!B99/100 -> 0.004547837484 | L126: English additional language | M126: ='Young people ed & skills'!B62 -> 3304
D127: 4-10 - Primary age children | E127: ='Young people ed & skills'!B14 -> 12100 | H127: % Achieving Strong Pass (Grade 5 or above) English | I127: ='Young people ed & skills'!B100/100 -> 0.006572739187 | L127: Free school meals | M127: ='Young people ed & skills'!B63 -> 4760
D128: 11-18 - Secondary age children | E128: ='Young people ed & skills'!B15 -> 13900 | H128: % Achieving Strong Pass (Grade 5 or above) Maths | I128: ='Young people ed & skills'!B101/100 -> 0.002182175623 | L128: SEN - No statement | M128: ='Young people ed & skills'!B64 -> 2447
D129: 10-17 - age group covered by youth offending service | E129: ='Young people ed & skills'!B16 -> 14200 | H129: DfE | L129: SEN - Statement | M129: ='Young people ed & skills'!B65 -> 1084
D130: 14-19 - age group for Key Qualifications | E130: ='Young people ed & skills'!B17 -> 9700 | L130: Number of pupils on roll | M130: ='Young people ed & skills'!B66 -> 21617
D131: 0-19 - All children & young people | E131: ='Young people ed & skills'!B18 -> 33300 | L131: KCC
D132: Mid-year population estimates, ONS
C134: ="Disabled pupils, "&Data!E654 -> Disabled pupils, January 2024 | G134: ="Number of primary schools, "&Data!E619 -> Number of primary schools, February 2025 | K134: ="Number of secondary schools, "&Data!J619 -> Number of secondary schools, February 2025
D135: Number with a Primary SEN | E135: ='Young people ed & skills'!B79 -> 3531 | H135: Academy Infant | I135: ='Young people ed & skills'!B30 -> 1 | L135: Academy Grammar | M135: ='Young people ed & skills'!B39 -> 2
D136: Autistic Spectrum Disorder | E136: ='Young people ed & skills'!B80 -> 794 | H136: Academy Junior | I136: ='Young people ed & skills'!B31 -> 2 | L136: Academy High | M136: ='Young people ed & skills'!B40 -> 3
D137: Hearing Impairment | E137: ='Young people ed & skills'!B81 -> 23 | H137: Academy Primary | I137: ='Young people ed & skills'!B32 -> 15 | L137: Academy Wide Ability | M137: ='Young people ed & skills'!B41 -> 1
D138: Moderate Learning Difficulties | E138: ='Young people ed & skills'!B82 -> 243 | H138: Primary Free School | I138: ='Young people ed & skills'!B33 -> 0 | L138: Secondary Free School | M138: ='Young people ed & skills'!B43 -> 2
D139: Multi Sensory Impairment | E139: ='Young people ed & skills'!B83 -> 9 | H139: Infant | I139: ='Young people ed & skills'!B35 -> 2 | L139: Grammar | M139: ='Young people ed & skills'!B44 -> 0
D140: SEN Support | E140: ='Young people ed & skills'!B84 -> 130 | H140: Junior | I140: ='Young people ed & skills'!B36 -> 1 | L140: High | M140: ='Young people ed & skills'!B45 -> 0
D141: Other | E141: ='Young people ed & skills'!B85 -> 83 | H141: Primary | I141: ='Young people ed & skills'!B37 -> 21 | L141: Wide Ability | M141: ='Young people ed & skills'!B46 -> 0
D142: Physical Disability | E142: ='Young people ed & skills'!B86 -> 80 | H142: Total | I142: ='Young people ed & skills'!B38 -> 43 | L142: Total | M142: ='Young people ed & skills'!B47 -> 8
D143: Profound & Multiple Learning Difficulties | E143: ='Young people ed & skills'!B87 -> 27 | H143: KCC | L143: KCC
D144: Social, Emotional & Mental Health | E144: ='Young people ed & skills'!B88 -> 778
D145: Speech, Language & Communication Needs | E145: ='Young people ed & skills'!B89 -> 851
D146: Severe Learning Difficulties | E146: ='Young people ed & skills'!B90 -> 92
D147: Specific Learning Difficulties | E147: ='Young people ed & skills'!B91 -> 409
D148: Visual Impairment | E148: ='Young people ed & skills'!B92 -> 12
D149: KCC
C151: ="Young people providing unpaid care, " &Census2021Data!D7 -> Young people providing unpaid care, 2021
D152: 5-9 providing unpaid care | E152: ='Young people ed & skills'!B154 -> 64
D153: 10-15 providing unpaid care | E153: ='Young people ed & skills'!B155 -> 286
D154: 16-19 providing unpaid care | E154: ='Young people ed & skills'!B156 -> 261
D155: 20-24 providing unpaid care | E155: ='Young people ed & skills'!B157 -> 373
D156: All people under 25 | E156: ='Young people ed & skills'!B158 -> 984
D157: 2021 Census, ONS
B159: Older People
C160: ="Population aged 60+, "&Data!E7 -> Population aged 60+, Mid 2023 | G160: ="State Pension Claimants, "&Data!E742 -> State Pension Claimants, Nov 2020 | K160: ="Age of State Pension Claimants, "&Data!E742 -> Age of State Pension Claimants, Nov 2020
D161: Population aged 60+ | E161: ='Older people'!B14 -> 35600 | H161: Total claimants | I161: ='Older people'!B29 -> 23702 | L161: aged 60-64 | M161: ='Older people'!B39 -> ..
D162: 60-64 | E162: ='Older people'!B15 -> 8500 | H162: Male | I162: ='Older people'!B30 -> 10874 | L162: aged 65-69 | M162: ='Older people'!B40 -> 4815
D163: 65-69 | E163: ='Older people'!B16 -> 6800 | H163: Female | I163: ='Older people'!B31 -> 12827 | L163: aged 70-74 | M163: ='Older people'!B41 -> 7114
D164: 70-74 | E164: ='Older people'!B17 -> 6500 | H164: DWP | L164: aged 75-79 | M164: ='Older people'!B42 -> 5134
D165: 75-79 | E165: ='Older people'!B18 -> 6500 | L165: aged 80-84 | M165: ='Older people'!B43 -> 3463
D166: 80-84 | E166: ='Older people'!B19 -> 3900 | L166: aged 85-89 | M166: ='Older people'!B44 -> 2043
D167: 85-89 | E167: ='Older people'!B20 -> 2200 | L167: aged 90 and over | M167: ='Older people'!B45 -> 1135
D168: 2021 Mid-year population estimates, ONS | L168: DWP
C170: ="Average amount of State Pension (£ per week), "&Data!E767 -> Average amount of State Pension (£ per week), Nov 2018 | G170: ="Pension Credit Claimants, "&Data!E792 -> Pension Credit Claimants, Nov 2023 | K170: ="Age of Pension Credit Claimants, "&Data!J792 -> Age of Pension Credit Claimants, Nov 2023
D171: Total | E171: 118.92 | H171: Total claimants | I171: ='Older people'!B53 -> 2595 | L171: aged 60-64 | M171: ='Older people'!B64 -> 0
D172: aged 60-64 | E172: 105.42 | H172: Male | I172: ='Older people'!B54 -> 944 | L172: aged 65-69 | M172: ='Older people'!B65 -> 234
D173: aged 65-69 | E173: 117.1 | H173: Female | I173: ='Older people'!B55 -> 1651 | L173: aged 70-74 | M173: ='Older people'!B66 -> 621
D174: aged 70-74 | E174: 120.7 | H174: DWP | L174: aged 75-79 | M174: ='Older people'!B67 -> 731
D175: aged 75-79 | E175: 124.91 | L175: aged 80-84 | M175: ='Older people'!B68 -> 505
D176: aged 80-84 | E176: 125.43 | L176: aged 85-89 | M176: ='Older people'!B69 -> 280
D177: aged 85-89 | E177: 121.05 | L177: aged 90 and over | M177: ='Older people'!B70 -> 221
D178: aged 90 and over | E178: 113.39 | L178: DWP
D179: DWP
C181: ="Disability Living Allowance Claimants, "&Data!E842 -> Disability Living Allowance Claimants, Nov 2023 | G181: ="Attendance Allowance Claimants, "&Data!J842 -> Attendance Allowance Claimants, Nov 2023 | K181: ="Total Disability Benefits Claimants (DLA or AA) by age, "&Data!M842 -> Total Disability Benefits Claimants (DLA or AA) by age, Nov 2023
D182: Total Claimants aged 60+ | E182: ='Older people'!B81 -> 853 | H182: Total Claimants aged 65+ | I182: ='Older people'!B96 -> 3354 | L182: Total Claimants aged 60+ | M182: ='Older people'!B110 -> 3482
D183: aged 60-64 | E183: ='Older people'!B82 -> 105 | H183: 65 - 69 | I183: ='Older people'!B97 -> 105 | L183: aged 60-64 | M183: ='Older people'!B111 -> 45
D184: aged 65-69 | E184: ='Older people'!B83 -> 104 | H184: 70 - 74 | I184: ='Older people'!B98 -> 362 | L184: aged 65-69 | M184: ='Older people'!B112 -> 123
D185: aged 70-74 | E185: ='Older people'!B84 -> 120 | H185: 75 - 79 | I185: ='Older people'!B99 -> 720 | L185: aged 70-74 | M185: ='Older people'!B113 -> 405
D186: aged 75-79 | E186: ='Older people'!B85 -> 295 | H186: 80 - 84 | I186: ='Older people'!B100 -> 781 | L186: aged 75-79 | M186: ='Older people'!B114 -> 770
D187: aged 80-84 | E187: ='Older people'!B86 -> 158 | H187: 85 - 89 | I187: ='Older people'!B101 -> 719 | L187: aged 80-84 | M187: ='Older people'!B115 -> 784
D188: aged 85-89 | E188: ='Older people'!B87 -> 55 | H188: 90 and over | I188: ='Older people'!B102 -> 667 | L188: aged 85-89 | M188: ='Older people'!B116 -> 680
D189: aged 90 and over | E189: ='Older people'!B88 -> 16 | H189: DWP | L189: aged 90 and over | M189: ='Older people'!B117 -> 675
D190: DWP | L190: DWP
C192: ="Personal Independence Payment claimants aged 60+, "&Data!E914 -> Personal Independence Payment claimants aged 60+, Nov 2023 | G192: Long term health problem or disability: Day-to-day activities limited , 2021 Census | K192: Providing unpaid care , 2021 Census
D193: Aged 60+ | E193: ='Older people'!B129 -> 1638 | H193: Aged 60+ | I193: ='Older people'!B139 -> 10126 | L193: Aged 50+ | M193: ='Older people'!B153 -> 6542
D194: aged 60-64 | E194: ='Older people'!B130 -> 733 | H194: 60-64 | I194: ='Older people'!B140 -> 1668 | L194: 60-64 | M194: ='Older people'!B154 -> 3913
D195: aged 65-69 | E195: ='Older people'!B131 -> 905 | H195: 65-69 | I195: ='Older people'!B141 -> 1576 | L195: 65-74 | M195: ='Older people'!B155 -> 1543
C196: DWP | H196: 70-74 | I196: ='Older people'!B142 -> 1903 | L196: 75-84 | M196: ='Older people'!B156 -> 858
H197: 75-79 | I197: ='Older people'!B143 -> 1696 | L197: 85+ | M197: ='Older people'!B157 -> 228
H198: 80-84 | I198: ='Older people'!B144 -> 1452
H199: 85+ | I199: ='Older people'!B145 -> 1831 | L199: ONS
H200: ONS
B202: Economy
C203: ="Population aged 16-64 (working age), "&Data!E924 -> Population aged 16-64 (working age), Mid 2023 | G203: ="Economically active population, "&Data!E931 -> Economically active population, 2023 | K203: ="Forecast economically active population, "&Data!C955&" - "&Data!C959 -> Forecast economically active population, 2022 - 2042
D204: Males | E204: =Economy!B13 -> 40900 | H204: Aged 16-24 | I204: =Economy!D57 -> 5600 | L204: =L12 -> 2022 | M204: =Economy!B78 -> 93500
D205: Females | E205: =Economy!B14 -> 43000 | H205: Aged 25-34 | I205: =Economy!D58 -> 11000 | L205: 2027 | M205: =Economy!B79 -> 101700
D206: Total | E206: =Economy!B15 -> 83900 | H206: Aged 35-44 | I206: =Economy!D59 -> 15500 | L206: 2032 | M206: =Economy!B80 -> 109800
D207: ONS | H207: Aged 45-59 | I207: =Economy!D60 -> 24900 | L207: 2037 | M207: =Economy!B81 -> 113600
H208: Aged 60-64 | I208: =Economy!D61 -> 5500 | L208: 2042 | M208: =Economy!B82 -> 116500
H209: Aged 65-74 | I209: =Economy!D62 -> 57000 | L209: =L17 -> KCC Housing Led Forecasts (2021)
H210: Aged 16-74 | I210: =Economy!D63 -> 0 | L210: =L18 -> Kent Analytics
H211: KCC
C213: ="Employment Rate, "&Data!E964 -> Employment Rate, 2023 | G213: ="Median weekly full-time earnings (£s) - workplace based - "&Data!E1008 -> Median weekly full-time earnings (£s) - workplace based - 2024 | K213: ="Median weekly full-time earnings (£s) - resident based - "&Data!E1015 -> Median weekly full-time earnings (£s) - resident based - 2024
D214: 16-24 | E214: =Economy!D92 -> 0.5185185185 | H214: Males | I214: =Economy!B322 -> 695.8 | L214: Males | M214: =Economy!B339 -> 788.8
D215: 25-49 | E215: =Economy!D93 -> 0.6918918919 | H215: Females | I215: =Economy!B323 -> 635.4 | L215: Females | M215: =Economy!B340 -> 634
D216: 50-64 | E216: =Economy!D94 -> 0.7223974763 | H216: Total | I216: =Economy!B324 -> 678.3 | L216: Total | M216: =Economy!B341 -> 700.2
D217: 16-64 | E217: =Economy!D95 -> 0.6813602015 | H217: NOMIS:ASHE | L217: NOMIS:ASHE
D218: NOMIS:APS
C220: =Economy!A107 -> Annual Average Unemployment Rate - 2010-2024 | G220: Output (Gross Value Added) Estimates (£m.) | K220: =Economy!A453 -> GVA per head estimates (£/head)
D221: =Data!C977 -> 2010 | E221: =Economy!$B110 -> 0.025 | H221: =Data!C1052 -> 2006 | I221: =Economy!B435 -> 2160 | L221: =Economy!A456 -> 2006 | M221: =Economy!B456 -> 19379.32334
D222: =Data!C978 -> 2011 | E222: =Economy!$B111 -> 0.026 | H222: =Data!C1053 -> 2007 | I222: =Economy!B436 -> 2247 | L222: =Economy!A457 -> 2007 | M222: =Economy!B457 -> 19834.75452
D223: =Data!C979 -> 2012 | E223: =Economy!$B112 -> 0.027 | H223: =Data!C1054 -> 2008 | I223: =Economy!B437 -> 2367 | L223: =Economy!A458 -> 2008 | M223: =Economy!B458 -> 20662.38346
D224: =Data!C980 -> 2013 | E224: =Economy!$B113 -> 0.024 | H224: =Data!C1055 -> 2009 | I224: =Economy!B438 -> 2239 | L224: =Economy!A459 -> 2009 | M224: =Economy!B459 -> 19352.77542
D225: =Data!C981 -> 2014 | E225: =Economy!$B114 -> 0.017 | H225: =Data!C1056 -> 2010 | I225: =Economy!B439 -> 2294 | L225: =Economy!A460 -> 2010 | M225: =Economy!B460 -> 19611.028
D226: =Data!C982 -> 2015 | E226: =Economy!$B115 -> 0.013 | H226: =Data!C1057 -> 2011 | I226: =Economy!B440 -> 2339 | L226: =Economy!A461 -> 2011 | M226: =Economy!B461 -> 19754.23335
D227: 2014 | E227: =Economy!$B116 -> 0.015 | H227: =Data!C1058 -> 2012 | I227: =Economy!B441 -> 2468 | L227: =Economy!A462 -> 2012 | M227: =Economy!B462 -> 20533.98341
D228: 2015 | E228: =Economy!$B117 -> 0.016 | H228: =Data!C1059 -> 2013 | I228: =Economy!B442 -> 2488 | L228: =Economy!A463 -> 2013 | M228: =Economy!B463 -> 20418.54739
D229: 2016 | E229: =Economy!$B118 -> 0.019 | H229: =Data!C1060 -> 2014 | I229: =Economy!B443 -> 2688 | L229: =Economy!A464 -> 2014 | M229: =Economy!B464 -> 21733.15438
D230: 2017 | E230: =Economy!$B119 -> 0.025 | H230: =Data!C1061 -> 2015 | I230: =Economy!B444 -> 2790 | L230: =Economy!A465 -> 2015 | M230: =Economy!B465 -> 22395.24803
... 37 more rows

Sheet Population
A1: Population
A2: Includes information about the age and gender of the population and a Mosaic profile of the selected area.
N3: =Profile!E14 -> Version date: 4 February 2025
G4: Select geography: | K4: Select topic:
A6: District profile for | B6: =Index!C1 -> Ashford
A7: ="Population by gender, 2023 - "&A10 -> Population by gender, 2023 - Ashford
A8: Source: ONS Mid Year Estimates
B9: Total Persons | D9: Males | F9: Females
A10: =Index!$K$6 -> Ashford | B10: No. | C10: % of total population | D10: No. | E10: % | F10: No. | G10: % | L10: KCC Males | M10: KCC Females
A11: All Ages | B11: =INDEX(Data!$E8:$Z8,Index!$B$1) -> 138300 | C11: =INDEX(Data!E33:Z33,Index!$B$1) -> 1 | D11: =INDEX(Data!E58:Z58,Index!$B$1) -> 67300 | E11: =INDEX(Data!E83:Z83,Index!$B$1) -> 0.4867264957 | F11: =INDEX(Data!E133:Z133,Index!$B$1) -> 71000 | G11: =INDEX(Data!E158:Z158,Index!$B$1) -> 0.5132735043 | I11: =D12/$B$11 -> 0.02819956616 | J11: =I11*-1 -> -0.02819956616 | K11: =F12/$B$11 -> 0.02675343456 | L11: =Data!Q109*-1 -> -0.02806456882 | M11: =Data!Q184 -> 0.02625180795
A12: 0-4 | B12: =INDEX(Data!$E9:$Z9,Index!$B$1) -> 7600 | C12: =INDEX(Data!E34:Z34,Index!$B$1) -> 0.05513331357 | D12: =INDEX(Data!E59:Z59,Index!$B$1) -> 3900 | E12: =INDEX(Data!E84:Z84,Index!$B$1) -> 0.5144281217 | F12: =INDEX(Data!E134:Z134,Index!$B$1) -> 3700 | G12: =INDEX(Data!E159:Z159,Index!$B$1) -> 0.4855718783 | I12: 0.03253796095 | J12: -0.03253796095 | K12: 0.03036876356 | L12: =Data!Q110*-1 -> -0.03098150537 | M12: =Data!Q185 -> 0.0295202425
A13: 5-9 | B13: =INDEX(Data!$E10:$Z10,Index!$B$1) -> 8700 | C13: =INDEX(Data!E35:Z35,Index!$B$1) -> 0.0629867735 | D13: =INDEX(Data!E60:Z60,Index!$B$1) -> 4500 | E13: =INDEX(Data!E85:Z85,Index!$B$1) -> 0.5138920781 | F13: =INDEX(Data!E135:Z135,Index!$B$1) -> 4200 | G13: =INDEX(Data!E160:Z160,Index!$B$1) -> 0.4861079219 | I13: 0.03326102675 | J13: -0.03326102675 | K13: 0.03181489516 | L13: =Data!Q111*-1 -> -0.03310726092 | M13: =Data!Q186 -> 0.03119451564
A14: 10-14 | B14: =INDEX(Data!$E11:$Z11,Index!$B$1) -> 9100 | C14: =INDEX(Data!E36:Z36,Index!$B$1) -> 0.06560459348 | D14: =INDEX(Data!E61:Z61,Index!$B$1) -> 4600 | E14: =INDEX(Data!E86:Z86,Index!$B$1) -> 0.5124559083 | F14: =INDEX(Data!E136:Z136,Index!$B$1) -> 4400 | G14: =INDEX(Data!E161:Z161,Index!$B$1) -> 0.4875440917 | I14: 0.02892263196 | J14: -0.02892263196 | K14: 0.02819956616 | L14: =Data!Q112*-1 -> -0.0301269802 | M14: =Data!Q187 -> 0.02814654361
A15: 15-19 | B15: =INDEX(Data!$E12:$Z12,Index!$B$1) -> 7900 | C15: =INDEX(Data!E37:Z37,Index!$B$1) -> 0.05683995864 | D15: =INDEX(Data!E62:Z62,Index!$B$1) -> 4000 | E15: =INDEX(Data!E87:Z87,Index!$B$1) -> 0.5045801527 | F15: =INDEX(Data!E137:Z137,Index!$B$1) -> 3900 | G15: =INDEX(Data!E162:Z162,Index!$B$1) -> 0.4954198473 | I15: 0.02313810557 | J15: -0.02313810557 | K15: 0.02096890817 | L15: =Data!Q113*-1 -> -0.02457256664 | M15: =Data!Q188 -> 0.02328643174
A16: 20-24 | B16: =INDEX(Data!$E13:$Z13,Index!$B$1) -> 6100 | C16: =INDEX(Data!E38:Z38,Index!$B$1) -> 0.04426429858 | D16: =INDEX(Data!E63:Z63,Index!$B$1) -> 3200 | E16: =INDEX(Data!E88:Z88,Index!$B$1) -> 0.5231171377 | F16: =INDEX(Data!E138:Z138,Index!$B$1) -> 2900 | G16: =INDEX(Data!E163:Z163,Index!$B$1) -> 0.4768828623 | I16: 0.02819956616 | J16: -0.02819956616 | K16: 0.03036876356 | L16: =Data!Q114*-1 -> -0.02661013718 | M16: =Data!Q189 -> 0.02850425182
A17: 25-29 | B17: =INDEX(Data!$E14:$Z14,Index!$B$1) -> 8000 | C17: =INDEX(Data!E39:Z39,Index!$B$1) -> 0.05809101625 | D17: =INDEX(Data!E64:Z64,Index!$B$1) -> 3900 | E17: =INDEX(Data!E89:Z89,Index!$B$1) -> 0.4793974854 | F17: =INDEX(Data!E139:Z139,Index!$B$1) -> 4200 | G17: =INDEX(Data!E164:Z164,Index!$B$1) -> 0.5206025146 | I17: 0.03181489516 | J17: -0.03181489516 | K17: 0.03543022415 | L17: =Data!Q115*-1 -> -0.03018659824 | M17: =Data!Q190 -> 0.03373697641
A18: 30-34 | B18: =INDEX(Data!$E15:$Z15,Index!$B$1) -> 9400 | C18: =INDEX(Data!E40:Z40,Index!$B$1) -> 0.06775959445 | D18: =INDEX(Data!E65:Z65,Index!$B$1) -> 4400 | E18: =INDEX(Data!E90:Z90,Index!$B$1) -> 0.4728922092 | F18: =INDEX(Data!E140:Z140,Index!$B$1) -> 4900 | G18: =INDEX(Data!E165:Z165,Index!$B$1) -> 0.5271077908 | I18: 0.03181489516 | J18: -0.03181489516 | K18: 0.03543022415 | L18: =Data!Q116*-1 -> -0.03140069467 | M18: =Data!Q191 -> 0.03468589679
A19: 35-39 | B19: =INDEX(Data!$E16:$Z16,Index!$B$1) -> 9300 | C19: =INDEX(Data!E41:Z41,Index!$B$1) -> 0.06757157424 | D19: =INDEX(Data!E66:Z66,Index!$B$1) -> 4400 | E19: =INDEX(Data!E91:Z91,Index!$B$1) -> 0.4728167808 | F19: =INDEX(Data!E141:Z141,Index!$B$1) -> 4900 | G19: =INDEX(Data!E166:Z166,Index!$B$1) -> 0.5271832192 | I19: 0.03036876356 | J19: -0.03036876356 | K19: 0.03253796095 | L19: =Data!Q117*-1 -> -0.03138144302 | M19: =Data!Q192 -> 0.03373200824
A20: 40-44 | B20: =INDEX(Data!$E17:$Z17,Index!$B$1) -> 8700 | C20: =INDEX(Data!E42:Z42,Index!$B$1) -> 0.06318202527 | D20: =INDEX(Data!E67:Z67,Index!$B$1) -> 4200 | E20: =INDEX(Data!E92:Z92,Index!$B$1) -> 0.4827744077 | F20: =INDEX(Data!E142:Z142,Index!$B$1) -> 4500 | G20: =INDEX(Data!E167:Z167,Index!$B$1) -> 0.5172255923 | I20: 0.02892263196 | J20: -0.02892263196 | K20: 0.03109182936 | L20: =Data!Q118*-1 -> -0.02949726471 | M20: =Data!Q193 -> 0.03094548614
A21: 45-49 | B21: =INDEX(Data!$E18:$Z18,Index!$B$1) -> 8300 | C21: =INDEX(Data!E43:Z43,Index!$B$1) -> 0.06031833269 | D21: =INDEX(Data!E68:Z68,Index!$B$1) -> 4000 | E21: =INDEX(Data!E93:Z93,Index!$B$1) -> 0.4801582544 | F21: =INDEX(Data!E143:Z143,Index!$B$1) -> 4300 | G21: =INDEX(Data!E168:Z168,Index!$B$1) -> 0.5198417456 | I21: 0.03326102675 | J21: -0.03326102675 | K21: 0.03543022415 | L21: =Data!Q119*-1 -> -0.03282345423 | M21: =Data!Q194 -> 0.03480451184
A22: 50-54 | B22: =INDEX(Data!$E19:$Z19,Index!$B$1) -> 9500 | C22: =INDEX(Data!E44:Z44,Index!$B$1) -> 0.06876477947 | D22: =INDEX(Data!E69:Z69,Index!$B$1) -> 4600 | E22: =INDEX(Data!E94:Z94,Index!$B$1) -> 0.4822799453 | F22: =INDEX(Data!E144:Z144,Index!$B$1) -> 4900 | G22: =INDEX(Data!E169:Z169,Index!$B$1) -> 0.5177200547 | I22: 0.03543022415 | J22: -0.03543022415 | K22: 0.03687635575 | L22: =Data!Q120*-1 -> -0.03419653209 | M22: =Data!Q195 -> 0.03557209404
A23: 55-59 | B23: =INDEX(Data!$E20:$Z20,Index!$B$1) -> 10000 | C23: =INDEX(Data!E45:Z45,Index!$B$1) -> 0.07213468033 | D23: =INDEX(Data!E70:Z70,Index!$B$1) -> 4900 | E23: =INDEX(Data!E95:Z95,Index!$B$1) -> 0.4909273183 | F23: =INDEX(Data!E145:Z145,Index!$B$1) -> 5100 | G23: =INDEX(Data!E170:Z170,Index!$B$1) -> 0.5090726817 | I23: 0.03036876356 | J23: -0.03036876356 | K23: 0.03036876356 | L23: =Data!Q121*-1 -> -0.03039153523 | M23: =Data!Q196 -> 0.03148329049
A24: 60-64 | B24: =INDEX(Data!$E21:$Z21,Index!$B$1) -> 8500 | C24: =INDEX(Data!E46:Z46,Index!$B$1) -> 0.06115719213 | D24: =INDEX(Data!E71:Z71,Index!$B$1) -> 4200 | E24: =INDEX(Data!E96:Z96,Index!$B$1) -> 0.5010050845 | F24: =INDEX(Data!E146:Z146,Index!$B$1) -> 4200 | G24: =INDEX(Data!E171:Z171,Index!$B$1) -> 0.4989949155 | I24: 0.02313810557 | J24: -0.02313810557 | K24: 0.02603036876 | L24: =Data!Q122*-1 -> -0.02520662928 | M24: =Data!Q197 -> 0.02713986826
A25: 65-69 | B25: =INDEX(Data!$E22:$Z22,Index!$B$1) -> 6800 | C25: =INDEX(Data!E47:Z47,Index!$B$1) -> 0.04943485461 | D25: =INDEX(Data!E72:Z72,Index!$B$1) -> 3200 | E25: =INDEX(Data!E97:Z97,Index!$B$1) -> 0.4744002341 | F25: =INDEX(Data!E147:Z147,Index!$B$1) -> 3600 | G25: =INDEX(Data!E172:Z172,Index!$B$1) -> 0.5255997659 | I25: 0.02241503977 | J25: -0.02241503977 | K25: 0.02458423717 | L25: =Data!Q123*-1 -> -0.02291692413 | M25: =Data!Q198 -> 0.02559663059
A26: 70-74 | B26: =INDEX(Data!$E23:$Z23,Index!$B$1) -> 6500 | C26: =INDEX(Data!E48:Z48,Index!$B$1) -> 0.04701951795 | D26: =INDEX(Data!E73:Z73,Index!$B$1) -> 3100 | E26: =INDEX(Data!E98:Z98,Index!$B$1) -> 0.4740079975 | F26: =INDEX(Data!E148:Z148,Index!$B$1) -> 3400 | G26: =INDEX(Data!E173:Z173,Index!$B$1) -> 0.5259920025 | I26: 0.02169197397 | J26: -0.02169197397 | K26: 0.02530730296 | L26: =Data!Q124*-1 -> -0.02218287708 | M26: =Data!Q199 -> 0.02544696448
A27: 75-79 | B27: =INDEX(Data!$E24:$Z24,Index!$B$1) -> 6500 | C27: =INDEX(Data!E49:Z49,Index!$B$1) -> 0.0468893501 | D27: =INDEX(Data!E74:Z74,Index!$B$1) -> 3000 | E27: =INDEX(Data!E99:Z99,Index!$B$1) -> 0.4632942628 | F27: =INDEX(Data!E149:Z149,Index!$B$1) -> 3500 | G27: =INDEX(Data!E174:Z174,Index!$B$1) -> 0.5367057372 | I27: 0.01301518438 | J27: -0.01301518438 | K27: 0.01518438178 | L27: =Data!Q125*-1 -> -0.0127955207 | M27: =Data!Q200 -> 0.01590062667
A28: 80-84 | B28: =INDEX(Data!$E25:$Z25,Index!$B$1) -> 3900 | C28: =INDEX(Data!E50:Z50,Index!$B$1) -> 0.02810179125 | D28: =INDEX(Data!E75:Z75,Index!$B$1) -> 1800 | E28: =INDEX(Data!E100:Z100,Index!$B$1) -> 0.4536798765 | F28: =INDEX(Data!E150:Z150,Index!$B$1) -> 2100 | G28: =INDEX(Data!E175:Z175,Index!$B$1) -> 0.5463201235 | I28: 0.00723065799 | J28: -0.00723065799 | K28: 0.009399855387 | L28: =Data!Q126*-1 -> -0.007180247055 | M28: =Data!Q201 -> 0.01037664314
A29: 85-89 | B29: =INDEX(Data!$E26:$Z26,Index!$B$1) -> 2200 | C29: =INDEX(Data!E51:Z51,Index!$B$1) -> 0.01611911804 | D29: =INDEX(Data!E76:Z76,Index!$B$1) -> 1000 | E29: =INDEX(Data!E101:Z101,Index!$B$1) -> 0.4275459847 | F29: =INDEX(Data!E151:Z151,Index!$B$1) -> 1300 | G29: =INDEX(Data!E176:Z176,Index!$B$1) -> 0.5724540153 | I29: 0.002892263196 | J29: -0.002892263196 | K29: 0.005784526392 | L29: =Data!Q127*-1 -> -0.003292654375 | M29: =Data!Q202 -> 0.006759815706
A30: 90+ | B30: =INDEX(Data!$E27:$Z27,Index!$B$1) -> 1200 | C30: =INDEX(Data!E52:Z52,Index!$B$1) -> 0.008627235452 | D30: =INDEX(Data!E77:Z77,Index!$B$1) -> 400 | E30: =INDEX(Data!E102:Z102,Index!$B$1) -> 0.3378038558 | F30: =INDEX(Data!E152:Z152,Index!$B$1) -> 800 | G30: =INDEX(Data!E177:Z177,Index!$B$1) -> 0.6621961442
A33: ="Population by age group, "&Data!E7&" - "&A36 -> Population by age group, Mid 2023 - Ashford
A34: Source: ONS Mid Year Estimates
B35: Total Persons | D35: Males | F35: Females
A36: =Index!$K$6 -> Ashford | B36: No. | C36: % of total population | D36: No. | E36: % | F36: No. | G36: %
A37: All People | B37: =INDEX(Data!$E8:$Z8,Index!$B$1) -> 138300 | C37: 1 | D37: =INDEX(Data!$E58:$Z58,Index!$B$1) -> 67300 | E37: 1 | F37: =INDEX(Data!$E133:$Z133,Index!$B$1) -> 71000 | G37: 1
A38: 0-15 | B38: =INDEX(Data!$E28:$Z28,Index!$B$1) -> 27200 | C38: =INDEX(Data!E53:Z53,Index!$B$1) -> 0.1968933275 | D38: =INDEX(Data!E78:Z78,Index!$B$1) -> 13900 | E38: =INDEX(Data!E128:Z128,Index!$B$1) -> 0.207202924 | F38: =INDEX(Data!E153:Z153,Index!$B$1) -> 13300 | G38: =INDEX(Data!E203:Z203,Index!$B$1) -> 0.1871169534
A39: 16-64 | B39: =INDEX(Data!$E29:$Z29,Index!$B$1) -> 83900 | C39: =INDEX(Data!E54:Z54,Index!$B$1) -> 0.6069148051 | D39: =INDEX(Data!E79:Z79,Index!$B$1) -> 40900 | E39: =INDEX(Data!E129:Z129,Index!$B$1) -> 0.6078507117 | F39: =INDEX(Data!E154:Z154,Index!$B$1) -> 43000 | G39: =INDEX(Data!E204:Z204,Index!$B$1) -> 0.6060273046
A40: 65+ | B40: =INDEX(Data!$E30:$Z30,Index!$B$1) -> 27100 | C40: =INDEX(Data!E55:Z55,Index!$B$1) -> 0.1961918674 | D40: =INDEX(Data!E80:Z80,Index!$B$1) -> 12400 | E40: =INDEX(Data!E130:Z130,Index!$B$1) -> 0.1849463644 | F40: =INDEX(Data!E155:Z155,Index!$B$1) -> 14700 | G40: =INDEX(Data!E205:Z205,Index!$B$1) -> 0.206855742
A44: ="Population Density, "&Data!E7 -> Population Density, Mid 2023
A45: Source: ONS Mid Year Estimates
B46: =Index!$K$6 -> Ashford | C46: Kent
A48: Area (hectares) | B48: =INDEX(Data!E212:Z212,Index!B1) -> 58062 | C48: =Data!Q212 -> 354295
A49: Density (persons per hectare) | B49: =INDEX(Data!E213:Z213,Index!B1) -> 2.38164376 | C49: =Data!Q213 -> 4.544944185
A54: ="Average Age, "&Data!E207 -> Average Age, Mid 2023
A55: Source: ONS Mid Year Estimates
B56: =Index!$K$6 -> Ashford | C56: Kent | D56: South East Region | E56: England & Wales
A57: All People | B57: =INDEX(Data!E208:Z208,Index!$B$1) -> 41.26220143 | C57: =Data!Q208 -> 41.67676033 | D57: =Data!Y208 -> 41.47918193 | E57: =Data!Z208 -> 40.78230099
A58: Males | B58: =INDEX(Data!E209:Z209,Index!$B$1) -> 40.42382551 | C58: =Data!Q209 -> 40.71881218 | D58: =Data!Y209 -> 40.52560846 | E58: =Data!Z209 -> 39.91403591
A59: Females | B59: =INDEX(Data!E210:Z210,Index!$B$1) -> 42.05721572 | C59: =Data!Q210 -> 42.58584959 | D59: =Data!Y210 -> 42.3924307 | E59: =Data!Z210 -> 41.61745916
A70: ="Population forecasts - "&B6&" - 2022-2042" -> Population forecasts - Ashford - 2022-2042
A71: =Data!B214 -> KCC Housing led forecast (2021)
A72: Kent Analytics, Kent County Council
B73: Total | C73: 0-15 | D73: 16-64 | E73: 65+
A74: =Data!C214 -> 2022 | B74: =IF(ISERROR((INDEX(Data!E214:V214,Index!$B$1))),"n/a",(INDEX(Data!E214:V214,Index!$B$1))) -> 136300 | C74: =INDEX(Data!E219:Z219,Index!$B$1) -> 27800 | D74: =INDEX(Data!E224:Z224,Index!$B$1) -> 81100 | E74: =INDEX(Data!E229:Z229,Index!$B$1) -> 27400
A75: =Data!C215 -> 2027 | B75: =IF(ISERROR((INDEX(Data!E215:V215,Index!$B$1))),"n/a",(INDEX(Data!E215:V215,Index!$B$1))) -> 146200 | C75: =INDEX(Data!E220:Z220,Index!$B$1) -> 28800 | D75: =INDEX(Data!E225:Z225,Index!$B$1) -> 86800 | E75: =INDEX(Data!E230:Z230,Index!$B$1) -> 30600
A76: =Data!C216 -> 2032 | B76: =IF(ISERROR((INDEX(Data!E216:V216,Index!$B$1))),"n/a",(INDEX(Data!E216:V216,Index!$B$1))) -> 157000 | C76: =INDEX(Data!E221:Z221,Index!$B$1) -> 29900 | D76: =INDEX(Data!E226:Z226,Index!$B$1) -> 91700 | E76: =INDEX(Data!E231:Z231,Index!$B$1) -> 35300
A77: =Data!C217 -> 2037 | B77: =IF(ISERROR((INDEX(Data!E217:V217,Index!$B$1))),"n/a",(INDEX(Data!E217:V217,Index!$B$1))) -> 164400 | C77: =INDEX(Data!E222:Z222,Index!$B$1) -> 31300 | D77: =INDEX(Data!E227:Z227,Index!$B$1) -> 94000 | E77: =INDEX(Data!E232:Z232,Index!$B$1) -> 39100
A78: =Data!C218 -> 2042 | B78: =IF(ISERROR((INDEX(Data!E218:V218,Index!$B$1))),"n/a",(INDEX(Data!E218:V218,Index!$B$1))) -> 172200 | C78: =INDEX(Data!E223:Z223,Index!$B$1) -> 33200 | D78: =INDEX(Data!E228:Z228,Index!$B$1) -> 97600 | E78: =INDEX(Data!E233:Z233,Index!$B$1) -> 41400 | H78: =H79&H80&"(2022 = 100)" -> Forecast population growth from 2022 in the Ashford area(2022 = 100)
H79: Forecast population growth from 2022 in the
H80: =Index!C1&" area" -> Ashford area
I81: Total | J81: 0-15 | K81: 16-64 | L81: 65+
I82: =B74/B$74*100 -> 100 | J82: 100 | K82: 100 | L82: 100
H83: =A74 -> 2022 | I83: 107.2633896 | J83: 103.5971223 | K83: 107.02836 | L83: 111.6788321
H84: =A75 -> 2027 | I84: 115.1870873 | J84: 107.5539568 | K84: 113.0702836 | L84: 128.8321168
H85: =A76 -> 2032 | I85: 120.6162876 | J85: 112.5899281 | K85: 115.9062885 | L85: 142.7007299
H86: =A77 -> 2037 | I86: 126.3389582 | J86: 119.4244604 | K86: 120.3452528 | L86: 151.0948905
A91: ="Mosaic Profile - "&Data!E1209 -> Mosaic Profile - 2022
A93: Mosaic Profile for
A94: =B6 -> Ashford
A95: Source: Experian Ltd
B96: % of population | G96: =A91&" - "&A94 -> Mosaic Profile - 2022 - Ashford
B97: =B6 -> Ashford | C97: Kent
A98: Group A | B98: =INDEX(Data!E1210:Z1210,Index!$B$1) -> 0.0001390893127 | C98: =Data!Q1210 -> 0.006034510125
A99: Group B | B99: =INDEX(Data!E1211:Z1211,Index!$B$1) -> 0.06464175809 | C99: =Data!Q1211 -> 0.09376578251
A100: Group C | B100: =INDEX(Data!E1212:Z1212,Index!$B$1) -> 0.1969852391 | C100: =Data!Q1212 -> 0.08672696367
A101: Group D | B101: =INDEX(Data!E1213:Z1213,Index!$B$1) -> 0.08986908218 | C101: =Data!Q1213 -> 0.06539550428
A102: Group E | B102: =INDEX(Data!E1214:Z1214,Index!$B$1) -> 0.07662082515 | C102: =Data!Q1214 -> 0.1194708909
A103: Group F | B103: =INDEX(Data!E1215:Z1215,Index!$B$1) -> 0.06264234922 | C103: =Data!Q1215 -> 0.07497106841
A104: Group G | B104: =INDEX(Data!E1216:Z1216,Index!$B$1) -> 0.06531981849 | C104: =Data!Q1216 -> 0.08274291717
A105: Group H | B105: =INDEX(Data!E1217:Z1217,Index!$B$1) -> 0.168784881 | C105: =Data!Q1217 -> 0.1302672096
A106: Group I | B106: =INDEX(Data!E1218:Z1218,Index!$B$1) -> 0.08632230471 | C106: =Data!Q1218 -> 0.07127994528
A107: Group J | B107: =INDEX(Data!E1219:Z1219,Index!$B$1) -> 0.03658048925 | C107: =Data!Q1219 -> 0.03978418906
A108: Group K | B108: =INDEX(Data!E1220:Z1220,Index!$B$1) -> 0.0141871099 | C108: =Data!Q1220 -> 0.02051762302
A109: Group L | B109: =INDEX(Data!E1221:Z1221,Index!$B$1) -> 0.05309734513 | C109: =Data!Q1221 -> 0.0637332002
A110: Group M | B110: =INDEX(Data!E1222:Z1222,Index!$B$1) -> 0.03969261262 | C110: =Data!Q1222 -> 0.03663995244
A111: Group N | B111: =INDEX(Data!E1223:Z1223,Index!$B$1) -> 0.01491732879 | C111: =Data!Q1223 -> 0.03115665773
A112: Group O | B112: =INDEX(Data!E1224:Z1224,Index!$B$1) -> 0.03019976703 | C112: =Data!Q1224 -> 0.07751358558
A115: Mosaic Group Definitions
B117: A | C117: - City Prosperity - High status city dwellers living in central locations and persuing careers with high rewards
B119: B | C119: - Prestige Positions - Established families in large detached homes Living upmarket lifestyles
B121: C | C121: - Country Living - Well off owners in rural locations enjoying the benefits of Country life
B123: D | C123: - Rural Reality - Householders living in inexpensive homes in village communities
B125: E | C125: - Senior Security - Elderly people with assets who are enjoying a comfortable retirement
B127: F | C127: - Suburban Stability - Mature suburban owners living in settled lives in mid-range housing
B129: G | C129: - Domestic Success - Thriving families who are busy bringing up children and following careers
B131: H | C131: - Aspiring Homemakers - Younger households settling down in housing priced within their means
B133: I | C133: - Family Basics - Families with limited resources who have to budget to make ends meet
B135: J | C135: - Transient Renters - Single people privately renting low cost homes for the short term
B137: K | C137: - Municipal Challenge – Urban renters of social housing facing an array of challenges
B139: L | C139: - Vintage Value – Elderly people reliant on support to meet financial or practical needs
B141: M | C141: - Modest Traditions - Mature homeowners of value homes enjoying stable lifestyles
B143: N | C143: - Urban Cohesion - Residents of settled urban communities with a strong sense of identity
B145: O | C145: - Rental Hubs - Educated young people privately renting in urban neighbourhoods
A148: Glossary
A150: Population by age and gender
A151: All numbers are separately rounded to the nearest 100. Percentages are calculated using rounded data
A152: Source: 2023 Mid-year population estimates, Office for National Statistics (ONS)
A154: Population Forecasts
A155: These forecasts, produced by Kent Analytics, take into account the additional housing required in Kent by the Revised National Planning Policy Framework.
A156: Source: KCC Housing Led Forecasts 2021, Kent Analytics, Kent County Council
A158: Mosaic Profile
A159: Source: Experian Ltd
A160: Mosaic is a classification system designed by Experian to profile the characteristics of the UK population.
A161: Each household in the UK is classified as belonging to one of 15 groups and 66 types.
A162: These groups identify clusters of individuals and households that are as similar as possible to each other, and as different as possible to any other group.
A163: They describe the residents of a postcode in terms of their typical demographics, their behaviours, their lifestyle characteristics and their attitudes.
A164: This helps to ensure that the right services are provided to the areas that need them.

Sheet Diversity
A1: Diversity
A2: Includes information about the age of the population, ethnicity, religion and country of birth, marital and civil partnership status
N3: =Profile!E14 -> Version date: 4 February 2025
G4: Select geography: | K4: Select topic:
A6: District profile for | B6: =Index!C1 -> Ashford
A8: Ethnicity
A33: ="Population by ethnicity, 2021 - "&B35 -> Population by ethnicity, 2021 - Ashford
A34: Source: 2021 Census - Table RM032
B35: =Index!$L$6 -> Ashford | D35: England
B36: Number | C36: % | D36: Number | E36: %
A37: All usual residents | B37: =INDEX(Census2021Data!D8:Y8,Index!$B$1) -> 132756 | C37: =B37/B$37 -> 1 | D37: =Census2021Data!Y8 -> 56490037 | E37: =D37/D$37 -> 1
A38: White British | B38: =INDEX(Census2021Data!D9:Y9,Index!$B$1) -> 109677 | C38: =B38/B$37 -> 0.8261547501 | D38: =Census2021Data!Y9 -> 41540789 | E38: =D38/D$37 -> 0.735364875
A39: Ethnic minorities | B39: =INDEX(Census2021Data!D10:Y10,Index!$B$1) -> 23079 | C39: 0.1738452499 | D39: =Census2021Data!Y10 -> 14949248 | E39: 0.264635125
A40: Total Asian | B40: =INDEX(Census2021Data!D12:Y12,Index!$B$1) -> 7667 | C40: =B40/$B$37 -> 0.05775256862 | D40: =Census2021Data!Y12 -> 5426388 | E40: 0.09605920421
A41: Bangladeshi | B41: =INDEX(Census2021Data!D13:Y13,Index!$B$1) -> 335 | C41: 0.002523426436 | D41: =Census2021Data!Y13 -> 629567 | E41: 0.01114474398
A42: Chinese | B42: =INDEX(Census2021Data!D14:Y14,Index!$B$1) -> 579 | C42: 0.004361384796 | D42: =Census2021Data!Y14 -> 431162 | E42: 0.007632531733
A43: Indian | B43: =INDEX(Census2021Data!D15:Y15,Index!$B$1) -> 1719 | C43: 0.0129485673 | D43: =Census2021Data!Y15 -> 1843248 | E43: 0.03262961219
A44: Pakistani | B44: =INDEX(Census2021Data!D16:Y16,Index!$B$1) -> 404 | C44: 0.003043176956 | D44: =Census2021Data!Y16 -> 1570285 | E44: 0.02779755659
A45: Other Asian | B45: =INDEX(Census2021Data!D17:Y17,Index!$B$1) -> 4630 | C45: 0.03487601314 | D45: =Census2021Data!Y17 -> 952126 | E45: 0.01685475972
A46: Total black Caribbean or African | B46: =INDEX(Census2021Data!D18:Y18,Index!$B$1) -> 3422 | C46: 0.02577661273 | D46: =Census2021Data!Y18 -> 2381724 | E46: 0.04216184174
A47: African | B47: =INDEX(Census2021Data!D19:Y19,Index!$B$1) -> 2504 | C47: 0.01886167104 | D47: =Census2021Data!Y19 -> 1468474 | E47: 0.02599527418
A48: Caribbean | B48: =INDEX(Census2021Data!D20:Y20,Index!$B$1) -> 573 | C48: 0.004316189099 | D48: =Census2021Data!Y20 -> 619418 | E48: 0.01096508398
A49: Other black | B49: =INDEX(Census2021Data!D21:Y21,Index!$B$1) -> 345 | C49: 0.002598752599 | D49: =Census2021Data!Y21 -> 293832 | E49: 0.005201483582
A50: Total mixed or multiple ethnic groups | B50: =INDEX(Census2021Data!D22:Y22,Index!$B$1) -> 2881 | C50: 0.02170146735 | D50: =Census2021Data!Y22 -> 1669381 | E50: 0.02955177742
A51: White and Asian | B51: =INDEX(Census2021Data!D23:Y23,Index!$B$1) -> 900 | C51: 0.006779354605 | D51: =Census2021Data!Y23 -> 474193 | E51: 0.008394276676
A52: White and Black African | B52: =INDEX(Census2021Data!D24:Y24,Index!$B$1) -> 439 | C52: 0.003306818524 | D52: =Census2021Data!Y24 -> 241528 | E52: 0.004275585799
A53: White and Black Caribbean | B53: =INDEX(Census2021Data!D25:Y25,Index!$B$1) -> 775 | C53: 0.005837777577 | D53: =Census2021Data!Y25 -> 499310 | E53: 0.008838903752
A54: Other mixed or multiple ethnic groups | B54: =INDEX(Census2021Data!D26:Y26,Index!$B$1) -> 767 | C54: 0.005777516647 | D54: =Census2021Data!Y26 -> 454350 | E54: 0.008043011195
A55: Total white | B55: =INDEX(Census2021Data!D27:Y27,Index!$B$1) -> 116904 | C55: 0.8805929675 | D55: =Census2021Data!Y27 -> 45783395 | E55: 0.8104684902
A56: English, Welsh, Scottish, Northern Irish or British | B56: =INDEX(Census2021Data!D28:Y28,Index!$B$1) -> 109677 | C56: 0.8261547501 | D56: =Census2021Data!Y28 -> 41540789 | E56: 0.735364875
A57: Irish | B57: =INDEX(Census2021Data!D29:Y29,Index!$B$1) -> 777 | C57: 0.005852842809 | D57: =Census2021Data!Y29 -> 494251 | E57: 0.008749348137
A58: Gypsy or Irish Traveller | B58: =INDEX(Census2021Data!D30:Y30,Index!$B$1) -> 686 | C58: 0.005167374733 | D58: =Census2021Data!Y30 -> 64216 | E58: 0.001136766825
A59: Roma | B59: =INDEX(Census2021Data!D31:Y31,Index!$B$1) -> 81 | C59: 0.0006101419145 | D59: =Census2021Data!Y31 -> 99137 | E59: 0.001754946629
A60: Other white | B60: =INDEX(Census2021Data!D32:Y32,Index!$B$1) -> 5683 | C60: 0.04280785803 | D60: =Census2021Data!Y32 -> 3585002 | E60: 0.06346255358
A61: Other ethnic group | B61: =INDEX(Census2021Data!D33:Y33,Index!$B$1) -> 1882 | C61: 0.01417638374 | D61: =Census2021Data!Y33 -> 1229149 | E61: 0.0217586864
A62: Arab | B62: =INDEX(Census2021Data!D34:Y34,Index!$B$1) -> 297 | C62: 0.00223718702 | D62: =Census2021Data!Y34 -> 320203 | E62: 0.005668309263
A63: Any other ethnic group | B63: =INDEX(Census2021Data!D35:Y35,Index!$B$1) -> 1585 | C63: 0.01193919672 | D63: =Census2021Data!Y35 -> 908946 | E63: 0.01609037714
A66: ="Ethnicity by age group , 2021 - "&B35 -> Ethnicity by age group , 2021 - Ashford
A67: Source: 2021 Census Custom Table
B68: 0-15 | D68: 16-64 | F68: 65+
B69: Number | C69: % | D69: Number | E69: % | F69: Number | G69: %
A70: All usual residents | B70: =INDEX(Census2021Data!D37:Y37,Index!$B$1) -> 25977 | C70: =B70/$B$70 -> 1 | D70: =INDEX(Census2021Data!D65:Y65,Index!$B$1) -> 80771 | E70: =D70/$D$70 -> 1 | F70: =INDEX(Census2021Data!D93:Y93,Index!$B$1) -> 25997 | G70: =F70/$F$70 -> 1
A71: White British | B71: =INDEX(Census2021Data!D38:Y38,Index!$B$1) -> 20487 | C71: =B71/$B$70 -> 0.7886591985 | D71: =INDEX(Census2021Data!D66:Y66,Index!$B$1) -> 65004 | E71: =D71/$D$70 -> 0.8047937998 | F71: =INDEX(Census2021Data!D94:Y94,Index!$B$1) -> 24182 | G71: =F71/$F$70 -> 0.930184252
A72: Ethnic minorities | B72: =INDEX(Census2021Data!D39:Y39,Index!$B$1) -> 5490 | C72: =B72/$B$70 -> 0.2113408015 | D72: =INDEX(Census2021Data!D67:Y67,Index!$B$1) -> 15767 | E72: 0.1952062002 | F72: =INDEX(Census2021Data!D95:Y95,Index!$B$1) -> 1815 | G72: 0.06981574797
A73: Total Asian | B73: =INDEX(Census2021Data!D41:Y41,Index!$B$1) -> 1487 | C73: 0.05724294568 | D73: =INDEX(Census2021Data!D69:Y69,Index!$B$1) -> 5524 | E73: 0.06839088287 | F73: =INDEX(Census2021Data!D97:Y97,Index!$B$1) -> 658 | G73: 0.02531061276
A74: Bangladeshi | B74: =INDEX(Census2021Data!D42:Y42,Index!$B$1) -> 102 | C74: 0.00392655041 | D74: =INDEX(Census2021Data!D70:Y70,Index!$B$1) -> 226 | E74: 0.002798033948 | F74: =INDEX(Census2021Data!D98:Y98,Index!$B$1) -> 10 | G74: 0.0003846597684
A75: Chinese | B75: =INDEX(Census2021Data!D43:Y43,Index!$B$1) -> 112 | C75: 0.004311506333 | D75: =INDEX(Census2021Data!D71:Y71,Index!$B$1) -> 395 | E75: 0.004890369068 | F75: =INDEX(Census2021Data!D99:Y99,Index!$B$1) -> 71 | G75: 0.002731084356
A76: Indian | B76: =INDEX(Census2021Data!D44:Y44,Index!$B$1) -> 459 | C76: 0.01766947684 | D76: =INDEX(Census2021Data!D72:Y72,Index!$B$1) -> 1170 | E76: 0.01448539699 | F76: =INDEX(Census2021Data!D100:Y100,Index!$B$1) -> 89 | G76: 0.003423471939
A77: Pakistani | B77: =INDEX(Census2021Data!D45:Y45,Index!$B$1) -> 121 | C77: 0.004657966663 | D77: =INDEX(Census2021Data!D73:Y73,Index!$B$1) -> 256 | E77: 0.003169454383 | F77: =INDEX(Census2021Data!D101:Y101,Index!$B$1) -> 27 | G77: 0.001038581375
A78: Other Asian | B78: =INDEX(Census2021Data!D46:Y46,Index!$B$1) -> 693 | C78: 0.02667744543 | D78: =INDEX(Census2021Data!D74:Y74,Index!$B$1) -> 3477 | E78: 0.04304762848 | F78: =INDEX(Census2021Data!D102:Y102,Index!$B$1) -> 461 | G78: 0.01773281532
A79: Total black Caribbean or African | B79: =INDEX(Census2021Data!D47:Y47,Index!$B$1) -> 1003 | C79: 0.03861107903 | D79: =INDEX(Census2021Data!D75:Y75,Index!$B$1) -> 2293 | E79: 0.02838890196 | F79: =INDEX(Census2021Data!D103:Y103,Index!$B$1) -> 130 | G79: 0.00500057699
A80: African | B80: =INDEX(Census2021Data!D48:Y48,Index!$B$1) -> 750 | C80: 0.02887169419 | D80: =INDEX(Census2021Data!D76:Y76,Index!$B$1) -> 1702 | E80: 0.02107191938 | F80: =INDEX(Census2021Data!D104:Y104,Index!$B$1) -> 53 | G80: 0.002038696773
A81: Caribbean | B81: =INDEX(Census2021Data!D49:Y49,Index!$B$1) -> 82 | C81: 0.003156638565 | D81: =INDEX(Census2021Data!D77:Y77,Index!$B$1) -> 423 | E81: 0.005237028141 | F81: =INDEX(Census2021Data!D105:Y105,Index!$B$1) -> 67 | G81: 0.002577220449
A82: Other black | B82: =INDEX(Census2021Data!D50:Y50,Index!$B$1) -> 171 | C82: 0.006582746276 | D82: =INDEX(Census2021Data!D78:Y78,Index!$B$1) -> 168 | E82: 0.002079954439 | F82: =INDEX(Census2021Data!D106:Y106,Index!$B$1) -> 10 | G82: 0.0003846597684
A83: Total mixed or multiple ethnic groups | B83: =INDEX(Census2021Data!D51:Y51,Index!$B$1) -> 1416 | C83: 0.05450975863 | D83: =INDEX(Census2021Data!D79:Y79,Index!$B$1) -> 1376 | E83: 0.01703581731 | F83: =INDEX(Census2021Data!D107:Y107,Index!$B$1) -> 82 | G83: 0.003154210101
A84: White and Asian | B84: =INDEX(Census2021Data!D52:Y52,Index!$B$1) -> 452 | C84: 0.0174000077 | D84: =INDEX(Census2021Data!D80:Y80,Index!$B$1) -> 408 | E84: 0.005051317924 | F84: =INDEX(Census2021Data!D108:Y108,Index!$B$1) -> 37 | G84: 0.001423241143
A85: White and Black African | B85: =INDEX(Census2021Data!D53:Y53,Index!$B$1) -> 278 | C85: 0.01070177465 | D85: =INDEX(Census2021Data!D81:Y81,Index!$B$1) -> 151 | E85: 0.001869482859 | F85: =INDEX(Census2021Data!D109:Y109,Index!$B$1) -> 7 | G85: 0.0002692618379
A86: White and Black Caribbean | B86: =INDEX(Census2021Data!D54:Y54,Index!$B$1) -> 353 | C86: 0.01358894407 | D86: =INDEX(Census2021Data!D82:Y82,Index!$B$1) -> 404 | E86: 0.005001795199 | F86: =INDEX(Census2021Data!D110:Y110,Index!$B$1) -> 18 | G86: 0.0006923875832
A87: Other mixed or multiple ethnic groups | B87: =INDEX(Census2021Data!D55:Y55,Index!$B$1) -> 333 | C87: 0.01281903222 | D87: =INDEX(Census2021Data!D83:Y83,Index!$B$1) -> 413 | E87: 0.005113221329 | F87: =INDEX(Census2021Data!D111:Y111,Index!$B$1) -> 20 | G87: 0.0007693195369
A88: Total white | B88: =INDEX(Census2021Data!D56:Y56,Index!$B$1) -> 21717 | C88: 0.836008777 | D88: =INDEX(Census2021Data!D84:Y84,Index!$B$1) -> 70268 | E88: 0.8699657055 | F88: =INDEX(Census2021Data!D112:Y112,Index!$B$1) -> 24909 | G88: 0.9581490172
A89: English, Welsh, Scottish, Northern Irish or British | B89: =INDEX(Census2021Data!D57:Y57,Index!$B$1) -> 20487 | C89: 0.7886591985 | D89: =INDEX(Census2021Data!D85:Y85,Index!$B$1) -> 65004 | E89: 0.8047937998 | F89: =INDEX(Census2021Data!D113:Y113,Index!$B$1) -> 24182 | G89: 0.930184252
A90: Irish | B90: =INDEX(Census2021Data!D58:Y58,Index!$B$1) -> 48 | C90: 0.001847788428 | D90: =INDEX(Census2021Data!D86:Y86,Index!$B$1) -> 492 | E90: 0.006091295143 | F90: =INDEX(Census2021Data!D114:Y114,Index!$B$1) -> 237 | G90: 0.009116436512
A91: Gypsy or Irish Traveller | B91: =INDEX(Census2021Data!D59:Y59,Index!$B$1) -> 257 | C91: 0.009893367209 | D91: =INDEX(Census2021Data!D87:Y87,Index!$B$1) -> 375 | E91: 0.004642755444 | F91: =INDEX(Census2021Data!D115:Y115,Index!$B$1) -> 54 | G91: 0.00207716275
A92: Roma | B92: =INDEX(Census2021Data!D60:Y60,Index!$B$1) -> 17 | C92: 0.0006544250683 | D92: =INDEX(Census2021Data!D88:Y88,Index!$B$1) -> 55 | E92: 0.0006809374652 | F92: =INDEX(Census2021Data!D116:Y116,Index!$B$1) -> 5 | G92: 0.0001923298842
A93: Other white | B93: =INDEX(Census2021Data!D61:Y61,Index!$B$1) -> 908 | C93: 0.03495399777 | D93: =INDEX(Census2021Data!D89:Y89,Index!$B$1) -> 4342 | E93: 0.05375691771 | F93: =INDEX(Census2021Data!D117:Y117,Index!$B$1) -> 431 | G93: 0.01657883602
A94: Other ethnic group | B94: =INDEX(Census2021Data!D62:Y62,Index!$B$1) -> 354 | C94: 0.01362743966 | D94: =INDEX(Census2021Data!D90:Y90,Index!$B$1) -> 1310 | E94: 0.01621869235 | F94: =INDEX(Census2021Data!D118:Y118,Index!$B$1) -> 218 | G94: 0.008385582952
A95: Arab | B95: =INDEX(Census2021Data!D63:Y63,Index!$B$1) -> 88 | C95: 0.003387612118 | D95: =INDEX(Census2021Data!D91:Y91,Index!$B$1) -> 193 | E95: 0.002389471469 | F95: =INDEX(Census2021Data!D119:Y119,Index!$B$1) -> 17 | G95: 0.0006539216063
A96: Any other ethnic group | B96: =INDEX(Census2021Data!D64:Y64,Index!$B$1) -> 266 | C96: 0.01023982754 | D96: =INDEX(Census2021Data!D92:Y92,Index!$B$1) -> 1117 | E96: 0.01382922088 | F96: =INDEX(Census2021Data!D120:Y120,Index!$B$1) -> 201 | G96: 0.007731661346
A98: ="Ethnicity by gender, 2021 - "&B35 -> Ethnicity by gender, 2021 - Ashford
A99: Source: 2021 Census Table RM032
B100: All People | C100: Male | E100: Female
B101: Number | C101: Number | D101: % | E101: Number | F101: %
A102: All usual residents | B102: =INDEX(Census2021Data!D8:Y8,Index!$B$1) -> 132756 | C102: =INDEX(Census2021Data!D122:Y122,Index!$B$1) -> 64593 | D102: =C102/$B102 -> 0.48655428 | E102: =INDEX(Census2021Data!D151:Y151,Index!$B$1) -> 68163 | F102: =E102/$B102 -> 0.51344572
A103: White British | B103: =INDEX(Census2021Data!D9:Y9,Index!$B$1) -> 109677 | C103: =INDEX(Census2021Data!D123:Y123,Index!$B$1) -> 53498 | D103: =C103/$B103 -> 0.4877777474 | E103: =INDEX(Census2021Data!D152:Y152,Index!$B$1) -> 56179 | F103: 0.5122222526
A104: Ethnic minorities | B104: =INDEX(Census2021Data!D10:Y10,Index!$B$1) -> 23079 | C104: =INDEX(Census2021Data!D124:Y124,Index!$B$1) -> 11095 | D104: 0.4807400667 | E104: =INDEX(Census2021Data!D153:Y153,Index!$B$1) -> 11984 | F104: 0.5192599333
A105: Total Asian | B105: =INDEX(Census2021Data!D12:Y12,Index!$B$1) -> 7667 | C105: =INDEX(Census2021Data!D126:Y126,Index!$B$1) -> 3754 | D105: 0.4896308856 | E105: =INDEX(Census2021Data!D155:Y155,Index!$B$1) -> 3913 | F105: 0.5103691144 | G105: =F105/$F$70 -> 1.963184654e-05
A106: Bangladeshi | B106: =INDEX(Census2021Data!D13:Y13,Index!$B$1) -> 335 | C106: =INDEX(Census2021Data!D127:Y127,Index!$B$1) -> 184 | D106: 0.5492537313 | E106: =INDEX(Census2021Data!D156:Y156,Index!$B$1) -> 151 | F106: 0.4507462687 | G106: 1.733839553e-05
A107: Chinese | B107: =INDEX(Census2021Data!D14:Y14,Index!$B$1) -> 579 | C107: =INDEX(Census2021Data!D128:Y128,Index!$B$1) -> 262 | D107: 0.4525043178 | E107: =INDEX(Census2021Data!D157:Y157,Index!$B$1) -> 317 | F107: 0.5474956822 | G107: 2.105995623e-05
A108: Indian | B108: =INDEX(Census2021Data!D15:Y15,Index!$B$1) -> 1719 | C108: =INDEX(Census2021Data!D129:Y129,Index!$B$1) -> 851 | D108: 0.4950552647 | E108: =INDEX(Census2021Data!D158:Y158,Index!$B$1) -> 868 | F108: 0.5049447353 | G108: 1.94231925e-05
A109: Pakistani | B109: =INDEX(Census2021Data!D16:Y16,Index!$B$1) -> 404 | C109: =INDEX(Census2021Data!D130:Y130,Index!$B$1) -> 203 | D109: 0.5024752475 | E109: =INDEX(Census2021Data!D159:Y159,Index!$B$1) -> 201 | F109: 0.4975247525 | G109: 1.913777561e-05
A110: Other Asian | B110: =INDEX(Census2021Data!D17:Y17,Index!$B$1) -> 4630 | C110: =INDEX(Census2021Data!D131:Y131,Index!$B$1) -> 2254 | D110: 0.486825054 | E110: =INDEX(Census2021Data!D160:Y160,Index!$B$1) -> 2376 | F110: 0.513174946 | G110: 1.973977559e-05
A111: Total black Caribbean or African | B111: =INDEX(Census2021Data!D18:Y18,Index!$B$1) -> 3422 | C111: =INDEX(Census2021Data!D132:Y132,Index!$B$1) -> 1661 | D111: 0.4853886616 | E111: =INDEX(Census2021Data!D161:Y161,Index!$B$1) -> 1761 | F111: 0.5146113384 | G111: 1.979502783e-05
A112: African | B112: =INDEX(Census2021Data!D19:Y19,Index!$B$1) -> 2504 | C112: =INDEX(Census2021Data!D133:Y133,Index!$B$1) -> 1199 | D112: 0.4788338658 | E112: =INDEX(Census2021Data!D162:Y162,Index!$B$1) -> 1305 | F112: 0.5211661342 | G112: 2.004716445e-05
A113: Caribbean | B113: =INDEX(Census2021Data!D20:Y20,Index!$B$1) -> 573 | C113: =INDEX(Census2021Data!D134:Y134,Index!$B$1) -> 279 | D113: 0.4869109948 | E113: =INDEX(Census2021Data!D163:Y163,Index!$B$1) -> 294 | F113: 0.5130890052 | G113: 1.973646979e-05
A114: Other black | B114: =INDEX(Census2021Data!D21:Y21,Index!$B$1) -> 345 | C114: =INDEX(Census2021Data!D135:Y135,Index!$B$1) -> 183 | D114: 0.5304347826 | E114: =INDEX(Census2021Data!D164:Y164,Index!$B$1) -> 162 | F114: 0.4695652174 | G114: 1.806228478e-05
A115: Total mixed or multiple ethnic groups | B115: =INDEX(Census2021Data!D22:Y22,Index!$B$1) -> 2881 | C115: =INDEX(Census2021Data!D136:Y136,Index!$B$1) -> 1423 | D115: 0.4939257202 | E115: =INDEX(Census2021Data!D165:Y165,Index!$B$1) -> 1458 | F115: 0.5060742798 | G115: 1.946664153e-05
A116: White and Asian | B116: =INDEX(Census2021Data!D23:Y23,Index!$B$1) -> 900 | C116: =INDEX(Census2021Data!D137:Y137,Index!$B$1) -> 441 | D116: 0.49 | E116: =INDEX(Census2021Data!D166:Y166,Index!$B$1) -> 459 | F116: 0.51 | G116: 1.961764819e-05
A117: White and Black African | B117: =INDEX(Census2021Data!D24:Y24,Index!$B$1) -> 439 | C117: =INDEX(Census2021Data!D138:Y138,Index!$B$1) -> 215 | D117: 0.4897494305 | E117: =INDEX(Census2021Data!D167:Y167,Index!$B$1) -> 224 | F117: 0.5102505695 | G117: 1.962728659e-05
A118: White and Black Caribbean | B118: =INDEX(Census2021Data!D25:Y25,Index!$B$1) -> 775 | C118: =INDEX(Census2021Data!D139:Y139,Index!$B$1) -> 384 | D118: 0.495483871 | E118: =INDEX(Census2021Data!D168:Y168,Index!$B$1) -> 391 | F118: 0.504516129 | G118: 1.940670574e-05
A119: Other mixed or multiple ethnic groups | B119: =INDEX(Census2021Data!D26:Y26,Index!$B$1) -> 767 | C119: =INDEX(Census2021Data!D140:Y140,Index!$B$1) -> 383 | D119: 0.4993481095 | E119: =INDEX(Census2021Data!D169:Y169,Index!$B$1) -> 384 | F119: 0.5006518905 | G119: 1.925806403e-05
A120: Total white | B120: =INDEX(Census2021Data!D27:Y27,Index!$B$1) -> 116904 | C120: =INDEX(Census2021Data!D141:Y141,Index!$B$1) -> 56815 | D120: 0.4859970574 | E120: =INDEX(Census2021Data!D170:Y170,Index!$B$1) -> 60089 | F120: 0.5140029426 | G120: 1.977162529e-05
A121: English, Welsh, Scottish, Northern Irish or British | B121: =INDEX(Census2021Data!D28:Y28,Index!$B$1) -> 109677 | C121: =INDEX(Census2021Data!D142:Y142,Index!$B$1) -> 53498 | D121: 0.4877777474 | E121: =INDEX(Census2021Data!D171:Y171,Index!$B$1) -> 56179 | F121: 0.5122222526 | G121: 1.970312931e-05
A122: Irish | B122: =INDEX(Census2021Data!D29:Y29,Index!$B$1) -> 777 | C122: =INDEX(Census2021Data!D143:Y143,Index!$B$1) -> 356 | D122: 0.4581724582 | E122: =INDEX(Census2021Data!D172:Y172,Index!$B$1) -> 421 | F122: 0.5418275418 | G122: 2.084192568e-05
A123: Gypsy or Irish Traveller | B123: =INDEX(Census2021Data!D30:Y30,Index!$B$1) -> 686 | C123: =INDEX(Census2021Data!D144:Y144,Index!$B$1) -> 352 | D123: 0.5131195335 | E123: =INDEX(Census2021Data!D173:Y173,Index!$B$1) -> 334 | F123: 0.4868804665 | G123: 1.872833275e-05
A124: Roma | B124: =INDEX(Census2021Data!D31:Y31,Index!$B$1) -> 81 | C124: =INDEX(Census2021Data!D145:Y145,Index!$B$1) -> 41 | D124: 0.5061728395 | E124: =INDEX(Census2021Data!D174:Y174,Index!$B$1) -> 40 | F124: 0.4938271605 | G124: 1.899554412e-05
A125: Other white | B125: =INDEX(Census2021Data!D32:Y32,Index!$B$1) -> 5683 | C125: =INDEX(Census2021Data!D146:Y146,Index!$B$1) -> 2568 | D125: 0.4518740102 | E125: =INDEX(Census2021Data!D175:Y175,Index!$B$1) -> 3115 | F125: 0.5481259898 | G125: 2.108420163e-05
A126: Other ethnic group | B126: =INDEX(Census2021Data!D33:Y33,Index!$B$1) -> 1882 | C126: =INDEX(Census2021Data!D147:Y147,Index!$B$1) -> 940 | D126: 0.4994686504 | E126: =INDEX(Census2021Data!D176:Y176,Index!$B$1) -> 942 | F126: 0.5005313496 | G126: 1.92534273e-05
A127: Arab | B127: =INDEX(Census2021Data!D34:Y34,Index!$B$1) -> 297 | C127: =INDEX(Census2021Data!D148:Y148,Index!$B$1) -> 176 | D127: 0.5925925926 | E127: =INDEX(Census2021Data!D177:Y177,Index!$B$1) -> 121 | F127: 0.4074074074 | G127: 1.56713239e-05
A128: Any other ethnic group | B128: =INDEX(Census2021Data!D35:Y35,Index!$B$1) -> 1585 | C128: =INDEX(Census2021Data!D149:Y149,Index!$B$1) -> 764 | D128: 0.4820189274 | E128: =INDEX(Census2021Data!D178:Y178,Index!$B$1) -> 821 | F128: 0.5179810726 | G128: 1.992464794e-05
A130: Country of birth (world area)
A131: Source: 2021 Census Table TS012
B132: =B35 -> Ashford | D132: Kent | F132: South East | H132: England
A133: Area of birth | B133: Number | C133: % of all people | D133: Number | E133: % of all people | F133: Number | G133: % of all people | H133: Number | I133: % of all people
A134: ALL PEOPLE | B134: =INDEX(Census2021Data!D180:Y180,Index!$B$1) -> 132749 | D134: =Census2021Data!P180 -> 1576071 | F134: =Census2021Data!X180 -> 9278064 | H134: =Census2021Data!Y180 -> 56490051
A135: Europe | B135: =INDEX(Census2021Data!D181:Y181,Index!$B$1) -> 121312 | C135: =B135/B$134 -> 0.9138449254 | D135: =Census2021Data!P181 -> 1471322 | E135: =D135/D$134 -> 0.9335378926 | F135: =Census2021Data!X181 -> 8442793 | G135: =F135/F$134 -> 0.9099735678 | H135: =Census2021Data!Y181 -> 50730043 | I135: =H135/H$134 -> 0.8980350009
A136: Africa | B136: =INDEX(Census2021Data!D182:Y182,Index!$B$1) -> 2917 | C136: =B136/B$134 -> 0.02197380018 | D136: =Census2021Data!P182 -> 33544 | E136: =D136/D$134 -> 0.02128330513 | F136: =Census2021Data!X182 -> 235197 | G136: 0.0253497928 | H136: =Census2021Data!Y182 -> 1558199 | I136: =H136/H$134 -> 0.02758360052
A137: Middle East & Asia | B137: =INDEX(Census2021Data!D183:Y183,Index!$B$1) -> 7168 | C137: =B137/B$134 -> 0.05399664028 | D137: =Census2021Data!P183 -> 54007 | E137: 0.03426685727 | F137: =Census2021Data!X183 -> 450868 | G137: 0.04859505173 | H137: =Census2021Data!Y183 -> 3241701 | I137: =H137/H$134 -> 0.05738534384
A138: The Americas & the Caribbean | B138: =INDEX(Census2021Data!D184:Y184,Index!$B$1) -> 972 | C138: =B138/B$134 -> 0.007322089055 | D138: =Census2021Data!P184 -> 12508 | E138: 0.007936190692 | F138: =Census2021Data!X184 -> 113825 | G138: 0.0122681844 | H138: =Census2021Data!Y184 -> 790002 | I138: =H138/H$134 -> 0.01398479885
A139: Antarctica & Oceania | B139: =INDEX(Census2021Data!D185:Y185,Index!$B$1) -> 380 | C139: =B139/B$134 -> 0.002862545104 | D139: =Census2021Data!P185 -> 4689 | E139: 0.002975119776 | F139: =Census2021Data!X185 -> 35362 | G139: 0.003811355472 | H139: =Census2021Data!Y185 -> 170023 | I139: =H139/H$134 -> 0.003009786626
A145: Household Language
A146: Source: 2021 Census Table TS025
B147: =B35 -> Ashford | D147: England
A148: Household Language | B148: Number | C148: % of all households | D148: Number | E148: % of all households
A149: Total households | B149: =INDEX(Census2021Data!D187:Y187,Index!$B$1) -> 53585 | C149: =B149/B$149 -> 1 | D149: =Census2021Data!Y187 -> 23436085 | E149: =D149/D$149 -> 1
A150: All adults (age 16+) in household have English as a main language | B150: =INDEX(Census2021Data!D188:Y188,Index!$B$1) -> 49710 | C150: =B150/B$149 -> 0.9276849865 | D150: =Census2021Data!Y188 -> 20920337 | E150: 0.8926549379
A151: At least one adult in household has English as a main language | B151: =INDEX(Census2021Data!D189:Y189,Index!$B$1) -> 1514 | C151: 0.02825417561 | D151: =Census2021Data!Y189 -> 1016273 | E151: 0.04336359934
A152: No adults in household but at least one person aged 3 to 15 has English as a main language | B152: =INDEX(Census2021Data!D190:Y190,Index!$B$1) -> 607 | C152: 0.01132779696 | D152: =Census2021Data!Y190 -> 323408 | E152: 0.01379957446
A153: No adults in household have English as a main language | B153: =INDEX(Census2021Data!D191:Y191,Index!$B$1) -> 1754 | C153: 0.03273304096 | D153: =Census2021Data!Y191 -> 1176067 | E153: 0.05018188831
A160: Length of residence in the UK
A161: Source: 2021 Census Table TS016
B162: =B35 -> Ashford | D162: England
A163: Length of residence in the UK | B163: Number | C163: % of all people | D163: Number | E163: % of all people
A164: All People | B164: =INDEX(Census2021Data!D193:Y193,Index!$B$1) -> 132747 | C164: =B164/B$164 -> 1 | D164: =Census2021Data!Y193 -> 56490048 | E164: =D164/D$164 -> 1
A165: Born in the UK | B165: =INDEX(Census2021Data!D194:Y194,Index!$B$1) -> 114942 | C165: =B165/B$164 -> 0.8658726751 | D165: =Census2021Data!Y194 -> 46687506 | E165: 0.8264731161
A166: Born outside the UK | B166: =B164-B165 -> 17805 | C166: 0.1341273249 | D166: =D164-D165 -> 9802542 | E166: 0.1735268839
A167: Resident in UK: Less than 2 years | B167: =INDEX(Census2021Data!D195:Y195,Index!$B$1) -> 1651 | C167: 0.01243719255 | D167: =Census2021Data!Y195 -> 1098454 | E167: 0.01944508881
A168: Resident in UK: 2 years or more but less than 5 years | B168: =INDEX(Census2021Data!D196:Y196,Index!$B$1) -> 2269 | C168: 0.01709266499 | D168: =Census2021Data!Y196 -> 1295390 | E168: 0.02293129579
A169: Resident in UK: 5 years or more but less than 10 years | B169: =INDEX(Census2021Data!D197:Y197,Index!$B$1) -> 3101 | C169: 0.0233602266 | D169: =Census2021Data!Y197 -> 1699938 | E169: 0.03009269881
A170: Resident in UK: 10 years or more | B170: =INDEX(Census2021Data!D198:Y198,Index!$B$1) -> 10784 | C170: 0.08123724077 | D170: =Census2021Data!Y198 -> 5708760 | E170: 0.1010578005
A174: Religion
A180: ="Population by religion, 2021 - "&B35 -> Population by religion, 2021 - Ashford
A181: Source: 2011 Census - Table TS030
B182: =B35 -> Ashford | D182: England
B183: Number | C183: % | D183: Number | E183: %
A184: ALL PEOPLE | B184: =INDEX(Census2021Data!D200:Y200,Index!$B$1) -> 131781 | C184: =B184/B$184 -> 1 | D184: =Census2021Data!Y200 -> 55504302 | E184: =D184/D$184 -> 1
A185: Christian | B185: =INDEX(Census2021Data!D201:Y201,Index!$B$1) -> 62762 | C185: 0.4762598554 | D185: =Census2021Data!Y201 -> 25797155 | E185: 0.4647775771
A186: Buddhist | B186: =INDEX(Census2021Data!D202:Y202,Index!$B$1) -> 1336 | C186: 0.01013803204 | D186: =Census2021Data!Y202 -> 254077 | E186: 0.004577609137
A187: Hindu | B187: =INDEX(Census2021Data!D203:Y203,Index!$B$1) -> 2717 | C187: 0.02061753971 | D187: =Census2021Data!Y203 -> 1003747 | E187: 0.01808412977
A188: Jewish | B188: =INDEX(Census2021Data!D204:Y204,Index!$B$1) -> 142 | C188: 0.001077545321 | D188: =Census2021Data!Y204 -> 264258 | E188: 0.004761036361
A189: Muslim | B189: =INDEX(Census2021Data!D205:Y205,Index!$B$1) -> 2083 | C189: 0.0158065275 | D189: =Census2021Data!Y205 -> 3760190 | E189: 0.06774591995
A190: Sikh | B190: =INDEX(Census2021Data!D206:Y206,Index!$B$1) -> 145 | C190: 0.001100310363 | D190: =Census2021Data!Y206 -> 515810 | E190: 0.009293153529
A191: All other religions | B191: =INDEX(Census2021Data!D207:Y207,Index!$B$1) -> 1531 | C191: 0.01161775977 | D191: =Census2021Data!Y207 -> 324696 | E191: 0.00584992493
A192: No religion | B192: =INDEX(Census2021Data!D208:Y208,Index!$B$1) -> 53717 | C192: 0.4076232537 | D192: =Census2021Data!Y208 -> 20358907 | E192: 0.3667987213
A193: Religion not stated | B193: =INDEX(Census2021Data!D209:Y209,Index!$B$1) -> 7348 | C193: 0.05575917621 | D193: =Census2021Data!Y209 -> 3225462 | E193: 0.05811192797
A197: ="Religion by age group, 2021 - "&B35 -> Religion by age group, 2021 - Ashford
A198: Source: 2021 Census Custom Table
B199: 0-15 | D199: 16-64 | F199: 65+
B200: Number | C200: % | D200: Number | E200: % | F200: Number | G200: %
A201: ALL PEOPLE | B201: =INDEX(Census2021Data!D210:Y210,Index!$B$1) -> 25979 | C201: =B201/$B$201 -> 1 | D201: =INDEX(Census2021Data!D220:Y220,Index!$B$1) -> 80773 | E201: =D201/$D$201 -> 1 | F201: =INDEX(Census2021Data!D230:Y230,Index!$B$1) -> 25998 | G201: =F201/$F$201 -> 1
A202: Christian | B202: =INDEX(Census2021Data!D211:Y211,Index!$B$1) -> 9376 | C202: =B202/$B$201 -> 0.3609068863 | D202: =INDEX(Census2021Data!D221:Y221,Index!$B$1) -> 34730 | E202: =D202/$D$201 -> 0.4299704109 | F202: =INDEX(Census2021Data!D231:Y231,Index!$B$1) -> 19091 | G202: =F202/$F$201 -> 0.7343257174
A203: Buddhist | B203: =INDEX(Census2021Data!D212:Y212,Index!$B$1) -> 177 | C203: 0.006813195273 | D203: =INDEX(Census2021Data!D222:Y222,Index!$B$1) -> 999 | E203: 0.01236799426 | F203: =INDEX(Census2021Data!D232:Y232,Index!$B$1) -> 164 | G203: 0.006308177552
A204: Hindu | B204: =INDEX(Census2021Data!D213:Y213,Index!$B$1) -> 493 | C204: 0.01897686593 | D204: =INDEX(Census2021Data!D223:Y223,Index!$B$1) -> 1972 | E204: 0.02441409877 | F204: =INDEX(Census2021Data!D233:Y233,Index!$B$1) -> 252 | G204: 0.009693053312
A205: Jewish | B205: =INDEX(Census2021Data!D214:Y214,Index!$B$1) -> 14 | C205: 0.0005388968013 | D205: =INDEX(Census2021Data!D224:Y224,Index!$B$1) -> 87 | E205: 0.001077092593 | F205: =INDEX(Census2021Data!D234:Y234,Index!$B$1) -> 42 | G205: 0.001615508885
A206: Muslim | B206: =INDEX(Census2021Data!D215:Y215,Index!$B$1) -> 682 | C206: 0.02625197275 | D206: =INDEX(Census2021Data!D225:Y225,Index!$B$1) -> 1350 | E206: 0.01671350575 | F206: =INDEX(Census2021Data!D235:Y235,Index!$B$1) -> 78 | G206: 0.003000230787
A207: Sikh | B207: =INDEX(Census2021Data!D216:Y216,Index!$B$1) -> 22 | C207: 0.0008468378306 | D207: =INDEX(Census2021Data!D226:Y226,Index!$B$1) -> 109 | E207: 0.001349460835 | F207: =INDEX(Census2021Data!D236:Y236,Index!$B$1) -> 18 | G207: 0.0006923609508
A208: All other religions | B208: =INDEX(Census2021Data!D217:Y217,Index!$B$1) -> 171 | C208: 0.006582239501 | D208: =INDEX(Census2021Data!D227:Y227,Index!$B$1) -> 1126 | E208: 0.01394030183 | F208: =INDEX(Census2021Data!D237:Y237,Index!$B$1) -> 236 | G208: 0.009077621355
A209: No religion | B209: =INDEX(Census2021Data!D218:Y218,Index!$B$1) -> 13368 | C209: 0.5145694599 | D209: =INDEX(Census2021Data!D228:Y228,Index!$B$1) -> 35913 | E209: 0.4446163941 | F209: =INDEX(Census2021Data!D238:Y238,Index!$B$1) -> 4722 | G209: 0.1816293561
A210: Religion not stated | B210: =INDEX(Census2021Data!D219:Y219,Index!$B$1) -> 1676 | C210: 0.06451364564 | D210: =INDEX(Census2021Data!D229:Y229,Index!$B$1) -> 4487 | E210: 0.05555074097 | F210: =INDEX(Census2021Data!D239:Y239,Index!$B$1) -> 1395 | G210: 0.05365797369
A224: ="Religion by sex 2021 - "&B6 -> Religion by sex 2021 - Ashford
A225: Source: 2021 Census Custom Table
B226: Male | D226: Female
B227: Number | C227: % | D227: Number | E227: %
A228: ALL PEOPLE | B228: =INDEX(Census2021Data!D240:Y240,Index!$B$1) -> 64166 | C228: =B228/$B184 -> 0.486913895 | D228: =INDEX(Census2021Data!D250:Y250,Index!$B$1) -> 67615 | E228: =D228/$B184 -> 0.513086105
A229: Christian | B229: =INDEX(Census2021Data!D241:Y241,Index!$B$1) -> 28444 | C229: 0.4532041681 | D229: =INDEX(Census2021Data!D251:Y251,Index!$B$1) -> 34318 | E229: 0.5467958319
A230: Buddhist | B230: =INDEX(Census2021Data!D242:Y242,Index!$B$1) -> 615 | C230: 0.4603293413 | D230: =INDEX(Census2021Data!D252:Y252,Index!$B$1) -> 721 | E230: 0.5396706587
A231: Hindu | B231: =INDEX(Census2021Data!D243:Y243,Index!$B$1) -> 1321 | C231: 0.4861980125 | D231: =INDEX(Census2021Data!D253:Y253,Index!$B$1) -> 1396 | E231: 0.5138019875
A232: Jewish | B232: =INDEX(Census2021Data!D244:Y244,Index!$B$1) -> 70 | C232: 0.4929577465 | D232: =INDEX(Census2021Data!D254:Y254,Index!$B$1) -> 72 | E232: 0.5070422535
A233: Muslim | B233: =INDEX(Census2021Data!D245:Y245,Index!$B$1) -> 1129 | C233: 0.5420067211 | D233: =INDEX(Census2021Data!D255:Y255,Index!$B$1) -> 954 | E233: 0.4579932789
A234: Sikh | B234: =INDEX(Census2021Data!D246:Y246,Index!$B$1) -> 78 | C234: 0.5379310345 | D234: =INDEX(Census2021Data!D256:Y256,Index!$B$1) -> 67 | E234: 0.4620689655
A235: All other religions | B235: =INDEX(Census2021Data!D247:Y247,Index!$B$1) -> 730 | C235: 0.4768125408 | D235: =INDEX(Census2021Data!D257:Y257,Index!$B$1) -> 801 | E235: 0.5231874592
A236: No religion | B236: =INDEX(Census2021Data!D248:Y248,Index!$B$1) -> 28136 | C236: 0.5237820429 | D236: =INDEX(Census2021Data!D258:Y258,Index!$B$1) -> 25581 | E236: 0.4762179571
A237: Religion not stated | B237: =INDEX(Census2021Data!D249:Y249,Index!$B$1) -> 3643 | C237: 0.4957811649 | D237: =INDEX(Census2021Data!D259:Y259,Index!$B$1) -> 3705 | E237: 0.5042188351
A243: Marital & Civil Partnership Status
A244: Source: 2021 Census Table TS016
B245: =B6 -> Ashford | D245: England
B246: Number | C246: % of all people 16+ | D246: Number | E246: % of all people 16+
A247: All people aged 16 and over | B247: =INDEX(Census2021Data!D261:Y261,Index!$B$1) -> 106772 | C247: =B247/B$247 -> 1 | D247: =Census2021Data!Y261 -> 46006957 | E247: =D247/D$247 -> 1
A248: Single (never married or never registered a same-sex civil partnership) | B248: =INDEX(Census2021Data!D262:Y262,Index!$B$1) -> 35293 | C248: =B248/B$247 -> 0.3305454614 | D248: =Census2021Data!Y262 -> 17450122 | E248: =D248/D$247 -> 0.3792931143
A249: Married or in a registered civil partnership | B249: =INDEX(Census2021Data!D263:Y263,Index!$B$1) -> 52688 | C249: 0.4934627056 | D249: =Census2021Data!Y263 -> 20561642 | E249: 0.4469246249
A250: Total Married | B250: =INDEX(Census2021Data!D264:Y264,Index!$B$1) -> 52498 | C250: 0.4916832128 | D250: =Census2021Data!Y264 -> 20464074 | E250: 0.4448039022
A251: Married: Opposite sex | B251: =INDEX(Census2021Data!D265:Y265,Index!$B$1) -> 52194 | C251: 0.4888360244 | D251: =Census2021Data!Y265 -> 20336565 | E251: 0.4420323865
A252: Married: Same sex | B252: =INDEX(Census2021Data!D266:Y266,Index!$B$1) -> 304 | C252: 0.002847188401 | D252: =Census2021Data!Y266 -> 127509 | E252: 0.002771515621
A253: Total in a registered civil partnership | B253: =INDEX(Census2021Data!D267:Y267,Index!$B$1) -> 190 | C253: 0.001779492751 | D253: =Census2021Data!Y267 -> 97568 | E253: 0.002120722742
A254: In a registered civil partnership: Opposite sex | B254: =INDEX(Census2021Data!D268:Y268,Index!$B$1) -> 51 | C254: 0.0004776533173 | D254: =Census2021Data!Y268 -> 34067 | E254: 0.0007404749677
A255: In a registered civil partnership: Same sex | B255: =INDEX(Census2021Data!D269:Y269,Index!$B$1) -> 139 | C255: 0.001301839434 | D255: =Census2021Data!Y269 -> 63501 | E255: 0.001380247774
A256: Total Separated, but still legally married or still legally in a civil partnership | B256: =INDEX(Census2021Data!D270:Y270,Index!$B$1) -> 2292 | C256: 0.02146630203 | D256: =Census2021Data!Y270 -> 1033518 | E256: 0.02246438511
A257: Separated, but still married | B257: =INDEX(Census2021Data!D271:Y271,Index!$B$1) -> 2284 | C257: 0.02139137602 | D257: =Census2021Data!Y271 -> 1025977 | E257: 0.02230047512
A258: Separated, but still in a registered civil partnership | B258: =INDEX(Census2021Data!D272:Y272,Index!$B$1) -> 8 | C258: 7.492601056e-05 | D258: =Census2021Data!Y272 -> 7541 | E258: 0.000163909993
A259: Total Divorced or civil partnership dissolved | B259: =INDEX(Census2021Data!D273:Y273,Index!$B$1) -> 10033 | C259: =B259/B$247 -> 0.093966583 | D259: =Census2021Data!Y273 -> 4171639 | E259: =D259/D$247 -> 0.09067409088
A260: Divorced | B260: =INDEX(Census2021Data!D274:Y274,Index!$B$1) -> 10008 | C260: 0.09373243922 | D260: =Census2021Data!Y274 -> 4160359 | E260: 0.09042891057
A261: Formerly in a civil partnership now legally dissolved | B261: =INDEX(Census2021Data!D275:Y275,Index!$B$1) -> 25 | C261: 0.000234143783 | D261: =Census2021Data!Y275 -> 11280 | E261: 0.0002451803104
A262: Total Widowed or surviving civil partnership partner | B262: =INDEX(Census2021Data!D276:Y276,Index!$B$1) -> 6466 | C262: 0.06055894804 | D262: =Census2021Data!Y276 -> 2790036 | E262: 0.06064378481
A263: Widowed | B263: =INDEX(Census2021Data!D277:Y277,Index!$B$1) -> 6458 | C263: 0.06048402203 | D263: =Census2021Data!Y277 -> 2785998 | E263: 0.06055601547
A264: Surviving partner from civil partnership | B264: =INDEX(Census2021Data!D278:Y278,Index!$B$1) -> 8 | C264: 7.492601056e-05 | D264: =Census2021Data!Y278 -> 4038 | E264: 8.776933454e-05
A271: Living Arrangements - people aged 16+
A272: Source: 2021 Census Table TS010
B273: =B6 -> Ashford | D273: England
B274: Number | C274: % of all people 16+ | D274: Number | E274: % of all people 16+
A275: All household residents aged 16+ | B275: =INDEX(Census2021Data!D280:Y280,Index!$B$1) -> 105870 | D275: =Census2021Data!Y280 -> 45055453
A276: Living in a couple | B276: =INDEX(Census2021Data!D281:Y281,Index!$B$1) -> 66507 | C276: =B276/B$275 -> 0.6281949561 | D276: =Census2021Data!Y281 -> 26061709 | E276: =D276/D$275 -> 0.5784362883
... 50 more rows

Sheet Health
A1: Health
A2: Includes information about the numbers of births & deaths, life expectancy, people with limiting long term illness,
A3: health related benefits claimants and people providing unpaid care. | N3: =Profile!E14 -> Version date: 4 February 2025
G4: Select geography: | K4: Select topic:
A6: District profile for | B6: =Index!C1 -> Ashford
A8: ="Births & deaths - "&B6&" area - "&Data!C260 -> Births & deaths - Ashford area - 2023
A9: Source: Vital Statistics, Office for National Statistics | J9: Births | K9: deaths | L9: natural change
I10: =Data!C245 -> 2008 | J10: =INDEX(Data!E245:V245,Index!$B$1) -> 1528 | K10: =INDEX(Data!E265:V265,Index!$B$1) -> 904 | L10: =J10-K10 -> 624
A11: =Data!C260 -> 2023 | B11: =Index!$M$6 -> Ashford | C11: Kent | D11: South East | E11: England | I11: =Data!C246 -> 2009 | J11: =INDEX(Data!E246:V246,Index!$B$1) -> 1471 | K11: =INDEX(Data!E266:V266,Index!$B$1) -> 963 | L11: =J11-K11 -> 508
A12: Total live births | B12: =INDEX(Data!E260:Z260,Index!$B$1) -> 1364 | C12: =Data!Q260 -> 15429 | D12: =Data!Y260 -> 88164 | E12: =Data!Z260 -> 591072 | I12: =Data!C247 -> 2010 | J12: =INDEX(Data!E247:V247,Index!$B$1) -> 1495 | K12: =INDEX(Data!E267:V267,Index!$B$1) -> 948 | L12: 547
A13: Total deaths | B13: =INDEX(Data!E280:Z280,Index!$B$1) -> 1285 | C13: =Data!Q280 -> 16264 | D13: =Data!Y280 -> 89299 | E13: =Data!Z280 -> 581363 | I13: =Data!C248 -> 2011 | J13: =INDEX(Data!E248:V248,Index!$B$1) -> 1449 | K13: =INDEX(Data!E268:V268,Index!$B$1) -> 888 | L13: 561
A14: Natural change | B14: =B12-B13 -> 79 | C14: =C12-C13 -> -835 | D14: =D12-D13 -> -1135 | E14: =E12-E13 -> 9709 | I14: =Data!C249 -> 2012 | J14: =INDEX(Data!E249:V249,Index!$B$1) -> 1597 | K14: =INDEX(Data!E269:V269,Index!$B$1) -> 947 | L14: 650
I15: =Data!C250 -> 2013 | J15: =INDEX(Data!E250:V250,Index!$B$1) -> 1452 | K15: =INDEX(Data!E270:V270,Index!$B$1) -> 1018 | L15: 434
I16: =Data!C251 -> 2014 | J16: =INDEX(Data!E251:V251,Index!$B$1) -> 1474 | K16: =INDEX(Data!E271:V271,Index!$B$1) -> 1087 | L16: 387
A17: ="Births & deaths by sex - "&B6&" area - "&Data!E234 -> Births & deaths by sex - Ashford area - 2017 | I17: =Data!C252 -> 2015 | J17: =INDEX(Data!E252:V252,Index!$B$1) -> 1523 | K17: =INDEX(Data!E272:V272,Index!$B$1) -> 1075 | L17: 448
A18: Source: Vital Statistics, Office for National Statistics | I18: =Data!C253 -> 2016 | J18: =INDEX(Data!E253:V253,Index!$B$1) -> 1565 | K18: =INDEX(Data!E273:V273,Index!$B$1) -> 1077 | L18: 488
I19: =Data!C254 -> 2017 | J19: =INDEX(Data!E254:V254,Index!$B$1) -> 1571 | K19: =INDEX(Data!E274:V274,Index!$B$1) -> 1078 | L19: 493
A20: Total live births | B20: =SUM(B23,B26) -> 1571 | I20: =Data!C255 -> 2018 | J20: =INDEX(Data!E255:V255,Index!$B$1) -> 1460 | K20: =INDEX(Data!E275:V275,Index!$B$1) -> 1179 | L20: 281
A21: Total deaths | B21: =SUM(B24,B27)*-1 -> 1078 | I21: =Data!C256 -> 2019 | J21: =INDEX(Data!E256:V256,Index!$B$1) -> 1378 | K21: =INDEX(Data!E276:V276,Index!$B$1) -> 1162 | L21: 216
A22: Natural change | B22: =IF(ISERROR((B20-B21)),"n.a.",(B20-B21)) -> 493 | D22: ` | I22: =Data!C257 -> 2020 | J22: =INDEX(Data!E257:V257,Index!$B$1) -> 1423 | K22: =INDEX(Data!E277:V277,Index!$B$1) -> 1334 | L22: 89
A23: Male live births | B23: =IF(ISERROR((INDEX(Data!E237:Z237,Index!B1))),"n.a.",(INDEX(Data!E237:Z237,Index!B1))) -> 814 | I23: =Data!C258 -> 2021 | J23: =INDEX(Data!E258:V258,Index!$B$1) -> 1415 | K23: =INDEX(Data!E278:V278,Index!$B$1) -> 1252 | L23: 163
A24: Male deaths | B24: =IF(ISERROR((INDEX(Data!E238:Z238,Index!B1))),"n.a.",(INDEX(Data!E238:Z238,Index!B1))) -> -519 | I24: =Data!C259 -> 2022 | J24: =INDEX(Data!E259:V259,Index!$B$1) -> 1441 | K24: =INDEX(Data!E279:V279,Index!$B$1) -> 1224 | L24: 217
A25: Male natural change | B25: =IF(ISERROR((B23+B24)),"n.a.",(B23+B24)) -> 295 | I25: =Data!C260 -> 2023 | J25: =INDEX(Data!E260:V260,Index!$B$1) -> 1364 | K25: =INDEX(Data!E280:V280,Index!$B$1) -> 1285 | L25: 79
A26: Female live births | B26: =IF(ISERROR((INDEX(Data!E239:Z239,Index!B1))),"n.a.",(INDEX(Data!E239:Z239,Index!B1))) -> 757
A27: Female deaths | B27: =IF(ISERROR((INDEX(Data!E240:Z240,Index!B1))),"n.a.",(INDEX(Data!E240:Z240,Index!B1))) -> -559
A28: Female natural change | B28: =IF(ISERROR((B26+B27)),"n.a.",(B26+B27)) -> 198
A35: ="Deaths by cause - "&B6&" - "&Data!E281 -> Deaths by cause - Ashford - 2023
A36: Source: ONS - Mortality Statistics
A37: Note: Rates are Directly Age Standardised Rates per 100,000.
A39: All age all causes mortality | B39: Rate | C39: =INDEX(Data!E282:Z282,Index!$B$1) -> 929
A40: All age cancer mortality | B40: Rate | C40: =INDEX(Data!E283:Z283,Index!$B$1) -> 235.19
A41: All age cirulatory mortality | B41: Rate | C41: =INDEX(Data!E284:Z284,Index!$B$1) -> 238.57
A42: All age respiratory mortality | B42: Rate | C42: =INDEX(Data!E285:Z285,Index!$B$1) -> 112.45
A49: All age all causes mortality (per 100,000 population) | B49: =$B$6 -> Ashford | C49: Kent | D49: England & Wales
A50: =Data!C286 -> 2015 | B50: =INDEX(Data!E286:Z286,Index!$B$1) -> 910.26 | C50: =Data!Q286 -> 966.08 | D50: =Data!Z286 -> 991.1
A51: =Data!C287 -> 2016 | B51: =INDEX(Data!E287:Z287,Index!$B$1) -> 891.67 | C51: =Data!Q287 -> 943.95 | D51: =Data!Z287 -> 964.78
A52: =Data!C288 -> 2017 | B52: =INDEX(Data!E288:Z288,Index!$B$1) -> 868.8 | C52: =Data!Q288 -> 937.82 | D52: =Data!Z288 -> 963.27
A53: =Data!C289 -> 2018 | B53: =INDEX(Data!E289:Z289,Index!$B$1) -> 928.31 | C53: =Data!Q289 -> 956.65 | D53: =Data!Z289 -> 963.06
A54: =Data!C290 -> 2019 | B54: =INDEX(Data!E290:Z290,Index!$B$1) -> 908.57 | C54: =Data!Q290 -> 911.38 | D54: =Data!Z290 -> 922.71
A55: =Data!C291 -> 2020 | B55: =INDEX(Data!E291:Z291,Index!$B$1) -> 1024.56 | C55: =Data!Q291 -> 1028.29 | D55: =Data!Z291 -> 1046.82
A56: =Data!C292 -> 2021 | B56: =INDEX(Data!E292:Z292,Index!$B$1) -> 949.96 | C56: =Data!Q292 -> 1001.38 | D56: =Data!Z292 -> 1012.79
A57: =Data!C293 -> 2022 | B57: =INDEX(Data!E293:Z293,Index!$B$1) -> 895.88 | C57: =Data!Q293 -> 960.08 | D57: =Data!Z293 -> 976.72
A58: =Data!C294 -> 2023 | B58: =INDEX(Data!E294:Z294,Index!$B$1) -> 929 | C58: =Data!Q294 -> 942.67 | D58: =Data!Z294 -> 969.53
A59: Source: ONS - Mortality Statistics
A60: Note: Rates are Directly Age Standardised Rates per 100,000.
A64: All age mortality - Cancers (per 100,000 population) | B64: =$B$6 -> Ashford | C64: Kent | D64: England & Wales
A65: =Data!C295 -> 2015 | B65: =INDEX(Data!E295:Z295,Index!$B$1) -> 287.38 | C65: =Data!Q295 -> 283.59 | D65: =Data!Z295 -> 277.58
A66: =Data!C296 -> 2016 | B66: =INDEX(Data!E296:Z296,Index!$B$1) -> 270.25 | C66: =Data!Q296 -> 276.33 | D66: =Data!Z296 -> 276.09
A67: =Data!C297 -> 2017 | B67: =INDEX(Data!E297:Z297,Index!$B$1) -> 246.26 | C67: =Data!Q297 -> 275.34 | D67: =Data!Z297 -> 271.37
A68: =Data!C298 -> 2018 | B68: =INDEX(Data!E298:Z298,Index!$B$1) -> 284.63 | C68: =Data!Q298 -> 276.37 | D68: =Data!Z298 -> 267.1
A69: =Data!C299 -> 2019 | B69: =INDEX(Data!E299:Z299,Index!$B$1) -> 273.34 | C69: =Data!Q299 -> 262.08 | D69: =Data!Z299 -> 263.21
A70: =Data!C300 -> 2020 | B70: =INDEX(Data!E300:Z300,Index!$B$1) -> 273.24 | C70: =Data!Q300 -> 262.47 | D70: =Data!Z300 -> 260.7
A71: =Data!C301 -> 2021 | B71: =INDEX(Data!E301:Z301,Index!$B$1) -> 247.84 | C71: =Data!Q301 -> 249.23 | D71: =Data!Z301 -> 255.34
A72: =Data!C302 -> 2022 | B72: =INDEX(Data!E302:Z302,Index!$B$1) -> 247.98 | C72: =Data!Q302 -> 260.93 | D72: =Data!Z302 -> 258.03
A73: =Data!C303 -> 2023 | B73: =INDEX(Data!E303:Z303,Index!$B$1) -> 235.19 | C73: =Data!Q303 -> 246.33 | D73: =Data!Z303 -> 253.82
A74: Source: ONS - Mortality Statistics
A75: Note: Rates are Directly Age Standardised Rates per 100,000.
A79: All age mortality - Circulatory Diseases (per 100,000 population) | B79: =$B$6 -> Ashford | C79: Kent | D79: England & Wales
A80: =Data!C304 -> 2015 | B80: =INDEX(Data!E304:Z304,Index!$B$1) -> 232.49 | C80: =Data!Q304 -> 247.85 | D80: =Data!Z304 -> 259.69
A81: =Data!C305 -> 2016 | B81: =INDEX(Data!E305:Z305,Index!$B$1) -> 231.25 | C81: =Data!Q305 -> 233.88 | D81: =Data!Z305 -> 245.79
A82: =Data!C306 -> 2017 | B82: =INDEX(Data!E306:Z306,Index!$B$1) -> 204.94 | C82: =Data!Q306 -> 220.85 | D82: =Data!Z306 -> 241.04
A83: =Data!C307 -> 2018 | B83: =INDEX(Data!E307:Z307,Index!$B$1) -> 222.7 | C83: =Data!Q307 -> 224.73 | D83: =Data!Z307 -> 234.98
A84: =Data!C308 -> 2019 | B84: =INDEX(Data!E308:Z308,Index!$B$1) -> 213.84 | C84: =Data!Q308 -> 210.71 | D84: =Data!Z308 -> 224.65
A85: =Data!C309 -> 2020 | B85: =INDEX(Data!E309:Z309,Index!$B$1) -> 192.82 | C85: =Data!Q309 -> 209.6 | D85: =Data!Z309 -> 228.73
A86: =Data!C310 -> 2021 | B86: =INDEX(Data!E310:Z310,Index!$B$1) -> 212.95 | C86: =Data!Q310 -> 213.9 | D86: =Data!Z310 -> 232.23
A87: =Data!C311 -> 2022 | B87: =INDEX(Data!E311:Z311,Index!$B$1) -> 193.68 | C87: =Data!Q311 -> 225.06 | D87: =Data!Z311 -> 237.5
A88: =Data!C312 -> 2023 | B88: =INDEX(Data!E312:Z312,Index!$B$1) -> 238.57 | C88: =Data!Q312 -> 229.31 | D88: =Data!Z312 -> 233.92
A89: Source: ONS - Mortality Statistics
A90: Note: Rates are Directly Age Standardised Rates per 100,000.
A93: All age mortality - Respiratory Diseases (per 100,000 population) | B93: =$B$6 -> Ashford | C93: Kent | D93: England & Wales
A94: =Data!C313 -> 2015 | B94: =INDEX(Data!E313:Z313,Index!$B$1) -> 136.29 | C94: =Data!Q313 -> 145.34 | D94: =Data!Z313 -> 142.26
A95: =Data!C314 -> 2016 | B95: =INDEX(Data!E314:Z314,Index!$B$1) -> 117.4 | C95: =Data!Q314 -> 132.24 | D95: =Data!Z314 -> 133.55
A96: =Data!C315 -> 2017 | B96: =INDEX(Data!E315:Z315,Index!$B$1) -> 129.25 | C96: =Data!Q315 -> 132.81 | D96: =Data!Z315 -> 133.41
A97: =Data!C316 -> 2018 | B97: =INDEX(Data!E316:Z316,Index!$B$1) -> 142.16 | C97: =Data!Q316 -> 139.93 | D97: =Data!Z316 -> 136.98
A98: =Data!C317 -> 2019 | B98: =INDEX(Data!E317:Z317,Index!$B$1) -> 153.97 | C98: =Data!Q317 -> 130.48 | D98: =Data!Z317 -> 126.16
A99: =Data!C318 -> 2020 | B99: =INDEX(Data!E318:Z318,Index!$B$1) -> 99.45 | C99: =Data!Q318 -> 107.22 | D99: =Data!Z318 -> 106.82
A100: =Data!C319 -> 2021 | B100: =INDEX(Data!E319:Z319,Index!$B$1) -> 79.3 | C100: =Data!Q319 -> 91.16 | D100: =Data!Z319 -> 94.95
A101: =Data!C320 -> 2022 | B101: =INDEX(Data!E320:Z320,Index!$B$1) -> 107.13 | C101: =Data!Q320 -> 103.16 | D101: =Data!Z320 -> 108.21
A102: =Data!C321 -> 2023 | B102: =INDEX(Data!E321:Z321,Index!$B$1) -> 112.45 | C102: =Data!Q321 -> 114.24 | D102: =Data!Z321 -> 118.71
A103: Source: ONS - Mortality Statistics
A104: Note: Rates are Directly Age Standardised Rates per 100,000.
A106: Life Expectancy
A108: Life expectancy at birth (years)
A109: Source: Office for National Statistics
A110: =Data!E322 -> 2021-23 | B110: =Index!$M$6 -> Ashford | C110: Kent | D110: South East | E110: England
A111: Males | B111: =INDEX(Data!E323:Z323,Index!$B$1) -> 80.12 | C111: =Data!Q323 -> 79.31 | D111: =Data!Y323 -> 80.32 | E111: =Data!Z323 -> 79.11
A112: Females | B112: =INDEX(Data!E324:Z324,Index!$B$1) -> 83.55 | C112: =Data!Q324 -> 83.34 | D112: =Data!Y324 -> 84.06 | E112: =Data!Z324 -> 83.05
A130: Life expectancy at age 65 (years)
A131: Source: Office for National Statistics
A132: =Data!E322 -> 2021-23 | B132: =Index!$M$6 -> Ashford | C132: Kent | D132: South East | E132: England
A133: Males | B133: =INDEX(Data!E325:Z325,Index!$B$1) -> 19.01 | C133: =Data!Q325 -> 18.67 | D133: =Data!Y325 -> 19.26 | E133: =Data!Z325 -> 18.67
A134: Females | B134: =INDEX(Data!E326:Z326,Index!$B$1) -> 21.53 | C134: =Data!Q326 -> 21.28 | D134: =Data!Y326 -> 21.79 | E134: =Data!Z326 -> 21.14
A152: Health
A153: Source: 2021 Census - Table TS037
B154: =Index!L6 -> Ashford | D154: England
B155: Number | C155: % of all people | D155: Number | E155: % of all people
A156: All People | B156: =INDEX(Census2021Data!D296:Y296,Index!$B$1) -> 132747 | C156: =B156/B$156 -> 1 | D156: =Census2021Data!Y296 -> 56490046 | E156: =D156/D$156 -> 1
A157: Very good health | B157: =INDEX(Census2021Data!D297:Y297,Index!$B$1) -> 64334 | C157: =B157/B$156 -> 0.4846361876 | D157: =Census2021Data!Y297 -> 27390829 | E157: =D157/D$156 -> 0.4848788581
A158: Good health | B158: =INDEX(Census2021Data!D298:Y298,Index!$B$1) -> 45779 | C158: 0.3448590175 | D158: =Census2021Data!Y298 -> 19040735 | E158: 0.3370635421
A159: Fair health | B159: =INDEX(Census2021Data!D299:Y299,Index!$B$1) -> 16551 | C159: 0.1246807837 | D159: =Census2021Data!Y299 -> 7147346 | E159: 0.1265239897
A160: Bad health | B160: =INDEX(Census2021Data!D300:Y300,Index!$B$1) -> 4748 | C160: 0.03576728664 | D160: =Census2021Data!Y300 -> 2248255 | E160: 0.03979913559
A161: Very bad health | B161: =INDEX(Census2021Data!D301:Y301,Index!$B$1) -> 1335 | C161: 0.01005672445 | D161: =Census2021Data!Y301 -> 662881 | E161: 0.01173447442
A162: All usual residents living in households
A177: Long term health problem or disability
A178: Source: 2021 Census - Table TS038
B179: =Index!L6 -> Ashford | D179: England
B180: Number | C180: % of all people | D180: Number | E180: % of all people
A181: All People | B181: =INDEX(Census2021Data!D303:Y303,Index!$B$1) -> 132747 | C181: =B181/B$181 -> 1 | D181: =Census2021Data!Y303 -> 56490048 | E181: =D181/D$181 -> 1
A182: Disabled under the Equality Act | B182: =INDEX(Census2021Data!D304:Y304,Index!$B$1) -> 22655 | C182: 0.1706629905 | D182: =Census2021Data!Y304 -> 9774510 | E182: 0.1730306549
A183: Day-to-day activities limited a lot | B183: =INDEX(Census2021Data!D305:Y305,Index!$B$1) -> 9079 | C183: 0.06839325936 | D183: =Census2021Data!Y305 -> 4140357 | E183: 0.07329356491
A184: Day-to-day activities limited a little | B184: =INDEX(Census2021Data!D306:Y306,Index!$B$1) -> 13576 | C184: 0.1022697311 | D184: =Census2021Data!Y306 -> 5634153 | E184: 0.09973708997
A185: Not disabled under the Equality Act | B185: =INDEX(Census2021Data!D307:Y307,Index!$B$1) -> 110092 | C185: 0.8293370095 | D185: =Census2021Data!Y307 -> 46715538 | E185: 0.8269693451
A186: Has long term physical or mental health condition but day-to-day activities are not limited | B186: =INDEX(Census2021Data!D308:Y308,Index!$B$1) -> 9592 | C186: 0.07225775347 | D186: =Census2021Data!Y308 -> 3856029 | E186: 0.06826032437
A187: No long term physical or mental health conditions | B187: =INDEX(Census2021Data!D309:Y309,Index!$B$1) -> 100500 | C187: 0.757079256 | D187: =Census2021Data!Y309 -> 42859509 | E187: 0.7587090207
A188: All usual residents living in households
A198: Disability benefit claimants (Disability Living Allowance/Personal Independence Payments or Attendance Allowance)
A200: =Index!K6&" - "&Data!E327 -> Ashford - Nov 2023
A201: Source: DWP
B202: All People | D202: Males | F202: Females
B203: Number | C203: % | D203: Number | E203: % | F203: Number | G203: %
A204: Total | B204: =INDEX(Data!E328:Z328,Index!$B$1) -> 12055 | C204: =B204/Population!B37 -> 0.08716558207 | D204: =INDEX(Data!E333:Z333,Index!$B$1) -> 5533 | E204: =D204/Population!D37 -> 0.08221396731 | F204: =INDEX(Data!E338:Z338,Index!$B$1) -> 6518 | G204: =F204/Population!F37 -> 0.0918028169
A205: 0-15 | B205: =INDEX(Data!E329:Z329,Index!$B$1) -> 2016 | C205: =B205/Population!B38 -> 0.07411764706 | D205: =INDEX(Data!E334:Z334,Index!$B$1) -> 1374 | E205: =D205/Population!D38 -> 0.09884892086 | F205: =INDEX(Data!E339:Z339,Index!$B$1) -> 637 | G205: =F205/Population!F38 -> 0.04789473684 | I205: ="Percentage of age group claiming disability benefits - "&#REF!&" - "&A200 -> 
A206: 16-64 | B206: =INDEX(Data!E330:Z330,Index!$B$1) -> 5817 | C206: =B206/Population!B39 -> 0.06933253874 | D206: =INDEX(Data!E335:Z335,Index!$B$1) -> 2526 | E206: =D206/Population!D39 -> 0.0617603912 | F206: =INDEX(Data!E340:Z340,Index!$B$1) -> 3291 | G206: =F206/Population!F39 -> 0.07653488372
A207: 65+ | B207: =INDEX(Data!E331:Z331,Index!$B$1) -> 886 | C207: =B207/Population!B40 -> 0.03269372694 | D207: =INDEX(Data!E336:Z336,Index!$B$1) -> 1645 | E207: =D207/Population!D40 -> 0.1326612903 | F207: =INDEX(Data!E341:Z341,Index!$B$1) -> 2586 | G207: =F207/Population!F40 -> 0.1759183673
A208: Young people (24 and under) | B208: =INDEX(Data!E332:Z332,Index!$B$1) -> 2923 | C208: =B208/(Population!B16+Population!B15+Population!B14+Population!B13+Population!B12) -> 0.07418781726 | D208: =INDEX(Data!E337:Z337,Index!$B$1) -> 1915 | E208: =D208/(Population!D16+Population!D15+Population!D14+Population!D13+Population!D12) -> 0.0948019802 | F208: =INDEX(Data!E342:Z342,Index!$B$1) -> 1014 | G208: =F208/(Population!F16+Population!F15+Population!F14+Population!F13+Population!F12) -> 0.05308900524
A223: ="Disability benefits claimants by health condition - "&Data!E327 -> Disability benefits claimants by health condition - Nov 2023
A224: Source: DWP
A225: =Index!K6 -> Ashford | B225: Number | C225: %
A226: Mental Health | B226: =INDEX(Data!E343:Z343,Index!$B$1) -> 2081 | C226: =INDEX(Data!E346:Z346,Index!$B$1) -> 0.1726254666 | G226: KCC Area
A227: Learning Difficulty | B227: =INDEX(Data!E344:Z344,Index!$B$1) -> 2763 | C227: =INDEX(Data!E347:Z347,Index!$B$1) -> 0.2291995023 | G227: =Data!Q343 -> 24641 | H227: =Data!Q346 -> 0.163886561
A228: Physical Disablity | B228: =INDEX(Data!E345:Z345,Index!$B$1) -> 7537 | C228: =INDEX(Data!E348:Z348,Index!$B$1) -> 0.625217752 | G228: =Data!Q344 -> 35826 | H228: =Data!Q347 -> 0.2382776647
G229: =Data!Q345 -> 96036 | H229: =Data!Q348 -> 0.6387325911
A245: People providing unpaid care
A246: Source: 2021 Census Custom Table
A247: People providing unpaid care | B247: =Index!L6 -> Ashford | D247: England
B248: Number | C248: % | D248: Number | E248: %
A249: All People aged 5 and over | B249: =INDEX(Census2021Data!D311:Y311,Index!$B$1) -> 125140 | C249: =B249/B$249 -> 1 | D249: =Census2021Data!Y311 -> 53413096 | E249: =D249/D$249 -> 1
A250: Provides no unpaid care | B250: =INDEX(Census2021Data!D312:Y312,Index!$B$1) -> 113987 | C250: =B250/B$249 -> 0.9108758191 | D250: =Census2021Data!Y312 -> 48734832 | E250: =D250/D$249 -> 0.9124135399
A251: Provides 1 to 19 hours unpaid care a week | B251: =INDEX(Census2021Data!D313:Y313,Index!$B$1) -> 5454 | C251: =B251/B$249 -> 0.04358318683 | D251: =Census2021Data!Y313 -> 2303725 | E251: =D251/D$249 -> 0.04313034017
A252: Provides 20 to 49 hours unpaid care a week | B252: =INDEX(Census2021Data!D314:Y314,Index!$B$1) -> 2200 | C252: =B252/B$249 -> 0.01758031005 | D252: =Census2021Data!Y314 -> 969768 | E252: =D252/D$249 -> 0.0181559968
A253: Provides 50 or more hours unpaid care a week | B253: =INDEX(Census2021Data!D315:Y315,Index!$B$1) -> 3499 | C253: =B253/B$249 -> 0.02796068403 | D253: =Census2021Data!Y315 -> 1404771 | E253: =D253/D$249 -> 0.0263001231
A254: All usual residents aged 5 and over living in households
A265: People providing unpaid care by age and sex
A266: =B6 -> Ashford
A267: Source: 2021 Census Custom Table
B268: All People | D268: Males | F268: Females
B269: Number | C269: % | D269: Number | E269: % | F269: Number | G269: %
A270: Total providing unpaid care | B270: =INDEX(Census2021Data!D317:Y317,Index!$B$1) -> 11153 | C270: =B270/B$270 -> 1 | D270: =INDEX(Census2021Data!D321:Y321,Index!$B$1) -> 4465 | E270: =D270/D$270 -> 1 | F270: =INDEX(Census2021Data!D325:Y325,Index!$B$1) -> 6688 | G270: =F270/F$270 -> 1 | J270: 0-15 | K270: 16-64 | L270: 65+
A271: Age 5-15 | B271: =INDEX(Census2021Data!D318:Y318,Index!$B$1) -> 350 | C271: =B271/B$270 -> 0.03138169102 | D271: =INDEX(Census2021Data!D322:Y322,Index!$B$1) -> 152 | E271: =D271/D$270 -> 0.03404255319 | F271: =INDEX(Census2021Data!D326:Y326,Index!$B$1) -> 198 | G271: =F271/F$270 -> 0.02960526316 | I271: Males | J271: =E271 -> 0.03404255319 | K271: =E272 -> 0.7019036954 | L271: =E273 -> 0.2640537514
A272: Age 16-64 | B272: =INDEX(Census2021Data!D319:Y319,Index!$B$1) -> 8174 | C272: =B272/B$270 -> 0.7328969784 | D272: =INDEX(Census2021Data!D323:Y323,Index!$B$1) -> 3134 | E272: =D272/D$270 -> 0.7019036954 | F272: =INDEX(Census2021Data!D327:Y327,Index!$B$1) -> 5040 | G272: =F272/F$270 -> 0.7535885167 | I272: Females | J272: =G271 -> 0.02960526316 | K272: =G272 -> 0.7535885167 | L272: =G273 -> 0.2168062201
A273: Age 65+ | B273: =INDEX(Census2021Data!D320:Y320,Index!$B$1) -> 2629 | C273: =B273/B$270 -> 0.2357213306 | D273: =INDEX(Census2021Data!D324:Y324,Index!$B$1) -> 1179 | E273: =D273/D$270 -> 0.2640537514 | F273: =INDEX(Census2021Data!D328:Y328,Index!$B$1) -> 1450 | G273: =F273/F$270 -> 0.2168062201
A284: People claiming carers allowance
A285: Source: DWP
A286: =Data!E349 -> Nov 2023 | B286: =Index!K6 -> Ashford | D286: Kent | F286: Great Britain
A287: aged 16+ | B287: Number | C287: % of age group | D287: Number | E287: % of age group | F287: Number | G287: % of age group
A288: Aged 18-24 | B288: =INDEX(Data!E351:Z351,Index!$B$1) -> 105 | C288: =INDEX(Data!E355:Z355,Index!$B$1) -> 0.01184566787 | D288: =Data!Q351 -> 1128 | E288: =Data!Q355 -> 0.01004684967 | F288: =Data!Z351 -> 46321 | G288: =Data!Z355 -> 0.009248436964
A289: Age 25-64 | B289: =INDEX(Data!E352:Z352,Index!$B$1) -> 2026 | C289: =INDEX(Data!E356:Z356,Index!$B$1) -> 0.02887150328 | D289: =Data!Q352 -> 25124 | E289: =Data!Q356 -> 0.03092336854 | F289: =Data!Z352 -> 896603 | G289: =Data!Z356 -> 0.02853662839
A290: Age 65 and over | B290: =INDEX(Data!E353:Z353,Index!$B$1) -> 623 | C290: =INDEX(Data!E357:Z357,Index!$B$1) -> 0.0232905903 | D290: =Data!Q353 -> 7598 | E290: =Data!Q357 -> 0.02330346025 | F290: =Data!Z353 -> 311461 | G290: =Data!Z357 -> 0.02755412498
A291: Total Claimants | B291: =INDEX(Data!E350:Z350,Index!$B$1) -> 2768 | C291: =INDEX(Data!E354:Z354,Index!$B$1) -> 0.0254147806 | D291: =Data!Q350 -> 33876 | E291: =Data!Q354 -> 0.02629630147 | F291: =Data!Z350 -> 1254393 | G291: =Data!Z354 -> 0.02554073243
A305: Population by activity levels - aged 16+
A306: Source: Sport England
A307: =Data!E361 -> May 2020-2021 | B307: =Index!C1 -> Ashford | C307: Kent | D307: England
A308: Active (150+ mins per week) | B308: =INDEX(Data!$E362:$Z362,Index!$B$1) -> 0.5968 | C308: =Data!Q362 -> 0.6184 | D308: =Data!Z362 -> 0.6094
A309: Fairly active (30-149 mins per week) | B309: =INDEX(Data!$E363:$Z363,Index!$B$1) -> 0.1317 | C309: =Data!Q363 -> 0.1089 | D309: =Data!Z363 -> 0.116
A310: Inactive (less than 30 mins per week) | B310: =INDEX(Data!$E364:$Z364,Index!$B$1) -> 0.2715 | C310: =Data!Q364 -> 0.2727 | D310: =Data!Z364 -> 0.2746
A320: Percentage change in activity levels since previous year - aged 16+
A321: Source: Sport England
A322: =Data!E365 -> May 2020-2021 | B322: =Index!C1 -> Ashford | C322: Kent | D322: England
A323: Active (150+ mins per week) | B323: =INDEX(Data!$E366:$Z366,Index!$B$1) -> 0.0242 | C323: =Data!Q366 -> -0.0254 | D323: =Data!Z366 -> -0.0187
A324: Fairly active (30-149 mins per week) | B324: =INDEX(Data!$E367:$Z367,Index!$B$1) -> 0.0057 | C324: =Data!Q367 -> 0.0006 | D324: =Data!Z367 -> -0.0014
A325: Inactive (less than 30 mins per week) | B325: =INDEX(Data!$E368:$Z368,Index!$B$1) -> -0.0298 | C325: =Data!Q368 -> 0.0248 | D325: =Data!Z368 -> 0.0201
A338: Glossary
A340: Births & Deaths
A341: The number of births and deaths that occur in England and Wales are collated and presented in a data series called “Vital Statistics” by the Office for National Statistics (ONS).
A342: Source: Office for National Statistics, Vital Statistic
A344: Deaths by Cause
A345: Source: Office for National Statistics - Vital Statistics - Mortality statistics
A347: Life Expectancy
A348: Life expectancy is the estimated number of years a person would be expected to survive if he or she continued to experience the area’s mortality rate at that time throughout
A349: the rest of their life. The figures reflect mortality of those living in an area at that point in time rather than those born in the area.
A350: Source: Office for National Statistics, Vital Statistics
A352: Population Registered With a GP
A353: Source: Kent Primary Care Agency
A355: General Health
A356: General health is a self-assessment of a person’s general state of health. People were asked to assess whether their health was very good, good, fair, bad or very bad.
A357: This assessment is not based on a person's health over any specified period of time.
A358: Source: 2021 Census, The Office for National Statistics(ONS)
A359: Table: TS037
A361: Long-term health problem or disability
A362: A long-term health problem or disability that limits a person's day-to-day activities, and has lasted, or is expected to last, at least 12 months.
A363: This includes problems that are related to old age. People were asked to assess whether their daily activities were limited a lot or a little by such a health problem,
A364: or whether their daily activities were not limited at all.
A365: Source: 2011 Census, The Office for National Statistics(ONS)
A366: Table: CT0224
A368: Disability Benefits Claimants
A369: This data gives a count of the number of people claiming the disability related benefits Disability Living Allowance (DLA), Personal Inependence Payments (PIP)
A370: and Attendance Allowance (AA).
A371: Data is at November each year
A372: Source: Department for Work & Pensions Longitudinal Study
A374: Disability Benefits Claimants by Health Condition
... 27 more rows

Sheet Deprivation
A1: Deprivation
A2: Includes information from the Index of Multiple Deprivation, benefits claimants, worklessness, unemployment, tax credit recipients, children in poverty and recorded crime.
N3: =Profile!E14 -> Version date: 4 February 2025
A4: Provisional release date for an update to the 2019 IoD is 2025 | G4: Select geography: | K4: Select topic:
A6: District profile for | B6: =Index!C1 -> Ashford
A7: ="Index of Multiple Deprivation (2019 IMD) - "&B6 -> Index of Multiple Deprivation (2019 IMD) - Ashford
A8: Source: Ministry of Housing, Communities & Local Government (MHCLG)
A9: =IF(INDEX(Data!E373:Z373,Index!B1)="n.a.","",INDEX(Data!E373:Z373,Index!B1)&" of the "&INDEX(Data!E374:Z374,Index!B1)&" LSOAs in "&B6&" are within the top 10% most deprived areas in England") -> 1 of the 78 LSOAs in Ashford are within the top 10% most deprived areas in England
A11: Kent rank* | B11: =INDEX(Data!E371:Z371,Index!$B$1) -> 7
A12: National rank** | B12: =INDEX(Data!E372:Z372,Index!$B$1) -> 152
A13: Average Score | B13: =INDEX(Data!E370:Z370,Index!$B$1) -> 18.546
A15: 1=lowest rank - most deprived
A16: *Ranked out of 12 local authorities in KCC area
A17: **Ranked out of 317 local authorities in England
A34: Benefits Claimants
A35: Source: DWP Stat Xplore
A36: =Data!E375 -> Nov 2023 | B36: =Index!K6 -> Ashford | C36: Kent | D36: England & Wales
B37: Number | C37: Number | D37: Number
A38: Income Support | B38: =INDEX(Data!E376:Z376,Index!$B$1) -> 286 | C38: =Data!Q376 -> 3137 | D38: =Data!Z376 -> 119152
A39: Jobseekers Allowance | B39: =INDEX(Data!E377:Z377,Index!$B$1) -> 123 | C39: =Data!Q377 -> 1808 | D39: =Data!Z377 -> 79980 | J39: =A34&" - "&A36 -> Benefits Claimants - Nov 2023
A40: Incapacity benefits | B40: =INDEX(Data!E378:Z378,Index!$B$1) -> 52 | C40: =Data!Q378 -> 678 | D40: =Data!Z378 -> 25504
A41: Employment Support Allowance | B41: =INDEX(Data!E379:Z379,Index!$B$1) -> 2380 | C41: =Data!Q379 -> 30330 | D41: =Data!Z379 -> 1375896
A42: Pension Credits | B42: =INDEX(Data!E380:Z380,Index!$B$1) -> 2595 | C42: =Data!Q380 -> 30289 | D42: =Data!Z380 -> 1242437
A43: State Pension | B43: =INDEX(Data!E381:Z381,Index!$B$1) -> 0 | C43: =Data!Q381 -> 0 | D43: =Data!Z381 -> 0
A44: Personal Independence Payment | B44: =INDEX(Data!E382:Z382,Index!$B$1) -> 6055 | C44: =Data!Q382 -> 79068 | D44: =Data!Z382 -> 3217061
A49: Universal Credit Claimants
A50: Universal Credit is a new benefit which is replacing: Jobseekers Allowance. Income Support, ESA,
A51: Child Tax Credits, Working Tax Credits and Housing Benefit
A52: Source: DWP Stat Xplore
B53: =Index!K6 -> Ashford | D53: Kent | F53: England & Wales
A54: =Data!E375 -> Nov 2023 | B54: Number | C54: % of 16-64 | D54: Number | E54: % of 16-64 | F54: Number | G54: % of 16-64
A55: Total Universal Credit Claimants | B55: =INDEX(Data!E383:Z383,Index!$B$1) -> 11405 | C55: =INDEX(Data!E393:Z393,Index!$B$1) -> 0.1388077504 | D55: =Data!Q383 -> 139660 | E55: =Data!Q393 -> 0.1451471426 | F55: =Data!Z383 -> 5714462 | G55: =Data!Z393 -> 0.1511369638
I56: ="People aged 16-64 claiming Universal Credit - "&A54 -> People aged 16-64 claiming Universal Credit - Nov 2023
B57: =Index!K6 -> Ashford | D57: Kent | F57: England & Wales
A58: =Data!E375 -> Nov 2023 | B58: Number | C58: % of claimants | D58: Number | E58: % of claimants | F58: Number | G58: % of claimants
A59: claimants in employment | B59: =INDEX(Data!E384:Z384,Index!$B$1) -> 4650 | C59: =INDEX(Data!E394:Z394,Index!$B$1) -> 0.4077159141 | D59: =Data!Q384 -> 54269 | E59: =Data!Q394 -> 0.3885794071 | F59: =Data!Z384 -> 2224149 | G59: =Data!Z394 -> 0.3892140677 | K59: =B53 -> Ashford | L59: =D53 -> Kent | M59: =F53 -> England & Wales
A60: claimants not in employment | B60: =INDEX(Data!E385:Z385,Index!$B$1) -> 6755 | C60: =INDEX(Data!E395:Z395,Index!$B$1) -> 0.5922840859 | D60: =Data!Q385 -> 85397 | E60: =Data!Q395 -> 0.6114635543 | F60: =Data!Z385 -> 3490314 | G60: =Data!Z395 -> 0.6107861072 | K60: =B59 -> 4650 | L60: =D59 -> 54269 | M60: =F59 -> 2224149
K61: =B60 -> 6755 | L61: =D60 -> 85397 | M61: =F60 -> 3490314
A62: Note: Rates are calculated as a proportion of the population aged 16-64
A63: Figures may not sum due to rounding at source
A69: Lone parents claiming Income Support
A70: Source: DWP Longitudinal Study
B71: =Index!K6 -> Ashford | D71: Kent | F71: England & Wales
A72: =Data!E375 -> Nov 2023 | B72: Number | C72: % | D72: Number | E72: % | F72: Number | G72: %
A73: Total | B73: =INDEX(Data!E410:Z410,Index!$B$1) -> 148 | C73: =INDEX(Data!E413:Z413,Index!$B$1) -> 0.001997139233 | D73: =Data!Q410 -> 1461 | E73: =Data!Q413 -> 0.001688461027 | F73: =Data!Z410 -> 50490 | G73: =Data!Z413 -> 0.001475349048
A74: Males | B74: =INDEX(Data!E411:Z411,Index!$B$1) -> - | C74: =INDEX(Data!E414:Z414,Index!$B$1) -> 0 | D74: =Data!Q411 -> 25 | E74: =Data!Q414 -> 5.907707431e-05 | F74: =Data!Z411 -> 1064 | G74: =Data!Z414 -> 6.305130634e-05
A75: Females | B75: =INDEX(Data!E412:Z412,Index!$B$1) -> 144 | C75: =INDEX(Data!E415:Z415,Index!$B$1) -> 0.003782704634 | D75: =Data!Q412 -> 1429 | E75: =Data!Q415 -> 0.003232234585 | F75: =Data!Z412 -> 49422 | G75: =Data!Z415 -> 0.002848979528 | J75: =A69&" - "&A72 -> Lone parents claiming Income Support - Nov 2023
A77: Percentages are calculated as a proportion of males, females or total population
A78: aged 16-59
A88: ="Children under 16 in Low Income Families - "&Data!E416 -> Children under 16 in Low Income Families - 2022-23
A89: Source: DWP
A90: Absolute low Income | B90: =Index!$L$6 -> Ashford | C90: Kent | D90: England
A91: Number | B91: =INDEX(Data!E417:Z417,Index!$B$1) -> 3405 | C91: =Data!Q417 -> 38706 | D91: =Data!Z417 -> 1645067
A92: Percent | B92: =INDEX(Data!E418:Z418,Index!$B$1) -> 0.1275424205 | C92: =Data!Q418 -> 0.1269261417 | D92: =Data!Z418 -> 0.1555571841
A93: Aged 0-4 | B93: =INDEX(Data!E419:Z419,Index!$B$1) -> 1039 | C93: =Data!Q419 -> 11526 | D93: =Data!Z419 -> 463168
A94: Aged 5-10 | B94: =INDEX(Data!E420:Z420,Index!$B$1) -> 1181 | C94: =Data!Q420 -> 13808 | D94: =Data!Z420 -> 602874
A95: Aged 11-15 | B95: =INDEX(Data!E421:Z421,Index!$B$1) -> 1184 | C95: =Data!Q421 -> 13375 | D95: =Data!Z421 -> 579026
A98: Relative Low Income | B98: =Index!$L$6 -> Ashford | C98: KCC Area | D98: England
A99: Number | B99: =INDEX(Data!E423:Z423,Index!$B$1) -> 4183 | C99: =Data!Q423 -> 47273 | D99: =Data!Z423 -> 2091956
A100: Percent | B100: =INDEX(Data!E424:Z424,Index!$B$1) -> 0.1566842716 | C100: =Data!Q424 -> 0.1550193639 | D100: =Data!Z424 -> 0.1978149125
A101: Aged 0-4 | B101: =INDEX(Data!E425:Z425,Index!$B$1) -> 1204 | C101: =Data!Q425 -> 13356 | D101: =Data!Z425 -> 571046
A102: Aged 5-10 | B102: =INDEX(Data!E426:Z426,Index!$B$1) -> 1511 | C102: =Data!Q426 -> 17273 | D102: =Data!Z426 -> 779220
A103: Aged 11-15 | B103: =INDEX(Data!E427:Z427,Index!$B$1) -> 1473 | C103: =Data!Q427 -> 16647 | D103: =Data!Z427 -> 741692
A107: ="Road Traffic Collisions - "&Data!E428&" - "&B6 -> Road Traffic Collisions - 2023 - Ashford
A108: Source: Kent Highways Services
B109: =B6 -> Ashford | C109: Kent
A110: Fatal | B110: =IF(ISERROR((INDEX(Data!E429:V429,Index!$B$1))),"n.a.",(INDEX(Data!E429:V429,Index!$B$1))) -> 6 | C110: =Data!Q429 -> 37
A111: Serious | B111: =IF(ISERROR((INDEX(Data!E430:V430,Index!$B$1))),"n.a.",(INDEX(Data!E430:V430,Index!$B$1))) -> 75 | C111: =Data!Q430 -> 665
A112: Slight | B112: =IF(ISERROR((INDEX(Data!E431:V431,Index!$B$1))),"n.a.",(INDEX(Data!E431:V431,Index!$B$1))) -> 222 | C112: =Data!Q431 -> 2623
A113: Total | B113: =IF(ISERROR((INDEX(Data!E432:V432,Index!$B$1))),"n.a.",(INDEX(Data!E432:V432,Index!$B$1))) -> 303 | C113: =Data!Q432 -> 3325
A116: ="Road Traffic Casualties - "&Data!E428&" - "&B6 -> Road Traffic Casualties - 2023 - Ashford
A117: Source: Kent Highways Services
B118: Total | C118: Aged under 16 | D118: Aged 16 and over
A119: Fatal | B119: =IF(ISERROR((INDEX(Data!$E433:$V433,Index!$B$1))),"n.a.",(INDEX(Data!$E433:$V433,Index!$B$1))) -> 7 | C119: =IF(ISERROR((INDEX(Data!$E437:$V437,Index!$B$1))),"n.a.",(INDEX(Data!$E437:$V437,Index!$B$1))) -> 1 | D119: =IF(ISERROR((INDEX(Data!$E441:$V441,Index!$B$1))),"n.a.",(INDEX(Data!$E441:$V441,Index!$B$1))) -> 6
A120: Serious | B120: =IF(ISERROR((INDEX(Data!$E434:$V434,Index!$B$1))),"n.a.",(INDEX(Data!$E434:$V434,Index!$B$1))) -> 83 | C120: =IF(ISERROR((INDEX(Data!$E438:$V438,Index!$B$1))),"n.a.",(INDEX(Data!$E438:$V438,Index!$B$1))) -> 10 | D120: =IF(ISERROR((INDEX(Data!$E442:$V442,Index!$B$1))),"n.a.",(INDEX(Data!$E442:$V442,Index!$B$1))) -> 73
A121: Slight | B121: =IF(ISERROR((INDEX(Data!$E435:$V435,Index!$B$1))),"n.a.",(INDEX(Data!$E435:$V435,Index!$B$1))) -> 351 | C121: =IF(ISERROR((INDEX(Data!$E439:$V439,Index!$B$1))),"n.a.",(INDEX(Data!$E439:$V439,Index!$B$1))) -> 23 | D121: =IF(ISERROR((INDEX(Data!$E443:$V443,Index!$B$1))),"n.a.",(INDEX(Data!$E443:$V443,Index!$B$1))) -> 328
A122: Total | B122: =IF(ISERROR((INDEX(Data!$E436:$V436,Index!$B$1))),"n.a.",(INDEX(Data!$E436:$V436,Index!$B$1))) -> 441 | C122: =IF(ISERROR((INDEX(Data!$E440:$V440,Index!$B$1))),"n.a.",(INDEX(Data!$E440:$V440,Index!$B$1))) -> 34 | D122: =IF(ISERROR((INDEX(Data!$E444:$V444,Index!$B$1))),"n.a.",(INDEX(Data!$E444:$V444,Index!$B$1))) -> 407
A128: ="Road traffic casualties type by road user type - "&Data!E428&" - "&B6 -> Road traffic casualties type by road user type - 2023 - Ashford
A129: Source: Kent Highways Services
B130: =B6 -> Ashford | C130: Kent
A131: Pedestrians | B131: =IF(ISERROR((INDEX(Data!$E445:$V445,Index!$B$1))),"n.a.",(INDEX(Data!$E445:$V445,Index!$B$1))) -> 27 | C131: =Data!Q445 -> 503
A132: Cyclists | B132: =IF(ISERROR((INDEX(Data!$E446:$V446,Index!$B$1))),"n.a.",(INDEX(Data!$E446:$V446,Index!$B$1))) -> 21 | C132: =Data!Q446 -> 269
A133: Powered 2 wheelers | B133: =IF(ISERROR((INDEX(Data!$E447:$V447,Index!$B$1))),"n.a.",(INDEX(Data!$E447:$V447,Index!$B$1))) -> 32 | C133: =Data!Q447 -> 441
A134: Car users | B134: =IF(ISERROR((INDEX(Data!$E448:$V448,Index!$B$1))),"n.a.",(INDEX(Data!$E448:$V448,Index!$B$1))) -> 329 | C134: =Data!Q448 -> 2966
A135: Others | B135: =IF(ISERROR((INDEX(Data!$E449:$V449,Index!$B$1))),"n.a.",(INDEX(Data!$E449:$V449,Index!$B$1))) -> 32 | C135: =Data!Q449 -> 319
A136: Child casualties <16 | B136: =IF(ISERROR((INDEX(Data!$E450:$V450,Index!$B$1))),"n.a.",(INDEX(Data!$E450:$V450,Index!$B$1))) -> 37 | C136: =Data!Q450 -> 402
A137: 17 - 24 car drivers | B137: =IF(ISERROR((INDEX(Data!$E451:$V451,Index!$B$1))),"n.a.",(INDEX(Data!$E451:$V451,Index!$B$1))) -> 51 | C137: =Data!Q451 -> 377
A138: >=65 Road users | B138: =IF(ISERROR((INDEX(Data!$E452:$V452,Index!$B$1))),"n.a.",(INDEX(Data!$E452:$V452,Index!$B$1))) -> 50 | C138: =Data!Q452 -> 509
A139: Total | B139: =IF(ISERROR((INDEX(Data!$E436:$V436,Index!$B$1))),"n.a.",(INDEX(Data!$E436:$V436,Index!$B$1))) -> 441 | C139: =Data!Q436 -> 4498
A145: ="Police recorded crimes per 1,000 population - "&Data!E453 -> Police recorded crimes per 1,000 population - 2023
A146: Source: Home Office
A147: Dartford and Gravesham figures are combined
B148: =B6 -> Ashford | C148: Kent | G148: =A145&" - "&B6 -> Police recorded crimes per 1,000 population - 2023 - Ashford
A149: Criminal damage and arson | B149: =INDEX(Data!E454:Z454,Index!$B$1) -> 9.977140329 | C149: =Data!Q454 -> 10.26116768
A150: Drug offences | B150: =INDEX(Data!E455:Z455,Index!$B$1) -> 1.850895952 | C150: =Data!Q455 -> 2.806945307
A151: Miscellaneous crimes | B151: =INDEX(Data!E456:Z456,Index!$B$1) -> 2.418700686 | C151: =Data!Q456 -> 2.907372688
A152: Possession of weapons offences | B152: =INDEX(Data!E457:Z457,Index!$B$1) -> 0.759531008 | C152: =Data!Q457 -> 0.8429623316
A153: Public order offences | B153: =INDEX(Data!E458:Z458,Index!$B$1) -> 4.763660497 | C153: =Data!Q458 -> 5.549868158
A154: Robbery | B154: =INDEX(Data!E459:Z459,Index!$B$1) -> 0.420322985 | C154: =Data!Q459 -> 0.5234777249
A155: Sexual offences | B155: =INDEX(Data!E460:Z460,Index!$B$1) -> 2.780030971 | C155: =Data!Q460 -> 3.307826871
A156: Theft offences | B156: =INDEX(Data!E461:Z461,Index!$B$1) -> 23.50859081 | C156: =Data!Q461 -> 24.69069936
A157: Violence against the person | B157: =INDEX(Data!E462:Z462,Index!$B$1) -> 32.7483224 | C157: =Data!Q462 -> 36.89199851
A158: Total | B158: =INDEX(Data!E463:Z463,Index!$B$1) -> 79.22719563 | C158: =Data!Q463 -> 87.78231863
A165: Glossary
A167: Index of Multiple Deprivation, 2019
A168: The IoD2019 is made up of 38 indicators which are grouped into seven domains each of which reflects a different aspect of deprivation.
A169: The seven domains are combined to produce an overall Index of Multiple Deprivation (IMD2019) score.
A170: Source: Ministry of Housing, Communities & Local Government (MHCLG)
A172: Benefits Claimants, Worklessness, Lone Parents on Income Support
A173: This section looks at people who are claiming DWP benefits.
A174: Claimant rates are calculated as a proportion of the age group eligible to claim each individual benefit
A175: Income Support - can be claimed by those aged 16-59
A176: Jobseekers Allowance - can be claimed by people of working age (females aged 16-59, males aged 16-64)
A177: Incapacity Benefit or Employment and Support Allowance - can be claimed by people of working age (females aged 16-59, males aged 16-64)
A178: Pension Credit - can be claimed by those aged 60+
A179: State Pension - can be claimed by those of pensionable age (females aged 60+, males aged 65+)
A180: Note: State Pension Age is due to increase for for women to age 65 by 2018 and then to age 66 for both men and women by 2020
A181: Personal Independence Payments - can be claimed by people aged 16 and over who make a claim before their 65th birthday
A183: In addition to the individual benefit counts claimants can be grouped into statistical groupings.
A184: One of the possible groupings of benefits claimants which is used by Kent County Council is the out of work benefits group.
A185: This group includes people claiming Jobseekers Allowance, loneparents claiming Income Support, Incapacity Benefits claimants and others on income related benefits
A186: with the exception of carers, and is used as an indicator of worklessness.
A187: Data is as at November each year
A188: Source: Department for Work & Pensions Stat Xplore
A190: Children in Poverty
A191: The children in low-income families statistics, provide information on the number and proportion of children living in Relative and Absolute low income Before Housing Costs by local area across Great Britain
A192: The CiLIF measure looks at the number of children in families (not households), where the income is less than 60% of median income before housing costs in both absolute and relative terms
A193: Absolute low income is defined as a family in low income before housing costs in the reference year, in comparison with incomes in 2010/11
A194: Relative low income is defined as a family in low income before housing costs in the reference year
A195: Source: Department for Work & Pensions
A197: Looked After Children, Children subject to a Child Protection Plan
A198: Source: Kent County Council
A200: Road Traffic Injuries
A201: The data here refers only to the roads that are the responsibility of Kent County Council.
A202: Crashes are categorised by severity:
A203: Fatal - a crash resulting in a death.
A204: Serious - detention in hospital, includes paralysis, fractures and severe lacerations.
A205: Slight - includes whiplash, sprains and minor lacerations.
A206: Source: Kent Highways Services
A208: Recorded Crimes
A209: This shows the number of reported crimes per 1,000 population. Burglaries of dwellings are shown per 1,000 households.
A210: Source: Kent County Council Community Safety Team

Sheet Housing & households
A1: Housing & Households
A2: Includes information about housing types, amenities, tenure, household composition, car ownership, housing stock, housing completions and council tax bands.
N3: =Profile!E14 -> Version date: 4 February 2025
G4: Select geography: | K4: Select topic:
A6: District profile for | B6: =Index!C1 -> Ashford
A8: Housing Tenure
A9: Source: 2021 Census - Table TS054 | H9: =B10 -> Ashford | I9: =C10 -> Kent | J9: =D10 -> England
A10: 2021 | B10: =Index!$L$6 -> Ashford | C10: Kent | D10: England | H10: =B12/B$11 -> 0.336524644 | I10: =C12/C$11 -> 0.3512206332 | J10: =D12/D$11 -> 0.3253398765
A11: All Households | B11: =INDEX(Census2021Data!D330:Y330,Index!$B$1) -> 53583 | C11: =Census2021Data!P330 -> 648393 | D11: =Census2021Data!Y330 -> 23436085 | H11: =B13/B$11 -> 0.3278091932 | I11: =C13/C$11 -> 0.3100804605 | J11: =D13/D$11 -> 0.2877772461
A12: Owned: Owned outright | B12: =INDEX(Census2021Data!D332:Y332,Index!$B$1) -> 18032 | C12: =Census2021Data!P332 -> 227729 | D12: =Census2021Data!Y332 -> 7624693 | H12: 0.01711363679 | I12: 0.01347022562 | J12: 0.0100678505
A13: Owned: Owned with a mortgage or loan | B13: =INDEX(Census2021Data!D333:Y333,Index!$B$1) -> 17565 | C13: =Census2021Data!P333 -> 201054 | D13: =Census2021Data!Y333 -> 6744372 | H13: 0.0886475188 | I13: 0.05518566672 | J13: 0.08299816288
A14: Shared ownership (part owned and part rented) | B14: =INDEX(Census2021Data!D334:Y334,Index!$B$1) -> 917 | C14: =Census2021Data!P334 -> 8734 | D14: =Census2021Data!Y334 -> 235951 | H14: 0.05134091036 | I14: 0.08033245269 | J14: 0.08792044405
A15: Social rented: Rented from council (Local Authority) | B15: =INDEX(Census2021Data!D336:Y336,Index!$B$1) -> 4750 | C15: =Census2021Data!P336 -> 35782 | D15: =Census2021Data!Y336 -> 1945152 | H15: 0.1537054663 | I15: 0.1674031027 | J15: 0.1823550734
A16: Social rented: Other | B16: =INDEX(Census2021Data!D337:Y337,Index!$B$1) -> 2751 | C16: =Census2021Data!P337 -> 52087 | D16: =Census2021Data!Y337 -> 2060511 | H16: 0.02357090868 | I16: 0.02152089859 | J16: 0.02223920932
A17: Private rented: Private landlord or letting agency | B17: =INDEX(Census2021Data!D339:Y339,Index!$B$1) -> 8236 | C17: =Census2021Data!P339 -> 108543 | D17: =Census2021Data!Y339 -> 4273689 | H17: 0.001287721852 | I17: 0.000786560003 | J17: 0.001302137281
A18: Private rented: Other | B18: =INDEX(Census2021Data!D340:Y340,Index!$B$1) -> 1263 | C18: =Census2021Data!P340 -> 13954 | D18: =Census2021Data!Y340 -> 521200
A19: Living rent free | B19: =INDEX(Census2021Data!D341:Y341,Index!$B$1) -> 69 | C19: =Census2021Data!P341 -> 510 | D19: =Census2021Data!Y341 -> 30517
A24: =Census2021Data!A342 -> Household size - Persons
A25: Source: 2021 Census - Table TS017
A26: 2021 | B26: =Index!$L$6 -> Ashford | C26: Kent | D26: England
A27: 1 person | B27: =INDEX(Census2021Data!D344:Y344,Index!$B$1) -> 13861 | C27: =Census2021Data!P344 -> 183814 | D27: =Census2021Data!Y344 -> 7052232
A28: 2 people | B28: =INDEX(Census2021Data!D345:Y345,Index!$B$1) -> 18895 | C28: =Census2021Data!P345 -> 225024 | D28: =Census2021Data!Y345 -> 7978497
A29: 3 people | B29: =INDEX(Census2021Data!D346:Y346,Index!$B$1) -> 9068 | C29: =Census2021Data!P346 -> 106015 | D29: =Census2021Data!Y346 -> 3742887 | J29: =B26 -> Ashford | K29: =C26 -> Kent | L29: =D26 -> England
A30: 4 people | B30: =INDEX(Census2021Data!D347:Y347,Index!$B$1) -> 7794 | C30: =Census2021Data!P347 -> 90015 | D30: =Census2021Data!Y347 -> 3024796 | J30: =B27/B$11 -> 0.2586827912 | K30: =C27/C$11 -> 0.2834916478 | L30: =D27/D$11 -> 0.3009133991
A31: 5 people | B31: =INDEX(Census2021Data!D348:Y348,Index!$B$1) -> 2670 | C31: =Census2021Data!P348 -> 30313 | D31: =Census2021Data!Y348 -> 1060450 | J31: =B28/B$11 -> 0.3526304985 | K31: =C28/C$11 -> 0.3470487806 | L31: =D28/D$11 -> 0.3404364253
A32: 6 people | B32: =INDEX(Census2021Data!D349:Y349,Index!$B$1) -> 886 | C32: =Census2021Data!P349 -> 9055 | D32: =Census2021Data!Y349 -> 358795 | J32: 0.1692327791 | K32: 0.1635042328 | L32: 0.159706154
A33: 7 people | B33: =INDEX(Census2021Data!D350:Y350,Index!$B$1) -> 275 | C33: =Census2021Data!P350 -> 2718 | D33: =Census2021Data!Y350 -> 126018 | J33: 0.1454565814 | K33: 0.1388278405 | L33: 0.1290657548
A34: 8 people or more | B34: =INDEX(Census2021Data!D351:Y351,Index!$B$1) -> 133 | C34: =Census2021Data!P351 -> 1439 | D34: =Census2021Data!Y351 -> 92415 | J34: 0.04982923688 | K34: 0.04675096739 | L34: 0.04524859848
J35: 0.01653509509 | K35: 0.01396529574 | L35: 0.01530951095
J36: 0.005132224773 | K36: 0.004191902133 | L36: 0.005377092633
J37: 0.002482130526 | K37: 0.002219333028 | L37: 0.003943278069
A42: Average household size
A43: Source: 2021 Census - Table TS001 & TS046
A44: 2021 | B44: =Index!$L$6 -> Ashford | C44: Kent | D44: England
A45: Average household size (persons) | B45: =INDEX(Census2021Data!D352:Y352,Index!B1) -> 2.459380774 | C45: =Census2021Data!P352 -> 2.389735855 | D45: =Census2021Data!Y352 -> 2.368326536
A48: Occupancy Rating
A49: Source: 2021 Census - Table TS053 & TS052
A50: 2021 | B50: =Index!$L$6 -> Ashford | C50: % of all households
A51: Occupancy rating (rooms) of -1 or less | B51: =INDEX(Census2021Data!D356:Y356,Index!$B$1) -> 2461 | C51: =B51/$B$11 -> 0.04592874606
A52: Occupancy rating (bedrooms) of -1 or less | B52: =INDEX(Census2021Data!D357:Y357,Index!$B$1) -> 1821 | C52: =B52/$B$11 -> 0.03398465931
A54: The occupancy rating provides a measure of under-occupancy and overcrowding.
A55: For example a value of -1 implies that there is one room too few and that
A56: there is overcrowding in the household.
A57: There are two measures of occupancy rating, one based on the number of rooms
A58: in a household's accommodation, and one based on the number of bedrooms.
A59: The occupancy rating assumes that every household, including one person
A60: households, requires a minimum of two common rooms (excluding bathrooms).
A69: Household amenities
A70: Source: 2021 Census - Tables TS046 & TS045 | H70: =B71 -> Ashford | I70: =C71 -> Kent | J70: =D71 -> England
A71: 2021 | B71: =Index!$L$6 -> Ashford | C71: Kent | D71: England | H71: =B72/B$11 -> 1 | I71: 1 | J71: 1
A72: All Households | B72: =INDEX(Census2021Data!D359:Y359,Index!$B$1) -> 53583 | C72: =Census2021Data!P359 -> 648393 | D72: =Census2021Data!Y359 -> 23436085 | H72: 0.01164548458 | I72: 0.01308774154 | J72: 0.01500399917
A73: Does not have central heating | B73: =INDEX(Census2021Data!D360:Y360,Index!$B$1) -> 624 | C73: =Census2021Data!P360 -> 8486 | D73: =Census2021Data!Y360 -> 351635 | H73: 0.9883545154 | I73: 0.9869122585 | J73: 0.9849960008
A74: Does have central heating | B74: =INDEX(Census2021Data!D361:Y361,Index!$B$1) -> 52959 | C74: =Census2021Data!P361 -> 639907 | D74: =Census2021Data!Y361 -> 23084450 | H74: =B75/B$11 -> 0.1438142695 | I74: =C75/C$11 -> 0.1747720904 | J74: =D75/D$11 -> 0.2353677246
A75: No cars or vans in household | B75: =INDEX(Census2021Data!D362:Y362,Index!$B$1) -> 7706 | C75: =Census2021Data!P362 -> 113321 | D75: =Census2021Data!Y362 -> 5516098 | H75: =#REF!/B$11 ->  | I75: =#REF!/C$11 ->  | J75: =#REF!/D$11 -> 
H83: =#REF!/B$11 ->  | I83: =#REF!/C$11 ->  | J83: =#REF!/D$11 -> 
A89: Houshold Composition
A90: Source: 2021 Census - Table TS003
A91: 2021 | B91: =Index!$L$6 -> Ashford | C91: Kent | D91: England | I91: =B91 -> Ashford | J91: =C91 -> Kent | K91: =D91 -> England
A92: Total Households | B92: =INDEX(Census2021Data!D364:Y364,Index!$B$1) -> 53586 | C92: =Census2021Data!P364 -> 648393 | D92: =Census2021Data!Y364 -> 23436086 | H92: =A93 -> One person Households | I92: =B93/B$92 -> 0.2586869705 | J92: =C93/C$92 -> 0.2834916478 | K92: =D93/D$92 -> 0.3009132583
A93: One person Households | B93: =INDEX(Census2021Data!D365:Y365,Index!$B$1) -> 13862 | C93: =Census2021Data!P365 -> 183814 | D93: =Census2021Data!Y365 -> 7052229 | H93: =A94 -> Aged 66 and over | I93: 0.1235024073 | J93: 0.1366193034 | K93: 0.1280840581
A94: Aged 66 and over | B94: =INDEX(Census2021Data!D366:Y366,Index!$B$1) -> 6618 | C94: =Census2021Data!P366 -> 88583 | D94: =Census2021Data!Y366 -> 3001789 | H94: Other | I94: 0.1351845631 | J94: 0.1468723444 | K94: 0.1728292002
A95: Other | B95: =INDEX(Census2021Data!D367:Y367,Index!$B$1) -> 7244 | C95: =Census2021Data!P367 -> 95231 | D95: =Census2021Data!Y367 -> 4050440 | H95: One Family Only | I95: 0.6776583436 | J95: 0.6544071265 | K95: 0.6299227183
A96: One Family Only | B96: =INDEX(Census2021Data!D368:Y368,Index!$B$1) -> 36313 | C96: =Census2021Data!P368 -> 424313 | D96: =Census2021Data!Y368 -> 14762923 | H96: All aged 66 and over | I96: 0.1081252566 | J96: 0.1061686354 | K96: 0.09153738384
A97: All aged 66 and over | B97: =INDEX(Census2021Data!D369:Y369,Index!$B$1) -> 5794 | C97: =Census2021Data!P369 -> 68839 | D97: =Census2021Data!Y369 -> 2145278 | H97: Total Married and civil partnership couples | I97: 0.3373642369 | J97: 0.3180632734 | K97: 0.304222898
A98: Total Married and civil partnership couples | B98: =INDEX(Census2021Data!D370:Y370,Index!$B$1) -> 18078 | C98: =Census2021Data!P370 -> 206230 | D98: =Census2021Data!Y370 -> 7129794 | H98: Married or civil partnership couple: No children | I98: 0.1147501213 | J98: 0.1080378721 | K98: 0.1041219084
A99: Married or civil partnership couple: No children | B99: =INDEX(Census2021Data!D371:Y371,Index!$B$1) -> 6149 | C99: =Census2021Data!P371 -> 70051 | D99: =Census2021Data!Y371 -> 2440210 | H99: Married or civil partnership couple: Dependent children | I99: 0.1598178629 | J99: 0.1510179783 | K99: 0.1440258412
A100: Married or civil partnership couple: Dependent children | B100: =INDEX(Census2021Data!D372:Y372,Index!$B$1) -> 8564 | C100: =Census2021Data!P372 -> 97919 | D100: =Census2021Data!Y372 -> 3375402 | H100: Married or civil partnership couple: All children non-dependent | I100: 0.06279625275 | J100: 0.05900742297 | K100: 0.05607514838
A101: Married or civil partnership couple: All children non-dependent | B101: =INDEX(Census2021Data!D373:Y373,Index!$B$1) -> 3365 | C101: =Census2021Data!P373 -> 38260 | D101: =Census2021Data!Y373 -> 1314182 | H101: Total cohabiting couple families | I101: 0.122196096 | J101: 0.1193458288 | K101: 0.1155900776
A102: Total cohabiting couple families | B102: =INDEX(Census2021Data!D374:Y374,Index!$B$1) -> 6548 | C102: =Census2021Data!P374 -> 77383 | D102: =Census2021Data!Y374 -> 2708979 | H102: Cohabiting couple: No children | I102: 0.06063150823 | J102: 0.06026283442 | K102: 0.06344749716
A103: Cohabiting couple: No children | B103: =INDEX(Census2021Data!D375:Y375,Index!$B$1) -> 3249 | C103: =Census2021Data!P375 -> 39074 | D103: =Census2021Data!Y375 -> 1486961 | H103: Cohabiting couple: Dependent children | I103: 0.05335348785 | J103: 0.0508534176 | K103: 0.04493075337
A104: Cohabiting couple: Dependent children | B104: =INDEX(Census2021Data!D376:Y376,Index!$B$1) -> 2859 | C104: =Census2021Data!P376 -> 32973 | D104: =Census2021Data!Y376 -> 1053001 | H104: Cohabiting couple: All children non-dependent | I104: 0.008211099914 | J104: 0.008229576815 | K104: 0.007211827094
A105: Cohabiting couple: All children non-dependent | B105: =INDEX(Census2021Data!D377:Y377,Index!$B$1) -> 440 | C105: =Census2021Data!P377 -> 5336 | D105: =Census2021Data!Y377 -> 169017 | H105: Total lone parent families | I105: 0.1050460941 | J105: 0.1054160054 | K105: 0.110722456
A106: Total lone parent families | B106: =INDEX(Census2021Data!D378:Y378,Index!$B$1) -> 5629 | C106: =Census2021Data!P378 -> 68351 | D106: =Census2021Data!Y378 -> 2594901 | H106: Lone parent: Dependent children | I106: 0.06837606838 | J106: 0.0657409935 | K106: 0.06899940545
A107: Lone parent: Dependent children | B107: =INDEX(Census2021Data!D379:Y379,Index!$B$1) -> 3664 | C107: =Census2021Data!P379 -> 42626 | D107: =Census2021Data!Y379 -> 1617076 | H107: Lone parent: All children non-dependent | I107: 0.03667002575 | J107: 0.03967501191 | K107: 0.04172305051
A108: Lone parent: All children non-dependent | B108: =INDEX(Census2021Data!D380:Y380,Index!$B$1) -> 1965 | C108: =Census2021Data!P380 -> 25725 | D108: =Census2021Data!Y380 -> 977825 | H108: Other one family households | I108: 0.004926659948 | J108: 0.00541338355 | K108: 0.007849902923
A109: Other one family households | B109: =INDEX(Census2021Data!D381:Y381,Index!$B$1) -> 264 | C109: =Census2021Data!P381 -> 3510 | D109: =Census2021Data!Y381 -> 183971 | H109: Other Household Types | I109: 0.06365468593 | J109: 0.06210122565 | K109: 0.06916402338
A110: Other Household Types | B110: =INDEX(Census2021Data!D382:Y382,Index!$B$1) -> 3411 | C110: =Census2021Data!P382 -> 40266 | D110: =Census2021Data!Y382 -> 1620934 | H110: With dependent children | I110: 0.02754450789 | J110: 0.02626185045 | K110: 0.02689612933
A111: With dependent children | B111: =INDEX(Census2021Data!D383:Y383,Index!$B$1) -> 1476 | C111: =Census2021Data!P383 -> 17028 | D111: =Census2021Data!Y383 -> 630340 | H111: Other, including all full-time students and all aged 66 years and over | I111: 0.03611017803 | J111: 0.03583937519 | K111: 0.04226789405
A112: Other, including all full-time students and all aged 66 years and over | B112: =INDEX(Census2021Data!D384:Y384,Index!$B$1) -> 1935 | C112: =Census2021Data!P384 -> 23238 | D112: =Census2021Data!Y384 -> 990594
A119: Council tax bands
A120: Source: Office for National Statistics | I120: =B121 -> Ashford | J120: =C121 -> Kent | K120: =D121 -> South East
A121: =Data!E493 -> 2024 | B121: =Index!L6 -> Ashford | C121: Kent | D121: South East | I121: =B122/B$130 -> 0.07376632186 | J121: 0.09948322233 | K121: 0.0884914069
A122: Band A <£40k | B122: =INDEX(Data!E494:Z494,Index!$B$1) -> 4350 | C122: =Data!Q494 -> 70650 | D122: =Data!Y494 -> 366350 | I122: 0.2352043412 | J122: 0.184660011 | K122: 0.1650333941
A123: Band B £40-52k | B123: =INDEX(Data!E495:Z495,Index!$B$1) -> 13870 | C123: =Data!Q495 -> 131140 | D123: =Data!Y495 -> 683230 | I123: 0.2306257419 | J123: 0.272160187 | K123: 0.2579910385
A124: Band C £52-68k | B124: =INDEX(Data!E496:Z496,Index!$B$1) -> 13600 | C124: =Data!Q496 -> 193280 | D124: =Data!Y496 -> 1068070 | I124: 0.1724605732 | J124: 0.2016841038 | K124: 0.2020193481
A125: Band D £68-88k | B125: =INDEX(Data!E497:Z497,Index!$B$1) -> 10170 | C125: =Data!Q497 -> 143230 | D125: =Data!Y497 -> 836350 | I125: 0.1202306257 | J125: 0.116282017 | K125: 0.1322407275
A126: Band E £88-120k | B126: =INDEX(Data!E498:Z498,Index!$B$1) -> 7090 | C126: =Data!Q498 -> 82580 | D126: =Data!Y498 -> 547470 | I126: 0.1041207394 | J126: 0.06829350719 | K126: 0.08078841532
A127: Band F £120-160k | B127: =INDEX(Data!E499:Z499,Index!$B$1) -> 6140 | C127: =Data!Q499 -> 48500 | D127: =Data!Y499 -> 334460 | I127: 0.060030524 | J127: 0.05202979568 | K127: 0.06377854805
A128: Band G £160-320k | B128: =INDEX(Data!E500:Z500,Index!$B$1) -> 3540 | C128: =Data!Q500 -> 36950 | D128: =Data!Y500 -> 264040 | I128: 0.003561132779 | J128: 0.005407156033 | K128: 0.009659536951
A129: Band H >£320k | B129: =INDEX(Data!E501:Z501,Index!$B$1) -> 210 | C129: =Data!Q501 -> 3840 | D129: =Data!Y501 -> 39990
A130: Total Dwellings | B130: =INDEX(Data!E502:Z502,Index!$B$1) -> 58970 | C130: =Data!Q502 -> 710170 | D130: =Data!Y502 -> 4139950
A137: =Data!B482 -> Average House Prices
A138: Source: The Land Registry
A139: =Data!E482 -> 2023 | B139: =B6 -> Ashford | C139: Kent | D139: South East
A140: Detached | B140: =INDEX(Data!E483:Z483,Index!$B$1) -> 594933 | C140: =Data!Q483 -> 664751 | D140: =Data!Y483 -> 736640
A141: Semi | B141: =INDEX(Data!E484:Z484,Index!$B$1) -> 358369 | C141: =Data!Q484 -> 401648 | D141: =Data!Y484 -> 441394
A142: Terrace | B142: =INDEX(Data!E485:Z485,Index!$B$1) -> 293989 | C142: =Data!Q485 -> 326906 | D142: =Data!Y485 -> 362116
A143: Flat/ Maisonette | B143: =INDEX(Data!E486:Z486,Index!$B$1) -> 181645 | C143: =Data!Q486 -> 223636 | D143: =Data!Y486 -> 242570
A144: All | B144: =INDEX(Data!E487:Z487,Index!$B$1) -> 400312 | C144: =Data!Q487 -> 408640 | D144: =Data!Y487 -> 455599
A160: Housing completions (Net)
A161: Source: Housing Information Audit (HIA) Kent Analytics, Kent County Council
A162: Year | B162: =B6 -> Ashford | C162: Kent
A163: =Data!C464 -> 2005/06 | B163: =INDEX(Data!E464:Z464,Index!$B$1) -> 590 | C163: =Data!Q464 -> 6205
A164: =Data!C465 -> 2006/07 | B164: =INDEX(Data!E465:Z465,Index!$B$1) -> 359 | C164: =Data!Q465 -> 6140
A165: =Data!C466 -> 2007/08 | B165: =INDEX(Data!E466:Z466,Index!$B$1) -> 566 | C165: =Data!Q466 -> 7414
A166: =Data!C467 -> 2008/09 | B166: =INDEX(Data!E467:Z467,Index!$B$1) -> 536 | C166: =Data!Q467 -> 6629
A167: =Data!C468 -> 2009/10 | B167: =INDEX(Data!E468:Z468,Index!$B$1) -> 501 | C167: =Data!Q468 -> 4087
A168: =Data!C469 -> 2010/11 | B168: =INDEX(Data!E469:Z469,Index!$B$1) -> 555 | C168: =Data!Q469 -> 4714
A169: =Data!C470 -> 2011/12 | B169: =INDEX(Data!E470:Z470,Index!$B$1) -> 633 | C169: =Data!Q470 -> 4728
A170: =Data!C471 -> 2012/13 | B170: =INDEX(Data!E471:Z471,Index!$B$1) -> 284 | C170: =Data!Q471 -> 3697
A171: =Data!C472 -> 2013/14 | B171: =INDEX(Data!E472:Z472,Index!$B$1) -> 137 | C171: =Data!Q472 -> 3649
A172: =Data!C473 -> 2014/15 | B172: =INDEX(Data!E473:Z473,Index!$B$1) -> 405 | C172: =Data!Q473 -> 4604
A173: =Data!C474 -> 2015/16 | B173: =INDEX(Data!E474:Z474,Index!$B$1) -> 1022 | C173: =Data!Q474 -> 6718
A174: =Data!C475 -> 2016/17 | B174: =INDEX(Data!E475:Z475,Index!$B$1) -> 696 | C174: =Data!Q475 -> 7158
A175: =Data!C476 -> 2017/18 | B175: =INDEX(Data!E476:Z476,Index!$B$1) -> 577 | C175: =Data!Q476 -> 7982
A176: =Data!C477 -> 2018/19 | B176: =INDEX(Data!E477:Z477,Index!$B$1) -> 880 | C176: =Data!Q477 -> 7377
A177: =Data!C478 -> 2019/20 | B177: =INDEX(Data!E478:Z478,Index!$B$1) -> 746 | C177: =Data!Q478 -> 6744
A178: =Data!C479 -> 2020/21 | B178: =INDEX(Data!E479:Z479,Index!$B$1) -> 1088 | C178: =Data!Q479 -> 7213
A179: =Data!C480 -> 2021/22 | B179: =INDEX(Data!E480:Z480,Index!$B$1) -> 627 | C179: =Data!Q480 -> 8303
A180: =Data!C481 -> 2022/23 | B180: =INDEX(Data!E481:Z481,Index!$B$1) -> 1018 | C180: =Data!Q481 -> 8179
A183: New Dwelling Completions based on Energy Performance Certificates issued
A184: Source: MHCLG
B185: =B6 -> Ashford
A186: =Data!C526 -> Q1 - 2024 | B186: =INDEX(Data!E526:Z526,Index!$B$1) -> 79
A187: =Data!C527 -> Q2 - 2024 | B187: =INDEX(Data!E527:Z527,Index!$B$1) -> 121
A188: =Data!C528 -> Q3 - 2024 | B188: =INDEX(Data!E528:Z528,Index!$B$1) -> 100
A189: =Data!C529 -> Q4 - 2024 | B189: =INDEX(Data!E529:Z529,Index!$B$1) -> 148
A190: September 2020/21 Total | B190: =INDEX(Data!E530:Z530,Index!$B$1) -> 448
A202: New Dwelling Energy Performance Certificates - 12 month rolling average
A204: Source: MHCLG
A205: Year to: | B205: =B6 -> Ashford
A206: =Data!C531 -> 2019-09-01 | B206: =INDEX(Data!E531:Z531,Index!$B$1) -> 779
A207: =Data!C532 -> 2019-12-01 | B207: =INDEX(Data!E532:Z532,Index!$B$1) -> 730
A208: =Data!C533 -> 2020-03-01 | B208: =INDEX(Data!E533:Z533,Index!$B$1) -> 719
A209: =Data!C534 -> 2020-06-01 | B209: =INDEX(Data!E534:Z534,Index!$B$1) -> 669
A210: =Data!C535 -> 2020-09-01 | B210: =INDEX(Data!E535:Z535,Index!$B$1) -> 807
A211: =Data!C536 -> 2020-12-01 | B211: =INDEX(Data!E536:Z536,Index!$B$1) -> 845
A212: =Data!C537 -> 2021-03-01 | B212: =INDEX(Data!E537:Z537,Index!$B$1) -> 944
A213: =Data!C538 -> 2021-06-01 | B213: =INDEX(Data!E538:Z538,Index!$B$1) -> 1129
A214: =Data!C539 -> 2021-09-01 | B214: =INDEX(Data!E539:Z539,Index!$B$1) -> 1044
A215: =Data!C540 -> 2021-12-01 | B215: =INDEX(Data!E540:Z540,Index!$B$1) -> 977
A216: =Data!C541 -> 2022-03-01 | B216: =INDEX(Data!E541:Z541,Index!$B$1) -> 886
A217: =Data!C542 -> 2022-06-01 | B217: =INDEX(Data!E542:Z542,Index!$B$1) -> 900
A218: =Data!C543 -> 2022-09-01 | B218: =INDEX(Data!E543:Z543,Index!$B$1) -> 782
A219: =Data!C544 -> 2022-12-01 | B219: =INDEX(Data!E544:Z544,Index!$B$1) -> 963
A220: =Data!C545 -> 2023-03-01 | B220: =INDEX(Data!E545:Z545,Index!$B$1) -> 1017
A221: =Data!C546 -> 2023-06-01 | B221: =INDEX(Data!E546:Z546,Index!$B$1) -> 902
A222: =Data!C547 -> 2023-09-01 | B222: =INDEX(Data!E547:Z547,Index!$B$1) -> 893
A223: =Data!C548 -> 2023-12-01 | B223: =INDEX(Data!E548:Z548,Index!$B$1) -> 777
A224: =Data!C549 -> 2024-03-01 | B224: =INDEX(Data!E549:Z549,Index!$B$1) -> 1323
A225: =Data!C550 -> 2024-06-01 | B225: =INDEX(Data!E550:Z550,Index!$B$1) -> 1230
A226: =Data!C551 -> 2024-09-01 | B226: =INDEX(Data!E551:Z551,Index!$B$1) -> 1199
A231: Total Rough Sleepers per 10,000 households
A232: Source: MHCLG
A233: =Data!E513 -> 2021 | B233: =B6 -> Ashford | C233: Kent | D233: England
A234: Total | B234: =INDEX(Data!E512:Z512,Index!B1) -> 1.407495448 | C234: =Data!S512 -> 1.825565057 | D234: =Data!Z512 -> 1.621408624
A237: Rough Sleeping
A238: Source: MHCLG
A239: Year | B239: =B6 -> Ashford
A240: =Data!C503 -> 2015 | B240: =INDEX(Data!E503:Z503,Index!$B$1) -> 5
A241: =Data!C504 -> 2016 | B241: =INDEX(Data!E504:Z504,Index!$B$1) -> 8
A242: =Data!C505 -> 2017 | B242: =INDEX(Data!E505:Z505,Index!$B$1) -> 11
A243: =Data!C506 -> 2018 | B243: =INDEX(Data!E506:Z506,Index!$B$1) -> 20
A244: =Data!C507 -> 2019 | B244: =INDEX(Data!E507:Z507,Index!$B$1) -> 25
A245: =Data!C508 -> 2020 | B245: =INDEX(Data!E508:Z508,Index!$B$1) -> 0
A246: =Data!C509 -> 2021 | B246: =INDEX(Data!E509:Z509,Index!$B$1) -> 0
A247: =Data!C510 -> 2022 | B247: =INDEX(Data!E510:Z510,Index!$B$1) -> 8
A248: =Data!C511 -> 2023 | B248: =INDEX(Data!E511:Z511,Index!$B$1) -> 8
A249: Count or estimates as at October/November
G251: ="Characteristics of rough sleepers in "&B6 -> Characteristics of rough sleepers in Ashford | J251: =A255 -> 2021
A253: Rough Sleepers - Characteristics
A254: Source: MHCLG | D254: % of all rough sleepers
A255: =Data!E513 -> 2021 | B255: =B6 -> Ashford | C255: Kent | D255: England
A256: Males | B256: =INDEX(Data!E515:Z515,Index!$B$1) -> n.a | C256: =Data!Q515 -> n.a | D256: =Data!Z515 -> 85.2
A257: Females | B257: =INDEX(Data!E516:Z516,Index!$B$1) -> n.a | C257: =Data!Q516 -> n.a | D257: =Data!Z516 -> 13.1
A258: UK nationals | B258: =INDEX(Data!E518:Z518,Index!$B$1) -> n.a | C258: =Data!Q518 -> n.a | D258: =Data!Z518 -> 66.8
A259: EU, non-UK nationals | B259: =INDEX(Data!E519:Z519,Index!$B$1) -> n.a | C259: =Data!Q519 -> n.a | D259: =Data!Z519 -> 20.5
A260: Non-EU nationals | B260: =INDEX(Data!E520:Z520,Index!$B$1) -> n.a | C260: =Data!Q520 -> n.a | D260: =Data!Z520 -> 4.5
A261: 18 - 25 | B261: =INDEX(Data!E523:Z523,Index!$B$1) -> n.a | C261: =Data!Q523 -> n.a | D261: =Data!Z523 -> 4.5
A262: Over 25 | B262: =INDEX(Data!E524:Z524,Index!$B$1) -> n.a | C262: =Data!Q524 -> n.a | D262: =Data!Z524 -> 86.5
G264: Source: MHCLG
A267: Households assessed as homeless - per 1,000 households
A268: Source: MHCLG
B269: =B6 -> Ashford | C269: Kent | D269: England
A270: =Data!C553 -> 2022-23 | B270: =INDEX(Data!E553:Z553,Index!$B$1) -> 5.489188761 | C270: =Data!Q553 -> 4.429596526 | D270: =Data!Z553 -> 6.557177934
A271: =Data!C554 -> 2023-24 | B271: =INDEX(Data!E554:Z554,Index!$B$1) -> 7.785346865 | C271: =Data!Q554 -> 4.962585741 | D271: =Data!Z554 -> 7.375760811
A283: Housholds in temporary accommodation - per 1,000 households
B284: =B6 -> Ashford | C284: Kent | D284: England
A285: =Data!C555 -> Q1 2022-23 | B285: =INDEX(Data!E555:Z555,Index!$B$1) -> 2.316588556 | C285: =Data!Q555 -> 2.861980125 | D285: =Data!Z555 -> 4.009041774
A286: =Data!C556 -> Q2 2022-23 | B286: =INDEX(Data!E556:Z556,Index!$B$1) -> 2.762086355 | C286: =Data!Q556 -> 3.051895473 | D286: =Data!Z556 -> 4.140815525
A287: =Data!C557 -> Q3 2022-23 | B287: =INDEX(Data!E557:Z557,Index!$B$1) -> 2.869005827 | C287: =Data!Q557 -> 3.109311741 | D287: =Data!Z557 -> 4.210884837
A288: =Data!C558 -> Q4 2022-23 | B288: =INDEX(Data!E558:Z558,Index!$B$1) -> 2.568658843 | C288: =Data!Q558 -> 3.148380552 | D288: =Data!Z558 -> 4.348639592
A289: =Data!C559 -> Q1 2023-24 | B289: =INDEX(Data!E559:Z559,Index!$B$1) -> 2.639033058 | C289: =Data!Q559 -> 2.941403682 | D289: =Data!Z559 -> 4.415638274
A290: =Data!C560 -> Q2 2023-24 | B290: =INDEX(Data!E560:Z560,Index!$B$1) -> 3.254807439 | C290: =Data!Q560 -> 2.715478226 | D290: =Data!Z560 -> 4.544218815
A291: =Data!C561 -> Q3 2023-24 | B291: =INDEX(Data!E561:Z561,Index!$B$1) -> 3.16683967 | C291: =Data!Q561 -> 3.127974382 | D291: =Data!Z561 -> 4.698293342
A292: =Data!C562 -> Q4 2023-24 | B292: =INDEX(Data!E562:Z562,Index!$B$1) -> 3.371333241 | C292: =Data!Q562 -> 3.475830851 | D292: =Data!Z562 -> 4.847365206
A293: Source: MHCLG
A294: .. incomplete data available
A300: Dwelling Condition of Local Authority Owned Dwellings - Decent Homes Standard
A301: Source: MHCLG Local Authority Housing Statistics data returns
... 88 more rows

Sheet Young people ed & skills
A1: Young people, education & skills
N2: =Profile!E14 -> Version date: 4 February 2025
A3: Includes information about the population aged under 24, key age groups, school populations, child benefit, tax credit recipient families,
A4: children in poverty, children providing unpaid care, youth unemployment, young claimants of disability benefits. | K4: Select topic:
A6: District profile for | B6: =Index!C1 -> Ashford
A8: ="Population aged under 20 in "&Index!K6&" area - "&Data!E578 -> Population aged under 20 in Ashford area - Mid 2023
A9: Source: ONS Mid Year Estimates
B10: Total Persons | D10: Males | F10: Females
A11: Age group | B11: No. | C11: % of total population | D11: No. | E11: % | F11: No. | G11: %
A12: All Ages | B12: =INDEX(Data!$E$8:$Z8,Index!$B$1) -> 138300 | C12: =INDEX(Data!E33:Z33,Index!B1) -> 1 | D12: =INDEX(Data!E58:Z58,Index!B1) -> 67300 | E12: =INDEX(Data!E604:Z604,Index!B1) -> 0.5114230746 | F12: =INDEX(Data!E133:Z133,Index!B1) -> 71000 | G12: =INDEX(Data!E618:Z618,Index!B1) -> 0.4885769254
A13: 0-3 - Early Years children | B13: =INDEX(Data!$E579:$Z579,Index!$B$1) -> 6100 | C13: =INDEX(Data!E585:Z585,Index!$B$1) -> 0.04391718432 | D13: =INDEX(Data!E592:Z592,Index!$B$1) -> 3100 | E13: =INDEX(Data!E598:Z598,Index!$B$1) -> 0.5145726988 | F13: =INDEX(Data!E606:Z606,Index!$B$1) -> 2900 | G13: =INDEX(Data!E612:Z612,Index!$B$1) -> 0.4854273012
A14: 4-10 - Primary age children | B14: =INDEX(Data!$E580:$Z580,Index!$B$1) -> 12100 | C14: =INDEX(Data!E586:Z586,Index!$B$1) -> 0.0873787812 | D14: =INDEX(Data!E593:Z593,Index!$B$1) -> 6200 | E14: =INDEX(Data!E599:Z599,Index!$B$1) -> 0.5149383431 | F14: =INDEX(Data!E607:Z607,Index!$B$1) -> 5900 | G14: =INDEX(Data!E613:Z613,Index!$B$1) -> 0.4850616569
A15: 11-18 - Secondary age children | B15: =INDEX(Data!$E581:$Z581,Index!$B$1) -> 13900 | C15: =INDEX(Data!E587:Z587,Index!$B$1) -> 0.1005763543 | D15: =INDEX(Data!E594:Z594,Index!$B$1) -> 7100 | E15: =INDEX(Data!E600:Z600,Index!$B$1) -> 0.5079091171 | F15: =INDEX(Data!E608:Z608,Index!$B$1) -> 6800 | G15: =INDEX(Data!E614:Z614,Index!$B$1) -> 0.4920908829
A16: 10-17 - age group covered by youth offending service | B16: =INDEX(Data!$E582:$Z582,Index!$B$1) -> 14200 | C16: =INDEX(Data!E588:Z588,Index!$B$1) -> 0.1026807344 | D16: =INDEX(Data!E595:Z595,Index!$B$1) -> 7200 | E16: =INDEX(Data!E601:Z601,Index!$B$1) -> 0.5079935207 | F16: =INDEX(Data!E609:Z609,Index!$B$1) -> 7000 | G16: =INDEX(Data!E615:Z615,Index!$B$1) -> 0.4920064793
A17: 14-19 - age group for Key Qualifications | B17: =INDEX(Data!$E583:$Z583,Index!$B$1) -> 9700 | C17: =INDEX(Data!E589:Z589,Index!$B$1) -> 0.06997244781 | D17: =INDEX(Data!E596:Z596,Index!$B$1) -> 4900 | E17: =INDEX(Data!E602:Z602,Index!$B$1) -> 0.5068210004 | F17: =INDEX(Data!E610:Z610,Index!$B$1) -> 4800 | G17: =INDEX(Data!E616:Z616,Index!$B$1) -> 0.4931789996
A18: 0-19 - All children & young people | B18: =INDEX(Data!$E584:$Z584,Index!$B$1) -> 33300 | C18: =INDEX(Data!E590:Z590,Index!$B$1) -> 0.2405646392 | D18: =INDEX(Data!E597:Z597,Index!$B$1) -> 17000 | E18: =INDEX(Data!E603:Z603,Index!$B$1) -> 0.5114230746 | F18: =INDEX(Data!E611:Z611,Index!$B$1) -> 16300 | G18: =INDEX(Data!E617:Z617,Index!$B$1) -> 0.4885769254
A27: Number of state funded schools
A28: Source:Kent County Council
A29: =Data!E619 -> February 2025 | B29: =B6 -> Ashford | C29: Kent
A30: Academy Infant | B30: =INDEX(Data!E620:Z620,Index!$B$1) -> 1 | C30: =Data!Q620 -> 8
A31: Academy Junior | B31: =INDEX(Data!E621:Z621,Index!$B$1) -> 2 | C31: =Data!Q621 -> 12
A32: Academy Primary | B32: =INDEX(Data!E622:Z622,Index!$B$1) -> 15 | C32: =Data!Q622 -> 183 | H32: ="Secondary schools in "&$B$6&" area by school type" -> Secondary schools in Ashford area by school type
A33: Primary Free School | B33: =INDEX(Data!E624:Z624,Index!$B$1) -> 0 | C33: =Data!Q624 -> 1
A34: Maintained Nursery School | B34: =INDEX(Data!E623:Z623,Index!$B$1) -> 1 | C34: =Data!Q623 -> 10 | H34: ="Primary schools in "&$B$6&" area by school type" -> Primary schools in Ashford area by school type
A35: Infant | B35: =INDEX(Data!E625:Z625,Index!$B$1) -> 2 | C35: =Data!Q625 -> 17
A36: Junior | B36: =INDEX(Data!E626:Z626,Index!$B$1) -> 1 | C36: =Data!Q626 -> 13
A37: Primary | B37: =INDEX(Data!E627:Z627,Index!$B$1) -> 21 | C37: =Data!Q627 -> 217
A38: Total No of Primary Schools | B38: =INDEX(Data!E628:Z628,Index!$B$1) -> 43 | C38: =Data!Q628 -> 461
A39: Academy Grammar | B39: =INDEX(Data!E629:Z629,Index!$B$1) -> 2 | C39: =Data!Q629 -> 23
A40: Academy High | B40: =INDEX(Data!E630:Z630,Index!$B$1) -> 3 | C40: =Data!Q630 -> 37
A41: Academy Wide Ability | B41: =INDEX(Data!E631:Z631,Index!$B$1) -> 1 | C41: =Data!Q631 -> 17
A42: Academy University Technical College | B42: =INDEX(Data!E632:Z632,Index!$B$1) -> 0 | C42: =Data!Q632 -> 1
A43: Secondary Free School | B43: =INDEX(Data!E633:Z633,Index!$B$1) -> 2 | C43: =Data!Q633 -> 8
A44: Grammar | B44: =INDEX(Data!E634:Z634,Index!$B$1) -> 0 | C44: =Data!Q634 -> 9
A45: High | B45: =INDEX(Data!E635:Z635,Index!$B$1) -> 0 | C45: =Data!Q635 -> 6
A46: Wide Ability | B46: =INDEX(Data!E636:Z636,Index!$B$1) -> 0 | C46: =Data!Q636 -> 2
A47: Total No of Secondary Schools | B47: =INDEX(Data!E637:Z637,Index!$B$1) -> 8 | C47: =Data!Q637 -> 103
A49: Special School Academy | B49: =INDEX(Data!E638:Z638,Index!$B$1) -> 0 | C49: =Data!Q638 -> 1
A50: Special School Free | B50: =INDEX(Data!E639:Z639,Index!$B$1) -> 0 | C50: =Data!Q639 -> 3
A51: Special School | B51: =INDEX(Data!E640:Z640,Index!$B$1) -> 2 | C51: =Data!Q640 -> 21
A52: Pupil Referral Unit (PRU) Academy | B52: =INDEX(Data!E641:Z641,Index!$B$1) -> 0 | C52: =Data!Q641 -> 1
A53: Pupil Referral Unit (PRU) | B53: =INDEX(Data!E642:Z642,Index!$B$1) -> 0 | C53: =Data!Q642 -> 5
A54: Total PRUs & Special Schools | B54: =INDEX(Data!E643:Z643,Index!$B$1) -> 2 | C54: =Data!Q643 -> 31
A58: School population
A59: Source:Kent County Council | G59: =A58&" - "&A60&" - "&B6 -> School population - January 2024 - Ashford
A60: =Data!E647 -> January 2024 | B60: =B6 -> Ashford | D60: Kent
B61: Number | C61: % | D61: Number | E61: %
A62: English additional language | B62: =INDEX(Data!E649:Z649,Index!$B$1) -> 3304 | C62: =IF(ISERROR((B62/B$66)),"",(B62/B$66)) -> 0.1528426701 | D62: =Data!Q649 -> 34239 | E62: =D62/D$66 -> 0.1360726166
A63: Free school meals | B63: =INDEX(Data!E650:Z650,Index!$B$1) -> 4760 | C63: =IF(ISERROR((B63/B$66)),"",(B63/B$66)) -> 0.2201970671 | D63: =Data!Q650 -> 55007 | E63: =D63/D$66 -> 0.2186087917
A64: SEN - with SEN support | B64: =INDEX(Data!E652:Z652,Index!$B$1) -> 2447 | C64: =IF(ISERROR((B64/B$66)),"",(B64/B$66)) -> 0.1131979461 | D64: =Data!Q652 -> 29782 | E64: =D64/D$66 -> 0.1183596094
A65: SEN - with SEN Statement | B65: =INDEX(Data!E653:Z653,Index!$B$1) -> 1084 | C65: =IF(ISERROR((B65/B$66)),"",(B65/B$66)) -> 0.05014571865 | D65: =Data!Q653 -> 12762 | E65: =D65/D$66 -> 0.05071873398
A66: Number of pupils on roll | B66: =INDEX(Data!E645:Z645,Index!$B$1) -> 21617 | C66: =IF(ISERROR((B66/B$66)),"",(B66/B$66)) -> 1 | D66: =Data!Q645 -> 251623 | E66: =D66/D$66 -> 1
A75: Disabled pupils
A76: Source:Kent County Council
A77: =Data!E654 -> January 2024 | B77: =B6 -> Ashford | D77: Kent
B78: Number | C78: % | D78: Number | E78: %
A79: Number with a Primary SEN Need | B79: =INDEX(Data!E655:Z655,Index!$B$1) -> 3531 | C79: =IF(ISERROR((B79/B$79)),"n.a.",(B79/B$79)) -> 1 | D79: =Data!Q655 -> 42544 | E79: =D79/D$79 -> 1
A80: Autistic Spectrum Disorder | B80: =INDEX(Data!E656:Z656,Index!$B$1) -> 794 | C80: 0.2248654772 | D80: =Data!Q656 -> 9839 | E80: =D80/D$79 -> 0.2312664536
A81: Hearing Impairment | B81: =INDEX(Data!E657:Z657,Index!$B$1) -> 23 | C81: 0.006513735486 | D81: =Data!Q657 -> 343 | E81: 0.008062241444
A82: Moderate Learning Difficulties | B82: =INDEX(Data!E658:Z658,Index!$B$1) -> 243 | C82: 0.06881903144 | D82: =Data!Q658 -> 3543 | E82: 0.08327848815
A83: Multi Sensory Impairment | B83: =INDEX(Data!E659:Z659,Index!$B$1) -> 9 | C83: 0.002548853016 | D83: =Data!Q659 -> 107 | E83: 0.002515043249 | G83: ="Disabled students by disability/need - "&A77&" - "&B6 -> Disabled students by disability/need - January 2024 - Ashford
A84: SEN Support - No Specialist Assessment | B84: =INDEX(Data!E660:Z660,Index!$B$1) -> 130 | C84: 0.03681676579 | D84: =Data!Q660 -> 1438 | E84: 0.03380030086
A85: Other | B85: =INDEX(Data!E661:Z661,Index!$B$1) -> 83 | C85: 0.02350608893 | D85: =Data!Q661 -> 1638 | E85: 0.03850131628
A86: Physical Disability | B86: =INDEX(Data!E662:Z662,Index!$B$1) -> 80 | C86: 0.02265647125 | D86: =Data!Q662 -> 1093 | E86: 0.02569104927
A87: Profound & Multiple Learning Difficulties | B87: =INDEX(Data!E663:Z663,Index!$B$1) -> 27 | C87: 0.007646559048 | D87: =Data!Q663 -> 366 | E87: 0.008602858217
A88: Social, Emotional & Mental Health | B88: =INDEX(Data!E664:Z664,Index!$B$1) -> 778 | C88: 0.220334183 | D88: =Data!Q664 -> 9039 | E88: 0.2124623919
A89: Speech, Language & Communication Needs | B89: =INDEX(Data!E665:Z665,Index!$B$1) -> 851 | C89: 0.241008213 | D89: =Data!Q665 -> 9743 | E89: 0.2290099662
A90: Severe Learning Difficulties | B90: =INDEX(Data!E666:Z666,Index!$B$1) -> 92 | C90: 0.02605494194 | D90: =Data!Q666 -> 720 | E90: 0.01692365551
A91: Specific Learning Difficulties | B91: =INDEX(Data!E667:Z667,Index!$B$1) -> 409 | C91: 0.1158312093 | D91: =Data!Q667 -> 4416 | E91: 0.1037984205 | I91: =SUM(I34:I39) -> 0
A92: Visual Impairment | B92: =INDEX(Data!E668:Z668,Index!$B$1) -> 12 | C92: =IF(ISERROR((B92/B$79)),"n.a.",(B92/B$79)) -> 0.003398470688 | D92: =Data!Q668 -> 259 | E92: =D92/D$79 -> 0.006087814968
A95: =Data!B669 -> GCSE Results
A96: Source:Department for Education
A97: =Data!E669 -> 2022/23 | B97: =B6 -> Ashford
B98: % of pupils | G98: ="GCSE results - "&Data!E669&" - "&B6 -> GCSE results - 2022/23 - Ashford
A99: % Achieving Strong Pass (Grades 9-5) in English & Maths | B99: =INDEX(Data!E670:Z670,Index!$B$1) -> 0.4547837484
A100: % Achieving Standard Pass (Grades 9-4) in English & Maths | B100: =INDEX(Data!E671:Z671,Index!$B$1) -> 0.6572739187
A101: % Achieving Strong Pass (Grade 5 or above) English Baccalaureate | B101: =INDEX(Data!E672:Z672,Index!$B$1) -> 0.2182175623
A102: % Achieving Standard Pass (Grade 4 or above) English Baccalaureate | B102: =INDEX(Data!E673:Z673,Index!$B$1) -> 0.3204456094
A103: Coverage: England, maintained schools (including Academies and CTCs)
A112: Regulated Qualifications Framework (RQF) qualifications by age group
A113: =Index!N6&" area" -> Ashford area
A114: Source:Annual Population Survey | H114: =A112&" - "&A115&" - "&Index!N6 -> Regulated Qualifications Framework (RQF) qualifications by age group - 2023 - Ashford
A115: =Data!E674 -> 2023 | B115: 16-64 | C115: 16-24 | D115: 25-49 | E115: 50-64
A116: Population | B116: =INDEX(Data!E675:Z675,Index!$B$1) -> 74600 | C116: =INDEX(Data!E683:Z683,Index!$B$1) -> 10800 | D116: =INDEX(Data!E691:Z691,Index!$B$1) -> 33700 | E116: =INDEX(Data!E699:Z699,Index!$B$1) -> 30100
A117: No qualifications | B117: =INDEX(Data!E676:Z676,Index!$B$1) -> 0.1152815013 | C117: =INDEX(Data!E684:Z684,Index!$B$1) -> - | D117: =INDEX(Data!E692:Z692,Index!$B$1) -> 0.2284866469 | E117: =INDEX(Data!E700:Z700,Index!$B$1) -> -
A118: Highest qualification RQF1 | B118: =INDEX(Data!E677:Z677,Index!$B$1) -> - | C118: =INDEX(Data!E685:Z685,Index!$B$1) -> - | D118: =INDEX(Data!E693:Z693,Index!$B$1) -> - | E118: =INDEX(Data!E701:Z701,Index!$B$1) -> -
A119: Highest qualification RQF2 | B119: =INDEX(Data!E678:Z678,Index!$B$1) -> 0.1970509383 | C119: =INDEX(Data!E686:Z686,Index!$B$1) -> 0.3055555556 | D119: =INDEX(Data!E694:Z694,Index!$B$1) -> 0.1008902077 | E119: =INDEX(Data!E702:Z702,Index!$B$1) -> 0.2657807309
A120: Highest qualification RQF3 | B120: =INDEX(Data!E679:Z679,Index!$B$1) -> 0.2560321716 | C120: =INDEX(Data!E687:Z687,Index!$B$1) -> 0.6018518519 | D120: =INDEX(Data!E695:Z695,Index!$B$1) -> 0.234421365 | E120: =INDEX(Data!E703:Z703,Index!$B$1) -> 0.1561461794
A121: Highest qualification RQF4/5 | B121: =INDEX(Data!E680:Z680,Index!$B$1) -> 0.3753351206 | C121: =INDEX(Data!E688:Z688,Index!$B$1) -> - | D121: =INDEX(Data!E696:Z696,Index!$B$1) -> 0.3679525223 | E121: =INDEX(Data!E704:Z704,Index!$B$1) -> 0.5182724252
A123: Note: " - " indicates figures not available since the group sample size is zero or disclosive
A130: Looked After Children - per 10,000 aged 0-17
A131: Source: KCC | J131: Kent | K131: =B132 -> Ashford
A132: =Data!E737 -> March 2021 | B132: =B6 -> Ashford | C132: Kent | J132: =Data!Q738 -> 39.93147956 | K132: =B133 -> 29.00966989
A133: Children In Care (excluding Unaccompanied Asylum Seeking Children) | B133: =INDEX(Data!E738:Z738,Index!B1) -> 29.00966989 | C133: =J132 -> 39.93147956 | J133: =Data!Q739 -> 47.98757558 | K133: =B134 -> 39.34644882
A134: Children In Care (including Unaccompanied Asylum Seeking Children) | B134: =INDEX(Data!E739:Z739,Index!B1) -> 39.34644882 | C134: =J133 -> 47.98757558
J135: =Data!#REF! ->  | K135: =B138 -> 33.67789263
A136: Children subject to a child protection plan - per 10,000 aged 0-17
A137: =Data!E740 -> March 2021 | B137: =B6 -> Ashford | C137: Kent
A138: Children subject to a Child Protection Plan | B138: =INDEX(Data!E741:Z741,Index!B1) -> 33.67789263 | C138: =Data!Q741 -> 34.87097159
A150: Young people providing unpaid care - 2021
A151: Source: 2021 Census Custom Table
A152: People providing unpaid care | B152: =B6 -> Ashford | D152: Kent | F152: England
B153: Number | C153: % of age group | D153: Number | E153: % of age group | F153: Number | G153: % of age group
A154: 5 - 9 providing unpaid care | B154: =INDEX(Census2021Data!D388:Z388,Index!$B$1) -> 64 | C154: =B154/B$158 -> 0.06504065041 | D154: =(Census2021Data!P388) -> 689 | E154: =D154/D$158 -> 0.06347890179 | F154: =Census2021Data!Y388 -> 16506 | G154: =F154/F$158 -> 0.04937392688 | K154: ="Percentage of carers aged under 25 by age group - "&B152 -> Percentage of carers aged under 25 by age group - Ashford
A155: 10-15 providing unpaid care | B155: =INDEX(Census2021Data!D389:Z389,Index!$B$1) -> 286 | C155: =B155/B$158 -> 0.2906504065 | D155: =(Census2021Data!P389) -> 2783 | E155: 0.2564031693 | F155: =Census2021Data!Y389 -> 62303 | G155: =F155/F$158 -> 0.1863651864 | J155: 5-9 | K155: =B154/B$158 -> 0.06504065041
A156: 16-19 providing unpaid care | B156: =INDEX(Census2021Data!D390:Z390,Index!$B$1) -> 261 | C156: 0.2652439024 | D156: =(Census2021Data!P390) -> 3059 | E156: 0.2818315828 | F156: =Census2021Data!Y390 -> 92679 | G156: =F156/F$158 -> 0.2772280486 | J156: 10-15 | K156: =B155/B$158 -> 0.2906504065
A157: 20-24 providing unpaid care | B157: =INDEX(Census2021Data!D391:Z391,Index!$B$1) -> 373 | C157: 0.3790650407 | D157: =(Census2021Data!P391) -> 4323 | E157: 0.398286346 | F157: =Census2021Data!Y391 -> 162818 | G157: =F157/F$158 -> 0.4870328382 | J157: 16-19 | K157: =B156/B$158 -> 0.2652439024
A158: Total under 25 providing unpaid care | B158: =INDEX(Census2021Data!D387:Z387,Index!$B$1) -> 984 | C158: =B158/B$158 -> 1 | D158: =(Census2021Data!P387) -> 10854 | E158: =D158/D$158 -> 1 | F158: =Census2021Data!Y387 -> 334306 | G158: =F158/F$158 -> 1 | J158: 20-24 | K158: =B157/B$158 -> 0.3790650407
A159: All usual residents living in households
A164: Young people whose day-to-day activities are limited - 2011
A165: Source: 2021 Census Custom Table
A166: Day-to-day activities limited | B166: =B6 -> Ashford | D166: Kent | F166: England
B167: Number | C167: % of age group | D167: Number | E167: % of age group | F167: Number | G167: % of age group
A168: 0-4 | B168: =INDEX(Census2021Data!D395:Z395,Index!$B$1) -> 228 | C168: =B168/$B$173 -> 0.06694069289 | D168: =(Census2021Data!P395) -> 2626 | E168: =D168/$D$173 -> 0.06015072039 | F168: =Census2021Data!Y395 -> 81524 | G168: =F168/$F$173 -> 0.06020259039
A169: 5-9 | B169: =INDEX(Census2021Data!D396:Z396,Index!$B$1) -> 639 | C169: =B169/$B$173 -> 0.1876100998 | D169: =(Census2021Data!P396) -> 7774 | E169: =D169/$D$173 -> 0.1780699544 | F169: =Census2021Data!Y396 -> 216320 | G169: =F169/$F$173 -> 0.1597446685 | K169: ="Day-to-day activities are limited by age group, "&B166 -> Day-to-day activities are limited by age group, Ashford
A170: 10-14 | B170: =INDEX(Census2021Data!D397:Z397,Index!$B$1) -> 922 | C170: 0.2706987669 | D170: =(Census2021Data!P397) -> 10587 | E170: 0.2425040658 | F170: =Census2021Data!Y397 -> 295266 | G170: 0.218043497 | J170: 0-4 | K170: =B168/B$173 -> 0.06694069289
A171: 15-19 | B171: =INDEX(Census2021Data!D398:Z398,Index!$B$1) -> 882 | C171: 0.2589547857 | D171: =(Census2021Data!P398) -> 11804 | E171: 0.2703804659 | F171: =Census2021Data!Y398 -> 363044 | G171: 0.2680951526 | J171: 5-9 | K171: =B169/B$173 -> 0.1876100998
A172: 20-24 | B172: =INDEX(Census2021Data!D399:Z399,Index!$B$1) -> 894 | C172: 0.26247798 | D172: =(Census2021Data!P399) -> 12582 | E172: 0.2882012048 | F172: =Census2021Data!Y399 -> 449066 | G172: 0.3316193569 | J172: 10-14 | K172: =B170/B$173 -> 0.2706987669
A173: All people under 25 | B173: =INDEX(Census2021Data!D394:Z394,Index!$B$1) -> 3406 | C173: 1 | D173: =(Census2021Data!P394) -> 43657 | E173: 1 | F173: =Census2021Data!Y394 -> 1354161 | G173: 1 | J173: 15-19 | K173: =B171/B$173 -> 0.2589547857
A174: All usual residents living in households
A179: Top ten areas of origin of first year students starting at university in Kent
A180: Source: HESA
A181: 2017/18 | B181: No. | C181: %
A182: Kent | B182: 4325 | C182: 0.304470257
A183: Greater London | B183: 3080 | C183: 0.2168250616
A184: Medway | B184: 840 | C184: 0.05913410771
A185: Essex | B185: 495 | C185: 0.0348468849
A186: Surrey | B186: 290 | C186: 0.02041534671
A187: Hertfordshire | B187: 280 | C187: 0.01971136924
A188: East Sussex | B188: 265 | C188: 0.01865540303
A189: West Sussex | B189: 175 | C189: 0.01231960577
A190: Hampshire | B190: 135 | C190: 0.009503695882
A191: Suffolk | B191: 125 | C191: 0.008799718409
A195: Top ten areas of study for university students coming from Kent
A196: Source:HESA
A197: 2017/18 | B197: No. | C197: %
A198: Kent | B198: 4325 | C198: 0.2709051049
A199: Greater London | B199: 3055 | C199: 0.1913560915
A200: Milton Keynes | B200: 980 | C200: 0.06138427811
A201: Brighton and Hove | B201: 590 | C201: 0.0369558409
A202: Surrey | B202: 580 | C202: 0.03632947072
A203: West Midlands | B203: 520 | C203: 0.03257124961
A204: City of Nottingham | B204: 325 | C204: 0.02035703101
A205: Essex | B205: 310 | C205: 0.01941747573
A206: City of Portsmouth | B206: 305 | C206: 0.01910429064
A207: Oxfordshire | B207: 300 | C207: 0.01879110554
A214: Occupation of graduates in full time paid employment in Kent
A215: Source: HESA
A216: Occupation | B216: Number | D216: Change
B217: 2014/15 | C217: 2015/16 | D217: Number | E217: %
A218: Managers, directors & senior officials | B218: 210 | C218: 230 | D218: 20 | E218: 9.523809524
A219: Professional occupations | B219: 2395 | C219: 2465 | D219: 70 | E219: 2.922755741
A220: Associate professional & technical occupations | B220: 1005 | C220: 935 | D220: -70 | E220: -6.965174129
A221: Administrative & secretarial occupations | B221: 265 | C221: 210 | D221: -55 | E221: -20.75471698
A222: Skilled trades occupations | B222: 70 | C222: 65 | D222: -5 | E222: -7.142857143
A223: Caring, leisure & other service occupations | B223: 350 | C223: 390 | D223: 40 | E223: 11.42857143
A224: Sales & customer service occupations | B224: 420 | C224: 435 | D224: 15 | E224: 3.571428571
A225: Process, plant & machine operatives | B225: 20 | C225: 30 | D225: 10 | E225: 50
A226: Elementary occupations | B226: 235 | C226: 235 | D226: 0 | E226: 0
A230: Industry of employment of graduates in full time paid employment in Kent
A232: Industry | B232: Number | D232: Change
B233: 2014/15 | C233: 2015/16 | D233: Number | E233: %
A234: Agriculture, forestry & fishing | B234: 10 | C234: 25 | D234: 15 | E234: 150
A235: Mining & Quarrying | B235: 10 | C235: 5 | D235: -5 | E235: -50
A236: Manufacturing | B236: 155 | C236: 150 | D236: -5 | E236: -3.225806452
A237: Electricity, gas, steam & air conditioning supply | B237: 5 | C237: 20 | D237: 15 | E237: 300
A238: Water supply; sewerage, waste management & remediation activities | B238: 20 | C238: 15 | D238: -5 | E238: -25
A239: Construction | B239: 145 | C239: 100 | D239: -45 | E239: -31.03448276
A240: Wholesale & retail trade; repair of motor vehicles & motor cycles | B240: 585 | C240: 555 | D240: -30 | E240: -5.128205128
A241: Transport & storage | B241: 50 | C241: 60 | D241: 10 | E241: 20
A242: Accommodation & food service activities | B242: 240 | C242: 225 | D242: -15 | E242: -6.25
A243: Information & communication | B243: 160 | C243: 135 | D243: -25 | E243: -15.625
A244: Financial & insurance activities | B244: 105 | C244: 100 | D244: -5 | E244: -4.761904762
A245: Real Estate activities | B245: 35 | C245: 40 | D245: 5 | E245: 14.28571429
A246: Professional, scientific & technical activities | B246: 350 | C246: 350 | D246: 0 | E246: 0
A247: Business administration & support service activities | B247: 135 | C247: 145 | D247: 10 | E247: 7.407407407
A248: Public administration & defence | B248: 275 | C248: 260 | D248: -15 | E248: -5.454545455
A249: Education | B249: 1345 | C249: 1475 | D249: 130 | E249: 9.665427509
A250: Human health & social work activities | B250: 1095 | C250: 1075 | D250: -20 | E250: -1.826484018
A251: Arts, entertainment, recreation | B251: 185 | C251: 180 | D251: -5 | E251: -2.702702703
A252: Other service activities | B252: 70 | C252: 70 | D252: 0 | E252: 0
A253: Activities of households as employers | B253: 5 | C253: 5 | D253: 0 | E253: 0
A254: Activities of extraterritorial organisations & bodies | B254: 0 | C254: 0 | D254: 0 | E254: 0
A258: NEETs - Year 12 & 13 (aged 16 & 17)
A259: Source:Kent County Council
B260: =Data!E1146 -> 2024-12-01
A261: Total | B261: =INDEX(Data!E1147:Z1147,Index!B1) -> 96
A263: Glossary
A265: Population by age and gender
A266: All numbers are separately rounded to the nearest 100. Percentages are calculated using rounded data
A267: Source: 2023 Mid-year population estimates, Office for National Statistics (ONS)
A269: Schools - Number of schools, school populations, disabled pupils
A270: Source: Kent County Council
A272: GCSE Results
A273: Source: Kent County Council
A275: Regulated Qualifications Framework (RQF) qualifications
A276: RQF1 - 3-4 GCSEs at grades D-E
A277: RQF2 - 4-5 GCSEs at grade A*-C
A278: RQF3 - 2 or more Alevels
A279: RQF4+ - Degree and above
... 21 more rows

Sheet Older people
A1: Older people
A2: Includes information about the age of the population aged 60+, age groups, State Pension claimants, Pension Credit claimants, Disability Benefits claimants,
A3: Limiting long term illness and provision of unpaid care. | N3: =Profile!E14 -> Version date: 4 February 2025
G4: Select geography: | K4: Select topic:
A6: District Profile for | B6: =Index!C1 -> Ashford
A9: ="Population aged 60+, 2023 "&Index!K6 -> Population aged 60+, 2023 Ashford
A10: Source: ONS Mid Year Estimates
B11: Total Persons | D11: Males | F11: Females
A12: Age group | B12: No. | C12: % of total population | D12: No. | E12: % of total males | F12: No. | G12: % of total females
A13: Total Population | B13: =INDEX(Data!$E8:$Z8,Index!$B$1) -> 138300 | D13: =INDEX(Data!$E58:$Z58,Index!$B$1) -> 67300 | F13: =INDEX(Data!$E133:$Z133,Index!$B$1) -> 71000
A14: Population aged 60+ | B14: =INDEX(Data!E31:Z31,Index!B1) -> 35600 | C14: =INDEX(Data!E56:Z56,Index!B1) -> 0.2573490595 | D14: =INDEX(Data!E156:Z156,Index!B1) -> 18900 | E14: =INDEX(Data!E131:Z131,Index!B1) -> 0.2478976614 | F14: =INDEX(Data!E156:Z156,Index!B1) -> 18900 | G14: =INDEX(Data!E206:Z206,Index!B1) -> 0.2663116221 | L14: KCC Males | M14: KCC Females
A15: 60-64 | B15: =INDEX(Data!E21:Z21,Index!$B$1) -> 8500 | C15: =INDEX(Data!E46:Z46,Index!$B$1) -> 0.06115719213 | D15: =INDEX(Data!E146:Z146,Index!$B$1) -> 4200 | E15: =INDEX(Data!E121:Z121,Index!$B$1) -> 0.03064006422 | F15: =INDEX(Data!E146:Z146,Index!$B$1) -> 4200 | G15: =INDEX(Data!E196:Z196,Index!$B$1) -> 0.03051712792 | J15: =Population!J23 -> -0.03036876356 | K15: =Population!K23 -> 0.03036876356 | L15: =Population!L23 -> -0.03039153523 | M15: =Population!M23 -> 0.03148329049
A16: 65-69 | B16: =INDEX(Data!E22:Z22,Index!$B$1) -> 6800 | C16: =INDEX(Data!E47:Z47,Index!$B$1) -> 0.04943485461 | D16: =INDEX(Data!E147:Z147,Index!$B$1) -> 3600 | E16: =INDEX(Data!E122:Z122,Index!$B$1) -> 0.0234519066 | F16: =INDEX(Data!E147:Z147,Index!$B$1) -> 3600 | G16: =INDEX(Data!E197:Z197,Index!$B$1) -> 0.02598294801 | J16: =Population!J24 -> -0.02313810557 | K16: =Population!K24 -> 0.02603036876 | L16: =Population!L24 -> -0.02520662928 | M16: =Population!M24 -> 0.02713986826
A17: 70-74 | B17: =INDEX(Data!E23:Z23,Index!$B$1) -> 6500 | C17: =INDEX(Data!E48:Z48,Index!$B$1) -> 0.04701951795 | D17: =INDEX(Data!E148:Z148,Index!$B$1) -> 3400 | E17: =INDEX(Data!E123:Z123,Index!$B$1) -> 0.02228762755 | F17: =INDEX(Data!E148:Z148,Index!$B$1) -> 3400 | G17: =INDEX(Data!E198:Z198,Index!$B$1) -> 0.0247318904 | J17: =Population!J25 -> -0.02241503977 | K17: =Population!K25 -> 0.02458423717 | L17: =Population!L25 -> -0.02291692413 | M17: =Population!M25 -> 0.02559663059
A18: 75-79 | B18: =INDEX(Data!E24:Z24,Index!$B$1) -> 6500 | C18: =INDEX(Data!E49:Z49,Index!$B$1) -> 0.0468893501 | D18: =INDEX(Data!E149:Z149,Index!$B$1) -> 3500 | E18: =INDEX(Data!E124:Z124,Index!$B$1) -> 0.02172356689 | F18: =INDEX(Data!E149:Z149,Index!$B$1) -> 3500 | G18: =INDEX(Data!E199:Z199,Index!$B$1) -> 0.02516578321 | J18: =Population!J26 -> -0.02169197397 | K18: =Population!K26 -> 0.02530730296 | L18: =Population!L26 -> -0.02218287708 | M18: =Population!M26 -> 0.02544696448
A19: 80-84 | B19: =INDEX(Data!E25:Z25,Index!$B$1) -> 3900 | C19: =INDEX(Data!E50:Z50,Index!$B$1) -> 0.02810179125 | D19: =INDEX(Data!E150:Z150,Index!$B$1) -> 2100 | E19: =INDEX(Data!E125:Z125,Index!$B$1) -> 0.01274921719 | F19: =INDEX(Data!E150:Z150,Index!$B$1) -> 2100 | G19: =INDEX(Data!E200:Z200,Index!$B$1) -> 0.01535257407 | J19: =Population!J27 -> -0.01301518438 | K19: =Population!K27 -> 0.01518438178 | L19: =Population!L27 -> -0.0127955207 | M19: =Population!M27 -> 0.01590062667
A20: 85-89 | B20: =INDEX(Data!E26:Z26,Index!$B$1) -> 2200 | C20: =INDEX(Data!E51:Z51,Index!$B$1) -> 0.01611911804 | D20: =INDEX(Data!E151:Z151,Index!$B$1) -> 1300 | E20: =INDEX(Data!E126:Z126,Index!$B$1) -> 0.006891664196 | F20: =INDEX(Data!E151:Z151,Index!$B$1) -> 1300 | G20: =INDEX(Data!E201:Z201,Index!$B$1) -> 0.009227453845 | J20: =Population!J28 -> -0.00723065799 | K20: =Population!K28 -> 0.009399855387 | L20: =Population!L28 -> -0.007180247055 | M20: =Population!M28 -> 0.01037664314
A21: 90+ | B21: =INDEX(Data!E27:Z27,Index!$B$1) -> 1200 | C21: =INDEX(Data!E52:Z52,Index!$B$1) -> 0.008627235452 | D21: =INDEX(Data!E152:Z152,Index!$B$1) -> 800 | E21: =INDEX(Data!E127:Z127,Index!$B$1) -> 0.002914313401 | F21: =INDEX(Data!E152:Z152,Index!$B$1) -> 800 | G21: =INDEX(Data!E202:Z202,Index!$B$1) -> 0.005712922051 | J21: =Population!J29 -> -0.002892263196 | K21: =Population!K29 -> 0.005784526392 | L21: =Population!L29 -> -0.003292654375 | M21: =Population!M29 -> 0.006759815706
A25: State Pension Claimants
A26: Source: DWP
B27: =Index!$K$6 -> Ashford | D27: Kent | F27: South East | H27: England & Wales
A28: =Data!E742 -> Nov 2020 | B28: No. | C28: % of claimants | D28: No. | E28: % of claimants | F28: No. | G28: % of claimants | H28: No. | I28: % of claimants
A29: Total claimants | B29: =INDEX(Data!E743:Z743,Index!$B$1) -> 23702 | C29: =B29/B$29 -> 1 | D29: =Data!Q743 -> 296153 | E29: =D29/D$29 -> 1 | F29: =Data!Y743 -> 1660920 | G29: =F29/F$29 -> 1 | H29: =Data!Z743 -> 10203908 | I29: =H29/H$29 -> 1
A30: Male | B30: =INDEX(Data!E751:Z751,Index!$B$1) -> 10874 | C30: =B30/B$29 -> 0.4587798498 | D30: =Data!Q751 -> 135025 | E30: 0.4559298741 | F30: =Data!Y751 -> 754202 | G30: =F30/F$29 -> 0.4540868916 | H30: =Data!Z751 -> 4677082 | I30: =H30/H$29 -> 0.4583618355
A31: Female | B31: =INDEX(Data!E759:Z759,Index!$B$1) -> 12827 | C31: 0.5411779597 | D31: =Data!Q759 -> 161136 | E31: 0.544097139 | F31: =Data!Y759 -> 906723 | G31: =F31/F$29 -> 0.5459161188 | H31: =Data!Z759 -> 5526817 | I31: =H31/H$29 -> 0.5416372825
A34: ="State Pension Claimants by Age in "&Index!K6 -> State Pension Claimants by Age in Ashford
A35: Source: DWP
A36: =Index!$K$6 -> Ashford | B36: Total | D36: Males | F36: Females
A37: =Data!E742 -> Nov 2020 | B37: No. | C37: % of State Pension claimants | E37: % of male State Pension claimants | G37: % of female State Pension claimants
A38: Total claimants | B38: =INDEX(Data!E743:Z743,Index!$B$1) -> 23702 | C38: =B38/$B$38 -> 1 | D38: =INDEX(Data!E751:Z751,Index!$B$1) -> 10874 | E38: =D38/D38 -> 1 | F38: =INDEX(Data!E759:Z759,Index!$B$1) -> 12827 | G38: =F38/F38 -> 1
A39: aged 60-64 | B39: =INDEX(Data!E744:Z744,Index!$B$1) -> .. | C39: =IFERROR(B39/B$38,"-") -> - | D39: =INDEX(Data!E752:Z752,Index!$B$1) -> .. | E39: =IF(ISERROR((D39/D$38)),"-",(D39/D$38)) -> - | F39: =INDEX(Data!E760:Z760,Index!$B$1) -> .. | G39: =IFERROR(F39/F$38,"-") -> -
A40: aged 65-69 | B40: =INDEX(Data!E745:Z745,Index!$B$1) -> 4815 | C40: =B40/B$38 -> 0.2031474137 | D40: =INDEX(Data!E753:Z753,Index!$B$1) -> 2329 | E40: =D40/D$38 -> 0.2141806143 | F40: =INDEX(Data!E761:Z761,Index!$B$1) -> 2487 | G40: =F40/F$38 -> 0.1938878927
A41: aged 70-74 | B41: =INDEX(Data!E746:Z746,Index!$B$1) -> 7114 | C41: 0.3001434478 | D41: =INDEX(Data!E754:Z754,Index!$B$1) -> 3357 | E41: 0.308718043 | F41: =INDEX(Data!E762:Z762,Index!$B$1) -> 3758 | G41: 0.2929757543
A42: aged 75-79 | B42: =INDEX(Data!E747:Z747,Index!$B$1) -> 5134 | C42: 0.2166061936 | D42: =INDEX(Data!E755:Z755,Index!$B$1) -> 2411 | E42: 0.2217215376 | F42: =INDEX(Data!E763:Z763,Index!$B$1) -> 2723 | G42: 0.212286583
A43: aged 80-84 | B43: =INDEX(Data!E748:Z748,Index!$B$1) -> 3463 | C43: 0.1461058139 | D43: =INDEX(Data!E756:Z756,Index!$B$1) -> 1563 | E43: 0.1437373552 | F43: =INDEX(Data!E764:Z764,Index!$B$1) -> 1906 | G43: 0.148592812
A44: aged 85-89 | B44: =INDEX(Data!E749:Z749,Index!$B$1) -> 2043 | C44: 0.08619525778 | D44: =INDEX(Data!E757:Z757,Index!$B$1) -> 843 | E44: 0.07752437006 | F44: =INDEX(Data!E765:Z765,Index!$B$1) -> 1194 | G44: 0.09308489904
A45: aged 90 and over | B45: =INDEX(Data!E750:Z750,Index!$B$1) -> 1135 | C45: 0.04788625432 | D45: =INDEX(Data!E758:Z758,Index!$B$1) -> 370 | E45: 0.03402611734 | F45: =INDEX(Data!E766:Z766,Index!$B$1) -> 763 | G45: 0.05948390115
A49: Pension Credit Claimants
A50: Source: DWP
A51: =Data!E792 -> Nov 2023 | B51: =Index!$K$6 -> Ashford | D51: Kent | F51: South East | H51: England & Wales
B52: No. | C52: % of claimants | D52: No. | E52: % of claimants | F52: No. | G52: % of claimants | H52: No. | I52: % of claimants
A53: Total claimants | B53: =INDEX(Data!E793:Z793,Index!$B$1) -> 2595 | C53: =B53/B$53 -> 1 | D53: =Data!Q793 -> 30289 | E53: =D53/D$53 -> 1 | F53: =Data!Y793 -> 148757 | G53: =F53/F$53 -> 1 | H53: =Data!Z793 -> 1242435 | I53: =H53/H$53 -> 1
A54: Male | B54: =INDEX(Data!E801:Z801,Index!$B$1) -> 944 | C54: =B54/B$53 -> 0.3637764933 | D54: =Data!Q801 -> 10171 | E54: =D54/D$53 -> 0.3357984747 | F54: =Data!Y801 -> 49012 | G54: =F54/F$53 -> 0.3294769322 | H54: =Data!Z801 -> 420879 | I54: =H54/H$53 -> 0.3387533352
A55: Female | B55: =INDEX(Data!E809:Z809,Index!$B$1) -> 1651 | C55: =B55/B$53 -> 0.6362235067 | D55: =Data!Q809 -> 20106 | E55: =D55/D$53 -> 0.6638053419 | F55: =Data!Y809 -> 99744 | G55: =F55/F$53 -> 0.6705163454 | H55: =Data!Z809 -> 821552 | I55: =H55/H$53 -> 0.6612434453
A59: Pension Credit Claimants by Age
A60: Source: DWP
A61: =Index!$K$6 -> Ashford | B61: Total | D61: Males | F61: Females
A62: =Data!E792 -> Nov 2023 | B62: No. | C62: % of Pension Credit Claimants | D62: No. | E62: % of Pension Credit Claimants | F62: No. | G62: % of Pension Credit Claimants
A63: Total | B63: =INDEX(Data!E793:Z793,Index!$B$1) -> 2595 | C63: =B63/B$63 -> 1 | D63: =INDEX(Data!E801:Z801,Index!$B$1) -> 944 | E63: =D63/D$63 -> 1 | F63: =INDEX(Data!E809:Z809,Index!$B$1) -> 1651 | G63: =F63/F$63 -> 1
A64: aged 60-64 | B64: =INDEX(Data!E794:Z794,Index!$B$1) -> 0 | C64: =IFERROR(B64/B$63,"-") -> 0 | D64: =INDEX(Data!E802:Z802,Index!$B$1) -> 0 | E64: =IFERROR(D64/D$63,"-") -> 0 | F64: =INDEX(Data!E810:Z810,Index!$B$1) -> 0 | G64: =IFERROR(F64/F$63,"-") -> 0
A65: aged 65-69 | B65: =INDEX(Data!E795:Z795,Index!$B$1) -> 234 | C65: =B65/B$63 -> 0.0901734104 | D65: =INDEX(Data!E803:Z803,Index!$B$1) -> 94 | E65: 0.09957627119 | F65: =INDEX(Data!E811:Z811,Index!$B$1) -> 139 | G65: 0.08419139915
A66: aged 70-74 | B66: =INDEX(Data!E796:Z796,Index!$B$1) -> 621 | C66: 0.2393063584 | D66: =INDEX(Data!E804:Z804,Index!$B$1) -> 237 | E66: 0.251059322 | F66: =INDEX(Data!E812:Z812,Index!$B$1) -> 383 | G66: 0.2319806178
A67: aged 75-79 | B67: =INDEX(Data!E797:Z797,Index!$B$1) -> 731 | C67: 0.2816955684 | D67: =INDEX(Data!E805:Z805,Index!$B$1) -> 305 | E67: 0.3230932203 | F67: =INDEX(Data!E813:Z813,Index!$B$1) -> 426 | G67: 0.2580254391
A68: aged 80-84 | B68: =INDEX(Data!E798:Z798,Index!$B$1) -> 505 | C68: 0.1946050096 | D68: =INDEX(Data!E806:Z806,Index!$B$1) -> 195 | E68: 0.2065677966 | F68: =INDEX(Data!E814:Z814,Index!$B$1) -> 312 | G68: 0.188976378
A69: aged 85-89 | B69: =INDEX(Data!E799:Z799,Index!$B$1) -> 280 | C69: 0.1078998073 | D69: =INDEX(Data!E807:Z807,Index!$B$1) -> 65 | E69: 0.0688559322 | F69: =INDEX(Data!E815:Z815,Index!$B$1) -> 212 | G69: 0.128407026
A70: aged 90 and over | B70: =INDEX(Data!E800:Z800,Index!$B$1) -> 221 | C70: 0.08516377649 | D70: =INDEX(Data!E808:Z808,Index!$B$1) -> 47 | E70: 0.04978813559 | F70: =INDEX(Data!E816:Z816,Index!$B$1) -> 174 | G70: 0.1053906723
A77: Disability living Allowance (DLA)
A78: Source: DWP
A79: =Data!E842 -> Nov 2023 | B79: Total | D79: Males | F79: Females
A80: =Index!$K$6 -> Ashford | B80: No. | C80: % of all claimants | D80: No. | E80: % of all male claimants | F80: No. | G80: % of all female claimants
A81: Total Disability Living Allowance Claimants aged 60+ | B81: =INDEX(Data!E843:Z843,Index!$B$1) -> 853 | C81: =B81/B$81 -> 1 | D81: =INDEX(Data!E851:Z851,Index!$B$1) -> 357 | E81: =D81/D$81 -> 1 | F81: =INDEX(Data!E859:Z859,Index!$B$1) -> 505 | G81: =F81/F$81 -> 1
A82: aged 60-64 | B82: =INDEX(Data!E844:Z844,Index!$B$1) -> 105 | C82: =IF(ISERROR((B82/B$81)),"~",(B82/B$81)) -> 0.123094959 | D82: =INDEX(Data!E852:Z852,Index!$B$1) -> 51 | E82: =IF(ISERROR((D82/D$81)),"~",(D82/D$81)) -> 0.1428571429 | F82: =INDEX(Data!E860:Z860,Index!$B$1) -> 56 | G82: =IF(ISERROR((F82/F$81)),"~",(F82/F$81)) -> 0.1108910891
A83: aged 65-69 | B83: =INDEX(Data!E845:Z845,Index!$B$1) -> 104 | C83: 0.121922626 | D83: =INDEX(Data!E853:Z853,Index!$B$1) -> 30 | E83: 0.08403361345 | F83: =INDEX(Data!E861:Z861,Index!$B$1) -> 74 | G83: 0.1465346535
A84: aged 70-74 | B84: =INDEX(Data!E846:Z846,Index!$B$1) -> 120 | C84: 0.1406799531 | D84: =INDEX(Data!E854:Z854,Index!$B$1) -> 48 | E84: 0.1344537815 | F84: =INDEX(Data!E862:Z862,Index!$B$1) -> 69 | G84: 0.1366336634
A85: aged 75-79 | B85: =INDEX(Data!E847:Z847,Index!$B$1) -> 295 | C85: 0.3458382181 | D85: =INDEX(Data!E855:Z855,Index!$B$1) -> 126 | E85: 0.3529411765 | F85: =INDEX(Data!E863:Z863,Index!$B$1) -> 174 | G85: 0.3445544554
A86: aged 80-84 | B86: =INDEX(Data!E848:Z848,Index!$B$1) -> 158 | C86: 0.1852286049 | D86: =INDEX(Data!E856:Z856,Index!$B$1) -> 74 | E86: 0.2072829132 | F86: =INDEX(Data!E864:Z864,Index!$B$1) -> 88 | G86: 0.1742574257
A87: aged 85-89 | B87: =INDEX(Data!E849:Z849,Index!$B$1) -> 55 | C87: 0.06447831184 | D87: =INDEX(Data!E857:Z857,Index!$B$1) -> 21 | E87: 0.05882352941 | F87: =INDEX(Data!E865:Z865,Index!$B$1) -> 31 | G87: 0.06138613861
A88: aged 90 and over | B88: =INDEX(Data!E850:Z850,Index!$B$1) -> 16 | C88: 0.01875732708 | D88: =INDEX(Data!E858:Z858,Index!$B$1) -> 7 | E88: 0.01960784314 | F88: =INDEX(Data!E866:Z866,Index!$B$1) -> 13 | G88: 0.02574257426
A92: Attendance Allowance (AA)
A93: Source: DWP
A94: =Data!E867 -> Nov 2023 | B94: Total | D94: Males | F94: Females
A95: =Index!$K$6 -> Ashford | B95: No. | C95: % of all claimants | D95: No. | E95: % of all male claimants | F95: No. | G95: % of all female claimants
A96: Total Attendance Allowance Claimants aged 65+ | B96: =INDEX(Data!E868:Z868,Index!$B$1) -> 3354 | C96: =B96/B$96 -> 1 | D96: =INDEX(Data!E875:Z875,Index!$B$1) -> 1280 | E96: =D96/D$96 -> 1 | F96: =INDEX(Data!E882:Z882,Index!$B$1) -> 2064 | G96: =F96/F$96 -> 1
A97: aged 65-69 | B97: =INDEX(Data!E869:Z869,Index!$B$1) -> 105 | C97: 0.0313059034 | D97: =INDEX(Data!E876:Z876,Index!$B$1) -> 55 | E97: 0.04296875 | F97: =INDEX(Data!E883:Z883,Index!$B$1) -> 46 | G97: 0.02228682171
A98: aged 70-74 | B98: =INDEX(Data!E870:Z870,Index!$B$1) -> 362 | C98: 0.1079308289 | D98: =INDEX(Data!E877:Z877,Index!$B$1) -> 158 | E98: 0.1234375 | F98: =INDEX(Data!E884:Z884,Index!$B$1) -> 202 | G98: 0.09786821705
A99: aged 75-79 | B99: =INDEX(Data!E871:Z871,Index!$B$1) -> 720 | C99: 0.2146690519 | D99: =INDEX(Data!E878:Z878,Index!$B$1) -> 318 | E99: 0.2484375 | F99: =INDEX(Data!E885:Z885,Index!$B$1) -> 403 | G99: 0.195251938
A100: aged 80-84 | B100: =INDEX(Data!E872:Z872,Index!$B$1) -> 781 | C100: 0.232856291 | D100: =INDEX(Data!E879:Z879,Index!$B$1) -> 295 | E100: 0.23046875 | F100: =INDEX(Data!E886:Z886,Index!$B$1) -> 485 | G100: 0.2349806202
A101: aged 85-89 | B101: =INDEX(Data!E873:Z873,Index!$B$1) -> 719 | C101: 0.2143709004 | D101: =INDEX(Data!E880:Z880,Index!$B$1) -> 246 | E101: 0.1921875 | F101: =INDEX(Data!E887:Z887,Index!$B$1) -> 472 | G101: 0.2286821705
A102: aged 90 and over | B102: =INDEX(Data!E874:Z874,Index!$B$1) -> 667 | C102: 0.1988670244 | D102: =INDEX(Data!E881:Z881,Index!$B$1) -> 208 | E102: 0.1625 | F102: =INDEX(Data!E888:Z888,Index!$B$1) -> 456 | G102: 0.2209302326
A106: Disability Benefits Claimants (AA or DLA)
A107: Source: DWP
A108: =Data!E889 -> Nov 2023 | B108: Total | D108: Males | F108: Females
A109: =Index!$K$6 -> Ashford | B109: No. | C109: % of all claimants | D109: No. | E109: % of all male claimants | F109: No. | G109: % of all female claimants
A110: Total Disability Benefits Claimants aged 60+ | B110: =INDEX(Data!E890:Z890,Index!$B$1) -> 3482 | C110: =B110/B$110 -> 1 | D110: =INDEX(Data!E898:Z898,Index!$B$1) -> 1557 | E110: =D110/D$110 -> 1 | F110: =INDEX(Data!E906:Z906,Index!$B$1) -> 2450 | G110: =F110/F$110 -> 1
A111: aged 60-64 | B111: =INDEX(Data!E891:Z891,Index!$B$1) -> 45 | C111: =B111/B$110 -> 0.01292360712 | D111: =INDEX(Data!E899:Z899,Index!$B$1) -> 45 | E111: =D111/D$110 -> 0.0289017341 | F111: =INDEX(Data!E907:Z907,Index!$B$1) -> 45 | G111: =F111/F$110 -> 0.01836734694
A112: aged 65-69 | B112: =INDEX(Data!E892:Z892,Index!$B$1) -> 123 | C112: 0.03532452613 | D112: =INDEX(Data!E900:Z900,Index!$B$1) -> 74 | E112: 0.04752729608 | F112: =INDEX(Data!E908:Z908,Index!$B$1) -> 118 | G112: 0.04816326531
A113: aged 70-74 | B113: =INDEX(Data!E893:Z893,Index!$B$1) -> 405 | C113: 0.1163124641 | D113: =INDEX(Data!E901:Z901,Index!$B$1) -> 218 | E113: 0.1400128452 | F113: =INDEX(Data!E909:Z909,Index!$B$1) -> 261 | G113: 0.1065306122
A114: aged 75-79 | B114: =INDEX(Data!E894:Z894,Index!$B$1) -> 770 | C114: 0.2211372774 | D114: =INDEX(Data!E902:Z902,Index!$B$1) -> 411 | E114: 0.2639691715 | F114: =INDEX(Data!E910:Z910,Index!$B$1) -> 551 | G114: 0.2248979592
A115: aged 80-84 | B115: =INDEX(Data!E895:Z895,Index!$B$1) -> 784 | C115: 0.2251579552 | D115: =INDEX(Data!E903:Z903,Index!$B$1) -> 349 | E115: 0.2241490045 | F115: =INDEX(Data!E911:Z911,Index!$B$1) -> 510 | G115: 0.2081632653
A116: aged 85-89 | B116: =INDEX(Data!E896:Z896,Index!$B$1) -> 680 | C116: 0.1952900632 | D116: =INDEX(Data!E904:Z904,Index!$B$1) -> 256 | E116: 0.164418754 | F116: =INDEX(Data!E912:Z912,Index!$B$1) -> 448 | G116: 0.1828571429
A117: aged 90 and over | B117: =INDEX(Data!E897:Z897,Index!$B$1) -> 675 | C117: =IF(ISERROR((B117/B$110)),"-",(B117/B$110)) -> 0.1938541068 | D117: =INDEX(Data!E905:Z905,Index!$B$1) -> 204 | E117: =IF(ISERROR((D117/D$110)),"-",(D117/D$110)) -> 0.1310211946 | F117: =INDEX(Data!E913:Z913,Index!$B$1) -> 492 | G117: =IF(ISERROR((F117/F$110)),"-",(F117/F$110)) -> 0.2008163265
A122: Personal Independence Payments (PIP)
A123: Source: DWP
A124: PIP is a new benefit introduced in 2013 which is paid to qualifiying people with additional health related needs
A125: It will replace DLA for people aged 16 and over who make a claim before their 65th birthday
A127: =Data!E914 -> Nov 2023 | B127: Total | D127: Males | F127: Females
A128: =Index!$K$6 -> Ashford | B128: No. | C128: % of all claimants | D128: No. | E128: % of all male claimants | F128: No. | G128: % of all female claimants
A129: Total PIP Claimants aged 60+ | B129: =INDEX(Data!E915:Z915,Index!$B$1) -> 1638 | C129: =B129/B$129 -> 1 | D129: =INDEX(Data!E918:Z918,Index!$B$1) -> 684 | E129: =D129/D$129 -> 1 | F129: =INDEX(Data!E921:Z921,Index!$B$1) -> 951 | G129: =F129/F$129 -> 1
A130: aged 60-64 | B130: =INDEX(Data!E916:Z916,Index!$B$1) -> 733 | C130: =B130/B$129 -> 0.4474969475 | D130: =INDEX(Data!E919:Z919,Index!$B$1) -> 298 | E130: =D130/D$129 -> 0.4356725146 | F130: =INDEX(Data!E922:Z922,Index!$B$1) -> 434 | G130: =F130/F$129 -> 0.4563617245
A131: aged 65+ | B131: =INDEX(Data!E917:Z917,Index!$B$1) -> 905 | C131: =B131/B$129 -> 0.5525030525 | D131: =INDEX(Data!E920:Z920,Index!$B$1) -> 386 | E131: =D131/D$129 -> 0.5643274854 | F131: =INDEX(Data!E923:Z923,Index!$B$1) -> 517 | G131: =F131/F$129 -> 0.5436382755
A135: Long term health problem or disability: day to day activities are limited
A136: Source: 2021 Census - Custom Table
A137: 2021 | B137: Total | D137: Males | F137: Females
A138: =Index!$L$6 -> Ashford | B138: No. | C138: % of people 60+ whose day to day activities are limited | D138: No. | E138: % of males 60+ whose day to day activities are limited | F138: No. | G138: % of females 60+ whose day to day activities are limited
A139: Aged 60+ | B139: =INDEX(Census2021Data!D401:Y401,Index!$B$1) -> 10126 | C139: =B139/B$139 -> 1 | D139: =INDEX(Census2021Data!D408:Z408,Index!$B$1) -> 4447 | E139: =D139/D$139 -> 1 | F139: =INDEX(Census2021Data!D415:Z415,Index!$B$1) -> 5679 | G139: =F139/F$139 -> 1
A140: 60-64 | B140: =INDEX(Census2021Data!D402:Y402,Index!$B$1) -> 1668 | C140: 0.1647244717 | D140: =INDEX(Census2021Data!D409:Z409,Index!$B$1) -> 784 | E140: 0.1762986283 | F140: =INDEX(Census2021Data!D416:Z416,Index!$B$1) -> 884 | G140: 0.155661208
A141: 65-69 | B141: =INDEX(Census2021Data!D403:Y403,Index!$B$1) -> 1576 | C141: 0.1556389492 | D141: =INDEX(Census2021Data!D410:Z410,Index!$B$1) -> 723 | E141: 0.1625815156 | F141: =INDEX(Census2021Data!D417:Z417,Index!$B$1) -> 853 | G141: 0.1502025004
A142: 70-74 | B142: =INDEX(Census2021Data!D404:Y404,Index!$B$1) -> 1903 | C142: 0.1879320561 | D142: =INDEX(Census2021Data!D411:Z411,Index!$B$1) -> 908 | E142: 0.204182595 | F142: =INDEX(Census2021Data!D418:Z418,Index!$B$1) -> 995 | G142: 0.1752069026
A143: 75-79 | B143: =INDEX(Census2021Data!D405:Y405,Index!$B$1) -> 1696 | C143: 0.1674896307 | D143: =INDEX(Census2021Data!D412:Z412,Index!$B$1) -> 781 | E143: 0.1756240162 | F143: =INDEX(Census2021Data!D419:Z419,Index!$B$1) -> 915 | G143: 0.1611199155
A144: 80-84 | B144: =INDEX(Census2021Data!D406:Y406,Index!$B$1) -> 1452 | C144: 0.1433932451 | D144: =INDEX(Census2021Data!D413:Z413,Index!$B$1) -> 605 | E144: 0.1360467731 | F144: =INDEX(Census2021Data!D420:Z420,Index!$B$1) -> 847 | G144: 0.1491459764
A145: 85+ | B145: =INDEX(Census2021Data!D407:Y407,Index!$B$1) -> 1831 | C145: 0.1808216472 | D145: =INDEX(Census2021Data!D414:Z414,Index!$B$1) -> 646 | E145: 0.1452664718 | F145: =INDEX(Census2021Data!D421:Z421,Index!$B$1) -> 1185 | G145: 0.2086634971
A149: Providing unpaid care aged 50+
A150: Source: 2021 Census - Custom Table
A151: 2021 | B151: Total | D151: Males | F151: Females
A152: =Index!$L$6 -> Ashford | B152: No. | C152: % of unpaid carers | D152: No. | E152: % of unpaid male carers | F152: No. | G152: % of unpaid female carers
A153: Aged 50+ | B153: =INDEX(Census2021Data!D423:Z423,Index!$B$1) -> 6542 | C153: =B153/B$153 -> 1 | D153: =INDEX(Census2021Data!D428:Z428,Index!$B$1) -> 2747 | E153: =D153/D$153 -> 1 | F153: =INDEX(Census2021Data!D433:Z433,Index!$B$1) -> 3795 | G153: =F153/F$153 -> 1
A154: 50-64 | B154: =INDEX(Census2021Data!D424:Z424,Index!$B$1) -> 3913 | C154: =B154/B$153 -> 0.5981351269 | D154: =INDEX(Census2021Data!D429:Z429,Index!$B$1) -> 1568 | E154: =D154/D$153 -> 0.570804514 | F154: =INDEX(Census2021Data!D434:Z434,Index!$B$1) -> 2345 | G154: =F154/F$153 -> 0.6179183136
A155: 65-74 | B155: =INDEX(Census2021Data!D425:Z425,Index!$B$1) -> 1543 | C155: =B155/B$153 -> 0.2358605931 | D155: =INDEX(Census2021Data!D430:Z430,Index!$B$1) -> 632 | E155: =D155/D$153 -> 0.2300691664 | F155: =INDEX(Census2021Data!D435:Z435,Index!$B$1) -> 911 | G155: =F155/F$153 -> 0.2400527009
A156: 75-84 | B156: =INDEX(Census2021Data!D426:Z426,Index!$B$1) -> 858 | C156: =B156/B$153 -> 0.1311525527 | D156: =INDEX(Census2021Data!D431:Z431,Index!$B$1) -> 410 | E156: =D156/D$153 -> 0.1492537313 | F156: =INDEX(Census2021Data!D436:Z436,Index!$B$1) -> 448 | G156: =F156/F$153 -> 0.1180500659
A157: 85+ | B157: =INDEX(Census2021Data!D427:Z427,Index!$B$1) -> 228 | C157: =B157/B$153 -> 0.0348517273 | D157: =INDEX(Census2021Data!D432:Z432,Index!$B$1) -> 137 | E157: =D157/D$153 -> 0.04987258828 | F157: =INDEX(Census2021Data!D437:Z437,Index!$B$1) -> 91 | G157: =F157/F$153 -> 0.02397891963
A160: Glossary
A163: Population by age and gender
A164: All numbers are separately rounded to the nearest 100. Percentages are calculated using unrounded data
A165: Source: 2023 Mid-year population estimates, Office for National Statistics (ONS)
A167: State Pension Claimants
A168: The State Pension is a regular payment you can receive when you reach State Pension age. It is based on your National Insurance contributions.
A169: The State Pension age (formerly aged 60 for females and 65 for males) will rise in the future. From December 2018 the State Pension age for both men and women will start to increase
A170: to reach 66 by October 2020. This will mean women's State Pension age will increase more quickly to 65 between April 2016 and November 2018.
A171: Data is as at November each year
A172: Source: DWP - Note: percentages are based on rounded figures so may exceed 100% in some cases
A174: Pension Credit Claimants
A175: Pension Credit is an income related benefit for pensioners living in Great Britain and is available in two parts:
A176: Guarantee Credit - this tops up weekly income to a guaranteed weekly level
A177: Savings Credit - this is extra money for people who have an income higher than the Basic State Pension or who have a small amount of savings.
A178: Data is as at November each year
A179: Source: DWP
A181: Disability Benefits Claimants
A182: This data gives a count of the number of people claiming the disability related benefits Disability Living Allowance (DLA) and Attendance Allowance (AA).
A183: Claimants of Disability living Allowance must be aged under 65 when they make their claim, but may continue to receive it beyond that age.
A184: For all new claims from the age of 65 the claimant would be for eligible for the disability benefit Attendance Allowance.
A185: This section also presents the number of people claiming Personal Independence Payments (PIP)
A186: PIP was introduced in 2013 to replace DLA for people aged 16 and over who claim before their 65th birthday.
A187: Data is as at November each year
A188: Source: Department for Work & Pensions Longitudinal Study
A190: Long term health problem or disability
A191: This data shows the number of people who consider themselves to have a limiting long term illness, health problem or disability which limits daily activities or work
A192: Source: 2021 Census, Office for National Statistics
A194: Carers
A195: The 2021 Census gives us data looking at the number of people who provide unpaid care. This section looks particularly at older people (aged 60 and above) who provide unpaid care.
A196: Source: 2021 Census, Office for National Statistics

Sheet Economy
A1: Economy
A2: Includes information about the working age population, employees, economic activity, People in employment, employment by industry and occupation,
A3: method of travel to work and distance travelled, unemployment and worklessness and qualifications. | N3: =Profile!E14 -> Version date: 4 February 2025
G4: Select geography: | K4: Select topic:
A6: District Profile for | B6: =Index!C1 -> Ashford
A9: Population aged 16-64 (working age)
A10: Source: ONS Mid Year Estimates
A11: =Data!E924 -> Mid 2023 | B11: =Index!K6 -> Ashford | D11: Kent
B12: Number | C12: % | D12: Number | E12: %
A13: Males | B13: =INDEX(Data!E926:Z926,Index!$B$1) -> 40900 | C13: =INDEX(Data!E929:Z929,Index!$B$1) -> 0.6078507117 | D13: =Data!Q926 -> 474600 | E13: =Data!Q929 -> 0.6053088045
A14: Females | B14: =INDEX(Data!E927:Z927,Index!$B$1) -> 43000 | C14: =INDEX(Data!E930:Z930,Index!$B$1) -> 0.6060273046 | D14: =Data!Q927 -> 496900 | E14: =Data!Q930 -> 0.6014258135 | G14: =A9&" - "&A11&" - "&Index!K6 -> Population aged 16-64 (working age) - Mid 2023 - Ashford
A15: Total | B15: =INDEX(Data!E925:Z925,Index!$B$1) -> 83900 | C15: =INDEX(Data!E928:Z928,Index!$B$1) -> 0.6069148051 | D15: =Data!Q925 -> 971500 | E15: =Data!Q928 -> 0.6033165016
H16: working age | I16: Above or below working age
H17: =C13 -> 0.6078507117 | I17: =100%-H17 -> 0.3921492883
H18: =C14 -> 0.6060273046 | I18: =100%-H18 -> 0.3939726954
A19: Labour market pressure | H19: =C15 -> 0.6069148051
A20: =Data!E960 -> Mid 2023 | B20: =Index!K6 -> Ashford | C20: Kent | H20: =100%-H19 -> 0.3930851949
A21: Those aged 5-14 | B21: =INDEX(Data!E961:Z961,Index!$B$1) -> 17800 | C21: =Data!Q961 -> 201000
A22: Those aged 55-64 | B22: =INDEX(Data!E962:Z962,Index!$B$1) -> 18400 | C22: =Data!Q962 -> 212000
A23: Ratio | B23: =INDEX(Data!E963:Z963,Index!$B$1) -> 0.9673913043 | C23: =Data!Q963 -> 0.9481132075
A24: Note: Labour market pressure is the difference between those about to leave and those
A25: about to join the labour market
A33: Economic Activity
A34: Source: 2021 Census Custom Table
B35: All People | D35: Males | F35: Females
A36: =Index!L6 -> Ashford | B36: Number | C36: % of all people 16+ | D36: Number | E36: % of 16+ Males | F36: Number | G36: % of 16+ Females
A37: Aged 16 and over | B37: =INDEX(Census2021Data!D439:Y439,Index!$B$1) -> 106766 | C37: =B37/B$37 -> 1 | D37: =INDEX(Census2021Data!D467:Y467,Index!$B$1) -> 51342 | E37: =D37/D$37 -> 1 | F37: =INDEX(Census2021Data!D453:Y453,Index!$B$1) -> 55422 | G37: =F37/F$37 -> 1
A38: Economically Active | B38: =INDEX(Census2021Data!D440:Y440,Index!$B$1) -> 66677 | C38: 0.6245152951 | D38: =INDEX(Census2021Data!D468:Y468,Index!$B$1) -> 34946 | E38: 0.6806513186 | F38: =INDEX(Census2021Data!D454:Y454,Index!$B$1) -> 31731 | G38: 0.5725343726
A39: Employee: Part-time | B39: =INDEX(Census2021Data!D441:Y441,Index!$B$1) -> 18592 | C39: 0.1741378341 | D39: =INDEX(Census2021Data!D469:Y469,Index!$B$1) -> 5392 | E39: 0.1050212302 | F39: =INDEX(Census2021Data!D455:Y455,Index!$B$1) -> 13200 | G39: 0.2381725669
A40: Employee: Full-time | B40: =INDEX(Census2021Data!D442:Y442,Index!$B$1) -> 45023 | C40: 0.4216979188 | D40: =INDEX(Census2021Data!D470:Y470,Index!$B$1) -> 27942 | E40: 0.5442327919 | F40: =INDEX(Census2021Data!D456:Y456,Index!$B$1) -> 17081 | G40: 0.3081989102
A41: Self-employed | B41: =INDEX(Census2021Data!D443:Y443,Index!$B$1) -> 11573 | C41: 0.1083959313 | D41: =INDEX(Census2021Data!D471:Y471,Index!$B$1) -> 7802 | E41: 0.1519613572 | F41: =INDEX(Census2021Data!D457:Y457,Index!$B$1) -> 3771 | G41: 0.06804157194
A42: Unemployed | B42: =INDEX(Census2021Data!D444:Y444,Index!$B$1) -> 3063 | C42: 0.02868890845 | D42: =INDEX(Census2021Data!D472:Y472,Index!$B$1) -> 1614 | E42: 0.03143625102 | F42: =INDEX(Census2021Data!D458:Y458,Index!$B$1) -> 1449 | G42: 0.02614485222
A43: Full-time student | B43: =INDEX(Census2021Data!D445:Y445,Index!$B$1) -> 1851 | C43: 0.01733697994 | D43: =INDEX(Census2021Data!D473:Y473,Index!$B$1) -> 718 | E43: 0.01398465194 | F43: =INDEX(Census2021Data!D459:Y459,Index!$B$1) -> 1133 | G43: 0.02044314532
A44: Economically Inactive | B44: =INDEX(Census2021Data!D446:Y446,Index!$B$1) -> 40087 | C44: 0.3754659723 | D44: =INDEX(Census2021Data!D474:Y474,Index!$B$1) -> 16396 | E44: 0.3193486814 | F44: =INDEX(Census2021Data!D460:Y460,Index!$B$1) -> 23691 | G44: 0.4274656274
A45: Retired | B45: =INDEX(Census2021Data!D447:Y447,Index!$B$1) -> 24070 | C45: 0.2254463031 | D45: =INDEX(Census2021Data!D475:Y475,Index!$B$1) -> 10650 | E45: 0.2074325114 | F45: =INDEX(Census2021Data!D461:Y461,Index!$B$1) -> 13420 | G45: 0.2421421096
A46: Student (including full-time students) | B46: =INDEX(Census2021Data!D448:Y448,Index!$B$1) -> 3927 | C46: 0.03678137235 | D46: =INDEX(Census2021Data!D476:Y476,Index!$B$1) -> 1987 | E46: 0.03870125823 | F46: =INDEX(Census2021Data!D462:Y462,Index!$B$1) -> 1940 | G46: 0.03500414998
A47: Looking after home or family | B47: =INDEX(Census2021Data!D449:Y449,Index!$B$1) -> 5431 | C47: 0.05086825394 | D47: =INDEX(Census2021Data!D477:Y477,Index!$B$1) -> 725 | E47: 0.01412099256 | F47: =INDEX(Census2021Data!D463:Y463,Index!$B$1) -> 4706 | G47: 0.08491212876
A48: Long-term sick or disabled | B48: =INDEX(Census2021Data!D450:Y450,Index!$B$1) -> 3636 | C48: 0.03405578555 | D48: =INDEX(Census2021Data!D478:Y478,Index!$B$1) -> 1519 | E48: 0.02958591407 | F48: =INDEX(Census2021Data!D464:Y464,Index!$B$1) -> 2117 | G48: 0.03819782758
A49: Other | B49: =INDEX(Census2021Data!D451:Y451,Index!$B$1) -> 3023 | C49: 0.02831425735 | D49: =INDEX(Census2021Data!D479:Y479,Index!$B$1) -> 1515 | E49: 0.02950800514 | F49: =INDEX(Census2021Data!D465:Y465,Index!$B$1) -> 1508 | G49: 0.02720941143
A53: Economically active population by age
A54: Source: Annual Population Survey (ONS)
A55: =Data!E947 -> 2023 | B55: =B6 -> Ashford
B56: Males | C56: Females | D56: Total | H56: =A53&" - "&A55&" - "&B6 -> Economically active population by age - 2023 - Ashford
A57: Aged 16-24 | B57: =INDEX(Data!E932:Z932,Index!$B$1) -> - | C57: =INDEX(Data!E940:Z940,Index!$B$1) -> 4300 | D57: =INDEX(Data!E948:Z948,Index!$B$1) -> 5600
A58: Aged 25-34 | B58: =INDEX(Data!E933:Z933,Index!$B$1) -> 6400 | C58: =INDEX(Data!E941:Z941,Index!$B$1) -> 4600 | D58: =INDEX(Data!E949:Z949,Index!$B$1) -> 11000
A59: Aged 35-49 | B59: =INDEX(Data!E934:Z934,Index!$B$1) -> 9900 | C59: =INDEX(Data!E942:Z942,Index!$B$1) -> 5600 | D59: =INDEX(Data!E950:Z950,Index!$B$1) -> 15500
A60: Aged 50-64 | B60: =INDEX(Data!E935:Z935,Index!$B$1) -> 13200 | C60: =INDEX(Data!E943:Z943,Index!$B$1) -> 11700 | D60: =INDEX(Data!E951:Z951,Index!$B$1) -> 24900
A61: Aged 65+ | B61: =INDEX(Data!E936:Z936,Index!$B$1) -> 3800 | C61: =INDEX(Data!E944:Z944,Index!$B$1) -> 1700 | D61: =INDEX(Data!E952:Z952,Index!$B$1) -> 5500
A62: Aged 16-64 | B62: =INDEX(Data!E937:Z937,Index!$B$1) -> 30800 | C62: =INDEX(Data!E945:Z945,Index!$B$1) -> 26200 | D62: =INDEX(Data!E953:Z953,Index!$B$1) -> 57000
A63: Aged 16-74 | B63: =INDEX(Data!E938:Z938,Index!$B$1) -> 0 | C63: =INDEX(Data!E946:Z946,Index!$B$1) -> 0 | D63: =INDEX(Data!E954:Z954,Index!$B$1) -> 0
A64: Note: "-" figures missing or disclosive
A74: Workforce Forecast (Economically Active Population)
A75: Source:KCC Housing Led Forecasts November 2020 | G75: ="Workforce "&A76&" - "&B6 -> Workforce Kent Housing Led Forecasts - November 2020 - Ashford
A76: Kent Housing Led Forecasts - November 2020
A77: =B6 -> Ashford
A78: 2018 | B78: =INDEX(Data!E955:Z955,Index!$B$1) -> 93500
A79: 2023 | B79: =INDEX(Data!E956:Z956,Index!$B$1) -> 101700
A80: 2028 | B80: =INDEX(Data!E957:Z957,Index!$B$1) -> 109800
A81: 2033 | B81: =INDEX(Data!E958:Z958,Index!$B$1) -> 113600
A82: 2038 | B82: =INDEX(Data!E959:Z959,Index!$B$1) -> 116500
A89: ="Employment Rate"&" - "&Data!E964&" - "&Index!N6 -> Employment Rate - 2023 - Ashford
A90: Source: NOMIS - Annual Population Survey
B91: Males | C91: Females | D91: Total
A92: 16-24 | B92: =INDEX(Data!E965:Z965,Index!$B$1) -> - | C92: =INDEX(Data!E969:Z969,Index!$B$1) -> 0.5180722892 | D92: =INDEX(Data!E973:Z973,Index!$B$1) -> 0.5185185185
A93: 25-49 | B93: =INDEX(Data!E966:Z966,Index!$B$1) -> 0.8508287293 | C93: =INDEX(Data!E970:Z970,Index!$B$1) -> 0.5396825397 | D93: =INDEX(Data!E974:Z974,Index!$B$1) -> 0.6918918919
A94: 50-64 | B94: =INDEX(Data!E967:Z967,Index!$B$1) -> 0.7770700637 | C94: =INDEX(Data!E971:Z971,Index!$B$1) -> 0.66875 | D94: =INDEX(Data!E975:Z975,Index!$B$1) -> 0.7223974763
A95: 16-64 | B95: =INDEX(Data!E968:Z968,Index!$B$1) -> 0.8011049724 | C95: =INDEX(Data!E972:Z972,Index!$B$1) -> 0.5796766744 | D95: =INDEX(Data!E976:Z976,Index!$B$1) -> 0.6813602015
A107: ="Annual Average Unemployment Rate - "&A110&"-"&A124 -> Annual Average Unemployment Rate - 2010-2024
A108: Source: NOMIS - Claimant Count
B109: =Index!N6 -> Ashford | C109: Kent | D109: GB
A110: 2010 | B110: =INDEX(Data!E977:Z977,Index!$B$1) -> 0.025 | C110: =Data!Q977 -> 0.029 | D110: =Data!Z977 -> 0.037
A111: 2011 | B111: =INDEX(Data!E978:Z978,Index!$B$1) -> 0.026 | C111: =Data!Q978 -> 0.03 | D111: =Data!Z978 -> 0.037
A112: 2012 | B112: =INDEX(Data!E979:Z979,Index!$B$1) -> 0.027 | C112: =Data!Q979 -> 0.032 | D112: =Data!Z979 -> 0.038
A113: 2013 | B113: =INDEX(Data!E980:Z980,Index!$B$1) -> 0.024 | C113: =Data!Q980 -> 0.028 | D113: =Data!Z980 -> 0.034
A114: 2014 | B114: =INDEX(Data!E981:Z981,Index!$B$1) -> 0.017 | C114: =Data!Q981 -> 0.02 | D114: =Data!Z981 -> 0.025
A115: 2015 | B115: =INDEX(Data!E982:Z982,Index!$B$1) -> 0.013 | C115: =Data!Q982 -> 0.015 | D115: =Data!Z982 -> 0.019
A116: 2016 | B116: =INDEX(Data!E983:Z983,Index!$B$1) -> 0.015 | C116: =Data!Q983 -> 0.016 | D116: =Data!Z983 -> 0.018
A117: 2017 | B117: =INDEX(Data!E984:Z984,Index!$B$1) -> 0.016 | C117: =Data!Q984 -> 0.017 | D117: =Data!Z984 -> 0.019
A118: 2018 | B118: =INDEX(Data!E985:Z985,Index!$B$1) -> 0.019 | C118: =Data!Q985 -> 0.019 | D118: =Data!Z985 -> 0.022
A119: 2019 | B119: =INDEX(Data!E986:Z986,Index!$B$1) -> 0.025 | C119: =Data!Q986 -> 0.025 | D119: =Data!Z986 -> 0.027
A120: 2020 | B120: =INDEX(Data!E987:Z987,Index!$B$1) -> 0.052 | C120: =Data!Q987 -> 0.052 | D120: =Data!Z987 -> 0.054
A121: 2021 | B121: =INDEX(Data!E988:Z988,Index!$B$1) -> 0.049 | C121: =Data!Q988 -> 0.05 | D121: =Data!Z988 -> 0.055
A122: 2022 | B122: =INDEX(Data!E989:Z989,Index!$B$1) -> 0.032 | C122: =Data!Q989 -> 0.034 | D122: =Data!Z989 -> 0.038
A123: 2023 | B123: =INDEX(Data!E990:Z990,Index!$B$1) -> 0.03 | C123: =Data!Q990 -> 0.033 | D123: =Data!Z990 -> 0.037
A124: 2024 | B124: =INDEX(Data!E991:Z991,Index!$B$1) -> 0.032 | C124: =Data!Q991 -> 0.035 | D124: =Data!Z991 -> 0.041
A126: Unemployment rate calculated as a proportion of those aged 16-64
A134: Annual average unemployment by age and sex, 2023 (% of unemployed)
A135: Source: NOMIS - Claimant Count
A136: =Index!N6 -> Ashford | B136: Males | D136: Females | F136: Total | I136: =A134&" - "&B6 -> Annual average unemployment by age and sex, 2023 (% of unemployed) - Ashford
A137: 18-24 | B137: =INDEX(Data!E993:Z993,Index!$B$1) -> 290 | C137: =B137/B$140 -> 0.2109090909 | D137: =INDEX(Data!E997:Z997,Index!$B$1) -> 195 | E137: =D137/D$140 -> 0.1591836735 | F137: =INDEX(Data!E1001:Z1001,Index!$B$1) -> 485 | G137: =F137/F$140 -> 0.1868978805
A138: 25-49 | B138: =INDEX(Data!E994:Z994,Index!$B$1) -> 755 | C138: =B138/B$140 -> 0.5490909091 | D138: =INDEX(Data!E998:Z998,Index!$B$1) -> 760 | E138: =D138/D$140 -> 0.6204081633 | F138: =INDEX(Data!E1002:Z1002,Index!$B$1) -> 1515 | G138: =F138/F$140 -> 0.5838150289
A139: 50-64 | B139: =INDEX(Data!E995:Z995,Index!$B$1) -> 325 | C139: =B139/B$140 -> 0.2363636364 | D139: =INDEX(Data!E999:Z999,Index!$B$1) -> 265 | E139: =D139/D$140 -> 0.2163265306 | F139: =INDEX(Data!E1003:Z1003,Index!$B$1) -> 590 | G139: =F139/F$140 -> 0.2273603083
A140: 16-64 | B140: =INDEX(Data!E996:Z996,Index!$B$1) -> 1375 | C140: =B140/B$140 -> 1 | D140: =INDEX(Data!E1000:Z1000,Index!$B$1) -> 1225 | E140: =D140/D$140 -> 1 | F140: =INDEX(Data!E1004:Z1004,Index!$B$1) -> 2595 | G140: =F140/F$140 -> 1
A157: Employee Jobs
A158: Source: BRES
A160: =Data!E1149 -> 2023 | B160: =B6 -> Ashford | D160: Kent | F160: England | J160: ="Employee Jobs in "&B160&", "&A160 -> Employee Jobs in Ashford , 2023
B161: Number | C161: % | D161: Number | E161: % | F161: Number | G161: %
A162: Full time | B162: =INDEX(Data!E1150:Z1150,Index!$B$1) -> 41500 | C162: =INDEX(Data!E1153:Z1153,Index!$B$1) -> 0.6693548387 | D162: =Data!Q1150 -> 434000 | E162: =Data!Q1153 -> 0.6676923077 | F162: =Data!Z1150 -> 19016000 | G162: =Data!Z1153 -> 0.6915789282
A163: Part time | B163: =INDEX(Data!E1151:Z1151,Index!$B$1) -> 20500 | C163: =INDEX(Data!E1154:Z1154,Index!$B$1) -> 0.3306451613 | D163: =Data!Q1151 -> 216500 | E163: =Data!Q1154 -> 0.3330769231 | F163: =Data!Z1151 -> 8480000 | G163: =Data!Z1154 -> 0.3084028876
A164: Total | B164: =INDEX(Data!E1152:Z1152,Index!$B$1) -> 62000 | C164: =INDEX(Data!E1155:Z1155,Index!$B$1) -> 1 | D164: =Data!Q1152 -> 650000 | E164: =Data!Q1155 -> 1 | F164: =Data!Z1152 -> 27496500 | G164: =Data!Z1155 -> 1
A172: Employee jobs by industry
A173: Source: BRES
A175: =Data!E1149 -> 2023 | B175: =B6 -> Ashford | D175: Kent | F175: England | J175: ="Industrial structure, "&A175 -> Industrial structure, 2023
B176: Number | C176: % | D176: Number | E176: % | F176: Number | G176: %
A177: Agriculture, forestry and fishing | B177: =INDEX(Data!E1156:Z1156,Index!$B$1) -> 1100 | C177: =INDEX(Data!E1177:Z1177,Index!$B$1) -> 0.01814516129 | D177: =Data!Q1156 -> 10000 | E177: =Data!Q1177 -> 0.01538461538 | F177: =Data!Z1156 -> 142500 | G177: =Data!Z1177 -> 0.00518247777
A178: Mining and quarrying | B178: =INDEX(Data!E1157:Z1157,Index!$B$1) -> 0 | C178: =INDEX(Data!E1178:Z1178,Index!$B$1) -> 0.0002419354839 | D178: =Data!Q1157 -> 200 | E178: =Data!Q1178 -> 0.0003076923077 | F178: =Data!Z1157 -> 19500 | G178: =Data!Z1178 -> 0.0007091811685
A179: Manufacturing | B179: =INDEX(Data!E1158:Z1158,Index!$B$1) -> 4800 | C179: =INDEX(Data!E1179:Z1179,Index!$B$1) -> 0.07661290323 | D179: =Data!Q1158 -> 38500 | E179: =Data!Q1179 -> 0.05923076923 | F179: =Data!Z1158 -> 2035500 | G179: =Data!Z1179 -> 0.07402760351
A180: Electricity, gas, steam and air conditioning supply | B180: =INDEX(Data!E1159:Z1159,Index!$B$1) -> 400 | C180: =INDEX(Data!E1180:Z1180,Index!$B$1) -> 0.00685483871 | D180: =Data!Q1159 -> 2000 | E180: =Data!Q1180 -> 0.003076923077 | F180: =Data!Z1159 -> 92500 | G180: =Data!Z1180 -> 0.003364064517
A181: Water supply; sewerage, waste management and remediation activities | B181: =INDEX(Data!E1160:Z1160,Index!$B$1) -> 600 | C181: =INDEX(Data!E1181:Z1181,Index!$B$1) -> 0.008870967742 | D181: =Data!Q1160 -> 6000 | E181: =Data!Q1181 -> 0.009230769231 | F181: =Data!Z1160 -> 192000 | G181: =Data!Z1181 -> 0.00698270689
A182: Construction | B182: =INDEX(Data!E1161:Z1161,Index!$B$1) -> 3800 | C182: =INDEX(Data!E1182:Z1182,Index!$B$1) -> 0.06048387097 | D182: =Data!Q1161 -> 44000 | E182: =Data!Q1182 -> 0.06769230769 | F182: =Data!Z1161 -> 1298500 | G182: =Data!Z1182 -> 0.04722419217
A183: Wholesale and retail trade; repair of motor vehicles and motorcycles | B183: =INDEX(Data!E1162:Z1162,Index!$B$1) -> 12000 | C183: =INDEX(Data!E1183:Z1183,Index!$B$1) -> 0.1935483871 | D183: =Data!Q1162 -> 105000 | E183: =Data!Q1183 -> 0.1615384615 | F183: =Data!Z1162 -> 3773500 | G183: =Data!Z1183 -> 0.1372356482
A184: Transportation and storage | B184: =INDEX(Data!E1163:Z1163,Index!$B$1) -> 2400 | C184: =INDEX(Data!E1184:Z1184,Index!$B$1) -> 0.03830645161 | D184: =Data!Q1163 -> 37500 | E184: =Data!Q1184 -> 0.05769230769 | F184: =Data!Z1163 -> 1400500 | G184: =Data!Z1184 -> 0.05093375521
A185: Accommodation and food service activities | B185: =INDEX(Data!E1164:Z1164,Index!$B$1) -> 4000 | C185: =INDEX(Data!E1185:Z1185,Index!$B$1) -> 0.06451612903 | D185: =Data!Q1164 -> 56500 | E185: =Data!Q1185 -> 0.08692307692 | F185: =Data!Z1164 -> 2156000 | G185: =Data!Z1185 -> 0.07840997945
A186: Information and communication | B186: =INDEX(Data!E1165:Z1165,Index!$B$1) -> 1400 | C186: =INDEX(Data!E1186:Z1186,Index!$B$1) -> 0.02217741935 | D186: =Data!Q1165 -> 16500 | E186: =Data!Q1186 -> 0.02538461538 | F186: =Data!Z1165 -> 1309500 | G186: =Data!Z1186 -> 0.04762424309
A187: Financial and insurance activities | B187: =INDEX(Data!E1166:Z1166,Index!$B$1) -> 700 | C187: =INDEX(Data!E1187:Z1187,Index!$B$1) -> 0.01048387097 | D187: =Data!Q1166 -> 14500 | E187: =Data!Q1187 -> 0.02230769231 | F187: =Data!Z1166 -> 947500 | G187: =Data!Z1187 -> 0.03445893114
A188: Real estate activities | B188: =INDEX(Data!E1167:Z1167,Index!$B$1) -> 700 | C188: =INDEX(Data!E1188:Z1188,Index!$B$1) -> 0.01048387097 | D188: =Data!Q1167 -> 10500 | E188: =Data!Q1188 -> 0.01615384615 | F188: =Data!Z1167 -> 535500 | G188: =Data!Z1188 -> 0.01947520594
A189: Professional, scientific and technical activities | B189: =INDEX(Data!E1168:Z1168,Index!$B$1) -> 3000 | C189: =INDEX(Data!E1189:Z1189,Index!$B$1) -> 0.04838709677 | D189: =Data!Q1168 -> 38500 | E189: =Data!Q1189 -> 0.05923076923 | F189: =Data!Z1168 -> 2644000 | G189: =Data!Z1189 -> 0.0961576928
A190: Administrative and support service activities | B190: =INDEX(Data!E1169:Z1169,Index!$B$1) -> 6000 | C190: =INDEX(Data!E1190:Z1190,Index!$B$1) -> 0.09677419355 | D190: =Data!Q1169 -> 55500 | E190: =Data!Q1190 -> 0.08538461538 | F190: =Data!Z1169 -> 2442500 | G190: =Data!Z1190 -> 0.08882948739
A191: Public administration and defence; compulsory social security | B191: =INDEX(Data!E1170:Z1170,Index!$B$1) -> 1800 | C191: =INDEX(Data!E1191:Z1191,Index!$B$1) -> 0.02822580645 | D191: =Data!Q1170 -> 27500 | E191: =Data!Q1191 -> 0.04230769231 | F191: =Data!Z1170 -> 1199000 | G191: =Data!Z1191 -> 0.0436055498
A192: Education | B192: =INDEX(Data!E1171:Z1171,Index!$B$1) -> 5000 | C192: =INDEX(Data!E1192:Z1192,Index!$B$1) -> 0.08064516129 | D192: =Data!Q1171 -> 60500 | E192: =Data!Q1192 -> 0.09307692308 | F192: =Data!Z1171 -> 2350500 | G192: =Data!Z1192 -> 0.085483607
A193: Human health and social work activities | B193: =INDEX(Data!E1172:Z1172,Index!$B$1) -> 12500 | C193: =INDEX(Data!E1193:Z1193,Index!$B$1) -> 0.2016129032 | D193: =Data!Q1172 -> 96000 | E193: =Data!Q1193 -> 0.1476923077 | F193: =Data!Z1172 -> 3713000 | G193: =Data!Z1193 -> 0.1350353681
A194: Arts, entertainment and recreation | B194: =INDEX(Data!E1173:Z1173,Index!$B$1) -> 1100 | C194: =INDEX(Data!E1194:Z1194,Index!$B$1) -> 0.01814516129 | D194: =Data!Q1173 -> 17000 | E194: =Data!Q1194 -> 0.02615384615 | F194: =Data!Z1173 -> 702000 | G194: =Data!Z1194 -> 0.02553052207
A195: Other service activities | B195: =INDEX(Data!E1174:Z1174,Index!$B$1) -> 1000 | C195: =INDEX(Data!E1195:Z1195,Index!$B$1) -> 0.01612903226 | D195: =Data!Q1174 -> 13000 | E195: =Data!Q1195 -> 0.02 | F195: =Data!Z1174 -> 542500 | G195: =Data!Z1195 -> 0.01972978379
A196: Activities of households as employers;undifferentiated goods-and services-producing activities of households for own use | B196: =INDEX(Data!E1175:Z1175,Index!$B$1) -> 0 | C196: =INDEX(Data!E1196:Z1196,Index!$B$1) -> 0 | D196: =Data!Q1175 -> 0 | E196: =Data!Q1196 -> 0 | F196: =Data!Z1175 -> 0 | G196: =Data!Z1196 -> 0
A197: Activities of extraterritorial organisations and bodies | B197: =INDEX(Data!E1176:Z1176,Index!$B$1) -> 0 | C197: =INDEX(Data!E1197:Z1197,Index!$B$1) -> 0 | D197: =Data!Q1176 -> 0 | E197: =Data!Q1197 -> 0 | F197: =Data!Z1176 -> 0 | G197: =Data!Z1197 -> 0
A200: Employee jobs by industrial groupings
A202: =Data!E1149 -> 2023 | B202: =B6 -> Ashford | D202: Kent | F202: England | J202: =A200&", "&A202 -> Employee jobs by industrial groupings, 2023
B203: Number | C203: % | D203: Number | E203: % | F203: Number | G203: %
A204: Knowledge Economy | B204: =INDEX(Data!E1198:Z1198,Index!$B$1) -> 6500 | C204: =INDEX(Data!E1203:Z1203,Index!$B$1) -> 0.1048387097 | D204: =Data!Q1198 -> 89500 | E204: =Data!Q1203 -> 0.1376923077 | F204: =Data!Z1198 -> 5917000 | G204: =Data!Z1203 -> 0.2151910243
A205: Creative Industries | B205: =INDEX(Data!E1199:Z1199,Index!$B$1) -> 900 | C205: =INDEX(Data!E1204:Z1204,Index!$B$1) -> 0.01408645161 | D205: =Data!Q1199 -> 8900 | E205: =Data!Q1204 -> 0.01368339231 | F205: =Data!Z1199 -> 676800 | G205: =Data!Z1204 -> 0.02461247795
A206: Tourism | B206: =INDEX(Data!E1200:Z1200,Index!$B$1) -> 5500 | C206: =INDEX(Data!E1205:Z1205,Index!$B$1) -> 0.08870967742 | D206: =Data!Q1200 -> 76000 | E206: =Data!Q1205 -> 0.1169230769 | F206: =Data!Z1200 -> 2980500 | G206: =Data!Z1205 -> 0.108395614
A207: Life Sciences | B207: =INDEX(Data!E1201:Z1201,Index!$B$1) -> 10000 | C207: =INDEX(Data!E1206:Z1206,Index!$B$1) -> 0.1612903226 | D207: =Data!Q1201 -> 63000 | E207: =Data!Q1206 -> 0.09692307692 | F207: =Data!Z1201 -> 2680000 | G207: =Data!Z1206 -> 0.09746695034
A208: Food & Drink Production | B208: =INDEX(Data!E1202:Z1202,Index!$B$1) -> 2000 | C208: =INDEX(Data!E1207:Z1207,Index!$B$1) -> 0.03225806452 | D208: =Data!Q1202 -> 16000 | E208: =Data!Q1207 -> 0.02461538462 | F208: =Data!Z1202 -> 499500 | G208: =Data!Z1207 -> 0.01816594839
A212: Job Density - number of jobs per head of population aged 16-64
A213: Source: Office for National Statistics
A214: =Data!C1208 -> 2022 | B214: Density
A215: =B6 -> Ashford | B215: =INDEX(Data!E1208:Z1208,Index!$B$1) -> 0.9
A216: Kent | B216: =Data!Q1208 -> 0.82
A217: England & Wales | B217: =Data!Y1208 -> 0.87
A220: Employment by Industry 2021
A221: Source: 2021 Census Table TS060
A222: =Index!L6 -> Ashford | B222: Number | C222: % of all people aged over 16 in employment
A223: All Industries | B223: =INDEX(Census2021Data!D481:Y481,Index!$B$1) -> 63614 | C223: =B223/B$223 -> 1
A224: A Agriculture, forestry and fishing | B224: =INDEX(Census2021Data!D482:Y482,Index!$B$1) -> 993 | C224: =B224/B$223 -> 0.01560977143
A225: B Mining and quarrying | B225: =INDEX(Census2021Data!D483:Y483,Index!$B$1) -> 31 | C225: 0.0004873141132
A226: C Manufacturing | B226: =INDEX(Census2021Data!D484:Y484,Index!$B$1) -> 4237 | C226: 0.06660483541
A227: D Electricity, gas, steam and air conditioning supply | B227: =INDEX(Census2021Data!D485:Y485,Index!$B$1) -> 470 | C227: 0.007388310749
A228: E Water supply; sewerage, waste management and remediation activities | B228: =INDEX(Census2021Data!D486:Y486,Index!$B$1) -> 420 | C228: 0.006602320244
A229: F Construction | B229: =INDEX(Census2021Data!D487:Y487,Index!$B$1) -> 6985 | C229: 0.1098028736
A230: G Wholesale and retail trade; repair of motor vehicles and motor cycles | B230: =INDEX(Census2021Data!D488:Y488,Index!$B$1) -> 9806 | C230: 0.1541484579
A231: H Transport and storage | B231: =INDEX(Census2021Data!D489:Y489,Index!$B$1) -> 3217 | C231: 0.05057062911
A232: I Accommodation and food service activities | B232: =INDEX(Census2021Data!D490:Y490,Index!$B$1) -> 2817 | C232: 0.04428270506
A233: J Information and communication | B233: =INDEX(Census2021Data!D491:Y491,Index!$B$1) -> 2300 | C233: 0.03615556324
A234: K Financial and insurance activities | B234: =INDEX(Census2021Data!D492:Y492,Index!$B$1) -> 2058 | C234: 0.0323513692
A235: L Real estate activities | B235: =INDEX(Census2021Data!D493:Y493,Index!$B$1) -> 809 | C235: 0.01271732637
A236: M Professional, scientific and technical activities | B236: =INDEX(Census2021Data!D494:Y494,Index!$B$1) -> 3796 | C236: 0.05967239916
A237: N Administrative and support service activities | B237: =INDEX(Census2021Data!D495:Y495,Index!$B$1) -> 3880 | C237: 0.06099286321
A238: O Public administration and defence; compulsory social security | B238: =INDEX(Census2021Data!D496:Y496,Index!$B$1) -> 3555 | C238: 0.05588392492
A239: P Education | B239: =INDEX(Census2021Data!D497:Y497,Index!$B$1) -> 5634 | C239: 0.08856541013
A240: Q Human health and social work activities | B240: =INDEX(Census2021Data!D498:Y498,Index!$B$1) -> 10032 | C240: 0.157701135
A241: R, S, T, U Other | B241: =INDEX(Census2021Data!D499:Y499,Index!$B$1) -> 2574 | C241: 0.04046279121
A246: Employment by Occupation, 2021
A247: Source: 2021 Census Table TS063
A248: =Index!L6 -> Ashford | B248: Number | C248: % of all people 16+ in employment
A249: All Occupations | B249: =INDEX(Census2021Data!D501:Y501,Index!B$1) -> 63616 | C249: =B249/B$249 -> 1
A250: Managers, directors and senior officials | B250: =INDEX(Census2021Data!D502:Y502,Index!B$1) -> 9171 | C250: =B250/B$249 -> 0.1441618461
A251: Professional occupations | B251: =INDEX(Census2021Data!D503:Y503,Index!B$1) -> 11751 | C251: 0.1847176811
A252: Associate professional and technical occupations | B252: =INDEX(Census2021Data!D504:Y504,Index!B$1) -> 8251 | C252: 0.1297000755
A253: Administrative and secretarial occupations | B253: =INDEX(Census2021Data!D505:Y505,Index!B$1) -> 5811 | C253: 0.09134494467
A254: Skilled trades occupations | B254: =INDEX(Census2021Data!D506:Y506,Index!B$1) -> 7322 | C254: 0.115096831
A255: Caring, leisure and other service occupations | B255: =INDEX(Census2021Data!D507:Y507,Index!B$1) -> 5812 | C255: 0.09136066398
A256: Sales and customer service occupations | B256: =INDEX(Census2021Data!D508:Y508,Index!B$1) -> 4895 | C256: 0.07694605131
A257: Process, plant and machine operatives | B257: =INDEX(Census2021Data!D509:Y509,Index!B$1) -> 4350 | C257: 0.06837902414
A258: Elementary occupations | B258: =INDEX(Census2021Data!D510:Y510,Index!B$1) -> 6253 | C258: 0.09829288229
A262: Method of travel to work, 2021
A263: Source: 2021 Census Table TS061
A264: =Index!L6 -> Ashford | B264: Number | C264: % of all people 16+ in employment
A265: All people aged 16 and over in employment | B265: =INDEX(Census2021Data!D512:Y512,Index!B$1) -> 63614 | C265: =B265/B$265 -> 1
A266: Work mainly at or from home | B266: =INDEX(Census2021Data!D513:Y513,Index!B$1) -> 19120 | C266: =B266/B$265 -> 0.3005627692
A267: Underground, metro, light rail, tram | B267: =INDEX(Census2021Data!D514:Y514,Index!B$1) -> 83 | C267: 0.001304744239
A268: Train | B268: =INDEX(Census2021Data!D515:Y515,Index!B$1) -> 1575 | C268: 0.02475870091
A269: Bus, minibus or coach | B269: =INDEX(Census2021Data!D516:Y516,Index!B$1) -> 1177 | C269: 0.01850221649
A270: Taxi | B270: =INDEX(Census2021Data!D517:Y517,Index!B$1) -> 152 | C270: 0.002389411136
A271: Motorcycle, scooter or moped | B271: =INDEX(Census2021Data!D518:Y518,Index!B$1) -> 221 | C271: 0.003474078033
A272: Driving a car or van | B272: =INDEX(Census2021Data!D519:Y519,Index!B$1) -> 32389 | C272: 0.5091489295
A273: Passenger in a car or van | B273: =INDEX(Census2021Data!D520:Y520,Index!B$1) -> 2552 | C273: 0.04011695539
A274: Bicycle | B274: =INDEX(Census2021Data!D521:Y521,Index!B$1) -> 1186 | C274: 0.01864369478
A275: On foot | B275: =INDEX(Census2021Data!D522:Y522,Index!B$1) -> 4533 | C275: 0.0712578992
A276: Other method of travel to work | B276: =INDEX(Census2021Data!D523:Y523,Index!B$1) -> 626 | C276: 0.009840601126
A279: Distance travelled to work, 2021
A280: Source: 2021 Census Table TS058
A281: =Index!L6 -> Ashford | B281: Number | C281: % of all people 16+ in employment
A282: All people aged 16 and over in employment | B282: =INDEX(Census2021Data!D525:Y525,Index!B$1) -> 63615 | C282: =B282/B$282 -> 1
A283: Less than 2km | B283: =INDEX(Census2021Data!D526:Y526,Index!B$1) -> 7209 | C283: =B283/B$282 -> 0.1133223296
A284: 2km to less than 5km | B284: =INDEX(Census2021Data!D527:Y527,Index!B$1) -> 9105 | C284: 0.1431266211
A285: 5km to less than 10km | B285: =INDEX(Census2021Data!D528:Y528,Index!B$1) -> 3845 | C285: 0.06044171972
A286: 10km to less than 20km | B286: =INDEX(Census2021Data!D529:Y529,Index!B$1) -> 5100 | C286: 0.08016977128
A287: 20km to less than 30km | B287: =INDEX(Census2021Data!D530:Y530,Index!B$1) -> 3927 | C287: 0.06173072389
A288: 30km to less than 40km | B288: =INDEX(Census2021Data!D531:Y531,Index!B$1) -> 1822 | C288: 0.02864104378
A289: 40km to less than 60km | B289: =INDEX(Census2021Data!D532:Y532,Index!B$1) -> 981 | C289: 0.0154208913
... 270 more rows

Sheet Census2021Data (hidden)
A1: Link to date | K1: KEY:
A2: District Data table | K2: Data - pre calculated/rounded
K3: Dependent Cell
K4: Calculation
D5: 2021
C6: Variable number | D6: Ashford Borough | E6: Canterbury City | F6: Dartford Borough | G6: Dover District | H6: Folkestone & Hythe District | I6: Gravesham Borough | J6: Maidstone Borough | K6: Sevenoaks District | L6: Swale Borough | M6: Thanet District | N6: Tonbridge & Malling District | O6: Tunbridge Wells Borough | P6: KCC Area | Q6: Medway | R6: Kent | S6: Medway PCT | T6: Eastern & Coastal PCT | U6: West Kent PCT | V6: Thames Gateway | W6: Sout East Local Enterprise Pertnership | X6: South East | Y6: England | AA6: NUTS315 UKJ41 Medway | AB6: NUTS315 UKJ43 Kent Thames gateway | AC6: NUTS315 UKJ44 East Kent | AD6: NUTS315 UKJ45 Mid Kent | AE6: NUTS315 UKJ46 West Kent | AF6: Source: | AG6: section
A7: Ethnic Group | B7: Table RM032 | D7: 2021 | E7: 2021 | F7: 2021 | G7: 2021 | H7: 2021 | I7: 2021 | J7: 2021 | K7: 2021 | L7: 2021 | M7: 2021 | N7: 2021 | O7: 2021 | P7: 2021 | Q7: 2021 | R7: 2021 | S7: 2021 | T7: 2021 | U7: 2021 | V7: 2021 | W7: 2021 | X7: 2021 | Y7: 2021 | AA7: 2021 | AB7: 2021 | AC7: 2021 | AD7: 2021 | AE7: 2021 | AF7: 2021 Census | AG7: Diversity
A8: All usual residents | B8: All People | D8: 132756 | E8: 157426 | F8: 116759 | G8: 116389 | H8: 109760 | I8: 106899 | J8: 175779 | K8: 120518 | L8: 151674 | M8: 140592 | N8: 132194 | O8: 115305 | P8: 1576069 | Q8: 279780 | R8: 1855849 | S8: 279780 | T8: 808597 | U8: 767454 | V8: 655112 | W8: 4261913 | X8: 9278066 | Y8: 56490037 | AA8: 279780 | AB8: 333418 | AC8: 524167 | AD8: 308535 | AE8: 368017 | AF8: 2021 Census | AG8: Diversity
A9: White British | B9: All People | D9: 109677 | E9: 129887 | F9: 78557 | G9: 105110 | H9: 96588 | I9: 73030 | J9: 144111 | K9: 103116 | L9: 134385 | M9: 122798 | N9: 116787 | O9: 97049 | P9: 1311093 | Q9: 218952 | R9: 1530045 | S9: 218952 | T9: 698445 | U9: 612650 | V9: 504924 | W9: 3555674 | X9: 7315057 | Y9: 41540789 | AA9: 218952 | AB9: 248175 | AC9: 454383 | AD9: 253788 | AE9: 316952 | AF9: 2021 Census | AG9: Diversity
A10: Ethnic minorities | B10: All People | D10: 23079 | E10: 27539 | F10: 38202 | G10: 11279 | H10: 13172 | I10: 33869 | J10: 31668 | K10: 17402 | L10: 17289 | M10: 17794 | N10: 15407 | O10: 18256 | P10: 264976 | Q10: 60828 | R10: 325804 | S10: 60828 | T10: 110152 | U10: 154804 | V10: 150188 | W10: 706239 | X10: 1963009 | Y10: 14949248 | AA10: 60828 | AB10: 85243 | AC10: 69784 | AD10: 54747 | AE10: 51065 | AF10: 2021 Census | AG10: Diversity
A11: Other than white | B11: All People | D11: 15852 | E11: 16949 | F11: 29821 | G11: 5972 | H11: 8146 | I11: 25011 | J11: 17920 | K11: 9512 | L11: 9341 | M11: 9863 | N11: 8908 | O11: 9743 | P11: 167061 | Q11: 44035 | R11: 211096 | S11: 44035 | T11: 66123 | U11: 100915 | V11: 108208 | W11: 453109 | X11: 1268686 | Y11: 10706642 | AA11: 44035 | AB11: 62978 | AC11: 40930 | AD11: 33772 | AE11: 28163 | AF11: 2021 Census | AG11: Diversity
A12: Total Asian | B12: All People | D12: 7667 | E12: 6371 | F12: 11516 | G12: 2392 | H12: 4272 | I12: 11998 | J12: 8220 | K12: 3486 | L12: 2313 | M12: 3258 | N12: 3871 | O12: 4563 | P12: 69940 | Q12: 16487 | R12: 86427 | S12: 16487 | T12: 26273 | U12: 43654 | V12: 42314 | W12: 176378 | X12: 650547 | Y12: 5426388 | AA12: 16487 | AB12: 27786 | AC12: 16293 | AD12: 15887 | AE12: 11920 | AF12: 2021 Census | AG12: Diversity
A13: Bangladeshi | B13: All People | D13: 335 | E13: 429 | F13: 1052 | G13: 156 | H13: 196 | I13: 690 | J13: 652 | K13: 234 | L13: 405 | M13: 253 | N13: 377 | O13: 546 | P13: 5334 | Q13: 1965 | R13: 7299 | S13: 1965 | T13: 1774 | U13: 3551 | V13: 4112 | W13: 17842 | X13: 39881 | Y13: 629567 | AA13: 1965 | AB13: 1938 | AC13: 1034 | AD13: 987 | AE13: 1157 | AF13: 2021 Census | AG13: Diversity
A14: Chinese | B14: All People | D14: 579 | E14: 1356 | F14: 1168 | G14: 304 | H14: 357 | I14: 352 | J14: 656 | K14: 767 | L14: 328 | M14: 448 | N14: 665 | O14: 681 | P14: 7656 | Q14: 1273 | R14: 8929 | S14: 1273 | T14: 3372 | U14: 4289 | V14: 3121 | W14: 20697 | X14: 64329 | Y14: 431162 | AA14: 1273 | AB14: 1877 | AC14: 2465 | AD14: 1235 | AE14: 2113 | AF14: 2021 Census | AG14: Diversity
A15: Indian | B15: All People | D15: 1719 | E15: 1990 | F15: 5123 | G15: 550 | H15: 493 | I15: 8134 | J15: 2148 | K15: 1327 | L15: 775 | M15: 941 | N15: 1547 | O15: 1694 | P15: 26440 | Q15: 7693 | R15: 34133 | S15: 7693 | T15: 6468 | U15: 19973 | V15: 21725 | W15: 67092 | X15: 241537 | Y15: 1843248 | AA15: 7693 | AB15: 13750 | AC15: 3974 | AD15: 3867 | AE15: 4568 | AF15: 2021 Census | AG15: Diversity
A16: Pakistani | B16: All People | D16: 404 | E16: 541 | F16: 760 | G16: 38 | H16: 214 | I16: 843 | J16: 568 | K16: 254 | L16: 149 | M16: 271 | N16: 286 | O16: 365 | P16: 4697 | Q16: 2126 | R16: 6823 | S16: 2126 | T16: 1617 | U16: 3076 | V16: 3878 | W16: 18112 | X16: 145313 | Y16: 1570285 | AA16: 2126 | AB16: 1817 | AC16: 1064 | AD16: 972 | AE16: 905 | AF16: 2021 Census | AG16: Diversity
A17: Other Asian | B17: All People | D17: 4630 | E17: 2055 | F17: 3413 | G17: 1344 | H17: 3012 | I17: 1979 | J17: 4196 | K17: 904 | L17: 656 | M17: 1345 | N17: 996 | O17: 1277 | P17: 25813 | Q17: 3430 | R17: 29243 | S17: 3430 | T17: 13042 | U17: 12765 | V17: 9478 | W17: 52635 | X17: 159487 | Y17: 952126 | AA17: 3430 | AB17: 8404 | AC17: 7756 | AD17: 8826 | AE17: 3177 | AF17: 2021 Census | AG17: Diversity
A18: Total black Caribbean or African | B18: All People | D18: 3422 | E18: 3910 | F18: 12284 | G18: 831 | H18: 683 | I18: 6953 | J18: 3604 | K18: 1933 | L18: 3491 | M18: 1478 | N18: 1313 | O18: 1130 | P18: 41036 | Q18: 15725 | R18: 56761 | S18: 15725 | T18: 13815 | U18: 27217 | V18: 38453 | W18: 124683 | X18: 221586 | Y18: 2381724 | AA18: 15725 | AB18: 19920 | AC18: 6902 | AD18: 7026 | AE18: 4376 | AF18: 2021 Census | AG18: Diversity
A19: African | B19: All People | D19: 2504 | E19: 2927 | F19: 9816 | G19: 544 | H19: 384 | I19: 5235 | J19: 2566 | K19: 1332 | L19: 2544 | M19: 858 | N19: 872 | O19: 829 | P19: 30411 | Q19: 11266 | R19: 41677 | S19: 11266 | T19: 9761 | U19: 20650 | V19: 28861 | W19: 89578 | X19: 150542 | Y19: 1468474 | AA19: 11266 | AB19: 15435 | AC19: 4713 | AD19: 5070 | AE19: 3033 | AF19: 2021 Census | AG19: Diversity
A20: Caribbean | B20: All People | D20: 573 | E20: 650 | F20: 1140 | G20: 178 | H20: 202 | I20: 847 | J20: 645 | K20: 372 | L20: 452 | M20: 451 | N20: 278 | O20: 172 | P20: 5958 | Q20: 2554 | R20: 8512 | S20: 2554 | T20: 2506 | U20: 3454 | V20: 4993 | W20: 19761 | X20: 43523 | Y20: 619418 | AA20: 2554 | AB20: 2189 | AC20: 1481 | AD20: 1218 | AE20: 822 | AF20: 2021 Census | AG20: Diversity
A21: Other black | B21: All People | D21: 345 | E21: 333 | F21: 1328 | G21: 109 | H21: 97 | I21: 871 | J21: 393 | K21: 229 | L21: 495 | M21: 169 | N21: 163 | O21: 129 | P21: 4667 | Q21: 1905 | R21: 6572 | S21: 1905 | T21: 1548 | U21: 3113 | V21: 4599 | W21: 15344 | X21: 27521 | Y21: 293832 | AA21: 1905 | AB21: 2296 | AC21: 708 | AD21: 738 | AE21: 521 | AF21: 2021 Census | AG21: Diversity
A22: Total mixed or multiple ethnic groups | B22: All People | D22: 2881 | E22: 4313 | F22: 3636 | G22: 1751 | H22: 2105 | I22: 2829 | J22: 4011 | K22: 3182 | L22: 2745 | M22: 3418 | N22: 2942 | O22: 2946 | P22: 36764 | Q22: 7862 | R22: 44626 | S22: 7862 | T22: 17213 | U22: 19546 | V22: 17072 | W22: 104516 | X22: 260871 | Y22: 1669381 | AA22: 7862 | AB22: 8570 | AC22: 11587 | AD22: 6892 | AE22: 9070 | AF22: 2021 Census | AG22: Diversity
A23: White and Asian | B23: All People | D23: 900 | E23: 1409 | F23: 980 | G23: 545 | H23: 677 | I23: 792 | J23: 1318 | K23: 1347 | L23: 758 | M23: 891 | N23: 1040 | O23: 1285 | P23: 11939 | Q23: 2159 | R23: 14098 | S23: 2159 | T23: 5180 | U23: 6762 | V23: 4689 | W23: 31116 | X23: 88106 | Y23: 474193 | AA23: 2159 | AB23: 2449 | AC23: 3522 | AD23: 2218 | AE23: 3672 | AF23: 2021 Census | AG23: Diversity
A24: White and Black African | B24: All People | D24: 439 | E24: 661 | F24: 727 | G24: 297 | H24: 300 | I24: 535 | J24: 609 | K24: 335 | L24: 414 | M24: 591 | N24: 415 | O24: 367 | P24: 5695 | Q24: 1396 | R24: 7091 | S24: 1396 | T24: 2702 | U24: 2988 | V24: 3072 | W24: 16831 | X24: 38631 | Y24: 241528 | AA24: 1396 | AB24: 1562 | AC24: 1849 | AD24: 1048 | AE24: 1117 | AF24: 2021 Census | AG24: Diversity
A25: White and Black Caribbean | B25: All People | D25: 775 | E25: 980 | F25: 999 | G25: 411 | H25: 552 | I25: 787 | J25: 977 | K25: 658 | L25: 819 | M25: 1040 | N25: 670 | O25: 476 | P25: 9150 | Q25: 2425 | R25: 11575 | S25: 2425 | T25: 4577 | U25: 4567 | V25: 5030 | W25: 28819 | X25: 62087 | Y25: 499310 | AA25: 2425 | AB25: 2338 | AC25: 2983 | AD25: 1752 | AE25: 1804 | AF25: 2021 Census | AG25: Diversity
A26: Other mixed or multiple ethnic groups | B26: All People | D26: 767 | E26: 1263 | F26: 930 | G26: 498 | H26: 576 | I26: 715 | J26: 1107 | K26: 842 | L26: 754 | M26: 896 | N26: 817 | O26: 818 | P26: 9980 | Q26: 1882 | R26: 11862 | S26: 1882 | T26: 4754 | U26: 5229 | V26: 4281 | W26: 27750 | X26: 72047 | Y26: 454350 | AA26: 1882 | AB26: 2221 | AC26: 3233 | AD26: 1874 | AE26: 2477 | AF26: 2021 Census | AG26: Diversity
A27: Total white | B27: All People | D27: 116904 | E27: 140477 | F27: 86938 | G27: 110417 | H27: 101614 | I27: 81888 | J27: 157859 | K27: 111006 | L27: 142333 | M27: 130729 | N27: 123286 | O27: 105562 | P27: 1409008 | Q27: 235745 | R27: 1644753 | S27: 235745 | T27: 742474 | U27: 666539 | V27: 546904 | W27: 3808804 | X27: 8009380 | Y27: 45783395 | AA27: 235745 | AB27: 270440 | AC27: 483237 | AD27: 274763 | AE27: 339854 | AF27: 2021 Census | AG27: Diversity
A28: English, Welsh, Scottish, Northern Irish or British | B28: All People | D28: 109677 | E28: 129887 | F28: 78557 | G28: 105110 | H28: 96588 | I28: 73030 | J28: 144111 | K28: 103116 | L28: 134385 | M28: 122798 | N28: 116787 | O28: 97049 | P28: 1311093 | Q28: 218952 | R28: 1530045 | S28: 218952 | T28: 698445 | U28: 612650 | V28: 504924 | W28: 3555674 | X28: 7315057 | Y28: 41540789 | AA28: 218952 | AB28: 248175 | AC28: 454383 | AD28: 253788 | AE28: 316952 | AF28: 2021 Census | AG28: Diversity
A29: Irish | B29: All People | D29: 777 | E29: 1312 | F29: 813 | G29: 649 | H29: 767 | I29: 698 | J29: 994 | K29: 1084 | L29: 849 | M29: 1148 | N29: 849 | O29: 914 | P29: 10853 | Q29: 1870 | R29: 12723 | S29: 1870 | T29: 5502 | U29: 5352 | V29: 4230 | W29: 31573 | X29: 78220 | Y29: 494251 | AA29: 1870 | AB29: 2278 | AC29: 3876 | AD29: 1771 | AE29: 2847 | AF29: 2021 Census | AG29: Diversity
A30: Gypsy or Irish Traveller | B30: All People | D30: 686 | E30: 393 | F30: 309 | G30: 244 | H30: 146 | I30: 316 | J30: 1008 | K30: 461 | L30: 924 | M30: 186 | N30: 459 | O30: 333 | P30: 5472 | Q30: 751 | R30: 6223 | S30: 751 | T30: 2579 | U30: 2886 | V30: 2300 | W30: 9392 | X30: 16748 | Y30: 64216 | AA30: 751 | AB30: 771 | AC30: 969 | AD30: 1694 | AE30: 1253 | AF30: 2021 Census | AG30: Diversity
A31: Roma | B31: All People | D31: 81 | E31: 191 | F31: 157 | G31: 243 | H31: 137 | I31: 351 | J31: 272 | K31: 73 | L31: 175 | M31: 383 | N31: 76 | O31: 118 | P31: 2255 | Q31: 465 | R31: 2720 | S31: 465 | T31: 1210 | U31: 1047 | V31: 1148 | W31: 5196 | X31: 12786 | Y31: 99137 | AA31: 465 | AB31: 645 | AC31: 954 | AD31: 353 | AE31: 267 | AF31: 2021 Census | AG31: Diversity
A32: Other white | B32: All People | D32: 5683 | E32: 8694 | F32: 7102 | G32: 4171 | H32: 3976 | I32: 7493 | J32: 11474 | K32: 6272 | L32: 6000 | M32: 6214 | N32: 5115 | O32: 7148 | P32: 79335 | Q32: 13707 | R32: 93042 | S32: 13707 | T32: 34738 | U32: 44604 | V32: 34302 | W32: 206969 | X32: 586569 | Y32: 3585002 | AA32: 13707 | AB32: 18571 | AC32: 23055 | AD32: 17157 | AE32: 18535 | AF32: 2021 Census | AG32: Diversity
A33: Other ethnic group | B33: All People | D33: 1882 | E33: 2355 | F33: 2385 | G33: 998 | H33: 1086 | I33: 3231 | J33: 2085 | K33: 911 | L33: 792 | M33: 1709 | N33: 782 | O33: 1104 | P33: 19321 | Q33: 3961 | R33: 23282 | S33: 3961 | T33: 8822 | U33: 10498 | V33: 10369 | W33: 47532 | X33: 135682 | Y33: 1229149 | AA33: 3961 | AB33: 6702 | AC33: 6148 | AD33: 3967 | AE33: 2797 | AF33: 2021 Census | AG33: Diversity
A34: Arab | B34: All People | D34: 297 | E34: 674 | F34: 254 | G34: 134 | H34: 119 | I34: 128 | J34: 249 | K34: 156 | L34: 129 | M34: 248 | N34: 170 | O34: 249 | P34: 2804 | Q34: 453 | R34: 3257 | S34: 453 | T34: 1601 | U34: 1206 | V34: 964 | W34: 7771 | X34: 29572 | Y34: 320203 | AA34: 453 | AB34: 501 | AC34: 1175 | AD34: 546 | AE34: 575 | AF34: 2021 Census | AG34: Diversity
A35: Any other ethnic group | B35: All People | D35: 1585 | E35: 1681 | F35: 2131 | G35: 864 | H35: 967 | I35: 3103 | J35: 1836 | K35: 755 | L35: 663 | M35: 1461 | N35: 612 | O35: 855 | P35: 16517 | Q35: 3508 | R35: 20025 | S35: 3508 | T35: 7221 | U35: 9292 | V35: 9405 | W35: 39761 | X35: 106110 | Y35: 908946 | AA35: 3508 | AB35: 6201 | AC35: 4973 | AD35: 3421 | AE35: 2222 | AF35: 2021 Census | AG35: Diversity
A36: Ethnicity by Age | B36: Custom report | D36: 2021 | E36: 2021 | F36: 2021 | G36: 2021 | H36: 2021 | I36: 2021 | J36: 2021 | K36: 2021 | L36: 2021 | M36: 2021 | N36: 2021 | O36: 2021 | P36: 2021 | Q36: 2021 | R36: 2021 | S36: 2021 | T36: 2021 | U36: 2021 | V36: 2021 | W36: 2021 | X36: 2021 | Y36: 2021 | AA36: 2021 | AB36: 2021 | AC36: 2021 | AD36: 2021 | AE36: 2021 | AF36: 2021 Census | AG36: Diversity
A37: All usual residents aged 0-15 | B37: 0-15 | D37: 25977 | E37: 24656 | F37: 26056 | G37: 20280 | H37: 18203 | I37: 22347 | J37: 33647 | K37: 23913 | L37: 29675 | M37: 25171 | N37: 26677 | O37: 22908 | P37: 299503 | Q37: 57017 | R37: 356520 | S37: 57017 | T37: 143962 | U37: 155548 | V37: 135095 | W37: 799984 | X37: 1723488 | Y37: 10483092 | AA37: 57017 | AB37: 66606 | AC37: 88310 | AD37: 59624 | AE37: 73498 | AF37: 2021 Census | AG37: Diversity
A38: White British | B38: 0-15 | D38: 20487 | E38: 20007 | F38: 14821 | G38: 17685 | H38: 15701 | I38: 13589 | J38: 26270 | K38: 19448 | L38: 25527 | M38: 21082 | N38: 22759 | O38: 18555 | P38: 235931 | Q38: 41366 | R38: 277297 | S38: 41366 | T38: 120489 | U38: 115442 | V38: 95303 | W38: 629058 | X38: 1271747 | Y38: 6987274 | AA38: 41366 | AB38: 44111 | AC38: 74475 | AD38: 46757 | AE38: 60762 | AF38: 2021 Census | AG38: Diversity
A39: Ethnic minorities | B39: 0-15 | D39: 5490 | E39: 4649 | F39: 11235 | G39: 2595 | H39: 2502 | I39: 8758 | J39: 7377 | K39: 4465 | L39: 4148 | M39: 4089 | N39: 3918 | O39: 4353 | P39: 63572 | Q39: 15651 | R39: 79223 | S39: 15651 | T39: 23473 | U39: 40106 | V39: 39792 | W39: 170926 | X39: 451741 | Y39: 3495818 | AA39: 15651 | AB39: 22495 | AC39: 13835 | AD39: 12867 | AE39: 12736 | AF39: 2021 Census | AG39: Diversity
A40: Other than white | B40: 0-15 | D40: 4260 | E40: 3408 | F40: 9754 | G40: 1772 | H40: 1889 | I40: 7013 | J40: 5088 | K40: 3068 | L40: 2841 | M40: 2888 | N40: 2835 | O40: 3131 | P40: 47943 | Q40: 12760 | R40: 60703 | S40: 12760 | T40: 17058 | U40: 30889 | V40: 32368 | W40: 132164 | X40: 353697 | Y40: 2891116 | AA40: 12760 | AB40: 18656 | AC40: 9957 | AD40: 9348 | AE40: 9034 | AF40: 2021 Census | AG40: Diversity
A41: Total Asian | B41: 0-15 | D41: 1487 | E41: 1037 | F41: 3218 | G41: 577 | H41: 712 | I41: 2636 | J41: 1772 | K41: 749 | L41: 434 | M41: 715 | N41: 915 | O41: 1183 | P41: 15433 | Q41: 3545 | R41: 18978 | S41: 3545 | T41: 4962 | U41: 10473 | V41: 9833 | W41: 39171 | X41: 151875 | Y41: 1292003 | AA41: 3545 | AB41: 6566 | AC41: 3041 | AD41: 3259 | AE41: 2847 | AF41: 2021 Census | AG41: Diversity
A42: Bangladeshi | B42: 0-15 | D42: 102 | E42: 108 | F42: 365 | G42: 47 | H42: 40 | I42: 204 | J42: 184 | K42: 65 | L42: 90 | M42: 67 | N42: 97 | O42: 165 | P42: 1534 | Q42: 589 | R42: 2123 | S42: 589 | T42: 454 | U42: 1080 | V42: 1248 | W42: 5285 | X42: 11131 | Y42: 187259 | AA42: 589 | AB42: 609 | AC42: 262 | AD42: 286 | AE42: 327 | AF42: 2021 Census | AG42: Diversity
A43: Chinese | B43: 0-15 | D43: 112 | E43: 215 | F43: 263 | G43: 54 | H43: 60 | I43: 50 | J43: 96 | K43: 154 | L43: 60 | M43: 97 | N43: 136 | O43: 140 | P43: 1435 | Q43: 194 | R43: 1629 | S43: 194 | T43: 598 | U43: 839 | V43: 567 | W43: 3526 | X43: 10376 | Y43: 62571 | AA43: 194 | AB43: 373 | AC43: 426 | AD43: 208 | AE43: 430 | AF43: 2021 Census | AG43: Diversity
A44: Indian | B44: 0-15 | D44: 459 | E44: 302 | F44: 1348 | G44: 113 | H44: 76 | I44: 1611 | J44: 481 | K44: 300 | L44: 136 | M44: 192 | N44: 414 | O44: 505 | P44: 5938 | Q44: 1476 | R44: 7414 | S44: 1476 | T44: 1278 | U44: 4659 | V44: 4571 | W44: 14938 | X44: 55360 | Y44: 367437 | AA44: 1476 | AB44: 3035 | AC44: 683 | AD44: 940 | AE44: 1219 | AF44: 2021 Census | AG44: Diversity
A45: Pakistani | B45: 0-15 | D45: 121 | E45: 111 | F45: 274 | G45: 10 | H45: 60 | I45: 275 | J45: 142 | K45: 79 | L45: 25 | M45: 66 | N45: 97 | O45: 115 | P45: 1373 | Q45: 552 | R45: 1925 | S45: 552 | T45: 393 | U45: 982 | V45: 1126 | W45: 5151 | X45: 43563 | Y45: 471391 | AA45: 552 | AB45: 609 | AC45: 247 | AD45: 263 | AE45: 291 | AF45: 2021 Census | AG45: Diversity
A46: Other Asian | B46: 0-15 | D46: 693 | E46: 301 | F46: 968 | G46: 353 | H46: 476 | I46: 496 | J46: 869 | K46: 151 | L46: 123 | M46: 293 | N46: 171 | O46: 258 | P46: 5153 | Q46: 734 | R46: 5887 | S46: 734 | T46: 2239 | U46: 2913 | V46: 2321 | W46: 10271 | X46: 31445 | Y46: 203345 | AA46: 734 | AB46: 1940 | AC46: 1423 | AD46: 1562 | AE46: 580 | AF46: 2021 Census | AG46: Diversity
A47: Total black Caribbean or African | B47: 0-15 | D47: 1003 | E47: 492 | F47: 4101 | G47: 251 | H47: 95 | I47: 2180 | J47: 1004 | K47: 475 | L47: 1009 | M47: 280 | N47: 333 | O47: 270 | P47: 11494 | Q47: 4619 | R47: 16113 | S47: 4619 | T47: 3130 | U47: 8363 | V47: 11909 | W47: 34480 | X47: 55673 | Y47: 589439 | AA47: 4619 | AB47: 6376 | AC47: 1118 | AD47: 2007 | AE47: 1078 | AF47: 2021 Census | AG47: Diversity
A48: African | B48: 0-15 | D48: 750 | E48: 319 | F48: 3089 | G48: 167 | H48: 53 | I48: 1541 | J48: 741 | K48: 326 | L48: 746 | M48: 180 | N48: 235 | O48: 209 | P48: 8357 | Q48: 3220 | R48: 11577 | S48: 3220 | T48: 2215 | U48: 6141 | V48: 8596 | W48: 24042 | X48: 37950 | Y48: 382374 | AA48: 3220 | AB48: 4683 | AC48: 719 | AD48: 1491 | AE48: 770 | AF48: 2021 Census | AG48: Diversity
A49: Caribbean | B49: 0-15 | D49: 82 | E49: 53 | F49: 187 | G49: 27 | H49: 9 | I49: 140 | J49: 71 | K49: 53 | L49: 45 | M49: 42 | N49: 28 | O49: 13 | P49: 750 | Q49: 363 | R49: 1113 | S49: 363 | T49: 258 | U49: 492 | V49: 735 | W49: 2583 | X49: 4899 | Y49: 83439 | AA49: 363 | AB49: 336 | AC49: 131 | AD49: 153 | AE49: 94 | AF49: 2021 Census | AG49: Diversity
A50: Other black | B50: 0-15 | D50: 171 | E50: 120 | F50: 825 | G50: 57 | H50: 33 | I50: 499 | J50: 192 | K50: 96 | L50: 218 | M50: 58 | N50: 70 | O50: 48 | P50: 2387 | Q50: 1036 | R50: 3423 | S50: 1036 | T50: 657 | U50: 1730 | V50: 2578 | W50: 7855 | X50: 12824 | Y50: 123626 | AA50: 1036 | AB50: 1357 | AC50: 268 | AD50: 363 | AE50: 214 | AF50: 2021 Census | AG50: Diversity
A51: Total mixed or multiple ethnic groups | B51: 0-15 | D51: 1416 | E51: 1504 | F51: 1870 | G51: 721 | H51: 903 | I51: 1433 | J51: 1904 | K51: 1672 | L51: 1225 | M51: 1461 | N51: 1428 | O51: 1464 | P51: 16997 | Q51: 3720 | R51: 20717 | S51: 3720 | T51: 7230 | U51: 9771 | V51: 8248 | W51: 48642 | X51: 118415 | Y51: 731169 | AA51: 3720 | AB51: 4206 | AC51: 4589 | AD51: 3320 | AE51: 4564 | AF51: 2021 Census | AG51: Diversity
A52: White and Asian | B52: 0-15 | D52: 452 | E52: 506 | F52: 535 | G52: 238 | H52: 296 | I52: 411 | J52: 630 | K52: 767 | L52: 343 | M52: 413 | N52: 541 | O52: 698 | P52: 5830 | Q52: 1007 | R52: 6837 | S52: 1007 | T52: 2248 | U52: 3582 | V52: 2296 | W52: 15077 | X52: 43531 | Y52: 228587 | AA52: 1007 | AB52: 1242 | AC52: 1453 | AD52: 1082 | AE52: 2006 | AF52: 2021 Census | AG52: Diversity
A53: White and Black African | B53: 0-15 | D53: 278 | E53: 279 | F53: 441 | G53: 156 | H53: 171 | I53: 303 | J53: 359 | K53: 196 | L53: 238 | M53: 302 | N53: 235 | O53: 208 | P53: 3166 | Q53: 846 | R53: 4012 | S53: 846 | T53: 1424 | U53: 1742 | V53: 1828 | W53: 9503 | X53: 20139 | Y53: 117318 | AA53: 846 | AB53: 915 | AC53: 908 | AD53: 637 | AE53: 639 | AF53: 2021 Census | AG53: Diversity
A54: White and Black Caribbean | B54: 0-15 | D54: 353 | E54: 318 | F54: 468 | G54: 148 | H54: 230 | I54: 371 | J54: 447 | K54: 340 | L54: 332 | M54: 424 | N54: 294 | O54: 215 | P54: 3936 | Q54: 1068 | R54: 5004 | S54: 1068 | T54: 1805 | U54: 2135 | V54: 2239 | W54: 12749 | X54: 26416 | Y54: 206000 | AA54: 1068 | AB54: 1069 | AC54: 1120 | AD54: 800 | AE54: 849 | AF54: 2021 Census | AG54: Diversity
A55: Other mixed or multiple ethnic groups | B55: 0-15 | D55: 333 | E55: 401 | F55: 426 | G55: 179 | H55: 206 | I55: 348 | J55: 468 | K55: 369 | L55: 312 | M55: 322 | N55: 358 | O55: 343 | P55: 4065 | Q55: 799 | R55: 4864 | S55: 799 | T55: 1753 | U55: 2312 | V55: 1885 | W55: 11313 | X55: 28329 | Y55: 179264 | AA55: 799 | AB55: 980 | AC55: 1108 | AD55: 801 | AE55: 1070 | AF55: 2021 Census | AG55: Diversity
A56: Total white | B56: 0-15 | D56: 21717 | E56: 21248 | F56: 16302 | G56: 18508 | H56: 16314 | I56: 15334 | J56: 28559 | K56: 20845 | L56: 26834 | M56: 22283 | N56: 23842 | O56: 19777 | P56: 251560 | Q56: 44257 | R56: 295817 | S56: 44257 | T56: 126904 | U56: 124659 | V56: 102727 | W56: 667820 | X56: 1369791 | Y56: 7591976 | AA56: 44257 | AB56: 47950 | AC56: 78353 | AD56: 50276 | AE56: 64464 | AF56: 2021 Census | AG56: Diversity
A57: English, Welsh, Scottish, Northern Irish or British | B57: 0-15 | D57: 20487 | E57: 20007 | F57: 14821 | G57: 17685 | H57: 15701 | I57: 13589 | J57: 26270 | K57: 19448 | L57: 25527 | M57: 21082 | N57: 22759 | O57: 18555 | P57: 235931 | Q57: 41366 | R57: 277297 | S57: 41366 | T57: 120489 | U57: 115442 | V57: 95303 | W57: 629058 | X57: 1271747 | Y57: 6987274 | AA57: 41366 | AB57: 44111 | AC57: 74475 | AD57: 46757 | AE57: 60762 | AF57: 2021 Census | AG57: Diversity
A58: Irish | B58: 0-15 | D58: 48 | E58: 77 | F58: 54 | G58: 32 | H58: 24 | I58: 22 | J58: 42 | K58: 90 | L58: 35 | M58: 46 | N58: 54 | O58: 60 | P58: 582 | Q58: 96 | R58: 678 | S58: 96 | T58: 262 | U58: 322 | V58: 207 | W58: 1631 | X58: 4319 | Y58: 25381 | AA58: 96 | AB58: 100 | AC58: 179 | AD58: 90 | AE58: 204 | AF58: 2021 Census | AG58: Diversity
A59: Gypsy or Irish Traveller | B59: 0-15 | D59: 257 | E59: 111 | F59: 111 | G59: 65 | H59: 42 | I59: 114 | J59: 353 | K59: 166 | L59: 282 | M59: 46 | N59: 187 | O59: 139 | P59: 1873 | Q59: 276 | R59: 2149 | S59: 276 | T59: 803 | U59: 1070 | V59: 783 | W59: 3124 | X59: 5423 | Y59: 19425 | AA59: 276 | AB59: 267 | AC59: 264 | AD59: 610 | AE59: 492 | AF59: 2021 Census | AG59: Diversity
A60: Roma | B60: 0-15 | D60: 17 | E60: 33 | F60: 31 | G60: 87 | H60: 35 | I60: 102 | J60: 50 | K60: 15 | L60: 33 | M60: 138 | N60: 13 | O60: 14 | P60: 566 | Q60: 89 | R60: 655 | S60: 89 | T60: 343 | U60: 225 | V60: 255 | W60: 1063 | X60: 2212 | Y60: 17598 | AA60: 89 | AB60: 168 | AC60: 293 | AD60: 67 | AE60: 42 | AF60: 2021 Census | AG60: Diversity
A61: Other white | B61: 0-15 | D61: 908 | E61: 1020 | F61: 1285 | G61: 639 | H61: 512 | I61: 1507 | J61: 1844 | K61: 1126 | L61: 957 | M61: 971 | N61: 829 | O61: 1009 | P61: 12608 | Q61: 2430 | R61: 15038 | S61: 2430 | T61: 5007 | U61: 7600 | V61: 6179 | W61: 32944 | X61: 86090 | Y61: 542298 | AA61: 2430 | AB61: 3304 | AC61: 3142 | AD61: 2752 | AE61: 2964 | AF61: 2021 Census | AG61: Diversity
A62: Other ethnic group | B62: 0-15 | D62: 354 | E62: 375 | F62: 565 | G62: 223 | H62: 179 | I62: 764 | J62: 408 | K62: 172 | L62: 173 | M62: 432 | N62: 159 | O62: 214 | P62: 4019 | Q62: 876 | R62: 4895 | S62: 876 | T62: 1736 | U62: 2282 | V62: 2378 | W62: 9871 | X62: 27734 | Y62: 278505 | AA62: 876 | AB62: 1508 | AC62: 1209 | AD62: 762 | AE62: 545 | AF62: 2021 Census | AG62: Diversity
A63: Arab | B63: 0-15 | D63: 88 | E63: 112 | F63: 64 | G63: 36 | H63: 34 | I63: 34 | J63: 70 | K63: 34 | L63: 47 | M63: 66 | N63: 48 | O63: 49 | P63: 683 | Q63: 100 | R63: 783 | S63: 100 | T63: 383 | U63: 299 | V63: 245 | W63: 1922 | X63: 7465 | Y63: 90807 | AA63: 100 | AB63: 132 | AC63: 248 | AD63: 158 | AE63: 131 | AF63: 2021 Census | AG63: Diversity
A64: Any other ethnic group | B64: 0-15 | D64: 266 | E64: 263 | F64: 501 | G64: 187 | H64: 145 | I64: 730 | J64: 338 | K64: 138 | L64: 126 | M64: 366 | N64: 111 | O64: 165 | P64: 3336 | Q64: 776 | R64: 4112 | S64: 776 | T64: 1353 | U64: 1983 | V64: 2133 | W64: 7949 | X64: 20269 | Y64: 187698 | AA64: 776 | AB64: 1376 | AC64: 961 | AD64: 604 | AE64: 414 | AF64: 2021 Census | AG64: Diversity
A65: All usual residents aged 16-64 | B65: 16-64 | D65: 80771 | E65: 98523 | F65: 74660 | G65: 68231 | H65: 64128 | I65: 66145 | J65: 108612 | K65: 70677 | L65: 93090 | M65: 82162 | N65: 80222 | O65: 70028 | P65: 957243 | Q65: 176698 | R65: 1133941 | S65: 176698 | T65: 486905 | U65: 470344 | V65: 410593 | W65: 2585653 | X65: 5750322 | Y65: 35605655 | AA65: 176698 | AB65: 204933 | AC65: 313044 | AD65: 189383 | AE65: 220927 | AF65: 2021 Census | AG65: Diversity
A66: White British | B66: 16-64 | D66: 65004 | E66: 77438 | F66: 49457 | G66: 60689 | H66: 54921 | I66: 43412 | J66: 86337 | K66: 59070 | L66: 81081 | M66: 70181 | N66: 69852 | O66: 57382 | P66: 774823 | Q66: 135565 | R66: 910388 | S66: 135565 | T66: 409314 | U66: 365510 | V66: 309515 | W66: 2103143 | X66: 4382127 | Y66: 25224616 | AA66: 135565 | AB66: 147790 | AC66: 263229 | AD66: 151341 | AE66: 186304 | AF66: 2021 Census | AG66: Diversity
A67: Ethnic minorities | B67: 16-64 | D67: 15767 | E67: 21085 | F67: 25203 | G67: 7542 | H67: 9207 | I67: 22733 | J67: 22275 | K67: 11607 | L67: 12009 | M67: 11981 | N67: 10370 | O67: 12646 | P67: 182420 | Q67: 41133 | R67: 223553 | S67: 41133 | T67: 77591 | U67: 104834 | V67: 101078 | W67: 482510 | X67: 1368195 | Y67: 10381039 | AA67: 41133 | AB67: 57143 | AC67: 49815 | AD67: 38042 | AE67: 34623 | AF67: 2021 Census | AG67: Diversity
A68: Other than white | B68: 16-64 | D68: 10503 | E68: 12853 | F68: 18823 | G68: 3850 | H68: 5643 | I68: 16153 | J68: 11764 | K68: 5907 | L68: 6035 | M68: 6289 | N68: 5572 | O68: 6170 | P68: 109556 | Q68: 28627 | R68: 138183 | S68: 28627 | T68: 45173 | U68: 64389 | V68: 69638 | W68: 294826 | X68: 838910 | Y68: 7117394 | AA68: 28627 | AB68: 40619 | AC68: 28635 | AD68: 22267 | AE68: 17649 | AF68: 2021 Census | AG68: Diversity
A69: Total Asian | B69: 16-64 | D69: 5524 | E69: 4978 | F69: 7518 | G69: 1665 | H69: 3214 | I69: 8093 | J69: 5812 | K69: 2446 | L69: 1655 | M69: 2288 | N69: 2674 | O69: 3144 | P69: 49009 | Q69: 11346 | R69: 60355 | S69: 11346 | T69: 19324 | U69: 29687 | V69: 28612 | W69: 122825 | X69: 451956 | Y69: 3723696 | AA69: 11346 | AB69: 18825 | AC69: 12145 | AD69: 11336 | AE69: 8264 | AF69: 2021 Census | AG69: Diversity
A70: Bangladeshi | B70: 16-64 | D70: 226 | E70: 317 | F70: 662 | G70: 109 | H70: 147 | I70: 462 | J70: 447 | K70: 160 | L70: 310 | M70: 182 | N70: 267 | O70: 369 | P70: 3657 | Q70: 1302 | R70: 4959 | S70: 1302 | T70: 1291 | U70: 2367 | V70: 2736 | W70: 12040 | X70: 27435 | Y70: 418061 | AA70: 1302 | AB70: 1271 | AC70: 755 | AD70: 673 | AE70: 796 | AF70: 2021 Census | AG70: Diversity
A71: Chinese | B71: 16-64 | D71: 395 | E71: 1049 | F71: 807 | G71: 209 | H71: 252 | I71: 247 | J71: 482 | K71: 540 | L71: 225 | M71: 310 | N71: 479 | O71: 487 | P71: 5478 | Q71: 948 | R71: 6426 | S71: 948 | T71: 2440 | U71: 3042 | V71: 2227 | W71: 14732 | X71: 48063 | Y71: 331587 | AA71: 948 | AB71: 1306 | AC71: 1820 | AD71: 877 | AE71: 1506 | AF71: 2021 Census | AG71: Diversity
A72: Indian | B72: 16-64 | D72: 1170 | E72: 1549 | F72: 3349 | G72: 373 | H72: 339 | I72: 5537 | J72: 1471 | K72: 905 | L72: 515 | M72: 657 | N72: 1031 | O72: 1101 | P72: 17998 | Q72: 5227 | R72: 23225 | S72: 5227 | T72: 4603 | U72: 13394 | V72: 14628 | W72: 45680 | X72: 166406 | Y72: 1278513 | AA72: 5227 | AB72: 9225 | AC72: 2918 | AD72: 2641 | AE72: 3037 | AF72: 2021 Census | AG72: Diversity
A73: Pakistani | B73: 16-64 | D73: 256 | E73: 413 | F73: 458 | G73: 30 | H73: 144 | I73: 533 | J73: 389 | K73: 165 | L73: 113 | M73: 187 | N73: 172 | O73: 242 | P73: 3104 | Q73: 1404 | R73: 4508 | S73: 1404 | T73: 1143 | U73: 1959 | V73: 2508 | W73: 11969 | X73: 93669 | Y73: 1012919 | AA73: 1404 | AB73: 1135 | AC73: 774 | AD73: 645 | AE73: 579 | AF73: 2021 Census | AG73: Diversity
A74: Other Asian | B74: 16-64 | D74: 3477 | E74: 1650 | F74: 2242 | G74: 944 | H74: 2332 | I74: 1314 | J74: 3023 | K74: 676 | L74: 492 | M74: 952 | N74: 725 | O74: 945 | P74: 18772 | Q74: 2465 | R74: 21237 | S74: 2465 | T74: 9847 | U74: 8925 | V74: 6513 | W74: 38404 | X74: 116383 | Y74: 682616 | AA74: 2465 | AB74: 5888 | AC74: 5878 | AD74: 6500 | AE74: 2346 | AF74: 2021 Census | AG74: Diversity
A75: Total black Caribbean or African | B75: 16-64 | D75: 2293 | E75: 3328 | F75: 7938 | G75: 543 | H75: 533 | I75: 4568 | J75: 2477 | K75: 1372 | L75: 2364 | M75: 1079 | N75: 926 | O75: 807 | P75: 28227 | Q75: 10590 | R75: 38817 | S75: 10590 | T75: 10140 | U75: 18088 | V75: 25460 | W75: 85685 | X75: 155687 | Y75: 1638076 | AA75: 10590 | AB75: 13039 | AC75: 5483 | AD75: 4770 | AE75: 3105 | AF75: 2021 Census | AG75: Diversity
A76: African | B76: 16-64 | D76: 1702 | E76: 2572 | F76: 6577 | G76: 362 | H76: 321 | I76: 3589 | J76: 1767 | K76: 975 | L76: 1745 | M76: 637 | N76: 618 | O76: 592 | P76: 21457 | Q76: 7833 | R76: 29290 | S76: 7833 | T76: 7339 | U76: 14118 | V76: 19744 | W76: 63513 | X76: 108935 | Y76: 1034106 | AA76: 7833 | AB76: 10487 | AC76: 3892 | AD76: 3469 | AE76: 2185 | AF76: 2021 Census | AG76: Diversity
A77: Caribbean | B77: 16-64 | D77: 423 | E77: 557 | F77: 873 | G77: 128 | H77: 159 | I77: 621 | J77: 517 | K77: 274 | L77: 356 | M77: 342 | N77: 221 | O77: 143 | P77: 4613 | Q77: 1928 | R77: 6541 | S77: 1928 | T77: 1965 | U77: 2649 | V77: 3778 | W77: 15082 | X77: 33043 | Y77: 445409 | AA77: 1928 | AB77: 1653 | AC77: 1186 | AD77: 940 | AE77: 638 | AF77: 2021 Census | AG77: Diversity
A78: Other black | B78: 16-64 | D78: 168 | E78: 199 | F78: 488 | G78: 53 | H78: 53 | I78: 358 | J78: 193 | K78: 123 | L78: 263 | M78: 100 | N78: 87 | O78: 72 | P78: 2157 | Q78: 829 | R78: 2986 | S78: 829 | T78: 836 | U78: 1321 | V78: 1938 | W78: 7090 | X78: 13709 | Y78: 158561 | AA78: 829 | AB78: 899 | AC78: 405 | AD78: 361 | AE78: 282 | AF78: 2021 Census | AG78: Diversity
A79: Total mixed or multiple ethnic groups | B79: 16-64 | D79: 1376 | E79: 2684 | F79: 1700 | G79: 946 | H79: 1106 | I79: 1344 | J79: 1991 | K79: 1423 | L79: 1440 | M79: 1793 | N79: 1426 | O79: 1405 | P79: 18631 | Q79: 3909 | R79: 22540 | S79: 3909 | T79: 9345 | U79: 9289 | V79: 8393 | W79: 52618 | X79: 134561 | Y79: 893933 | AA79: 3909 | AB79: 4150 | AC79: 6529 | AD79: 3367 | AE79: 4254 | AF79: 2021 Census | AG79: Diversity
A80: White and Asian | B80: 16-64 | D80: 408 | E80: 850 | F80: 418 | G80: 278 | H80: 343 | I80: 364 | J80: 634 | K80: 537 | L80: 387 | M80: 435 | N80: 468 | O80: 556 | P80: 5678 | Q80: 1064 | R80: 6742 | S80: 1064 | T80: 2701 | U80: 2977 | V80: 2233 | W80: 14884 | X80: 41820 | Y80: 232934 | AA80: 1064 | AB80: 1125 | AC80: 1906 | AD80: 1042 | AE80: 1561 | AF80: 2021 Census | AG80: Diversity
A81: White and Black African | B81: 16-64 | D81: 151 | E81: 368 | F81: 274 | G81: 130 | H81: 123 | I81: 224 | J81: 240 | K81: 136 | L81: 172 | M81: 259 | N81: 169 | O81: 153 | P81: 2399 | Q81: 531 | R81: 2930 | S81: 531 | T81: 1203 | U81: 1196 | V81: 1201 | W81: 6978 | X81: 17594 | Y81: 118309 | AA81: 531 | AB81: 621 | AC81: 880 | AD81: 391 | AE81: 458 | AF81: 2021 Census | AG81: Diversity
A82: White and Black Caribbean | B82: 16-64 | D82: 404 | E82: 645 | F82: 528 | G82: 247 | H82: 301 | I82: 406 | J82: 515 | K82: 304 | L82: 462 | M82: 580 | N82: 358 | O82: 249 | P82: 4996 | Q82: 1313 | R82: 6309 | S82: 1313 | T82: 2639 | U82: 2360 | V82: 2709 | W82: 15391 | X82: 34176 | Y82: 282787 | AA82: 1313 | AB82: 1235 | AC82: 1773 | AD82: 919 | AE82: 911 | AF82: 2021 Census | AG82: Diversity
A83: Other mixed or multiple ethnic groups | B83: 16-64 | D83: 413 | E83: 821 | F83: 480 | G83: 291 | H83: 339 | I83: 350 | J83: 602 | K83: 446 | L83: 419 | M83: 519 | N83: 431 | O83: 447 | P83: 5558 | Q83: 1001 | R83: 6559 | S83: 1001 | T83: 2802 | U83: 2756 | V83: 2250 | W83: 15365 | X83: 40971 | Y83: 259903 | AA83: 1001 | AB83: 1169 | AC83: 1970 | AD83: 1015 | AE83: 1324 | AF83: 2021 Census | AG83: Diversity
A84: Total white | B84: 16-64 | D84: 70268 | E84: 85670 | F84: 55837 | G84: 64381 | H84: 58485 | I84: 49992 | J84: 96848 | K84: 64770 | L84: 87055 | M84: 75873 | N84: 74650 | O84: 63858 | P84: 847687 | Q84: 148071 | R84: 995758 | S84: 148071 | T84: 441732 | U84: 405955 | V84: 340955 | W84: 2290827 | X84: 4911412 | Y84: 28488261 | AA84: 148071 | AB84: 164314 | AC84: 284409 | AD84: 167116 | AE84: 203278 | AF84: 2021 Census | AG84: Diversity
A85: English, Welsh, Scottish, Northern Irish or British | B85: 16-64 | D85: 65004 | E85: 77438 | F85: 49457 | G85: 60689 | H85: 54921 | I85: 43412 | J85: 86337 | K85: 59070 | L85: 81081 | M85: 70181 | N85: 69852 | O85: 57382 | P85: 774823 | Q85: 135565 | R85: 910388 | S85: 135565 | T85: 409314 | U85: 365510 | V85: 309515 | W85: 2103143 | X85: 4382127 | Y85: 25224616 | AA85: 135565 | AB85: 147790 | AC85: 263229 | AD85: 151341 | AE85: 186304 | AF85: 2021 Census | AG85: Diversity
A86: Irish | B86: 16-64 | D86: 492 | E86: 857 | F86: 528 | G86: 350 | H86: 430 | I86: 397 | J86: 634 | K86: 719 | L86: 523 | M86: 666 | N86: 572 | O86: 596 | P86: 6762 | Q86: 1097 | R86: 7859 | S86: 1097 | T86: 3318 | U86: 3446 | V86: 2545 | W86: 18949 | X86: 49271 | Y86: 310262 | AA86: 1097 | AB86: 1355 | AC86: 2303 | AD86: 1126 | AE86: 1887 | AF86: 2021 Census | AG86: Diversity
A87: Gypsy or Irish Traveller | B87: 16-64 | D87: 375 | E87: 246 | F87: 172 | G87: 163 | H87: 95 | I87: 182 | J87: 582 | K87: 249 | L87: 597 | M87: 132 | N87: 247 | O87: 175 | P87: 3216 | Q87: 425 | R87: 3641 | S87: 425 | T87: 1608 | U87: 1607 | V87: 1376 | W87: 5569 | X87: 10045 | Y87: 40042 | AA87: 425 | AB87: 449 | AC87: 636 | AD87: 957 | AE87: 671 | AF87: 2021 Census | AG87: Diversity
A88: Roma | B88: 16-64 | D88: 55 | E88: 148 | F88: 123 | G88: 153 | H88: 95 | I88: 239 | J88: 213 | K88: 50 | L88: 130 | M88: 227 | N88: 56 | O88: 104 | P88: 1595 | Q88: 352 | R88: 1947 | S88: 352 | T88: 808 | U88: 785 | V88: 844 | W88: 3911 | X88: 10060 | Y88: 79006 | AA88: 352 | AB88: 457 | AC88: 623 | AD88: 268 | AE88: 210 | AF88: 2021 Census | AG88: Diversity
A89: Other white | B89: 16-64 | D89: 4342 | E89: 6981 | F89: 5557 | G89: 3026 | H89: 2944 | I89: 5762 | J89: 9082 | K89: 4682 | L89: 4724 | M89: 4667 | N89: 3923 | O89: 5601 | P89: 61291 | Q89: 10632 | R89: 71923 | S89: 10632 | T89: 26684 | U89: 34607 | V89: 26675 | W89: 159255 | X89: 459909 | Y89: 2834335 | AA89: 10632 | AB89: 14263 | AC89: 17618 | AD89: 13424 | AE89: 14206 | AF89: 2021 Census | AG89: Diversity
A90: Other ethnic group | B90: 16-64 | D90: 1310 | E90: 1863 | F90: 1667 | G90: 696 | H90: 790 | I90: 2148 | J90: 1484 | K90: 666 | L90: 576 | M90: 1129 | N90: 546 | O90: 814 | P90: 13689 | Q90: 2782 | R90: 16471 | S90: 2782 | T90: 6364 | U90: 7325 | V90: 7173 | W90: 33698 | X90: 96706 | Y90: 861689 | AA90: 2782 | AB90: 4605 | AC90: 4478 | AD90: 2794 | AE90: 2026 | AF90: 2021 Census | AG90: Diversity
A91: Arab | B91: 16-64 | D91: 193 | E91: 541 | F91: 178 | G91: 87 | H91: 74 | I91: 86 | J91: 159 | K91: 113 | L91: 74 | M91: 163 | N91: 105 | O91: 174 | P91: 1947 | Q91: 328 | R91: 2275 | S91: 328 | T91: 1132 | U91: 815 | V91: 666 | W91: 5332 | X91: 20306 | Y91: 213828 | AA91: 328 | AB91: 338 | AC91: 865 | AD91: 352 | AE91: 392 | AF91: 2021 Census | AG91: Diversity
A92: Any other ethnic group | B92: 16-64 | D92: 1117 | E92: 1322 | F92: 1489 | G92: 609 | H92: 716 | I92: 2062 | J92: 1325 | K92: 553 | L92: 502 | M92: 966 | N92: 441 | O92: 640 | P92: 11742 | Q92: 2454 | R92: 14196 | S92: 2454 | T92: 5232 | U92: 6510 | V92: 6507 | W92: 28366 | X92: 76400 | Y92: 647861 | AA92: 2454 | AB92: 4267 | AC92: 3613 | AD92: 2442 | AE92: 1634 | AF92: 2021 Census | AG92: Diversity
A93: All usual residents aged 65+ | B93: 65+ | D93: 25997 | E93: 34247 | F93: 16039 | G93: 27900 | H93: 27427 | I93: 18414 | J93: 33526 | K93: 25931 | L93: 28912 | M93: 33262 | N93: 25308 | O93: 22374 | P93: 319328 | Q93: 46059 | R93: 365387 | S93: 46059 | T93: 177745 | U93: 141592 | V93: 109424 | W93: 876257 | X93: 1804257 | Y93: 10401301 | AA93: 46059 | AB93: 61880 | AC93: 122836 | AD93: 59523 | AE93: 73613 | AF93: 2021 Census | AG93: Diversity
A94: White British | B94: 65+ | D94: 24182 | E94: 32442 | F94: 14279 | G94: 26737 | H94: 25966 | I94: 16029 | J94: 31507 | K94: 24598 | L94: 27778 | M94: 31533 | N94: 24176 | O94: 21112 | P94: 300339 | Q94: 42021 | R94: 342360 | S94: 42021 | T94: 168638 | U94: 131701 | V94: 100107 | W94: 823471 | X94: 1661184 | Y94: 9328900 | AA94: 42021 | AB94: 56274 | AC94: 116678 | AD94: 55689 | AE94: 69886 | AF94: 2021 Census | AG94: Diversity
A95: Ethnic minorities | B95: 65+ | D95: 1815 | E95: 1805 | F95: 1760 | G95: 1163 | H95: 1461 | I95: 2385 | J95: 2019 | K95: 1333 | L95: 1134 | M95: 1729 | N95: 1132 | O95: 1262 | P95: 18989 | Q95: 4038 | R95: 23027 | S95: 4038 | T95: 9107 | U95: 9891 | V95: 9317 | W95: 52786 | X95: 143073 | Y95: 1072401 | AA95: 4038 | AB95: 5606 | AC95: 6158 | AD95: 3834 | AE95: 3727 | AF95: 2021 Census | AG95: Diversity
A96: Other than white | B96: 65+ | D96: 1088 | E96: 690 | F96: 1242 | G96: 370 | H96: 615 | I96: 1848 | J96: 1068 | K96: 541 | L96: 459 | M96: 696 | N96: 512 | O96: 446 | P96: 9569 | Q96: 2637 | R96: 12206 | S96: 2637 | T96: 3918 | U96: 5657 | V96: 6186 | W96: 26095 | X96: 76081 | Y96: 698138 | AA96: 2637 | AB96: 3705 | AC96: 2371 | AD96: 2156 | AE96: 1499 | AF96: 2021 Census | AG96: Diversity
A97: Total Asian | B97: 65+ | D97: 658 | E97: 360 | F97: 777 | G97: 159 | H97: 347 | I97: 1273 | J97: 632 | K97: 289 | L97: 219 | M97: 259 | N97: 288 | O97: 239 | P97: 5498 | Q97: 1594 | R97: 7092 | S97: 1594 | T97: 2002 | U97: 3498 | V97: 3863 | W97: 14372 | X97: 46714 | Y97: 410693 | AA97: 1594 | AB97: 2397 | AC97: 1125 | AD97: 1290 | AE97: 816 | AF97: 2021 Census | AG97: Diversity
A98: Bangladeshi | B98: 65+ | D98: 10 | E98: 6 | F98: 25 | G98: 6 | H98: 9 | I98: 25 | J98: 18 | K98: 9 | L98: 6 | M98: 5 | N98: 12 | O98: 14 | P98: 143 | Q98: 71 | R98: 214 | S98: 71 | T98: 42 | U98: 103 | V98: 127 | W98: 513 | X98: 1315 | Y98: 24247 | AA98: 71 | AB98: 59 | AC98: 26 | AD98: 28 | AE98: 35 | AF98: 2021 Census | AG98: Diversity
A99: Chinese | B99: 65+ | D99: 71 | E99: 93 | F99: 95 | G99: 40 | H99: 48 | I99: 57 | J99: 79 | K99: 71 | L99: 43 | M99: 42 | N99: 50 | O99: 54 | P99: 743 | Q99: 131 | R99: 874 | S99: 131 | T99: 337 | U99: 406 | V99: 326 | W99: 2438 | X99: 5890 | Y99: 37007 | AA99: 131 | AB99: 200 | AC99: 223 | AD99: 150 | AE99: 175 | AF99: 2021 Census | AG99: Diversity
A100: Indian | B100: 65+ | D100: 89 | E100: 143 | F100: 426 | G100: 64 | H100: 75 | I100: 988 | J100: 193 | K100: 120 | L100: 122 | M100: 94 | N100: 102 | O100: 86 | P100: 2504 | Q100: 990 | R100: 3494 | S100: 990 | T100: 587 | U100: 1915 | V100: 2526 | W100: 6476 | X100: 19771 | Y100: 197298 | AA100: 990 | AB100: 1489 | AC100: 376 | AD100: 282 | AE100: 308 | AF100: 2021 Census | AG100: Diversity
A101: Pakistani | B101: 65+ | D101: 27 | E101: 15 | F101: 28 | G101: 1 | H101: 10 | I101: 35 | J101: 38 | K101: 11 | L101: 7 | M101: 18 | N101: 20 | O101: 10 | P101: 221 | Q101: 170 | R101: 391 | S101: 170 | T101: 78 | U101: 142 | V101: 240 | W101: 987 | X101: 8079 | Y101: 85975 | AA101: 170 | AB101: 73 | AC101: 44 | AD101: 65 | AE101: 41 | AF101: 2021 Census | AG101: Diversity
A102: Other Asian | B102: 65+ | D102: 461 | E102: 103 | F102: 203 | G102: 48 | H102: 205 | I102: 168 | J102: 304 | K102: 78 | L102: 41 | M102: 100 | N102: 104 | O102: 75 | P102: 1887 | Q102: 232 | R102: 2119 | S102: 232 | T102: 958 | U102: 932 | V102: 644 | W102: 3958 | X102: 11659 | Y102: 66166 | AA102: 232 | AB102: 576 | AC102: 456 | AD102: 765 | AE102: 257 | AF102: 2021 Census | AG102: Diversity
A103: Total black Caribbean or African | B103: 65+ | D103: 130 | E103: 85 | F103: 241 | G103: 43 | H103: 54 | I103: 204 | J103: 125 | K103: 86 | L103: 116 | M103: 123 | N103: 57 | O103: 52 | P103: 1315 | Q103: 513 | R103: 1828 | S103: 513 | T103: 551 | U103: 765 | V103: 1074 | W103: 4513 | X103: 10224 | Y103: 154210 | AA103: 513 | AB103: 499 | AC103: 305 | AD103: 255 | AE103: 195 | AF103: 2021 Census | AG103: Diversity
A104: African | B104: 65+ | D104: 53 | E104: 35 | F104: 145 | G104: 17 | H104: 11 | I104: 105 | J104: 59 | K104: 31 | L104: 50 | M104: 42 | N104: 20 | O104: 27 | P104: 596 | Q104: 212 | R104: 808 | S104: 212 | T104: 208 | U104: 387 | V104: 512 | W104: 2021 | X104: 3655 | Y104: 51994 | AA104: 212 | AB104: 261 | AC104: 105 | AD104: 112 | AE104: 78 | AF104: 2021 Census | AG104: Diversity
A105: Caribbean | B105: 65+ | D105: 67 | E105: 38 | F105: 80 | G105: 21 | H105: 36 | I105: 86 | J105: 55 | K105: 44 | L105: 51 | M105: 69 | N105: 30 | O105: 19 | P105: 595 | Q105: 261 | R105: 856 | S105: 261 | T105: 282 | U105: 314 | V105: 478 | W105: 2091 | X105: 5581 | Y105: 90572 | AA105: 261 | AB105: 202 | AC105: 164 | AD105: 122 | AE105: 93 | AF105: 2021 Census | AG105: Diversity
A106: Other black | B106: 65+ | D106: 10 | E106: 12 | F106: 16 | G106: 5 | H106: 7 | I106: 13 | J106: 11 | K106: 11 | L106: 15 | M106: 12 | N106: 7 | O106: 6 | P106: 124 | Q106: 40 | R106: 164 | S106: 40 | T106: 61 | U106: 64 | V106: 84 | W106: 401 | X106: 988 | Y106: 11644 | AA106: 40 | AB106: 36 | AC106: 36 | AD106: 21 | AE106: 24 | AF106: 2021 Census | AG106: Diversity
A107: Total mixed or multiple ethnic groups | B107: 65+ | D107: 82 | E107: 126 | F107: 70 | G107: 88 | H107: 98 | I107: 53 | J107: 119 | K107: 91 | L107: 76 | M107: 166 | N107: 91 | O107: 80 | P107: 1141 | Q107: 230 | R107: 1371 | S107: 230 | T107: 636 | U107: 504 | V107: 429 | W107: 3255 | X107: 7898 | Y107: 44275 | AA107: 230 | AB107: 221 | AC107: 478 | AD107: 201 | AE107: 262 | AF107: 2021 Census | AG107: Diversity
A108: White and Asian | B108: 65+ | D108: 37 | E108: 52 | F108: 27 | G108: 31 | H108: 37 | I108: 16 | J108: 52 | K108: 43 | L108: 28 | M108: 46 | N108: 32 | O108: 31 | P108: 431 | Q108: 87 | R108: 518 | S108: 87 | T108: 231 | U108: 201 | V108: 158 | W108: 1147 | X108: 2755 | Y108: 12669 | AA108: 87 | AB108: 80 | AC108: 166 | AD108: 89 | AE108: 106 | AF108: 2021 Census | AG108: Diversity
A109: White and Black African | B109: 65+ | D109: 7 | E109: 13 | F109: 8 | G109: 11 | H109: 9 | I109: 9 | J109: 12 | K109: 8 | L109: 5 | M109: 30 | N109: 12 | O109: 7 | P109: 133 | Q109: 17 | R109: 150 | S109: 17 | T109: 75 | U109: 56 | V109: 39 | W109: 355 | X109: 900 | Y109: 5900 | AA109: 17 | AB109: 26 | AC109: 63 | AD109: 19 | AE109: 27 | AF109: 2021 Census | AG109: Diversity
A110: White and Black Caribbean | B110: 65+ | D110: 18 | E110: 21 | F110: 10 | G110: 16 | H110: 23 | I110: 11 | J110: 17 | K110: 13 | L110: 19 | M110: 38 | N110: 20 | O110: 14 | P110: 219 | Q110: 43 | R110: 262 | S110: 43 | T110: 135 | U110: 85 | V110: 83 | W110: 679 | X110: 1497 | Y110: 10523 | AA110: 43 | AB110: 44 | AC110: 98 | AD110: 35 | AE110: 47 | AF110: 2021 Census | AG110: Diversity
A111: Other mixed or multiple ethnic groups | B111: 65+ | D111: 20 | E111: 40 | F111: 25 | G111: 30 | H111: 29 | I111: 17 | J111: 38 | K111: 27 | L111: 24 | M111: 52 | N111: 27 | O111: 28 | P111: 358 | Q111: 83 | R111: 441 | S111: 83 | T111: 195 | U111: 162 | V111: 149 | W111: 1074 | X111: 2746 | Y111: 15183 | AA111: 83 | AB111: 71 | AC111: 151 | AD111: 58 | AE111: 82 | AF111: 2021 Census | AG111: Diversity
A112: Total white | B112: 65+ | D112: 24909 | E112: 33557 | F112: 14797 | G112: 27530 | H112: 26812 | I112: 16566 | J112: 32458 | K112: 25390 | L112: 28453 | M112: 32566 | N112: 24796 | O112: 21928 | P112: 309759 | Q112: 43422 | R112: 353181 | S112: 43422 | T112: 173827 | U112: 135935 | V112: 103238 | W112: 850162 | X112: 1728176 | Y112: 9703163 | AA112: 43422 | AB112: 58175 | AC112: 120465 | AD112: 57367 | AE112: 72114 | AF112: 2021 Census | AG112: Diversity
A113: English, Welsh, Scottish, Northern Irish or British | B113: 65+ | D113: 24182 | E113: 32442 | F113: 14279 | G113: 26737 | H113: 25966 | I113: 16029 | J113: 31507 | K113: 24598 | L113: 27778 | M113: 31533 | N113: 24176 | O113: 21112 | P113: 300339 | Q113: 42021 | R113: 342360 | S113: 42021 | T113: 168638 | U113: 131701 | V113: 100107 | W113: 823471 | X113: 1661184 | Y113: 9328900 | AA113: 42021 | AB113: 56274 | AC113: 116678 | AD113: 55689 | AE113: 69886 | AF113: 2021 Census | AG113: Diversity
A114: Irish | B114: 65+ | D114: 237 | E114: 377 | F114: 230 | G114: 268 | H114: 311 | I114: 279 | J114: 318 | K114: 277 | L114: 297 | M114: 433 | N114: 224 | O114: 257 | P114: 3506 | Q114: 673 | R114: 4179 | S114: 673 | T114: 1923 | U114: 1585 | V114: 1479 | W114: 10984 | X114: 24629 | Y114: 158608 | AA114: 673 | AB114: 820 | AC114: 1389 | AD114: 555 | AE114: 758 | AF114: 2021 Census | AG114: Diversity
A115: Gypsy or Irish Traveller | B115: 65+ | D115: 54 | E115: 34 | F115: 26 | G115: 17 | H115: 8 | I115: 24 | J115: 75 | K115: 44 | L115: 46 | M115: 10 | N115: 29 | O115: 19 | P115: 384 | Q115: 52 | R115: 436 | S115: 52 | T115: 169 | U115: 217 | V115: 148 | W115: 711 | X115: 1280 | Y115: 4751 | AA115: 52 | AB115: 58 | AC115: 69 | AD115: 129 | AE115: 92 | AF115: 2021 Census | AG115: Diversity
A116: Roma | B116: 65+ | D116: 5 | E116: 11 | F116: 4 | G116: 3 | H116: 7 | I116: 10 | J116: 10 | K116: 7 | L116: 14 | M116: 15 | N116: 5 | O116: 2 | P116: 94 | Q116: 28 | R116: 122 | S116: 28 | T116: 55 | U116: 38 | V116: 56 | W116: 224 | X116: 514 | Y116: 2534 | AA116: 28 | AB116: 21 | AC116: 36 | AD116: 15 | AE116: 14 | AF116: 2021 Census | AG116: Diversity
A117: Other white | B117: 65+ | D117: 431 | E117: 693 | F117: 258 | G117: 505 | H117: 520 | I117: 224 | J117: 548 | K117: 464 | L117: 318 | M117: 575 | N117: 362 | O117: 538 | P117: 5436 | Q117: 648 | R117: 6084 | S117: 648 | T117: 3042 | U117: 2394 | V117: 1448 | W117: 14772 | X117: 40569 | Y117: 208370 | AA117: 648 | AB117: 1002 | AC117: 2293 | AD117: 979 | AE117: 1364 | AF117: 2021 Census | AG117: Diversity
A118: Other ethnic group | B118: 65+ | D118: 218 | E118: 119 | F118: 154 | G118: 80 | H118: 116 | I118: 318 | J118: 192 | K118: 75 | L118: 48 | M118: 148 | N118: 76 | O118: 75 | P118: 1615 | Q118: 300 | R118: 1915 | S118: 300 | T118: 729 | U118: 890 | V118: 820 | W118: 3955 | X118: 11245 | Y118: 88960 | AA118: 300 | AB118: 588 | AC118: 463 | AD118: 410 | AE118: 226 | AF118: 2021 Census | AG118: Diversity
A119: Arab | B119: 65+ | D119: 17 | E119: 22 | F119: 11 | G119: 13 | H119: 11 | I119: 7 | J119: 19 | K119: 11 | L119: 7 | M119: 18 | N119: 16 | O119: 24 | P119: 176 | Q119: 22 | R119: 198 | S119: 22 | T119: 88 | U119: 88 | V119: 47 | W119: 513 | X119: 1805 | Y119: 15569 | AA119: 22 | AB119: 29 | AC119: 64 | AD119: 36 | AE119: 51 | AF119: 2021 Census | AG119: Diversity
A120: Any other ethnic group | B120: 65+ | D120: 201 | E120: 97 | F120: 143 | G120: 67 | H120: 105 | I120: 311 | J120: 173 | K120: 64 | L120: 41 | M120: 130 | N120: 60 | O120: 51 | P120: 1439 | Q120: 278 | R120: 1717 | S120: 278 | T120: 641 | U120: 802 | V120: 773 | W120: 3442 | X120: 9440 | Y120: 73391 | AA120: 278 | AB120: 559 | AC120: 399 | AD120: 374 | AE120: 175 | AF120: 2021 Census | AG120: Diversity
A121: Ethnic Group - Males | B121: Males | D121: 2021 | E121: 2021 | F121: 2021 | G121: 2021 | H121: 2021 | I121: 2021 | J121: 2021 | K121: 2021 | L121: 2021 | M121: 2021 | N121: 2021 | O121: 2021 | P121: 2021 | Q121: 2021 | R121: 2021 | S121: 2021 | T121: 2021 | U121: 2021 | V121: 2021 | W121: 2021 | X121: 2021 | Y121: 2021 | AA121: 2021 | AB121: 2021 | AC121: 2021 | AD121: 2021 | AE121: 2021 | AF121: 2021 Census | AG121: Diversity
A122: All usual residents | B122: Males | D122: 64593 | E122: 75583 | F122: 57152 | G122: 56798 | H122: 53578 | I122: 52236 | J122: 86967 | K122: 58204 | L122: 75313 | M122: 67661 | N122: 64348 | O122: 55945 | P122: 768384 | Q122: 137129 | R122: 905513 | S122: 137129 | T122: 393526 | U122: 374852 | V122: 321830 | W122: 2074134 | X122: 4539240 | Y122: 27656333 | AA122: 137129 | AB122: 162966 | AC122: 253620 | AD122: 151560 | AE122: 178497 | AF122: 2021 Census | AG122: Diversity
A123: White British | B123: Males | D123: 53498 | E123: 62852 | F123: 38564 | G123: 51486 | H123: 47204 | I123: 35535 | J123: 71313 | K123: 50324 | L123: 66555 | M123: 59212 | N123: 57183 | O123: 47570 | P123: 641297 | Q123: 107646 | R123: 748943 | S123: 107646 | T123: 340807 | U123: 300489 | V123: 248300 | W123: 1736898 | X123: 3599119 | Y123: 20421992 | AA123: 107646 | AB123: 121303 | AC123: 220754 | AD123: 124811 | AE123: 155077 | AF123: 2021 Census | AG123: Diversity
A124: Ethnic minorities | B124: Males | D124: 11095 | E124: 12731 | F124: 18588 | G124: 5312 | H124: 6374 | I124: 16701 | J124: 15654 | K124: 7880 | L124: 8758 | M124: 8449 | N124: 7165 | O124: 8375 | P124: 127087 | Q124: 29483 | R124: 156570 | S124: 29483 | T124: 52719 | U124: 74363 | V124: 73530 | W124: 337236 | X124: 940121 | Y124: 7234341 | AA124: 29483 | AB124: 41663 | AC124: 32866 | AD124: 26749 | AE124: 23420 | AF124: 2021 Census | AG124: Diversity
A125: Other than white | B125: Males | D125: 7778 | E125: 8076 | F125: 14612 | G125: 2955 | H125: 4175 | I125: 12466 | J125: 9078 | K125: 4425 | L125: 4887 | M125: 4905 | N125: 4299 | O125: 4700 | P125: 82364 | Q125: 21563 | R125: 103927 | S125: 21563 | T125: 32776 | U125: 49580 | V125: 53528 | W125: 221418 | X125: 622495 | Y125: 5233767 | AA125: 21563 | AB125: 31253 | AC125: 20111 | AD125: 16856 | AE125: 13424 | AF125: 2021 Census | AG125: Diversity
A126: Total Asian | B126: Males | D126: 3754 | E126: 3050 | F126: 5712 | G126: 1157 | H126: 2242 | I126: 6043 | J126: 4145 | K126: 1530 | L126: 1132 | M126: 1597 | N126: 1808 | O126: 2190 | P126: 34369 | Q126: 7945 | R126: 42314 | S126: 7945 | T126: 12932 | U126: 21428 | V126: 20832 | W126: 84792 | X126: 315775 | Y126: 2663692 | AA126: 7945 | AB126: 13997 | AC126: 8046 | AD126: 7899 | AE126: 5528 | AF126: 2021 Census | AG126: Diversity
A127: Bangladeshi | B127: Males | D127: 184 | E127: 216 | F127: 553 | G127: 91 | H127: 112 | I127: 375 | J127: 343 | K127: 118 | L127: 234 | M127: 142 | N127: 194 | O127: 299 | P127: 2868 | Q127: 971 | R127: 3839 | S127: 971 | T127: 979 | U127: 1882 | V127: 2133 | W127: 9258 | X127: 20521 | Y127: 315371 | AA127: 971 | AB127: 1040 | AC127: 561 | AD127: 527 | AE127: 611 | AF127: 2021 Census | AG127: Diversity
A128: Chinese | B128: Males | D128: 262 | E128: 627 | F128: 533 | G128: 143 | H128: 140 | I128: 151 | J128: 283 | K128: 326 | L128: 145 | M128: 201 | N128: 305 | O128: 300 | P128: 3413 | Q128: 564 | R128: 3977 | S128: 564 | T128: 1518 | U128: 1898 | V128: 1393 | W128: 9200 | X128: 28059 | Y128: 192987 | AA128: 564 | AB128: 824 | AC128: 1111 | AD128: 545 | AE128: 931 | AF128: 2021 Census | AG128: Diversity
A129: Indian | B129: Males | D129: 851 | E129: 979 | F129: 2559 | G129: 278 | H129: 247 | I129: 4101 | J129: 1057 | K129: 625 | L129: 387 | M129: 497 | N129: 752 | O129: 833 | P129: 13167 | Q129: 3762 | R129: 16929 | S129: 3762 | T129: 3239 | U129: 9927 | V129: 10809 | W129: 33106 | X129: 120217 | Y129: 920519 | AA129: 3762 | AB129: 6907 | AC129: 2001 | AD129: 1908 | AE129: 2210 | AF129: 2021 Census | AG129: Diversity
A130: Pakistani | B130: Males | D130: 203 | E130: 280 | F130: 388 | G130: 22 | H130: 121 | I130: 430 | J130: 290 | K130: 134 | L130: 85 | M130: 155 | N130: 135 | O130: 211 | P130: 2456 | Q130: 1076 | R130: 3532 | S130: 1076 | T130: 866 | U130: 1588 | V130: 1979 | W130: 9359 | X130: 73486 | Y130: 788336 | AA130: 1076 | AB130: 939 | AC130: 578 | AD130: 493 | AE130: 480 | AF130: 2021 Census | AG130: Diversity
A131: Other Asian | B131: Males | D131: 2254 | E131: 948 | F131: 1679 | G131: 623 | H131: 1622 | I131: 986 | J131: 2172 | K131: 327 | L131: 281 | M131: 602 | N131: 422 | O131: 547 | P131: 12465 | Q131: 1572 | R131: 14037 | S131: 1572 | T131: 6330 | U131: 6133 | V131: 4518 | W131: 23869 | X131: 73492 | Y131: 446479 | AA131: 1572 | AB131: 4287 | AC131: 3795 | AD131: 4426 | AE131: 1296 | AF131: 2021 Census | AG131: Diversity
A132: Total black Caribbean or African | B132: Males | D132: 1661 | E132: 1787 | F132: 5913 | G132: 418 | H132: 328 | I132: 3309 | J132: 1824 | K132: 911 | L132: 1834 | M132: 733 | N132: 668 | O132: 536 | P132: 19919 | Q132: 7634 | R132: 27553 | S132: 7634 | T132: 6761 | U132: 13161 | V132: 18690 | W132: 60537 | X132: 108898 | Y132: 1128522 | AA132: 7634 | AB132: 9550 | AC132: 3266 | AD132: 3485 | AE132: 2115 | AF132: 2021 Census | AG132: Diversity
A133: African | B133: Males | D133: 1199 | E133: 1383 | F133: 4693 | G133: 280 | H133: 188 | I133: 2472 | J133: 1266 | K133: 623 | L133: 1276 | M133: 406 | N133: 438 | O133: 389 | P133: 14610 | Q133: 5409 | R133: 20019 | S133: 5409 | T133: 4732 | U133: 9881 | V133: 13850 | W133: 42946 | X133: 72971 | Y133: 698415 | AA133: 5409 | AB133: 7353 | AC133: 2257 | AD133: 2465 | AE133: 1450 | AF133: 2021 Census | AG133: Diversity
A134: Caribbean | B134: Males | D134: 279 | E134: 264 | F134: 535 | G134: 87 | H134: 93 | I134: 400 | J134: 360 | K134: 165 | L134: 264 | M134: 235 | N134: 141 | O134: 92 | P134: 2909 | Q134: 1259 | R134: 4168 | S134: 1259 | T134: 1222 | U134: 1693 | V134: 2458 | W134: 9702 | X134: 21855 | Y134: 283989 | AA134: 1259 | AB134: 1028 | AC134: 679 | AD134: 639 | AE134: 398 | AF134: 2021 Census | AG134: Diversity
A135: Other black | B135: Males | D135: 183 | E135: 140 | F135: 685 | G135: 51 | H135: 47 | I135: 437 | J135: 198 | K135: 123 | L135: 294 | M135: 92 | N135: 89 | O135: 55 | P135: 2400 | Q135: 966 | R135: 3366 | S135: 966 | T135: 807 | U135: 1587 | V135: 2382 | W135: 7889 | X135: 14072 | Y135: 146118 | AA135: 966 | AB135: 1169 | AC135: 330 | AD135: 381 | AE135: 267 | AF135: 2021 Census | AG135: Diversity
A136: Total mixed or multiple ethnic groups | B136: Males | D136: 1423 | E136: 2108 | F136: 1780 | G136: 846 | H136: 1054 | I136: 1444 | J136: 1977 | K136: 1513 | L136: 1484 | M136: 1718 | N136: 1418 | O136: 1418 | P136: 18188 | Q136: 3991 | R136: 22179 | S136: 3991 | T136: 8633 | U136: 9550 | V136: 8699 | W136: 51750 | X136: 129190 | Y136: 817825 | AA136: 3991 | AB136: 4278 | AC136: 5726 | AD136: 3400 | AE136: 4349 | AF136: 2021 Census | AG136: Diversity
A137: White and Asian | B137: Males | D137: 441 | E137: 650 | F137: 500 | G137: 248 | H137: 332 | I137: 414 | J137: 667 | K137: 644 | L137: 410 | M137: 454 | N137: 488 | O137: 613 | P137: 5858 | Q137: 1088 | R137: 6946 | S137: 1088 | T137: 2535 | U137: 3326 | V137: 2412 | W137: 15424 | X137: 44076 | Y137: 236046 | AA137: 1088 | AB137: 1246 | AC137: 1684 | AD137: 1108 | AE137: 1745 | AF137: 2021 Census | AG137: Diversity
A138: White and Black African | B138: Males | D138: 215 | E138: 353 | F138: 355 | G138: 143 | H138: 143 | I138: 278 | J138: 309 | K138: 170 | L138: 214 | M138: 302 | N138: 210 | O138: 171 | P138: 2869 | Q138: 709 | R138: 3578 | S138: 709 | T138: 1370 | U138: 1493 | V138: 1556 | W138: 8438 | X138: 19296 | Y138: 118703 | AA138: 709 | AB138: 776 | AC138: 941 | AD138: 524 | AE138: 551 | AF138: 2021 Census | AG138: Diversity
A139: White and Black Caribbean | B139: Males | D139: 384 | E139: 491 | F139: 489 | G139: 210 | H139: 277 | I139: 399 | J139: 473 | K139: 301 | L139: 452 | M139: 516 | N139: 344 | O139: 231 | P139: 4572 | Q139: 1245 | R139: 5817 | S139: 1245 | T139: 2330 | U139: 2237 | V139: 2585 | W139: 14361 | X139: 31158 | Y139: 244909 | AA139: 1245 | AB139: 1165 | AC139: 1494 | AD139: 857 | AE139: 876 | AF139: 2021 Census | AG139: Diversity
A140: Other mixed or multiple ethnic groups | B140: Males | D140: 383 | E140: 614 | F140: 436 | G140: 245 | H140: 302 | I140: 353 | J140: 528 | K140: 398 | L140: 408 | M140: 446 | N140: 376 | O140: 403 | P140: 4889 | Q140: 949 | R140: 5838 | S140: 949 | T140: 2398 | U140: 2494 | V140: 2146 | W140: 13527 | X140: 34660 | Y140: 218167 | AA140: 949 | AB140: 1091 | AC140: 1607 | AD140: 911 | AE140: 1177 | AF140: 2021 Census | AG140: Diversity
A141: Total white | B141: Males | D141: 56815 | E141: 67507 | F141: 42540 | G141: 53843 | H141: 49403 | I141: 39770 | J141: 77889 | K141: 53779 | L141: 70426 | M141: 62756 | N141: 60049 | O141: 51245 | P141: 686020 | Q141: 115566 | R141: 801586 | S141: 115566 | T141: 360750 | U141: 325272 | V141: 268302 | W141: 1852716 | X141: 3916745 | Y141: 22422566 | AA141: 115566 | AB141: 131713 | AC141: 233509 | AD141: 134704 | AE141: 165073 | AF141: 2021 Census | AG141: Diversity
A142: English, Welsh, Scottish, Northern Irish or British | B142: Males | D142: 53498 | E142: 62852 | F142: 38564 | G142: 51486 | H142: 47204 | I142: 35535 | J142: 71313 | K142: 50324 | L142: 66555 | M142: 59212 | N142: 57183 | O142: 47570 | P142: 641297 | Q142: 107646 | R142: 748943 | S142: 107646 | T142: 340807 | U142: 300489 | V142: 248300 | W142: 1736898 | X142: 3599119 | Y142: 20421992 | AA142: 107646 | AB142: 121303 | AC142: 220754 | AD142: 124811 | AE142: 155077 | AF142: 2021 Census | AG142: Diversity
A143: Irish | B143: Males | D143: 356 | E143: 616 | F143: 379 | G143: 317 | H143: 368 | I143: 344 | J143: 457 | K143: 502 | L143: 431 | M143: 527 | N143: 398 | O143: 400 | P143: 5092 | Q143: 939 | R143: 6031 | S143: 939 | T143: 2615 | U143: 2480 | V143: 2093 | W143: 14516 | X143: 36696 | Y143: 237503 | AA143: 939 | AB143: 1091 | AC143: 1828 | AD143: 813 | AE143: 1300 | AF143: 2021 Census | AG143: Diversity
A144: Gypsy or Irish Traveller | B144: Males | D144: 352 | E144: 194 | F144: 143 | G144: 125 | H144: 79 | I144: 153 | J144: 472 | K144: 233 | L144: 506 | M144: 84 | N144: 211 | O144: 158 | P144: 2715 | Q144: 393 | R144: 3108 | S144: 393 | T144: 1340 | U144: 1370 | V144: 1195 | W144: 4657 | X144: 8391 | Y144: 32049 | AA144: 393 | AB144: 375 | AC144: 482 | AD144: 824 | AE144: 602 | AF144: 2021 Census | AG144: Diversity
A145: Roma | B145: Males | D145: 41 | E145: 101 | F145: 78 | G145: 108 | H145: 71 | I145: 183 | J145: 155 | K145: 35 | L145: 100 | M145: 194 | N145: 42 | O145: 57 | P145: 1166 | Q145: 237 | R145: 1403 | S145: 237 | T145: 615 | U145: 550 | V145: 598 | W145: 2780 | X145: 7114 | Y145: 54892 | AA145: 237 | AB145: 332 | AC145: 474 | AD145: 196 | AE145: 134 | AF145: 2021 Census | AG145: Diversity
A146: Other white | B146: Males | D146: 2568 | E146: 3744 | F146: 3376 | G146: 1807 | H146: 1681 | I146: 3555 | J146: 5492 | K146: 2685 | L146: 2834 | M146: 2739 | N146: 2215 | O146: 3060 | P146: 35750 | Q146: 6351 | R146: 42101 | S146: 6351 | T146: 15373 | U146: 20383 | V146: 16116 | W146: 93865 | X146: 265425 | Y146: 1676130 | AA146: 6351 | AB146: 8612 | AC146: 9971 | AD146: 8060 | AE146: 7960 | AF146: 2021 Census | AG146: Diversity
A147: Other ethnic group | B147: Males | D147: 940 | E147: 1131 | F147: 1207 | G147: 534 | H147: 551 | I147: 1670 | J147: 1132 | K147: 471 | L147: 437 | M147: 857 | N147: 405 | O147: 556 | P147: 9888 | Q147: 1993 | R147: 11881 | S147: 1993 | T147: 4450 | U147: 5441 | V147: 5307 | W147: 24339 | X147: 68632 | Y147: 623728 | AA147: 1993 | AB147: 3428 | AC147: 3073 | AD147: 2072 | AE147: 1432 | AF147: 2021 Census | AG147: Diversity
A148: Arab | B148: Males | D148: 176 | E148: 334 | F148: 136 | G148: 74 | H148: 60 | I148: 69 | J148: 145 | K148: 92 | L148: 79 | M148: 137 | N148: 99 | O148: 134 | P148: 1533 | Q148: 244 | R148: 1777 | S148: 244 | T148: 860 | U148: 675 | V148: 528 | W148: 4257 | X148: 16015 | Y148: 169631 | AA148: 244 | AB148: 265 | AC148: 605 | AD148: 321 | AE148: 325 | AF148: 2021 Census | AG148: Diversity
A149: Any other ethnic group | B149: Males | D149: 764 | E149: 797 | F149: 1071 | G149: 460 | H149: 491 | I149: 1601 | J149: 987 | K149: 379 | L149: 358 | M149: 720 | N149: 306 | O149: 422 | P149: 8355 | Q149: 1749 | R149: 10104 | S149: 1749 | T149: 3590 | U149: 4766 | V149: 4779 | W149: 20082 | X149: 52617 | Y149: 454097 | AA149: 1749 | AB149: 3163 | AC149: 2468 | AD149: 1751 | AE149: 1107 | AF149: 2021 Census | AG149: Diversity
A150: Ethnic Group - Females | B150: Females | D150: 2021 | E150: 2021 | F150: 2021 | G150: 2021 | H150: 2021 | I150: 2021 | J150: 2021 | K150: 2021 | L150: 2021 | M150: 2021 | N150: 2021 | O150: 2021 | P150: 2021 | Q150: 2021 | R150: 2021 | S150: 2021 | T150: 2021 | U150: 2021 | V150: 2021 | W150: 2021 | X150: 2021 | Y150: 2021 | AA150: 2021 | AB150: 2021 | AC150: 2021 | AD150: 2021 | AE150: 2021 | AF150: 2021 Census | AG150: Diversity
A151: All usual residents | B151: Females | D151: 68163 | E151: 81843 | F151: 59607 | G151: 59591 | H151: 56182 | I151: 54663 | J151: 88812 | K151: 62314 | L151: 76361 | M151: 72931 | N151: 67846 | O151: 59360 | P151: 807685 | Q151: 142651 | R151: 950336 | S151: 142651 | T151: 415071 | U151: 392602 | V151: 333282 | W151: 2187779 | X151: 4738826 | Y151: 28833704 | AA151: 142651 | AB151: 170452 | AC151: 270547 | AD151: 156975 | AE151: 189520 | AF151: 2021 Census | AG151: Diversity
A152: White British | B152: Females | D152: 56179 | E152: 67035 | F152: 39993 | G152: 53624 | H152: 49384 | I152: 37495 | J152: 72798 | K152: 52792 | L152: 67830 | M152: 63586 | N152: 59604 | O152: 49479 | P152: 669796 | Q152: 111306 | R152: 781102 | S152: 111306 | T152: 357638 | U152: 312161 | V152: 256624 | W152: 1818776 | X152: 3715938 | Y152: 21118797 | AA152: 111306 | AB152: 126872 | AC152: 233629 | AD152: 128977 | AE152: 161875 | AF152: 2021 Census | AG152: Diversity
A153: Ethnic minorities | B153: Females | D153: 11984 | E153: 14808 | F153: 19614 | G153: 5967 | H153: 6798 | I153: 17168 | J153: 16014 | K153: 9522 | L153: 8531 | M153: 9345 | N153: 8242 | O153: 9881 | P153: 137889 | Q153: 31345 | R153: 169234 | S153: 31345 | T153: 57433 | U153: 80441 | V153: 76658 | W153: 369003 | X153: 1022888 | Y153: 7714907 | AA153: 31345 | AB153: 43580 | AC153: 36918 | AD153: 27998 | AE153: 27645 | AF153: 2021 Census | AG153: Diversity
A154: Other than white | B154: Females | D154: 8074 | E154: 8873 | F154: 15209 | G154: 3017 | H154: 3971 | I154: 12545 | J154: 8842 | K154: 5087 | L154: 4454 | M154: 4958 | N154: 4609 | O154: 5043 | P154: 84697 | Q154: 22472 | R154: 107169 | S154: 22472 | T154: 33347 | U154: 51335 | V154: 54680 | W154: 231691 | X154: 646191 | Y154: 5472875 | AA154: 22472 | AB154: 31725 | AC154: 20819 | AD154: 16916 | AE154: 14739 | AF154: 2021 Census | AG154: Diversity
A155: Total Asian | B155: Females | D155: 3913 | E155: 3321 | F155: 5804 | G155: 1235 | H155: 2030 | I155: 5955 | J155: 4075 | K155: 1956 | L155: 1181 | M155: 1661 | N155: 2063 | O155: 2373 | P155: 35571 | Q155: 8542 | R155: 44113 | S155: 8542 | T155: 13341 | U155: 22226 | V155: 21482 | W155: 91586 | X155: 334772 | Y155: 2762696 | AA155: 8542 | AB155: 13789 | AC155: 8247 | AD155: 7988 | AE155: 6392 | AF155: 2021 Census | AG155: Diversity
A156: Bangladeshi | B156: Females | D156: 151 | E156: 213 | F156: 499 | G156: 65 | H156: 84 | I156: 315 | J156: 309 | K156: 116 | L156: 171 | M156: 111 | N156: 183 | O156: 247 | P156: 2466 | Q156: 994 | R156: 3460 | S156: 994 | T156: 795 | U156: 1669 | V156: 1979 | W156: 8584 | X156: 19360 | Y156: 314196 | AA156: 994 | AB156: 898 | AC156: 473 | AD156: 460 | AE156: 546 | AF156: 2021 Census | AG156: Diversity
A157: Chinese | B157: Females | D157: 317 | E157: 729 | F157: 635 | G157: 161 | H157: 217 | I157: 201 | J157: 373 | K157: 441 | L157: 183 | M157: 247 | N157: 360 | O157: 381 | P157: 4243 | Q157: 709 | R157: 4952 | S157: 709 | T157: 1854 | U157: 2391 | V157: 1728 | W157: 11497 | X157: 36270 | Y157: 238175 | AA157: 709 | AB157: 1053 | AC157: 1354 | AD157: 690 | AE157: 1182 | AF157: 2021 Census | AG157: Diversity
A158: Indian | B158: Females | D158: 868 | E158: 1011 | F158: 2564 | G158: 272 | H158: 246 | I158: 4033 | J158: 1091 | K158: 702 | L158: 388 | M158: 444 | N158: 795 | O158: 861 | P158: 13273 | Q158: 3931 | R158: 17204 | S158: 3931 | T158: 3229 | U158: 10046 | V158: 10916 | W158: 33986 | X158: 121320 | Y158: 922729 | AA158: 3931 | AB158: 6843 | AC158: 1973 | AD158: 1959 | AE158: 2358 | AF158: 2021 Census | AG158: Diversity
A159: Pakistani | B159: Females | D159: 201 | E159: 261 | F159: 372 | G159: 16 | H159: 93 | I159: 413 | J159: 278 | K159: 120 | L159: 64 | M159: 116 | N159: 151 | O159: 154 | P159: 2241 | Q159: 1050 | R159: 3291 | S159: 1050 | T159: 751 | U159: 1488 | V159: 1899 | W159: 8753 | X159: 71827 | Y159: 781949 | AA159: 1050 | AB159: 878 | AC159: 486 | AD159: 479 | AE159: 425 | AF159: 2021 Census | AG159: Diversity
A160: Other Asian | B160: Females | D160: 2376 | E160: 1107 | F160: 1734 | G160: 721 | H160: 1390 | I160: 993 | J160: 2024 | K160: 577 | L160: 375 | M160: 743 | N160: 574 | O160: 730 | P160: 13348 | Q160: 1858 | R160: 15206 | S160: 1858 | T160: 6712 | U160: 6632 | V160: 4960 | W160: 28766 | X160: 85995 | Y160: 505647 | AA160: 1858 | AB160: 4117 | AC160: 3961 | AD160: 4400 | AE160: 1881 | AF160: 2021 Census | AG160: Diversity
A161: Total black Caribbean or African | B161: Females | D161: 1761 | E161: 2123 | F161: 6371 | G161: 413 | H161: 355 | I161: 3644 | J161: 1780 | K161: 1022 | L161: 1657 | M161: 745 | N161: 645 | O161: 594 | P161: 21117 | Q161: 8091 | R161: 29208 | S161: 8091 | T161: 7054 | U161: 14056 | V161: 19763 | W161: 64146 | X161: 112688 | Y161: 1253202 | AA161: 8091 | AB161: 10370 | AC161: 3636 | AD161: 3541 | AE161: 2261 | AF161: 2021 Census | AG161: Diversity
A162: African | B162: Females | D162: 1305 | E162: 1544 | F162: 5123 | G162: 264 | H162: 196 | I162: 2763 | J162: 1300 | K162: 709 | L162: 1268 | M162: 452 | N162: 434 | O162: 440 | P162: 15801 | Q162: 5857 | R162: 21658 | S162: 5857 | T162: 5029 | U162: 10769 | V162: 15011 | W162: 46632 | X162: 77571 | Y162: 770059 | AA162: 5857 | AB162: 8082 | AC162: 2456 | AD162: 2605 | AE162: 1583 | AF162: 2021 Census | AG162: Diversity
A163: Caribbean | B163: Females | D163: 294 | E163: 386 | F163: 605 | G163: 91 | H163: 109 | I163: 447 | J163: 285 | K163: 207 | L163: 188 | M163: 216 | N163: 137 | O163: 80 | P163: 3049 | Q163: 1295 | R163: 4344 | S163: 1295 | T163: 1284 | U163: 1761 | V163: 2535 | W163: 10059 | X163: 21668 | Y163: 335429 | AA163: 1295 | AB163: 1161 | AC163: 802 | AD163: 579 | AE163: 424 | AF163: 2021 Census | AG163: Diversity
A164: Other black | B164: Females | D164: 162 | E164: 193 | F164: 643 | G164: 58 | H164: 50 | I164: 434 | J164: 195 | K164: 106 | L164: 201 | M164: 77 | N164: 74 | O164: 74 | P164: 2267 | Q164: 939 | R164: 3206 | S164: 939 | T164: 741 | U164: 1526 | V164: 2217 | W164: 7455 | X164: 13449 | Y164: 147714 | AA164: 939 | AB164: 1127 | AC164: 378 | AD164: 357 | AE164: 254 | AF164: 2021 Census | AG164: Diversity
A165: Total mixed or multiple ethnic groups | B165: Females | D165: 1458 | E165: 2205 | F165: 1856 | G165: 905 | H165: 1051 | I165: 1385 | J165: 2034 | K165: 1669 | L165: 1261 | M165: 1700 | N165: 1524 | O165: 1528 | P165: 18576 | Q165: 3871 | R165: 22447 | S165: 3871 | T165: 8580 | U165: 9996 | V165: 8373 | W165: 52766 | X165: 131681 | Y165: 851556 | AA165: 3871 | AB165: 4292 | AC165: 5861 | AD165: 3492 | AE165: 4721 | AF165: 2021 Census | AG165: Diversity
A166: White and Asian | B166: Females | D166: 459 | E166: 759 | F166: 480 | G166: 297 | H166: 345 | I166: 378 | J166: 651 | K166: 703 | L166: 348 | M166: 437 | N166: 552 | O166: 672 | P166: 6081 | Q166: 1071 | R166: 7152 | S166: 1071 | T166: 2645 | U166: 3436 | V166: 2277 | W166: 15692 | X166: 44030 | Y166: 238147 | AA166: 1071 | AB166: 1203 | AC166: 1838 | AD166: 1110 | AE166: 1927 | AF166: 2021 Census | AG166: Diversity
A167: White and Black African | B167: Females | D167: 224 | E167: 308 | F167: 372 | G167: 154 | H167: 157 | I167: 257 | J167: 300 | K167: 165 | L167: 200 | M167: 289 | N167: 205 | O167: 196 | P167: 2826 | Q167: 687 | R167: 3513 | S167: 687 | T167: 1332 | U167: 1495 | V167: 1516 | W167: 8393 | X167: 19335 | Y167: 122825 | AA167: 687 | AB167: 786 | AC167: 908 | AD167: 524 | AE167: 566 | AF167: 2021 Census | AG167: Diversity
A168: White and Black Caribbean | B168: Females | D168: 391 | E168: 489 | F168: 510 | G168: 201 | H168: 275 | I168: 388 | J168: 504 | K168: 357 | L168: 367 | M168: 524 | N168: 326 | O168: 245 | P168: 4578 | Q168: 1180 | R168: 5758 | S168: 1180 | T168: 2247 | U168: 2330 | V168: 2445 | W168: 14458 | X168: 30929 | Y168: 254401 | AA168: 1180 | AB168: 1173 | AC168: 1489 | AD168: 895 | AE168: 928 | AF168: 2021 Census | AG168: Diversity
A169: Other mixed or multiple ethnic groups | B169: Females | D169: 384 | E169: 649 | F169: 494 | G169: 253 | H169: 274 | I169: 362 | J169: 579 | K169: 444 | L169: 346 | M169: 450 | N169: 441 | O169: 415 | P169: 5091 | Q169: 933 | R169: 6024 | S169: 933 | T169: 2356 | U169: 2735 | V169: 2135 | W169: 14223 | X169: 37387 | Y169: 236183 | AA169: 933 | AB169: 1130 | AC169: 1626 | AD169: 963 | AE169: 1300 | AF169: 2021 Census | AG169: Diversity
A170: Total white | B170: Females | D170: 60089 | E170: 72970 | F170: 44398 | G170: 56574 | H170: 52211 | I170: 42118 | J170: 79970 | K170: 57227 | L170: 71907 | M170: 67973 | N170: 63237 | O170: 54317 | P170: 722988 | Q170: 120179 | R170: 843167 | S170: 120179 | T170: 381724 | U170: 341267 | V170: 278602 | W170: 1956088 | X170: 4092635 | Y170: 23360829 | AA170: 120179 | AB170: 138727 | AC170: 249728 | AD170: 140059 | AE170: 174781 | AF170: 2021 Census | AG170: Diversity
A171: English, Welsh, Scottish, Northern Irish or British | B171: Females | D171: 56179 | E171: 67035 | F171: 39993 | G171: 53624 | H171: 49384 | I171: 37495 | J171: 72798 | K171: 52792 | L171: 67830 | M171: 63586 | N171: 59604 | O171: 49479 | P171: 669796 | Q171: 111306 | R171: 781102 | S171: 111306 | T171: 357638 | U171: 312161 | V171: 256624 | W171: 1818776 | X171: 3715938 | Y171: 21118797 | AA171: 111306 | AB171: 126872 | AC171: 233629 | AD171: 128977 | AE171: 161875 | AF171: 2021 Census | AG171: Diversity
A172: Irish | B172: Females | D172: 421 | E172: 696 | F172: 434 | G172: 332 | H172: 399 | I172: 354 | J172: 537 | K172: 582 | L172: 418 | M172: 621 | N172: 451 | O172: 514 | P172: 5761 | Q172: 931 | R172: 6692 | S172: 931 | T172: 2887 | U172: 2872 | V172: 2137 | W172: 17057 | X172: 41524 | Y172: 256748 | AA172: 931 | AB172: 1187 | AC172: 2048 | AD172: 958 | AE172: 1547 | AF172: 2021 Census | AG172: Diversity
A173: Gypsy or Irish Traveller | B173: Females | D173: 334 | E173: 199 | F173: 166 | G173: 119 | H173: 67 | I173: 163 | J173: 536 | K173: 228 | L173: 418 | M173: 102 | N173: 248 | O173: 175 | P173: 2757 | Q173: 358 | R173: 3115 | S173: 358 | T173: 1239 | U173: 1516 | V173: 1105 | W173: 4735 | X173: 8357 | Y173: 32167 | AA173: 358 | AB173: 396 | AC173: 487 | AD173: 870 | AE173: 651 | AF173: 2021 Census | AG173: Diversity
A174: Roma | B174: Females | D174: 40 | E174: 90 | F174: 79 | G174: 135 | H174: 66 | I174: 168 | J174: 117 | K174: 38 | L174: 75 | M174: 189 | N174: 34 | O174: 61 | P174: 1089 | Q174: 228 | R174: 1317 | S174: 228 | T174: 595 | U174: 497 | V174: 550 | W174: 2416 | X174: 5672 | Y174: 44245 | AA174: 228 | AB174: 313 | AC174: 480 | AD174: 157 | AE174: 133 | AF174: 2021 Census | AG174: Diversity
A175: Other white | B175: Females | D175: 3115 | E175: 4950 | F175: 3726 | G175: 2364 | H175: 2295 | I175: 3938 | J175: 5982 | K175: 3587 | L175: 3166 | M175: 3475 | N175: 2900 | O175: 4088 | P175: 43585 | Q175: 7356 | R175: 50941 | S175: 7356 | T175: 19365 | U175: 24221 | V175: 18186 | W175: 113104 | X175: 321144 | Y175: 1908872 | AA175: 7356 | AB175: 9959 | AC175: 13084 | AD175: 9097 | AE175: 10575 | AF175: 2021 Census | AG175: Diversity
A176: Other ethnic group | B176: Females | D176: 942 | E176: 1224 | F176: 1178 | G176: 464 | H176: 535 | I176: 1561 | J176: 953 | K176: 440 | L176: 355 | M176: 852 | N176: 377 | O176: 548 | P176: 9433 | Q176: 1968 | R176: 11401 | S176: 1968 | T176: 4372 | U176: 5057 | V176: 5062 | W176: 23193 | X176: 67050 | Y176: 605421 | AA176: 1968 | AB176: 3274 | AC176: 3075 | AD176: 1895 | AE176: 1365 | AF176: 2021 Census | AG176: Diversity
A177: Arab | B177: Females | D177: 121 | E177: 340 | F177: 118 | G177: 60 | H177: 59 | I177: 59 | J177: 104 | K177: 64 | L177: 50 | M177: 111 | N177: 71 | O177: 115 | P177: 1271 | Q177: 209 | R177: 1480 | S177: 209 | T177: 741 | U177: 531 | V177: 436 | W177: 3514 | X177: 13557 | Y177: 150572 | AA177: 209 | AB177: 236 | AC177: 570 | AD177: 225 | AE177: 250 | AF177: 2021 Census | AG177: Diversity
A178: Any other ethnic group | B178: Females | D178: 821 | E178: 884 | F178: 1060 | G178: 404 | H178: 476 | I178: 1502 | J178: 849 | K178: 376 | L178: 305 | M178: 741 | N178: 306 | O178: 433 | P178: 8162 | Q178: 1759 | R178: 9921 | S178: 1759 | T178: 3631 | U178: 4526 | V178: 4626 | W178: 19679 | X178: 53493 | Y178: 454849 | AA178: 1759 | AB178: 3038 | AC178: 2505 | AD178: 1670 | AE178: 1115 | AF178: 2021 Census | AG178: Diversity
A179: Country of birth - World area | B179: Table: TS012 | D179: 2021 | E179: 2021 | F179: 2021 | G179: 2021 | H179: 2021 | I179: 2021 | J179: 2021 | K179: 2021 | L179: 2021 | M179: 2021 | N179: 2021 | O179: 2021 | P179: 2021 | Q179: 2021 | R179: 2021 | S179: 2021 | T179: 2021 | U179: 2021 | V179: 2021 | W179: 2021 | X179: 2021 | Y179: 2021 | AA179: 2021 | AB179: 2021 | AC179: 2021 | AD179: 2021 | AE179: 2021 | AF179: 2021 Census | AG179: Diversity
A180: All usual residents | B180: Persons | D180: 132749 | E180: 157430 | F180: 116755 | G180: 116410 | H180: 109756 | I180: 106895 | J180: 175782 | K180: 120511 | L180: 151678 | M180: 140583 | N180: 132197 | O180: 115311 | P180: 1576071 | Q180: 279778 | R180: 1855849 | S180: 279778 | T180: 808606 | U180: 767451 | V180: 655106 | W180: 4261898 | X180: 9278064 | Y180: 56490051 | AA180: 279778 | AB180: 333406 | AC180: 524179 | AD180: 308531 | AE180: 368019 | AF180: 2021 Census | AG180: Diversity
A181: Europe: Total | B181: Persons | D181: 121312 | E181: 146964 | F181: 101902 | G181: 111957 | H181: 103319 | I181: 95339 | J181: 163907 | K181: 112946 | L181: 146646 | M181: 134856 | N181: 125389 | O181: 106783 | P181: 1471322 | Q181: 258294 | R181: 1729616 | S181: 258294 | T181: 765054 | U181: 706266 | V181: 602181 | W181: 3998375 | X181: 8442793 | Y181: 50730043 | AA181: 258294 | AB181: 300560 | AC181: 497096 | AD181: 285219 | AE181: 345118 | AF181: 2021 Census | AG181: Diversity
A182: Africa: Total | B182: Persons | D182: 2917 | E182: 3036 | F182: 6626 | G182: 1106 | H182: 1245 | I182: 3848 | J182: 3463 | K182: 2665 | L182: 2298 | M182: 1691 | N182: 2247 | O182: 2394 | P182: 33544 | Q182: 8770 | R182: 42314 | S182: 8770 | T182: 12293 | U182: 21243 | V182: 21542 | W182: 91551 | X182: 235197 | Y182: 1558199 | AA182: 8770 | AB182: 11719 | AC182: 7078 | AD182: 6380 | AE182: 7306 | AF182: 2021 Census | AG182: Diversity
A183: Middle East and Asia: Total | B183: Persons | D183: 7168 | E183: 5286 | F183: 6967 | G183: 2261 | H183: 4248 | I183: 6637 | J183: 6770 | K183: 2866 | L183: 1767 | M183: 2755 | N183: 3078 | O183: 4204 | P183: 54007 | Q183: 9947 | R183: 63954 | S183: 9947 | T183: 23485 | U183: 30522 | V183: 25318 | W183: 127951 | X183: 450868 | Y183: 3241701 | AA183: 9947 | AB183: 17852 | AC183: 14550 | AD183: 13938 | AE183: 10148 | AF183: 2021 Census | AG183: Diversity
A184: The Americas and the Caribbean: Total | B184: Persons | D184: 972 | E184: 1653 | F184: 1090 | G184: 767 | H184: 646 | I184: 866 | J184: 1210 | K184: 1396 | L184: 699 | M184: 900 | N184: 1023 | O184: 1278 | P184: 12508 | Q184: 2311 | R184: 14819 | S184: 2311 | T184: 5637 | U184: 6863 | V184: 4966 | W184: 33093 | X184: 113825 | Y184: 790002 | AA184: 2311 | AB184: 2602 | AC184: 3966 | AD184: 2182 | AE184: 3697 | AF184: 2021 Census | AG184: Diversity
A185: Antarctica and Oceania: Total | B185: Persons | D185: 380 | E185: 491 | F185: 170 | G185: 319 | H185: 298 | I185: 205 | J185: 432 | K185: 637 | L185: 268 | M185: 381 | N185: 460 | O185: 652 | P185: 4689 | Q185: 456 | R185: 5145 | S185: 456 | T185: 2137 | U185: 2556 | V185: 1099 | W185: 10924 | X185: 35362 | Y185: 170023 | AA185: 456 | AB185: 673 | AC185: 1489 | AD185: 812 | AE185: 1749 | AF185: 2021 Census | AG185: Diversity
A186: Household Language | B186: Table TS025 | D186: 2021 | E186: 2021 | F186: 2021 | G186: 2021 | H186: 2021 | I186: 2021 | J186: 2021 | K186: 2021 | L186: 2021 | M186: 2021 | N186: 2021 | O186: 2021 | P186: 2021 | Q186: 2021 | R186: 2021 | S186: 2021 | T186: 2021 | U186: 2021 | V186: 2021 | W186: 2021 | X186: 2021 | Y186: 2021 | AA186: 2021 | AB186: 2021 | AC186: 2021 | AD186: 2021 | AE186: 2021 | AF186: 2021 Census | AG186: Diversity
